Workbook

Sheet Sample Report (hidden)
A2: Date
A3: Hen
A4: Program
A5: Start at 999999
A6: Sequence component 1 | B6: Time 1 | C6: Seqeunce Component 2 | D6: Time 2 | E6: Seqeunce Component 3 | F6: Time 3 | G6: Correct 0 = No 1=Yes | J6: Seqeunce | K6: Time
A7: 12 | B7: 7 | C7: 12 | D7: 42 | E7: 13 | F7: 18 | G7: if 77 new line, if 31 or 41 = yes new line on 77, | J7: =string of Seqeunce compponent 1, 2 & 3 | K7: =time 3
A8: This continues until ther is a 1 on its own to indicate start of summary data
J9: 10-19 =1
A10: Summary Data | J10: 20-29 =2
A11: Correct | B11: Incorrect | C11: Rft | D11: total | E11: Av Correct | F11: Av Incorrect | G11: Percent correct | H11: Time | J11: in this example the seqeunce would be 111
A12: 40 | B12: 33 | C12: 40 | D12: 73 | E12: 23.95 | F12: 15 | G12: 54 | H12: 806

Sheet Summary
A2: Day | B2: Date | C2: Average Response Rate | D2: Target % | E2: RF for non correct sequence | F2: U Value | K2: Block 1 | L2: Block 2 | M2: Block 3 | N2: Block 4 | O2: Block 5 | P2: Block 6
A3: 1 | B3: ='!M429A20.185'!B2:C2 -> <date> | C3: =('!M429A20.185'!F62/60)/'!M429A20.185'!Q3 -> 1.918154762 | D3: ='!M429A20.185'!N20/'!M429A20.185'!Q3 -> 0 | E3: =SUM('!M429A20.185'!L20:Q20)/'!M429A20.185'!Q3 -> 2.517857143 | F3: ='!M429A20.185'!Q16 -> 0.1486254207 | J3: Average Response Rate | K3: =AVERAGE(C3:C7) -> 3.140177674 | L3: =AVERAGE(C8:C12) -> 2.166613482 | M3: =AVERAGE(C13:C17) -> 2.009261276 | N3: =AVERAGE(C18:C22) -> 1.912472072 | O3: =AVERAGE(C23:C27) -> 1.977618883 | P3: =AVERAGE(C28:C32) -> 2.216293914
A4: 2 | B4: ='!M503A00.185'!B2:C2 -> <date> | C4: =('!M503A00.185'!F163/60)/'!M503A00.185'!Q3 -> 2.17278481 | D4: ='!M503A00.185'!N20/'!M503A00.185'!Q3 -> 0 | E4: =SUM('!M503A00.185'!L20:Q20)/'!M503A00.185'!Q3 -> 1.107594937 | F4: ='!M503A00.185'!Q16 -> 0.2254295518 | J4: Target % | K4: =AVERAGE(D3:D7) -> 0.01824277168 | L4: =AVERAGE(D8:D12) -> 0.487387993 | M4: =AVERAGE(D13:D17) -> 0.6915517816 | N4: =AVERAGE(D18:D22) -> 0.8366438878 | O4: =AVERAGE(D23:D27) -> 0.7097415473 | P4: =AVERAGE(D28:D32) -> 0.5598791711
A5: 3 | B5: ='!M504650.185'!B2:C2 -> <date> | C5: =('!M504650.185'!F65/60)/'!M504650.185'!Q3 -> 6.774011299 | D5: ='!M504650.185'!N20/'!M504650.185'!Q3 -> 0.01694915254 | E5: =SUM('!M504650.185'!L20:Q20)/'!M504650.185'!Q3 -> 2.423728814 | F5: ='!M504650.185'!Q16 -> 0.3099573195 | J5: CCRF | K5: =AVERAGE(E3:E7) -> 1.779027355 | L5: =AVERAGE(E8:E12) -> 3.328812038 | M5: =AVERAGE(E13:E17) -> 4.83016428 | N5: =AVERAGE(E18:E22) -> 5.303585981 | O5: =AVERAGE(E23:E27) -> 4.656804145 | P5: =AVERAGE(E28:E32) -> 4.113087105
A6: 4 | B6: ='!M505B10.185'!B2:C2 -> <date> | C6: =('!M505B10.185'!F176/60)/'!M505B10.185'!Q3 -> 2.338333333 | D6: ='!M505B10.185'!N20/'!M505B10.185'!Q3 -> 0.01176470588 | E6: =SUM('!M505B10.185'!L20:Q20)/'!M505B10.185'!Q3 -> 1.064705882 | F6: ='!M505B10.185'!Q16 -> 0.2858724821 | J6: U Value | K6: =AVERAGE(F3:F7) -> 0.2449500538 | L6: =AVERAGE(F8:F12) -> 0.2925438761 | M6: =AVERAGE(F13:F17) -> 0.2003582538 | N6: =AVERAGE(F18:F22) -> 0.1368844145 | O6: =AVERAGE(F23:F27) -> 0.1665390636 | P6: =AVERAGE(F28:F32) -> 0.2197067723
A7: 5 | B7: ='!M506840.185'!B2:C2 -> <date> | C7: =('!M506840.185'!F166/60)/'!M506840.185'!Q3 -> 2.497604167 | D7: ='!M506840.185'!N20/'!M506840.185'!Q3 -> 0.0625 | E7: =SUM('!M506840.185'!L20:Q20)/'!M506840.185'!Q3 -> 1.78125 | F7: ='!M506840.185'!Q16 -> 0.254865495
A8: 6 | B8: ='!M507A00.185'!B2:C2 -> <date> | C8: =('!M507A00.185'!F106/60)/'!M507A00.185'!Q3 -> 2.287333333 | D8: ='!M507A00.185'!N20/'!M507A00.185'!Q3 -> 0.38 | E8: =SUM('!M507A00.185'!L20:Q20)/'!M507A00.185'!Q3 -> 1.82 | F8: ='!M507A00.185'!Q16 -> 0.3183087122
A9: 7 | B9: ='!M509B30.185'!B2:C2 -> <date> | C9: =('!M509B30.185'!F85/60)/'!M509B30.185'!Q3 -> 2.174050633 | D9: ='!M509B30.185'!N20/'!M509B30.185'!Q3 -> 0.4810126582 | E9: =SUM('!M509B30.185'!L20:Q20)/'!M509B30.185'!Q3 -> 3.481012658 | F9: ='!M509B30.185'!Q16 -> 0.3499705163
A10: 8 | B10: ='!M510A10.185'!B2:C2 -> <date> | C10: =('!M510A10.185'!F64/60)/'!M510A10.185'!Q3 -> 2.119827586 | D10: ='!M510A10.185'!N20/'!M510A10.185'!Q3 -> 0.6724137931 | E10: =SUM('!M510A10.185'!L20:Q20)/'!M510A10.185'!Q3 -> 4.810344828 | F10: ='!M510A10.185'!Q16 -> 0.2649570371
A11: 9 | B11: ='!M511A30.185'!B2:C2 -> <date> | C11: =('!M511A30.185'!F106/60)/'!M511A30.185'!Q3 -> 2.104333333 | D11: ='!M511A30.185'!N20/'!M511A30.185'!Q3 -> 0.39 | E11: =SUM('!M511A30.185'!L20:Q20)/'!M511A30.185'!Q3 -> 2.83 | F11: ='!M511A30.185'!Q16 -> 0.2650599111
A12: 10 | B12: ='!M512B50.185'!B2:C2 -> <date> | C12: =('!M512B50.185'!F80/60)/'!M512B50.185'!Q3 -> 2.147522523 | D12: ='!M512B50.185'!N20/'!M512B50.185'!Q3 -> 0.5135135135 | E12: =SUM('!M512B50.185'!L20:Q20)/'!M512B50.185'!Q3 -> 3.702702703 | F12: ='!M512B50.185'!Q16 -> 0.2644232038
A13: 11 | B13: ='!M513C40.185'!B2:C2 -> <date> | C13: =('!M513C40.185'!F69/60)/'!M513C40.185'!Q3 -> 2.121164021 | D13: ='!M513C40.185'!N20/'!M513C40.185'!Q3 -> 0.619047619 | E13: =SUM('!M513C40.185'!L20:Q20)/'!M513C40.185'!Q3 -> 4.301587302 | F13: ='!M513C40.185'!Q16 -> 0.2319402938
A14: 12 | B14: ='!M514A50.185'!B2:C2 -> <date> | C14: =('!M514A50.185'!F72/60)/'!M514A50.185'!Q3 -> 2.045707071 | D14: ='!M514A50.185'!N20/'!M514A50.185'!Q3 -> 0.5909090909 | E14: =SUM('!M514A50.185'!L20:Q20)/'!M514A50.185'!Q3 -> 4.121212121 | F14: ='!M514A50.185'!Q16 -> 0.2277366599
A15: 13 | B15: ='!M515A20.185'!B2:C2 -> <date> | C15: =('!M515A20.185'!F48/60)/'!M515A20.185'!Q3 -> 1.875396825 | D15: ='!M515A20.185'!N20/'!M515A20.185'!Q3 -> 0.9285714286 | E15: =SUM('!M515A20.185'!L20:Q20)/'!M515A20.185'!Q3 -> 6.285714286 | F15: ='!M515A20.185'!Q16 -> 0.08100874855
A16: 14 | B16: ='!M516B20.185'!B2:C2 -> <date> | C16: =('!M516B20.185'!F58/60)/'!M516B20.185'!Q3 -> 1.934294872 | D16: ='!M516B20.185'!N20/'!M516B20.185'!Q3 -> 0.75 | E16: =SUM('!M516B20.185'!L20:Q20)/'!M516B20.185'!Q3 -> 5.134615385 | F16: ='!M516B20.185'!Q16 -> 0.1923197329
A17: 15 | B17: ='!M517C20.105'!B2:C2 -> <date> | C17: =('!M517C20.105'!F71/60)/'!M517C20.105'!Q3 -> 2.06974359 | D17: ='!M517C20.105'!N20/'!M517C20.105'!Q3 -> 0.5692307692 | E17: =SUM('!M517C20.105'!L20:Q20)/'!M517C20.105'!Q3 -> 4.307692308 | F17: ='!M517C20.105'!Q16 -> 0.2687858338
A18: 16 | B18: ='!M518940.105'!B2:C2 -> <date> | C18: =('!M518940.105'!F56/60)/'!M518940.105'!Q3 -> 2.017666667 | D18: ='!M518940.105'!N20/'!M518940.105'!Q3 -> 0.78 | E18: =SUM('!M518940.105'!L20:Q20)/'!M518940.105'!Q3 -> 3.34 | F18: ='!M518940.105'!Q16 -> 0.1613535016
A19: 17 | B19: ='!M519900.105'!B2:C2 -> <date> | C19: =('!M519900.105'!F59/60)/'!M519900.105'!Q3 -> 1.950943396 | D19: ='!M519900.105'!N20/'!M519900.105'!Q3 -> 0.7358490566 | E19: =SUM('!M519900.105'!L20:Q20)/'!M519900.105'!Q3 -> 5.056603774 | F19: ='!M519900.105'!Q16 -> 0.1852225331
A20: 18 | B20: ='!M520A50.105'!B2:C2 -> <date> | C20: =('!M520A50.105'!F53/60)/'!M520A50.105'!Q3 -> 1.884751773 | D20: ='!M520A50.105'!N20/'!M520A50.105'!Q3 -> 0.829787234 | E20: =SUM('!M520A50.105'!L20:Q20)/'!M520A50.105'!Q3 -> 5.659574468 | F20: ='!M520A50.105'!Q16 -> 0.151016461
A21: 19 | B21: ='!M521A00.105'!B2:C2 -> <date> | C21: =('!M521A00.105'!F50/60)/'!M521A00.105'!Q3 -> 1.915909091 | D21: ='!M521A00.105'!N20/'!M521A00.105'!Q3 -> 0.8863636364 | E21: =SUM('!M521A00.105'!L20:Q20)/'!M521A00.105'!Q3 -> 6.022727273 | F21: ='!M521A00.105'!Q16 -> 0.1252390808
A22: 20 | B22: ='!M522930.105'!B2:C2 -> <date> | C22: =('!M522930.105'!F47/60)/'!M522930.105'!Q3 -> 1.793089431 | D22: ='!M522930.105'!N20/'!M522930.105'!Q3 -> 0.9512195122 | E22: =SUM('!M522930.105'!L20:Q20)/'!M522930.105'!Q3 -> 6.43902439 | F22: ='!M522930.105'!Q16 -> 0.0615904958
A23: 21 | B23: ='!M523930.105'!B2:C2 -> <date> | C23: =('!M523930.105'!F47/60)/'!M523930.105'!Q3 -> 1.835772358 | D23: ='!M523930.105'!N20/'!M523930.105'!Q3 -> 0.9268292683 | E23: =SUM('!M523930.105'!L20:Q20)/'!M523930.105'!Q3 -> 6.414634146 | F23: ='!M523930.105'!Q16 -> 0.09213521154
A24: 22 | B24: ='!M524900.105'!B2:C2 -> <date> | C24: =('!M524900.105'!F74/60)/'!M524900.105'!Q3 -> 2.021323529 | D24: ='!M524900.105'!N20/'!M524900.105'!Q3 -> 0.5735294118 | E24: =SUM('!M524900.105'!L20:Q20)/'!M524900.105'!Q3 -> 4.014705882 | F24: ='!M524900.105'!Q16 -> 0.1918959029
A25: 23 | B25: ='!M525B00.105'!B2:C2 -> <date> | C25: =('!M525B00.105'!F84/60)/'!M525B00.105'!Q3 -> 2.041880342 | D25: ='!M525B00.105'!N20/'!M525B00.105'!Q3 -> 0.5 | E25: =SUM('!M525B00.105'!L20:Q20)/'!M525B00.105'!Q3 -> 2.256410256 | F25: ='!M525B00.105'!Q16 -> 0.2092879157
A26: 24 | B26: ='!M526B30.105'!B2:C2 -> <date> | C26: =('!M526B30.105'!F54/60)/'!M526B30.105'!Q3 -> 1.991319444 | D26: ='!M526B30.105'!N20/'!M526B30.105'!Q3 -> 0.8125 | E26: =SUM('!M526B30.105'!L20:Q20)/'!M526B30.105'!Q3 -> 5.541666667 | F26: ='!M526B30.105'!Q16 -> 0.1503144569
A27: 25 | B27: ='!M527B30.105'!B2:C2 -> <date> | C27: =('!M527B30.105'!F59/60)/'!M527B30.105'!Q3 -> 1.997798742 | D27: ='!M527B30.105'!N20/'!M527B30.105'!Q3 -> 0.7358490566 | E27: =SUM('!M527B30.105'!L20:Q20)/'!M527B30.105'!Q3 -> 5.056603774 | F27: ='!M527B30.105'!Q16 -> 0.1890618307
A28: 26 | B28: ='!M528A40.105'!B2:C2 -> <date> | C28: =('!M528A40.105'!F131/60)/'!M528A40.105'!Q3 -> 2.756666667 | D28: ='!M528A40.105'!N20/'!M528A40.105'!Q3 -> 0.136 | E28: =SUM('!M528A40.105'!L20:Q20)/'!M528A40.105'!Q3 -> 2.16 | F28: ='!M528A40.105'!Q16 -> 0.2053790814
A29: 27 | B29: ='!M529A40.105'!B2:C2 -> <date> | C29: =('!M529A40.105'!F55/60)/'!M529A40.105'!Q3 -> 1.927891156 | D29: ='!M529A40.105'!N20/'!M529A40.105'!Q3 -> 0.7959183673 | E29: =SUM('!M529A40.105'!L20:Q20)/'!M529A40.105'!Q3 -> 5.428571429 | F29: ='!M529A40.105'!Q16 -> 0.1971323571
A30: 28 | B30: ='!M530B10.105'!B2:C2 -> <date> | C30: =('!M530B10.105'!F52/60)/'!M530B10.105'!Q3 -> 1.93442029 | D30: ='!M530B10.105'!N20/'!M530B10.105'!Q3 -> 0.847826087 | E30: =SUM('!M530B10.105'!L20:Q20)/'!M530B10.105'!Q3 -> 5.760869565 | F30: ='!M530B10.105'!Q16 -> 0.1493725927
A31: 29 | B31: ='!M531A40.105'!B2:C2 -> <date> | C31: =('!M531A40.105'!F83/60)/'!M531A40.105'!Q3 -> 2.283982684 | D31: ='!M531A40.105'!N20/'!M531A40.105'!Q3 -> 0.5064935065 | E31: =SUM('!M531A40.105'!L20:Q20)/'!M531A40.105'!Q3 -> 3.584415584 | F31: ='!M531A40.105'!Q16 -> 0.2610615616
A32: 30 | B32: ='!M601B10.105'!B2:C2 -> <date> | C32: =('!M601B10.105'!F82/60)/'!M601B10.105'!Q3 -> 2.178508772 | D32: ='!M601B10.105'!N20/'!M601B10.105'!Q3 -> 0.5131578947 | E32: =SUM('!M601B10.105'!L20:Q20)/'!M601B10.105'!Q3 -> 3.631578947 | F32: ='!M601B10.105'!Q16 -> 0.2855882685
B33: ='!M602A20.105'!B2:C2 -> <date> | C33: =('!M602A20.105'!F69/60)/'!M602A20.105'!Q3 -> 1.966137566 | D33: ='!M602A20.105'!N20/'!M602A20.105'!Q3 -> 0.619047619 | E33: =SUM('!M602A20.105'!L20:Q20)/'!M602A20.105'!Q3 -> 4.301587302 | F33: ='!M602A20.105'!Q16 -> 0.2170316863
B34: ='!M603D00.105'!B2:C2 -> <date> | C34: =('!M603D00.105'!F167/60)/'!M603D00.105'!Q3 -> 2.475569358 | D34: ='!M603D00.105'!N20/'!M603D00.105'!Q3 -> 0.1118012422 | E34: =SUM('!M603D00.105'!L20:Q20)/'!M603D00.105'!Q3 -> 1.142857143 | F34: ='!M603D00.105'!Q16 -> 0.1490971091

Sheet Start
F1: Use Folder 51 | H1: Auto Clean Up | J1: Correct sequence
F2: FALSE | H2: TRUE | J2: 211
A4: Working with Folder | G4: Process All/Or Pick A number: ALL or an integer
A5: F:\Hen Chapter\Raw Data\105_185\Phase 1 Var\ | G5: ALL
A6: Filenames:
A7: !M429A20.185 | G7: Paint Cells
A8: !M512B50.185 | G8: FALSE
A9: !M513C40.185
A10: !M514A50.185
A11: !M515A20.185
A12: !M516B20.185
A13: !M503A00.185
A14: !M504650.185
A15: !M505B10.185
A16: !M506840.185
A17: !M507A00.185
A18: !M509B30.185
A19: !M510A10.185
A20: !M511A30.185
A21: !M528A40.105
A22: !M529A40.105
A23: !M530B10.105
A24: !M517C20.105
A25: !M518940.105
A26: !M519900.105
A27: !M520A50.105
A28: !M521A00.105
A29: !M522930.105
A30: !M523930.105
A31: !M524900.105
A32: !M525B00.105
A33: !M526B30.105
A34: !M527B30.105
A35: !M601B10.105
A36: !M602A20.105
A37: !M603D00.105
A38: !M531A40.105

Sheet !M429A20.185
A1: Report for:!M429A20.185
A2: Date: | B2: <date>
A3: Hen: | B3: <hen> | F3: Correct Sequence | G3: =Start!J2 -> 211 | P3: Total Sequences in Data | Q3: =4994-COUNTBLANK(L7:L5000) -> 56 | V3: Total Sequences in Block Data | W3: =COUNTA(L7:L15) -> 9 | AA3: Total Sequences in Block Data | AB3: =COUNTA(L16:L25) -> 10 | AF3: Total Sequences in Block Data | AG3: =COUNTA(L26:L34) -> 9 | AK3: Total Sequences in Block Data | AL3: =COUNTA(L35:L43) -> 9 | AP3: Total Sequences in Block Data | AQ3: =COUNTA(L44:L53) -> 10 | AU3: Total Sequences in Block Data | AV3: =COUNTA(L54:L62) -> 9
P4: Total Sequences in Summary | Q4: =SUM(O7:O14) -> 56 | V4: Total Sequences in Block Summary | W4: =SUM(U7:U14) -> 9 | AA4: Total Sequences in Block Summary | AB4: =SUM(Z7:Z14) -> 10 | AF4: Total Sequences in Block Summary | AG4: =SUM(AE7:AE14) -> 9 | AK4: Total Sequences in Block Summary | AL4: =SUM(AJ7:AJ14) -> 9 | AP4: Total Sequences in Block Summary | AQ4: =SUM(AO7:AO14) -> 10 | AU4: Total Sequences in Block Summary | AV4: =SUM(AT7:AT14) -> 9
T5: Block 1 | Y5: Block 2 | AD5: Block 3 | AI5: Block 4 | AN5: Block 5 | AS5: Block 6
A6: Sequence Component 1 | B6: Time 1 | C6: Sequence Component 2 | D6: Time 2 | E6: Sequence Component 3 | F6: Time 3 | G6: Sequence Component 4 | H6: Time 4 | I6: Sequence Component 5 | J6: Time 5 | K6: Correct? 0=No 1=Yes | L6: Sequence | N6: Frequency | P6: Relative Frequency | Q6: Variability | T6: Frequency | V6: Relative Frequency | W6: Variability | Y6: Frequency | AA6: Relative Frequency | AB6: Variability | AD6: Frequency | AF6: Relative Frequency | AG6: Variability | AI6: Frequency | AK6: Relative Frequency | AL6: Variability | AN6: Frequency | AP6: Relative Frequency | AQ6: Variability | AS6: Frequency | AU6: Relative Frequency | AV6: Variability
A7: 11 | B7: 8 | C7: 21 | D7: 18 | E7: 21 | F7: 23 | K7: 0 | L7: 122 | N7: 111 | O7: =COUNTIF($L$7:$L$500,N7) -> 0 | P7: =O7/$Q$4 -> 0 | Q7: =IF(P7=0,0,(P7*((LOG(P7))/LOG(2)))) -> 0 | T7: =N7 -> 111 | U7: =COUNTIF(L7:L15,T7) -> 0 | V7: =U7/(W4-U11) -> 0 | W7: =IF(V7=0,0,(V7*((LOG(V7))/LOG(2)))) -> 0 | Y7: =N7 -> 111 | Z7: =COUNTIF(L16:L25,Y7) -> 0 | AA7: =Z7/(AB4-Z11) -> 0 | AB7: =IF(AA7=0,0,(AA7*((LOG(AA7))/LOG(2)))) -> 0 | AD7: =N7 -> 111 | AE7: =COUNTIF(L26:L34,AD7) -> 0 | AF7: =AE7/(AG4-AE11) -> 0 | AG7: =IF(AF7=0,0,(AF7*((LOG(AF7))/LOG(2)))) -> 0 | AI7: =N7 -> 111 | AJ7: =COUNTIF(L35:L43,AI7) -> 0 | AK7: =AJ7/(AL4-AJ11) -> 0 | AL7: =IF(AK7=0,0,(AK7*((LOG(AK7))/LOG(2)))) -> 0 | AN7: =N7 -> 111 | AO7: =COUNTIF(L44:L53,AN7) -> 0 | AP7: =AO7/(AQ4-AO11) -> 0 | AQ7: =IF(AP7=0,0,(AP7*((LOG(AP7))/LOG(2)))) -> 0 | AS7: =N7 -> 111 | AT7: =COUNTIF(L54:L62,AS7) -> 0 | AU7: =AT7/(AV4-AT11) -> 0 | AV7: =IF(AU7=0,0,(AU7*((LOG(AU7))/LOG(2)))) -> 0
A8: 11 | B8: 120 | C8: 21 | D8: 129 | E8: 21 | F8: 133 | K8: 0 | L8: 122 | N8: 112 | O8: =COUNTIF($L$7:$L$500,N8) -> 0 | P8: =O8/$Q$4 -> 0 | Q8: =IF(P8=0,0,(P8*((LOG(P8))/LOG(2)))) -> 0 | T8: =N8 -> 112 | U8: =COUNTIF(L7:L15,T8) -> 0 | V8: =U8/(W4-U11) -> 0 | W8: =IF(V8=0,0,(V8*((LOG(V8))/LOG(2)))) -> 0 | Y8: =N8 -> 112 | Z8: =COUNTIF(L16:L25,Y8) -> 0 | AA8: =Z8/(AB4-Z11) -> 0 | AB8: =IF(AA8=0,0,(AA8*((LOG(AA8))/LOG(2)))) -> 0 | AD8: =N8 -> 112 | AE8: =COUNTIF(L26:L34,AD8) -> 0 | AF8: =AE8/(AG4-AE11) -> 0 | AG8: =IF(AF8=0,0,(AF8*((LOG(AF8))/LOG(2)))) -> 0 | AI8: =N8 -> 112 | AJ8: =COUNTIF(L35:L43,AI8) -> 0 | AK8: =AJ8/(AL4-AJ11) -> 0 | AL8: =IF(AK8=0,0,(AK8*((LOG(AK8))/LOG(2)))) -> 0 | AN8: =N8 -> 112 | AO8: =COUNTIF(L44:L53,AN8) -> 0 | AP8: =AO8/(AQ4-AO11) -> 0 | AQ8: =IF(AP8=0,0,(AP8*((LOG(AP8))/LOG(2)))) -> 0 | AS8: =N8 -> 112 | AT8: =COUNTIF(L54:L62,AS8) -> 0 | AU8: =AT8/(AV4-AT11) -> 0 | AV8: =IF(AU8=0,0,(AU8*((LOG(AU8))/LOG(2)))) -> 0
A9: 22 | B9: 244 | C9: 23 | D9: 257 | E9: 23 | F9: 279 | K9: 0 | L9: 222 | N9: 121 | O9: =COUNTIF($L$7:$L$500,N9) -> 0 | P9: =O9/$Q$4 -> 0 | Q9: =IF(P9=0,0,(P9*((LOG(P9))/LOG(2)))) -> 0 | T9: =N9 -> 121 | U9: =COUNTIF(L7:L15,T9) -> 0 | V9: =U9/(W4-U11) -> 0 | W9: =IF(V9=0,0,(V9*((LOG(V9))/LOG(2)))) -> 0 | Y9: =N9 -> 121 | Z9: =COUNTIF(L16:L25,Y9) -> 0 | AA9: =Z9/(AB4-Z11) -> 0 | AB9: =IF(AA9=0,0,(AA9*((LOG(AA9))/LOG(2)))) -> 0 | AD9: =N9 -> 121 | AE9: =COUNTIF(L26:L34,AD9) -> 0 | AF9: =AE9/(AG4-AE11) -> 0 | AG9: =IF(AF9=0,0,(AF9*((LOG(AF9))/LOG(2)))) -> 0 | AI9: =N9 -> 121 | AJ9: =COUNTIF(L35:L43,AI9) -> 0 | AK9: =AJ9/(AL4-AJ11) -> 0 | AL9: =IF(AK9=0,0,(AK9*((LOG(AK9))/LOG(2)))) -> 0 | AN9: =N9 -> 121 | AO9: =COUNTIF(L44:L53,AN9) -> 0 | AP9: =AO9/(AQ4-AO11) -> 0 | AQ9: =IF(AP9=0,0,(AP9*((LOG(AP9))/LOG(2)))) -> 0 | AS9: =N9 -> 121 | AT9: =COUNTIF(L54:L62,AS9) -> 0 | AU9: =AT9/(AV4-AT11) -> 0 | AV9: =IF(AU9=0,0,(AU9*((LOG(AU9))/LOG(2)))) -> 0
A10: 11 | B10: 376 | C10: 21 | D10: 385 | E10: 21 | F10: 390 | K10: 0 | L10: 122 | N10: 122 | O10: =COUNTIF($L$7:$L$500,N10) -> 40 | P10: =O10/$Q$4 -> 0.7142857143 | Q10: =IF(P10=0,0,(P10*((LOG(P10))/LOG(2)))) -> -0.346733448 | T10: =N10 -> 122 | U10: =COUNTIF(L7:L15,T10) -> 6 | V10: =U10/(W4-U11) -> 0.6666666667 | W10: =IF(V10=0,0,(V10*((LOG(V10))/LOG(2)))) -> -0.3899750005 | Y10: =N10 -> 122 | Z10: =COUNTIF(L16:L25,Y10) -> 6 | AA10: =Z10/(AB4-Z11) -> 0.6 | AB10: =IF(AA10=0,0,(AA10*((LOG(AA10))/LOG(2)))) -> -0.4421793565 | AD10: =N10 -> 122 | AE10: =COUNTIF(L26:L34,AD10) -> 6 | AF10: =AE10/(AG4-AE11) -> 0.6666666667 | AG10: =IF(AF10=0,0,(AF10*((LOG(AF10))/LOG(2)))) -> -0.3899750005 | AI10: =N10 -> 122 | AJ10: =COUNTIF(L35:L43,AI10) -> 8 | AK10: =AJ10/(AL4-AJ11) -> 0.8888888889 | AL10: =IF(AK10=0,0,(AK10*((LOG(AK10))/LOG(2)))) -> -0.1510444457 | AN10: =N10 -> 122 | AO10: =COUNTIF(L44:L53,AN10) -> 6 | AP10: =AO10/(AQ4-AO11) -> 0.6 | AQ10: =IF(AP10=0,0,(AP10*((LOG(AP10))/LOG(2)))) -> -0.4421793565 | AS10: =N10 -> 122 | AT10: =COUNTIF(L54:L62,AS10) -> 8 | AU10: =AT10/(AV4-AT11) -> 0.8888888889 | AV10: =IF(AU10=0,0,(AU10*((LOG(AU10))/LOG(2)))) -> -0.1510444457
A11: 11 | B11: 482 | C11: 21 | D11: 495 | E11: 21 | F11: 505 | K11: 0 | L11: 122 | N11: 211 | O11: =COUNTIF($L$7:$L$500,N11) -> 0 | P11: =O11/$Q$4 -> 0 | Q11: =IF(P11=0,0,(P11*((LOG(P11))/LOG(2)))) -> 0 | T11: =N11 -> 211 | U11: =COUNTIF(L7:L15,T11) -> 0 | Y11: =N11 -> 211 | Z11: =COUNTIF(L16:L25,Y11) -> 0 | AD11: =N11 -> 211 | AE11: =COUNTIF(L26:L34,AD11) -> 0 | AI11: =N11 -> 211 | AJ11: =COUNTIF(L35:L43,AI11) -> 0 | AN11: =N11 -> 211 | AO11: =COUNTIF(L44:L53,AN11) -> 0 | AS11: =N11 -> 211 | AT11: =COUNTIF(L54:L62,AS11) -> 0
A12: 22 | B12: 605 | C12: 23 | D12: 610 | E12: 23 | F12: 618 | K12: 0 | L12: 222 | N12: 212 | O12: =COUNTIF($L$7:$L$500,N12) -> 0 | P12: =O12/$Q$4 -> 0 | Q12: =IF(P12=0,0,(P12*((LOG(P12))/LOG(2)))) -> 0 | T12: =N12 -> 212 | U12: =COUNTIF(L7:L15,T12) -> 0 | V12: =U12/(W4-U11) -> 0 | W12: =IF(V12=0,0,(V12*((LOG(V12))/LOG(2)))) -> 0 | Y12: =N12 -> 212 | Z12: =COUNTIF(L16:L25,Y12) -> 0 | AA12: =Z12/(AB4-Z11) -> 0 | AB12: =IF(AA12=0,0,(AA12*((LOG(AA12))/LOG(2)))) -> 0 | AD12: =N12 -> 212 | AE12: =COUNTIF(L26:L34,AD12) -> 0 | AF12: =AE12/(AG4-AE11) -> 0 | AG12: =IF(AF12=0,0,(AF12*((LOG(AF12))/LOG(2)))) -> 0 | AI12: =N12 -> 212 | AJ12: =COUNTIF(L35:L43,AI12) -> 0 | AK12: =AJ12/(AL4-AJ11) -> 0 | AL12: =IF(AK12=0,0,(AK12*((LOG(AK12))/LOG(2)))) -> 0 | AN12: =N12 -> 212 | AO12: =COUNTIF(L44:L53,AN12) -> 0 | AP12: =AO12/(AQ4-AO11) -> 0 | AQ12: =IF(AP12=0,0,(AP12*((LOG(AP12))/LOG(2)))) -> 0 | AS12: =N12 -> 212 | AT12: =COUNTIF(L54:L62,AS12) -> 0 | AU12: =AT12/(AV4-AT11) -> 0 | AV12: =IF(AU12=0,0,(AU12*((LOG(AU12))/LOG(2)))) -> 0
A13: 11 | B13: 717 | C13: 21 | D13: 726 | E13: 21 | F13: 731 | K13: 0 | L13: 122 | N13: 221 | O13: =COUNTIF($L$7:$L$500,N13) -> 0 | P13: =O13/$Q$4 -> 0 | Q13: =IF(P13=0,0,(P13*((LOG(P13))/LOG(2)))) -> 0 | T13: =N13 -> 221 | U13: =COUNTIF(L7:L15,T13) -> 0 | V13: =U13/(W4-U11) -> 0 | W13: =IF(V13=0,0,(V13*((LOG(V13))/LOG(2)))) -> 0 | Y13: =N13 -> 221 | Z13: =COUNTIF(L16:L25,Y13) -> 0 | AA13: =Z13/(AB4-Z11) -> 0 | AB13: =IF(AA13=0,0,(AA13*((LOG(AA13))/LOG(2)))) -> 0 | AD13: =N13 -> 221 | AE13: =COUNTIF(L26:L34,AD13) -> 0 | AF13: =AE13/(AG4-AE11) -> 0 | AG13: =IF(AF13=0,0,(AF13*((LOG(AF13))/LOG(2)))) -> 0 | AI13: =N13 -> 221 | AJ13: =COUNTIF(L35:L43,AI13) -> 0 | AK13: =AJ13/(AL4-AJ11) -> 0 | AL13: =IF(AK13=0,0,(AK13*((LOG(AK13))/LOG(2)))) -> 0 | AN13: =N13 -> 221 | AO13: =COUNTIF(L44:L53,AN13) -> 0 | AP13: =AO13/(AQ4-AO11) -> 0 | AQ13: =IF(AP13=0,0,(AP13*((LOG(AP13))/LOG(2)))) -> 0 | AS13: =N13 -> 221 | AT13: =COUNTIF(L54:L62,AS13) -> 0 | AU13: =AT13/(AV4-AT11) -> 0 | AV13: =IF(AU13=0,0,(AU13*((LOG(AU13))/LOG(2)))) -> 0
A14: 11 | B14: 829 | C14: 21 | D14: 839 | E14: 21 | F14: 843 | K14: 0 | L14: 122 | N14: 222 | O14: =COUNTIF($L$7:$L$500,N14) -> 16 | P14: =O14/$Q$4 -> 0.2857142857 | Q14: =IF(P14=0,0,(P14*((LOG(P14))/LOG(2)))) -> -0.5163871206 | T14: =N14 -> 222 | U14: =COUNTIF(L7:L15,T14) -> 3 | V14: =U14/(W4-U11) -> 0.3333333333 | W14: =IF(V14=0,0,(V14*((LOG(V14))/LOG(2)))) -> -0.5283208336 | Y14: =N14 -> 222 | Z14: =COUNTIF(L16:L25,Y14) -> 4 | AA14: =Z14/(AB4-Z11) -> 0.4 | AB14: =IF(AA14=0,0,(AA14*((LOG(AA14))/LOG(2)))) -> -0.528771238 | AD14: =N14 -> 222 | AE14: =COUNTIF(L26:L34,AD14) -> 3 | AF14: =AE14/(AG4-AE11) -> 0.3333333333 | AG14: =IF(AF14=0,0,(AF14*((LOG(AF14))/LOG(2)))) -> -0.5283208336 | AI14: =N14 -> 222 | AJ14: =COUNTIF(L35:L43,AI14) -> 1 | AK14: =AJ14/(AL4-AJ11) -> 0.1111111111 | AL14: =IF(AK14=0,0,(AK14*((LOG(AK14))/LOG(2)))) -> -0.352213889 | AN14: =N14 -> 222 | AO14: =COUNTIF(L44:L53,AN14) -> 4 | AP14: =AO14/(AQ4-AO11) -> 0.4 | AQ14: =IF(AP14=0,0,(AP14*((LOG(AP14))/LOG(2)))) -> -0.528771238 | AS14: =N14 -> 222 | AT14: =COUNTIF(L54:L62,AS14) -> 1 | AU14: =AT14/(AV4-AT11) -> 0.1111111111 | AV14: =IF(AU14=0,0,(AU14*((LOG(AU14))/LOG(2)))) -> -0.352213889
A15: 22 | B15: 944 | C15: 23 | D15: 950 | E15: 23 | F15: 959 | K15: 0 | L15: 222 | P15: =SUM(P7:P14) -> 1 | Q15: =-SUM(Q7:Q14) -> 0.8631205686 | V15: =SUM(V7:V14) -> 1 | W15: =-SUM(W7:W14) -> 0.9182958341 | AA15: =SUM(AA7:AA14) -> 1 | AB15: =-SUM(AB7:AB14) -> 0.9709505945 | AF15: =SUM(AF7:AF14) -> 1 | AG15: =-SUM(AG7:AG14) -> 0.9182958341 | AK15: =SUM(AK7:AK14) -> 1 | AL15: =-SUM(AL7:AL14) -> 0.5032583348 | AP15: =SUM(AP7:AP14) -> 1 | AQ15: =-SUM(AQ7:AQ14) -> 0.9709505945 | AU15: =SUM(AU7:AU14) -> 1 | AV15: =-SUM(AV7:AV14) -> 0.5032583348
A16: 11 | B16: 1056 | C16: 21 | D16: 1065 | E16: 21 | F16: 1069 | K16: 0 | L16: 122 | P16: U= | Q16: =Q15/(LOG(Q4)/LOG(2)) -> 0.1486254207 | V16: U1= | W16: =W15/(LOG(W4)/LOG(2)) -> 0.2896900821 | AA16: U2= | AB16: =AB15/(LOG(AB4)/LOG(2)) -> 0.2922852532 | AF16: U3= | AG16: =AG15/(LOG(AG4)/LOG(2)) -> 0.2896900821 | AK16: U4= | AL16: =AL15/(LOG(AL4)/LOG(2)) -> 0.1587603286 | AP16: U5= | AQ16: =AQ15/(LOG(AQ4)/LOG(2)) -> 0.2922852532 | AU16: U6= | AV16: =AV15/(LOG(AV4)/LOG(2)) -> 0.1587603286
A17: 22 | B17: 1167 | C17: 23 | D17: 1171 | E17: 23 | F17: 1178 | K17: 0 | L17: 222
A18: 11 | B18: 1275 | C18: 21 | D18: 1285 | E18: 21 | F18: 1290 | K18: 0 | L18: 122
A19: 22 | B19: 1389 | C19: 23 | D19: 1394 | E19: 23 | F19: 1401 | K19: 0 | L19: 222 | N19: Total Target Seq
A20: 11 | B20: 1499 | C20: 21 | D20: 1513 | E20: 21 | F20: 1522 | K20: 0 | L20: 122 | N20: =COUNTIF(L7:L62,G3) -> 0 | P20: 9 | Q20: 10 | R20: 9 | S20: 9 | T20: 10 | U20: 9
A21: 11 | B21: 1613 | C21: 21 | D21: 1622 | E21: 21 | F21: 1626 | K21: 0 | L21: 122 | P21: % of reinforcement given in 6 equal intervals based on number of trials
A22: 22 | B22: 1726 | C22: 23 | D22: 1730 | E22: 23 | F22: 1737 | K22: 0 | L22: 222 | P22: %_1 | Q22: %_2 | R22: %_3 | S22: %_4 | T22: %_5 | U22: %_6
A23: 11 | B23: 1834 | C23: 21 | D23: 1843 | E23: 21 | F23: 1847 | K23: 0 | L23: 122 | O23: target sequence | P23: =$G$3 -> 211 | Q23: =$G$3 -> 211 | R23: =$G$3 -> 211 | S23: =$G$3 -> 211 | T23: =$G$3 -> 211 | U23: =$G$3 -> 211
A24: 22 | B24: 1972 | C24: 23 | D24: 1976 | E24: 23 | F24: 1983 | K24: 0 | L24: 222 | O24: total reinforcement | P24: =U11 -> 0 | Q24: =Z11 -> 0 | R24: =AE11 -> 0 | S24: =AJ11 -> 0 | T24: =AO11 -> 0 | U24: =AT11 -> 0
A25: 11 | B25: 2080 | C25: 21 | D25: 2089 | E25: 21 | F25: 2094 | K25: 0 | L25: 122 | O25: % target
A26: 11 | B26: 2184 | C26: 21 | D26: 2193 | E26: 21 | F26: 2197 | K26: 0 | L26: 122 | O26: CCRF
A27: 11 | B27: 2287 | C27: 21 | D27: 2295 | E27: 21 | F27: 2299 | K27: 0 | L27: 122 | O27: % CCRf
A28: 11 | B28: 2389 | C28: 21 | D28: 2404 | E28: 21 | F28: 2412 | K28: 0 | L28: 122 | O28: average response rate | P28: =F15/P20 -> 106.5555556 | Q28: =(F25-F15)/Q20 -> 113.5 | R28: =(F34-F25)/R20 -> 118.6666667 | S28: =(F43-F34)/S20 -> 115.2222222 | T28: =(F53-F43)/T20 -> 123.1 | U28: =(F62-F53)/U20 -> 112.7777778
A29: 11 | B29: 2502 | C29: 21 | D29: 2512 | E29: 21 | F29: 2516 | K29: 0 | L29: 122
A30: 22 | B30: 2613 | C30: 23 | D30: 2617 | E30: 23 | F30: 2626 | K30: 0 | L30: 222
A31: 11 | B31: 2725 | C31: 21 | D31: 2735 | E31: 21 | F31: 2740 | K31: 0 | L31: 122
A32: 11 | B32: 2828 | C32: 21 | D32: 2847 | E32: 21 | F32: 2907 | K32: 0 | L32: 122
A33: 22 | B33: 3015 | C33: 23 | D33: 3022 | E33: 23 | F33: 3033 | K33: 0 | L33: 222
A34: 22 | B34: 3144 | C34: 23 | D34: 3152 | E34: 23 | F34: 3162 | K34: 0 | L34: 222
A35: 22 | B35: 3273 | C35: 23 | D35: 3284 | E35: 23 | F35: 3342 | K35: 0 | L35: 222
A36: 11 | B36: 3438 | C36: 21 | D36: 3453 | E36: 21 | F36: 3460 | K36: 0 | L36: 122
A37: 11 | B37: 3549 | C37: 21 | D37: 3563 | E37: 21 | F37: 3571 | K37: 0 | L37: 122
A38: 11 | B38: 3661 | C38: 21 | D38: 3669 | E38: 21 | F38: 3675 | K38: 0 | L38: 122
A39: 11 | B39: 3763 | C39: 21 | D39: 3772 | E39: 21 | F39: 3778 | K39: 0 | L39: 122
A40: 11 | B40: 3866 | C40: 21 | D40: 3875 | E40: 21 | F40: 3879 | K40: 0 | L40: 122
A41: 11 | B41: 3976 | C41: 21 | D41: 3990 | E41: 21 | F41: 3996 | K41: 0 | L41: 122
A42: 11 | B42: 4084 | C42: 21 | D42: 4092 | E42: 21 | F42: 4099 | K42: 0 | L42: 122
A43: 11 | B43: 4186 | C43: 21 | D43: 4195 | E43: 21 | F43: 4199 | K43: 0 | L43: 122
A44: 11 | B44: 4288 | C44: 21 | D44: 4297 | E44: 21 | F44: 4308 | K44: 0 | L44: 122
A45: 22 | B45: 4410 | C45: 23 | D45: 4416 | E45: 23 | F45: 4438 | K45: 0 | L45: 222
A46: 11 | B46: 4535 | C46: 21 | D46: 4545 | E46: 21 | F46: 4622 | K46: 0 | L46: 122
A47: 22 | B47: 4730 | C47: 23 | D47: 4736 | E47: 23 | F47: 4747 | K47: 0 | L47: 222
A48: 11 | B48: 4851 | C48: 21 | D48: 4865 | E48: 21 | F48: 4875 | K48: 0 | L48: 122
A49: 11 | B49: 4965 | C49: 21 | D49: 4973 | E49: 21 | F49: 4986 | K49: 0 | L49: 122
A50: 22 | B50: 5085 | C50: 23 | D50: 5091 | E50: 23 | F50: 5102 | K50: 0 | L50: 222
A51: 11 | B51: 5199 | C51: 21 | D51: 5208 | E51: 21 | F51: 5212 | K51: 0 | L51: 122
A52: 11 | B52: 5300 | C52: 21 | D52: 5310 | E52: 21 | F52: 5314 | K52: 0 | L52: 122
A53: 22 | B53: 5420 | C53: 23 | D53: 5424 | E53: 23 | F53: 5430 | K53: 0 | L53: 222
A54: 11 | B54: 5527 | C54: 21 | D54: 5536 | E54: 21 | F54: 5540 | K54: 0 | L54: 122
A55: 11 | B55: 5629 | C55: 21 | D55: 5638 | E55: 21 | F55: 5642 | K55: 0 | L55: 122
A56: 11 | B56: 5732 | C56: 21 | D56: 5745 | E56: 21 | F56: 5763 | K56: 0 | L56: 122
A57: 22 | B57: 5870 | C57: 23 | D57: 5876 | E57: 23 | F57: 5887 | K57: 0 | L57: 222
A58: 11 | B58: 5984 | C58: 21 | D58: 5997 | E58: 21 | F58: 6022 | K58: 0 | L58: 122
A59: 11 | B59: 6111 | C59: 21 | D59: 6123 | E59: 21 | F59: 6129 | K59: 0 | L59: 122
A60: 11 | B60: 6219 | C60: 21 | D60: 6229 | E60: 21 | F60: 6233 | K60: 0 | L60: 122
A61: 11 | B61: 6322 | C61: 21 | D61: 6336 | E61: 21 | F61: 6345 | K61: 0 | L61: 122
A62: 11 | B62: 6433 | C62: 21 | D62: 6441 | E62: 21 | F62: 6445 | K62: 1 | L62: 122

Sheet !M503A00.185
A1: Report for:!M503A00.185
A2: Date: | B2: <date>
A3: Hen: | B3: <hen> | F3: Correct Sequence | G3: =Start!J2 -> 211 | P3: Total Sequences in Data | Q3: =4994-COUNTBLANK(L7:L5000) -> 158 | V3: Total Sequences in Block Data | W3: =COUNTA(L7:L32) -> 26 | AA3: Total Sequences in Block Data | AB3: =COUNTA(L33:L59) -> 27 | AF3: Total Sequences in Block Data | AG3: =COUNTA(L60:L85) -> 26 | AK3: Total Sequences in Block Data | AL3: =COUNTA(L86:L111) -> 26 | AP3: Total Sequences in Block Data | AQ3: =COUNTA(L112:L138) -> 27 | AU3: Total Sequences in Block Data | AV3: =COUNTA(L139:L164) -> 26
P4: Total Sequences in Summary | Q4: =SUM(O7:O14) -> 157 | V4: Total Sequences in Block Summary | W4: =SUM(U7:U14) -> 26 | AA4: Total Sequences in Block Summary | AB4: =SUM(Z7:Z14) -> 27 | AF4: Total Sequences in Block Summary | AG4: =SUM(AE7:AE14) -> 26 | AK4: Total Sequences in Block Summary | AL4: =SUM(AJ7:AJ14) -> 26 | AP4: Total Sequences in Block Summary | AQ4: =SUM(AO7:AO14) -> 27 | AU4: Total Sequences in Block Summary | AV4: =SUM(AT7:AT14) -> 25
T5: Block 1 | Y5: Block 2 | AD5: Block 3 | AI5: Block 4 | AN5: Block 5 | AS5: Block 6
A6: Sequence Component 1 | B6: Time 1 | C6: Sequence Component 2 | D6: Time 2 | E6: Sequence Component 3 | F6: Time 3 | G6: Sequence Component 4 | H6: Time 4 | I6: Sequence Component 5 | J6: Time 5 | K6: Correct? 0=No 1=Yes | L6: Sequence | N6: Frequency | P6: Relative Frequency | Q6: Variability | T6: Frequency | V6: Relative Frequency | W6: Variability | Y6: Frequency | AA6: Relative Frequency | AB6: Variability | AD6: Frequency | AF6: Relative Frequency | AG6: Variability | AI6: Frequency | AK6: Relative Frequency | AL6: Variability | AN6: Frequency | AP6: Relative Frequency | AQ6: Variability | AS6: Frequency | AU6: Relative Frequency | AV6: Variability
A7: 12 | B7: 12 | C7: 24 | D7: 26 | E7: 24 | F7: 44 | K7: 0 | L7: 122 | N7: 111 | O7: =COUNTIF($L$7:$L$500,N7) -> 9 | P7: =O7/$Q$4 -> 0.05732484076 | Q7: =IF(P7=0,0,(P7*((LOG(P7))/LOG(2)))) -> -0.2364475269 | T7: =N7 -> 111 | U7: =COUNTIF(L7:L32,T7) -> 0 | V7: =U7/(W4-U11) -> 0 | W7: =IF(V7=0,0,(V7*((LOG(V7))/LOG(2)))) -> 0 | Y7: =N7 -> 111 | Z7: =COUNTIF(L33:L59,Y7) -> 0 | AA7: =Z7/(AB4-Z11) -> 0 | AB7: =IF(AA7=0,0,(AA7*((LOG(AA7))/LOG(2)))) -> 0 | AD7: =N7 -> 111 | AE7: =COUNTIF(L60:L85,AD7) -> 0 | AF7: =AE7/(AG4-AE11) -> 0 | AG7: =IF(AF7=0,0,(AF7*((LOG(AF7))/LOG(2)))) -> 0 | AI7: =N7 -> 111 | AJ7: =COUNTIF(L86:L111,AI7) -> 2 | AK7: =AJ7/(AL4-AJ11) -> 0.07692307692 | AL7: =IF(AK7=0,0,(AK7*((LOG(AK7))/LOG(2)))) -> -0.2846492091 | AN7: =N7 -> 111 | AO7: =COUNTIF(L112:L138,AN7) -> 6 | AP7: =AO7/(AQ4-AO11) -> 0.2222222222 | AQ7: =IF(AP7=0,0,(AP7*((LOG(AP7))/LOG(2)))) -> -0.4822055559 | AS7: =N7 -> 111 | AT7: =COUNTIF(L139:L164,AS7) -> 1 | AU7: =AT7/(AV4-AT11) -> 0.04 | AV7: =IF(AU7=0,0,(AU7*((LOG(AU7))/LOG(2)))) -> -0.1857542476
A8: 12 | B8: 143 | C8: 24 | D8: 154 | E8: 24 | F8: 177 | K8: 0 | L8: 122 | N8: 112 | O8: =COUNTIF($L$7:$L$500,N8) -> 26 | P8: =O8/$Q$4 -> 0.1656050955 | Q8: =IF(P8=0,0,(P8*((LOG(P8))/LOG(2)))) -> -0.4296095974 | T8: =N8 -> 112 | U8: =COUNTIF(L7:L32,T8) -> 0 | V8: =U8/(W4-U11) -> 0 | W8: =IF(V8=0,0,(V8*((LOG(V8))/LOG(2)))) -> 0 | Y8: =N8 -> 112 | Z8: =COUNTIF(L33:L59,Y8) -> 4 | AA8: =Z8/(AB4-Z11) -> 0.1481481481 | AB8: =IF(AA8=0,0,(AA8*((LOG(AA8))/LOG(2)))) -> -0.4081314818 | AD8: =N8 -> 112 | AE8: =COUNTIF(L60:L85,AD8) -> 3 | AF8: =AE8/(AG4-AE11) -> 0.1153846154 | AG8: =IF(AF8=0,0,(AF8*((LOG(AF8))/LOG(2)))) -> -0.3594781405 | AI8: =N8 -> 112 | AJ8: =COUNTIF(L86:L111,AI8) -> 6 | AK8: =AJ8/(AL4-AJ11) -> 0.2307692308 | AL8: =IF(AK8=0,0,(AK8*((LOG(AK8))/LOG(2)))) -> -0.4881870502 | AN8: =N8 -> 112 | AO8: =COUNTIF(L112:L138,AN8) -> 11 | AP8: =AO8/(AQ4-AO11) -> 0.4074074074 | AQ8: =IF(AP8=0,0,(AP8*((LOG(AP8))/LOG(2)))) -> -0.5277783229 | AS8: =N8 -> 112 | AT8: =COUNTIF(L139:L164,AS8) -> 2 | AU8: =AT8/(AV4-AT11) -> 0.08 | AV8: =IF(AU8=0,0,(AU8*((LOG(AU8))/LOG(2)))) -> -0.2915084952
A9: 12 | B9: 278 | C9: 24 | D9: 290 | E9: 24 | F9: 296 | K9: 0 | L9: 122 | N9: 121 | O9: =COUNTIF($L$7:$L$500,N9) -> 0 | P9: =O9/$Q$4 -> 0 | Q9: =IF(P9=0,0,(P9*((LOG(P9))/LOG(2)))) -> 0 | T9: =N9 -> 121 | U9: =COUNTIF(L7:L32,T9) -> 0 | V9: =U9/(W4-U11) -> 0 | W9: =IF(V9=0,0,(V9*((LOG(V9))/LOG(2)))) -> 0 | Y9: =N9 -> 121 | Z9: =COUNTIF(L33:L59,Y9) -> 0 | AA9: =Z9/(AB4-Z11) -> 0 | AB9: =IF(AA9=0,0,(AA9*((LOG(AA9))/LOG(2)))) -> 0 | AD9: =N9 -> 121 | AE9: =COUNTIF(L60:L85,AD9) -> 0 | AF9: =AE9/(AG4-AE11) -> 0 | AG9: =IF(AF9=0,0,(AF9*((LOG(AF9))/LOG(2)))) -> 0 | AI9: =N9 -> 121 | AJ9: =COUNTIF(L86:L111,AI9) -> 0 | AK9: =AJ9/(AL4-AJ11) -> 0 | AL9: =IF(AK9=0,0,(AK9*((LOG(AK9))/LOG(2)))) -> 0 | AN9: =N9 -> 121 | AO9: =COUNTIF(L112:L138,AN9) -> 0 | AP9: =AO9/(AQ4-AO11) -> 0 | AQ9: =IF(AP9=0,0,(AP9*((LOG(AP9))/LOG(2)))) -> 0 | AS9: =N9 -> 121 | AT9: =COUNTIF(L139:L164,AS9) -> 0 | AU9: =AT9/(AV4-AT11) -> 0 | AV9: =IF(AU9=0,0,(AU9*((LOG(AU9))/LOG(2)))) -> 0
A10: 12 | B10: 394 | C10: 24 | D10: 408 | E10: 24 | F10: 413 | K10: 0 | L10: 122 | N10: 122 | O10: =COUNTIF($L$7:$L$500,N10) -> 89 | P10: =O10/$Q$4 -> 0.5668789809 | Q10: =IF(P10=0,0,(P10*((LOG(P10))/LOG(2)))) -> -0.4642100083 | T10: =N10 -> 122 | U10: =COUNTIF(L7:L32,T10) -> 16 | V10: =U10/(W4-U11) -> 0.6153846154 | W10: =IF(V10=0,0,(V10*((LOG(V10))/LOG(2)))) -> -0.4310398265 | Y10: =N10 -> 122 | Z10: =COUNTIF(L33:L59,Y10) -> 22 | AA10: =Z10/(AB4-Z11) -> 0.8148148148 | AB10: =IF(AA10=0,0,(AA10*((LOG(AA10))/LOG(2)))) -> -0.240741831 | AD10: =N10 -> 122 | AE10: =COUNTIF(L60:L85,AD10) -> 18 | AF10: =AE10/(AG4-AE11) -> 0.6923076923 | AG10: =IF(AF10=0,0,(AF10*((LOG(AF10))/LOG(2)))) -> -0.3672794193 | AI10: =N10 -> 122 | AJ10: =COUNTIF(L86:L111,AI10) -> 15 | AK10: =AJ10/(AL4-AJ11) -> 0.5769230769 | AL10: =IF(AK10=0,0,(AK10*((LOG(AK10))/LOG(2)))) -> -0.4578168015 | AN10: =N10 -> 122 | AO10: =COUNTIF(L112:L138,AN10) -> 7 | AP10: =AO10/(AQ4-AO11) -> 0.2592592593 | AQ10: =IF(AP10=0,0,(AP10*((LOG(AP10))/LOG(2)))) -> -0.5049158541 | AS10: =N10 -> 122 | AT10: =COUNTIF(L139:L164,AS10) -> 11 | AU10: =AT10/(AV4-AT11) -> 0.44 | AV10: =IF(AU10=0,0,(AU10*((LOG(AU10))/LOG(2)))) -> -0.5211468113
A11: 21 | B11: 523 | C11: 22 | D11: 530 | E11: 24 | F11: 547 | K11: 0 | L11: 222 | N11: 211 | O11: =COUNTIF($L$7:$L$500,N11) -> 0 | P11: =O11/$Q$4 -> 0 | Q11: =IF(P11=0,0,(P11*((LOG(P11))/LOG(2)))) -> 0 | T11: =N11 -> 211 | U11: =COUNTIF(L7:L32,T11) -> 0 | Y11: =N11 -> 211 | Z11: =COUNTIF(L33:L59,Y11) -> 0 | AD11: =N11 -> 211 | AE11: =COUNTIF(L60:L85,AD11) -> 0 | AI11: =N11 -> 211 | AJ11: =COUNTIF(L86:L111,AI11) -> 0 | AN11: =N11 -> 211 | AO11: =COUNTIF(L112:L138,AN11) -> 0 | AS11: =N11 -> 211 | AT11: =COUNTIF(L139:L164,AS11) -> 0
A12: 12 | B12: 643 | C12: 24 | D12: 654 | E12: 24 | F12: 658 | K12: 0 | L12: 122 | N12: 212 | O12: =COUNTIF($L$7:$L$500,N12) -> 0 | P12: =O12/$Q$4 -> 0 | Q12: =IF(P12=0,0,(P12*((LOG(P12))/LOG(2)))) -> 0 | T12: =N12 -> 212 | U12: =COUNTIF(L7:L32,T12) -> 0 | V12: =U12/(W4-U11) -> 0 | W12: =IF(V12=0,0,(V12*((LOG(V12))/LOG(2)))) -> 0 | Y12: =N12 -> 212 | Z12: =COUNTIF(L33:L59,Y12) -> 0 | AA12: =Z12/(AB4-Z11) -> 0 | AB12: =IF(AA12=0,0,(AA12*((LOG(AA12))/LOG(2)))) -> 0 | AD12: =N12 -> 212 | AE12: =COUNTIF(L60:L85,AD12) -> 0 | AF12: =AE12/(AG4-AE11) -> 0 | AG12: =IF(AF12=0,0,(AF12*((LOG(AF12))/LOG(2)))) -> 0 | AI12: =N12 -> 212 | AJ12: =COUNTIF(L86:L111,AI12) -> 0 | AK12: =AJ12/(AL4-AJ11) -> 0 | AL12: =IF(AK12=0,0,(AK12*((LOG(AK12))/LOG(2)))) -> 0 | AN12: =N12 -> 212 | AO12: =COUNTIF(L112:L138,AN12) -> 0 | AP12: =AO12/(AQ4-AO11) -> 0 | AQ12: =IF(AP12=0,0,(AP12*((LOG(AP12))/LOG(2)))) -> 0 | AS12: =N12 -> 212 | AT12: =COUNTIF(L139:L164,AS12) -> 0 | AU12: =AT12/(AV4-AT11) -> 0 | AV12: =IF(AU12=0,0,(AU12*((LOG(AU12))/LOG(2)))) -> 0
A13: 12 | B13: 756 | C13: 24 | D13: 769 | E13: 24 | F13: 832 | K13: 0 | L13: 122 | N13: 221 | O13: =COUNTIF($L$7:$L$500,N13) -> 1 | P13: =O13/$Q$4 -> 0.006369426752 | Q13: =IF(P13=0,0,(P13*((LOG(P13))/LOG(2)))) -> -0.04646255254 | T13: =N13 -> 221 | U13: =COUNTIF(L7:L32,T13) -> 0 | V13: =U13/(W4-U11) -> 0 | W13: =IF(V13=0,0,(V13*((LOG(V13))/LOG(2)))) -> 0 | Y13: =N13 -> 221 | Z13: =COUNTIF(L33:L59,Y13) -> 1 | AA13: =Z13/(AB4-Z11) -> 0.03703703704 | AB13: =IF(AA13=0,0,(AA13*((LOG(AA13))/LOG(2)))) -> -0.1761069445 | AD13: =N13 -> 221 | AE13: =COUNTIF(L60:L85,AD13) -> 0 | AF13: =AE13/(AG4-AE11) -> 0 | AG13: =IF(AF13=0,0,(AF13*((LOG(AF13))/LOG(2)))) -> 0 | AI13: =N13 -> 221 | AJ13: =COUNTIF(L86:L111,AI13) -> 0 | AK13: =AJ13/(AL4-AJ11) -> 0 | AL13: =IF(AK13=0,0,(AK13*((LOG(AK13))/LOG(2)))) -> 0 | AN13: =N13 -> 221 | AO13: =COUNTIF(L112:L138,AN13) -> 0 | AP13: =AO13/(AQ4-AO11) -> 0 | AQ13: =IF(AP13=0,0,(AP13*((LOG(AP13))/LOG(2)))) -> 0 | AS13: =N13 -> 221 | AT13: =COUNTIF(L139:L164,AS13) -> 0 | AU13: =AT13/(AV4-AT11) -> 0 | AV13: =IF(AU13=0,0,(AU13*((LOG(AU13))/LOG(2)))) -> 0
A14: 12 | B14: 929 | C14: 24 | D14: 943 | E14: 24 | F14: 999 | K14: 0 | L14: 122 | N14: 222 | O14: =COUNTIF($L$7:$L$500,N14) -> 32 | P14: =O14/$Q$4 -> 0.2038216561 | Q14: =IF(P14=0,0,(P14*((LOG(P14))/LOG(2)))) -> -0.467693401 | T14: =N14 -> 222 | U14: =COUNTIF(L7:L32,T14) -> 10 | V14: =U14/(W4-U11) -> 0.3846153846 | W14: =IF(V14=0,0,(V14*((LOG(V14))/LOG(2)))) -> -0.5301967782 | Y14: =N14 -> 222 | Z14: =COUNTIF(L33:L59,Y14) -> 0 | AA14: =Z14/(AB4-Z11) -> 0 | AB14: =IF(AA14=0,0,(AA14*((LOG(AA14))/LOG(2)))) -> 0 | AD14: =N14 -> 222 | AE14: =COUNTIF(L60:L85,AD14) -> 5 | AF14: =AE14/(AG4-AE11) -> 0.1923076923 | AG14: =IF(AF14=0,0,(AF14*((LOG(AF14))/LOG(2)))) -> -0.4574060814 | AI14: =N14 -> 222 | AJ14: =COUNTIF(L86:L111,AI14) -> 3 | AK14: =AJ14/(AL4-AJ11) -> 0.1153846154 | AL14: =IF(AK14=0,0,(AK14*((LOG(AK14))/LOG(2)))) -> -0.3594781405 | AN14: =N14 -> 222 | AO14: =COUNTIF(L112:L138,AN14) -> 3 | AP14: =AO14/(AQ4-AO11) -> 0.1111111111 | AQ14: =IF(AP14=0,0,(AP14*((LOG(AP14))/LOG(2)))) -> -0.352213889 | AS14: =N14 -> 222 | AT14: =COUNTIF(L139:L164,AS14) -> 11 | AU14: =AT14/(AV4-AT11) -> 0.44 | AV14: =IF(AU14=0,0,(AU14*((LOG(AU14))/LOG(2)))) -> -0.5211468113
A15: 21 | B15: 1108 | C15: 22 | D15: 1125 | E15: 24 | F15: 1147 | K15: 0 | L15: 222 | P15: =SUM(P7:P14) -> 1 | Q15: =-SUM(Q7:Q14) -> 1.644423086 | V15: =SUM(V7:V14) -> 1 | W15: =-SUM(W7:W14) -> 0.9612366047 | AA15: =SUM(AA7:AA14) -> 1 | AB15: =-SUM(AB7:AB14) -> 0.8249802573 | AF15: =SUM(AF7:AF14) -> 1 | AG15: =-SUM(AG7:AG14) -> 1.184163641 | AK15: =SUM(AK7:AK14) -> 1 | AL15: =-SUM(AL7:AL14) -> 1.590131201 | AP15: =SUM(AP7:AP14) -> 1 | AQ15: =-SUM(AQ7:AQ14) -> 1.867113622 | AU15: =SUM(AU7:AU14) -> 1 | AV15: =-SUM(AV7:AV14) -> 1.519556365
A16: 12 | B16: 1245 | C16: 24 | D16: 1259 | E16: 24 | F16: 1266 | K16: 0 | L16: 122 | P16: U= | Q16: =Q15/(LOG(Q4)/LOG(2)) -> 0.2254295518 | V16: U1= | W16: =W15/(LOG(W4)/LOG(2)) -> 0.2044992942 | AA16: U2= | AB16: =AB15/(LOG(AB4)/LOG(2)) -> 0.1735015302 | AF16: U3= | AG16: =AG15/(LOG(AG4)/LOG(2)) -> 0.2519261414 | AK16: U4= | AL16: =AL15/(LOG(AL4)/LOG(2)) -> 0.3382941377 | AP16: U5= | AQ16: =AQ15/(LOG(AQ4)/LOG(2)) -> 0.3926725125 | AU16: U6= | AV16: =AV15/(LOG(AV4)/LOG(2)) -> 0.3272186526
A17: 12 | B17: 1365 | C17: 24 | D17: 1379 | E17: 24 | F17: 1387 | K17: 0 | L17: 122
A18: 12 | B18: 1484 | C18: 24 | D18: 1501 | E18: 24 | F18: 1536 | K18: 0 | L18: 122
A19: 12 | B19: 1632 | C19: 24 | D19: 1647 | E19: 24 | F19: 1656 | K19: 0 | L19: 122 | N19: Total Target Seq
A20: 12 | B20: 1760 | C20: 24 | D20: 1777 | E20: 24 | F20: 1784 | K20: 0 | L20: 122 | N20: =COUNTIF(L7:L164,G3) -> 0 | P20: 26 | Q20: 27 | R20: 26 | S20: 26 | T20: 27 | U20: 26
A21: 21 | B21: 1897 | C21: 22 | D21: 1906 | E21: 24 | F21: 1918 | K21: 0 | L21: 222 | P21: % of reinforcement given in 6 equal intervals based on number of trials
A22: 12 | B22: 2018 | C22: 24 | D22: 2037 | E22: 24 | F22: 2044 | K22: 0 | L22: 122 | P22: %_1 | Q22: %_2 | R22: %_3 | S22: %_4 | T22: %_5 | U22: %_6
A23: 21 | B23: 2150 | C23: 22 | D23: 2158 | E23: 24 | F23: 2168 | K23: 0 | L23: 222 | O23: target sequence | P23: =$G$3 -> 211 | Q23: =$G$3 -> 211 | R23: =$G$3 -> 211 | S23: =$G$3 -> 211 | T23: =$G$3 -> 211 | U23: =$G$3 -> 211
A24: 12 | B24: 2271 | C24: 24 | D24: 2288 | E24: 24 | F24: 2311 | K24: 0 | L24: 122 | O24: total reinforcement | P24: =U11 -> 0 | Q24: =Z11 -> 0 | R24: =AE11 -> 0 | S24: =AJ11 -> 0 | T24: =AO11 -> 0 | U24: =AT11 -> 0
A25: 21 | B25: 2424 | C25: 22 | D25: 2428 | E25: 24 | F25: 2434 | K25: 0 | L25: 222 | O25: % target
A26: 21 | B26: 2542 | C26: 22 | D26: 2548 | E26: 24 | F26: 2556 | K26: 0 | L26: 222 | O26: CCRF
A27: 21 | B27: 2664 | C27: 22 | D27: 2669 | E27: 24 | F27: 2675 | K27: 0 | L27: 222 | O27: % CCRf
A28: 21 | B28: 2781 | C28: 22 | D28: 2785 | E28: 24 | F28: 2796 | K28: 0 | L28: 222 | O28: average response rate | P28: =F32/P20 -> 126.8461538 | Q28: =(F59-F32)/Q20 -> 129.962963 | R28: =(F85-F59)/R20 -> 126.4230769 | S28: =(F111-F85)/S20 -> 125.7692308 | T28: =(F138-F111)/T20 -> 131.8148148 | U28: =(F164-F138)/U20 -> -650.8846154
A29: 21 | B29: 2892 | C29: 22 | D29: 2896 | E29: 24 | F29: 2902 | K29: 0 | L29: 222
A30: 21 | B30: 3012 | C30: 22 | D30: 3016 | E30: 24 | F30: 3022 | K30: 0 | L30: 222
A31: 12 | B31: 3121 | C31: 24 | D31: 3136 | E31: 24 | F31: 3173 | K31: 0 | L31: 122
A32: 12 | B32: 3271 | C32: 24 | D32: 3286 | E32: 24 | F32: 3298 | K32: 0 | L32: 122
A33: 12 | B33: 3400 | C33: 24 | D33: 3415 | E33: 24 | F33: 3429 | K33: 0 | L33: 122
A34: 12 | B34: 3531 | C34: 13 | D34: 3547 | E34: 24 | F34: 3562 | K34: 0 | L34: 112
A35: 12 | B35: 3653 | C35: 24 | D35: 3663 | E35: 24 | F35: 3668 | K35: 0 | L35: 122
A36: 12 | B36: 3765 | C36: 24 | D36: 3775 | E36: 24 | F36: 3779 | K36: 0 | L36: 122
A37: 12 | B37: 3879 | C37: 24 | D37: 3893 | E37: 24 | F37: 3934 | K37: 0 | L37: 122
A38: 12 | B38: 4031 | C38: 24 | D38: 4041 | E38: 24 | F38: 4049 | K38: 0 | L38: 122
A39: 12 | B39: 4146 | C39: 13 | D39: 4155 | E39: 24 | F39: 4170 | K39: 0 | L39: 112
A40: 12 | B40: 4268 | C40: 24 | D40: 4282 | E40: 24 | F40: 4291 | K40: 0 | L40: 122
A41: 12 | B41: 4389 | C41: 24 | D41: 4403 | E41: 24 | F41: 4419 | K41: 0 | L41: 122
A42: 12 | B42: 4516 | C42: 24 | D42: 4526 | E42: 24 | F42: 4531 | K42: 0 | L42: 122
A43: 12 | B43: 4628 | C43: 24 | D43: 4644 | E43: 24 | F43: 4651 | K43: 0 | L43: 122
A44: 12 | B44: 4752 | C44: 24 | D44: 4769 | E44: 24 | F44: 4784 | K44: 0 | L44: 122
A45: 12 | B45: 4882 | C45: 24 | D45: 4897 | E45: 24 | F45: 4910 | K45: 0 | L45: 122
A46: 12 | B46: 5008 | C46: 24 | D46: 5026 | E46: 24 | F46: 5037 | K46: 0 | L46: 122
A47: 12 | B47: 5134 | C47: 13 | D47: 5136 | E47: 24 | F47: 5241 | K47: 0 | L47: 112
A48: 12 | B48: 5339 | C48: 24 | D48: 5360 | E48: 24 | F48: 5367 | K48: 0 | L48: 122
A49: 12 | B49: 5463 | C49: 24 | D49: 5480 | E49: 24 | F49: 5486 | K49: 0 | L49: 122
A50: 12 | B50: 5583 | C50: 13 | D50: 5593 | E50: 24 | F50: 5609 | K50: 0 | L50: 112
A51: 21 | B51: 5726 | C51: 22 | D51: 5733 | E51: 13 | F51: 5751 | K51: 0 | L51: 221
A52: 12 | B52: 5863 | C52: 24 | D52: 5880 | E52: 24 | F52: 5895 | K52: 0 | L52: 122
A53: 12 | B53: 5992 | C53: 24 | D53: 6016 | E53: 24 | F53: 6047 | K53: 0 | L53: 122
A54: 12 | B54: 6144 | C54: 24 | D54: 6159 | E54: 24 | F54: 6166 | K54: 0 | L54: 122
A55: 12 | B55: 6263 | C55: 24 | D55: 6279 | E55: 24 | F55: 6285 | K55: 0 | L55: 122
A56: 12 | B56: 6381 | C56: 24 | D56: 6398 | E56: 24 | F56: 6404 | K56: 0 | L56: 122
A57: 12 | B57: 6552 | C57: 24 | D57: 6572 | E57: 24 | F57: 6577 | K57: 0 | L57: 122
A58: 12 | B58: 6674 | C58: 24 | D58: 6688 | E58: 24 | F58: 6695 | K58: 0 | L58: 122
A59: 12 | B59: 6791 | C59: 24 | D59: 6801 | E59: 24 | F59: 6807 | K59: 0 | L59: 122
A60: 12 | B60: 6904 | C60: 24 | D60: 6917 | E60: 24 | F60: 6924 | K60: 0 | L60: 122
A61: 12 | B61: 7023 | C61: 24 | D61: 7038 | E61: 24 | F61: 7054 | K61: 0 | L61: 122
A62: 12 | B62: 7151 | C62: 13 | D62: 7158 | E62: 24 | F62: 7171 | K62: 0 | L62: 112
A63: 21 | B63: 7271 | C63: 22 | D63: 7278 | E63: 24 | F63: 7285 | K63: 0 | L63: 222
A64: 21 | B64: 7426 | C64: 22 | D64: 7464 | E64: 24 | F64: 7493 | K64: 0 | L64: 222
A65: 12 | B65: 7589 | C65: 24 | D65: 7599 | E65: 24 | F65: 7603 | K65: 0 | L65: 122
A66: 12 | B66: 7705 | C66: 24 | D66: 7725 | E66: 24 | F66: 7732 | K66: 0 | L66: 122
A67: 12 | B67: 7832 | C67: 13 | D67: 7857 | E67: 24 | F67: 7867 | K67: 0 | L67: 112
A68: 12 | B68: 7967 | C68: 24 | D68: 7977 | E68: 24 | F68: 7982 | K68: 0 | L68: 122
A69: 21 | B69: 8087 | C69: 22 | D69: 8094 | E69: 24 | F69: 8103 | K69: 0 | L69: 222
A70: 21 | B70: 8214 | C70: 22 | D70: 8224 | E70: 24 | F70: 8235 | K70: 0 | L70: 222
A71: 12 | B71: 8335 | C71: 24 | D71: 8345 | E71: 24 | F71: 8356 | K71: 0 | L71: 122
A72: 12 | B72: 8453 | C72: 24 | D72: 8466 | E72: 24 | F72: 8474 | K72: 0 | L72: 122
A73: 12 | B73: 8582 | C73: 24 | D73: 8601 | E73: 24 | F73: 8610 | K73: 0 | L73: 122
A74: 12 | B74: 8707 | C74: 24 | D74: 8722 | E74: 24 | F74: 8728 | K74: 0 | L74: 122
A75: 12 | B75: 8825 | C75: 24 | D75: 8843 | E75: 24 | F75: 8853 | K75: 0 | L75: 122
A76: 12 | B76: 8951 | C76: 24 | D76: 8961 | E76: 24 | F76: 8968 | K76: 0 | L76: 122
A77: 12 | B77: 9072 | C77: 24 | D77: 9083 | E77: 24 | F77: 9092 | K77: 0 | L77: 122
A78: 12 | B78: 9189 | C78: 24 | D78: 9206 | E78: 24 | F78: 9215 | K78: 0 | L78: 122
A79: 12 | B79: 9311 | C79: 24 | D79: 9325 | E79: 24 | F79: 9329 | K79: 0 | L79: 122
A80: 12 | B80: 9425 | C80: 13 | D80: 9448 | E80: 24 | F80: 9458 | K80: 0 | L80: 112
A81: 12 | B81: 9556 | C81: 24 | D81: 9572 | E81: 24 | F81: 9596 | K81: 0 | L81: 122
A82: 12 | B82: 9703 | C82: 24 | D82: 9717 | E82: 24 | F82: 9727 | K82: 0 | L82: 122
A83: 21 | B83: 9839 | C83: 22 | D83: 9845 | E83: 24 | F83: 9859 | K83: 0 | L83: 222
A84: 12 | B84: 9956 | C84: 24 | D84: 9966 | E84: 24 | F84: 9971 | K84: 0 | L84: 122
A85: 12 | B85: 10069 | C85: 24 | D85: 10084 | E85: 24 | F85: 10094 | K85: 0 | L85: 122
A86: 12 | B86: 10191 | C86: 24 | D86: 10205 | E86: 24 | F86: 10212 | K86: 0 | L86: 122
A87: 12 | B87: 10310 | C87: 24 | D87: 10330 | E87: 24 | F87: 10337 | K87: 0 | L87: 122
A88: 12 | B88: 10437 | C88: 24 | D88: 10450 | E88: 24 | F88: 10456 | K88: 0 | L88: 122
A89: 12 | B89: 10552 | C89: 24 | D89: 10562 | E89: 24 | F89: 10566 | K89: 0 | L89: 122
A90: 12 | B90: 10674 | C90: 24 | D90: 10686 | E90: 24 | F90: 10692 | K90: 0 | L90: 122
A91: 12 | B91: 10788 | C91: 24 | D91: 10804 | E91: 24 | F91: 10810 | K91: 0 | L91: 122
A92: 12 | B92: 10913 | C92: 24 | D92: 10937 | E92: 24 | F92: 10941 | K92: 0 | L92: 122
A93: 12 | B93: 11036 | C93: 13 | D93: 11049 | E93: 24 | F93: 11064 | K93: 0 | L93: 112
A94: 12 | B94: 11162 | C94: 24 | D94: 11179 | E94: 24 | F94: 11201 | K94: 0 | L94: 122
A95: 12 | B95: 11302 | C95: 24 | D95: 11316 | E95: 24 | F95: 11326 | K95: 0 | L95: 122
A96: 12 | B96: 11424 | C96: 24 | D96: 11442 | E96: 24 | F96: 11449 | K96: 0 | L96: 122
A97: 21 | B97: 11558 | C97: 22 | D97: 11567 | E97: 24 | F97: 11576 | K97: 0 | L97: 222
A98: 12 | B98: 11673 | C98: 24 | D98: 11682 | E98: 24 | F98: 11686 | K98: 0 | L98: 122
A99: 12 | B99: 11790 | C99: 24 | D99: 11813 | E99: 24 | F99: 11818 | K99: 0 | L99: 122
A100: 12 | B100: 11916 | C100: 24 | D100: 11927 | E100: 24 | F100: 11931 | K100: 0 | L100: 122
A101: 12 | B101: 12033 | C101: 13 | D101: 12056 | E101: 24 | F101: 12071 | K101: 0 | L101: 112
A102: 21 | B102: 12172 | C102: 22 | D102: 12181 | E102: 24 | F102: 12189 | K102: 0 | L102: 222
A103: 21 | B103: 12306 | C103: 22 | D103: 12313 | E103: 24 | F103: 12321 | K103: 0 | L103: 222
A104: 12 | B104: 12443 | C104: 24 | D104: 12466 | E104: 24 | F104: 12481 | K104: 0 | L104: 122
A105: 12 | B105: 12579 | C105: 13 | D105: 12587 | E105: 13 | F105: 12616 | K105: 0 | L105: 111
A106: 12 | B106: 12712 | C106: 24 | D106: 12735 | E106: 24 | F106: 12750 | K106: 0 | L106: 122
A107: 12 | B107: 12846 | C107: 13 | D107: 12863 | E107: 24 | F107: 12877 | K107: 0 | L107: 112
A108: 12 | B108: 12972 | C108: 13 | D108: 12981 | E108: 13 | F108: 12999 | K108: 0 | L108: 111
A109: 12 | B109: 13095 | C109: 13 | D109: 13105 | E109: 24 | F109: 13117 | K109: 0 | L109: 112
A110: 12 | B110: 13216 | C110: 13 | D110: 13223 | E110: 24 | F110: 13240 | K110: 0 | L110: 112
A111: 12 | B111: 13336 | C111: 13 | D111: 13347 | E111: 24 | F111: 13364 | K111: 0 | L111: 112
A112: 12 | B112: 13462 | C112: 13 | D112: 13474 | E112: 24 | F112: 13490 | K112: 0 | L112: 112
A113: 12 | B113: 13588 | C113: 13 | D113: 13599 | E113: 13 | F113: 13610 | K113: 0 | L113: 111
A114: 12 | B114: 13715 | C114: 24 | D114: 13737 | E114: 24 | F114: 13754 | K114: 0 | L114: 122
A115: 12 | B115: 13857 | C115: 13 | D115: 13873 | E115: 24 | F115: 13887 | K115: 0 | L115: 112
A116: 12 | B116: 13987 | C116: 13 | D116: 13995 | E116: 24 | F116: 14005 | K116: 0 | L116: 112
A117: 12 | B117: 14105 | C117: 13 | D117: 14113 | E117: 24 | F117: 14145 | K117: 0 | L117: 112
A118: 12 | B118: 14242 | C118: 13 | D118: 14255 | E118: 13 | F118: 14283 | K118: 0 | L118: 111
A119: 12 | B119: 14380 | C119: 13 | D119: 14390 | E119: 13 | F119: 14400 | K119: 0 | L119: 111
A120: 12 | B120: 14502 | C120: 13 | D120: 14516 | E120: 13 | F120: 14540 | K120: 0 | L120: 111
A121: 12 | B121: 14640 | C121: 24 | D121: 14651 | E121: 24 | F121: 14656 | K121: 0 | L121: 122
A122: 12 | B122: 14756 | C122: 24 | D122: 14767 | E122: 24 | F122: 14778 | K122: 0 | L122: 122
A123: 12 | B123: 14881 | C123: 24 | D123: 14896 | E123: 24 | F123: 14929 | K123: 0 | L123: 122
A124: 12 | B124: 15032 | C124: 13 | D124: 15049 | E124: 24 | F124: 15060 | K124: 0 | L124: 112
A125: 12 | B125: 15170 | C125: 24 | D125: 15183 | E125: 24 | F125: 15196 | K125: 0 | L125: 122
A126: 12 | B126: 15304 | C126: 24 | D126: 15318 | E126: 24 | F126: 15325 | K126: 0 | L126: 122
A127: 12 | B127: 15422 | C127: 13 | D127: 15432 | E127: 24 | F127: 15442 | K127: 0 | L127: 112
A128: 12 | B128: 15539 | C128: 13 | D128: 15547 | E128: 24 | F128: 15565 | K128: 0 | L128: 112
A129: 12 | B129: 15664 | C129: 13 | D129: 15673 | E129: 13 | F129: 15693 | K129: 0 | L129: 111
A130: 12 | B130: 15791 | C130: 13 | D130: 15800 | E130: 13 | F130: 15819 | K130: 0 | L130: 111
A131: 21 | B131: 15938 | C131: 22 | D131: 15944 | E131: 24 | F131: 15948 | K131: 0 | L131: 222
A132: 12 | B132: 16052 | C132: 13 | D132: 16066 | E132: 24 | F132: 16077 | K132: 0 | L132: 112
A133: 12 | B133: 16176 | C133: 13 | D133: 16188 | E133: 24 | F133: 16202 | K133: 0 | L133: 112
A134: 21 | B134: 16326 | C134: 22 | D134: 16347 | E134: 24 | F134: 16363 | K134: 0 | L134: 222
A135: 12 | B135: 16478 | C135: 24 | D135: 16489 | E135: 24 | F135: 16495 | K135: 0 | L135: 122
A136: 12 | B136: 16593 | C136: 13 | D136: 16602 | E136: 24 | F136: 16613 | K136: 0 | L136: 112
A137: 21 | B137: 16759 | C137: 22 | D137: 16767 | E137: 24 | F137: 16783 | K137: 0 | L137: 222
A138: 12 | B138: 16883 | C138: 13 | D138: 16891 | E138: 24 | F138: 16923 | K138: 0 | L138: 112
A139: 12 | B139: 17036 | C139: 24 | D139: 17053 | E139: 24 | F139: 17060 | K139: 0 | L139: 122
A140: 12 | B140: 17157 | C140: 13 | D140: 17166 | E140: 24 | F140: 17178 | K140: 0 | L140: 112
A141: 21 | B141: 17284 | C141: 22 | D141: 17336 | E141: 24 | F141: 17353 | K141: 0 | L141: 222
A142: 21 | B142: 17510 | C142: 22 | D142: 17520 | E142: 24 | F142: 17532 | K142: 0 | L142: 222
A143: 21 | B143: 17659 | C143: 22 | D143: 17673 | E143: 24 | F143: 17684 | K143: 0 | L143: 222
A144: 12 | B144: 17793 | C144: 13 | D144: 17810 | E144: 24 | F144: 17822 | K144: 0 | L144: 112
A145: 12 | B145: 17928 | C145: 24 | D145: 17946 | E145: 24 | F145: 17959 | K145: 0 | L145: 122
A146: 12 | B146: 18068 | C146: 24 | D146: 18078 | E146: 24 | F146: 18086 | K146: 0 | L146: 122
A147: 21 | B147: 18206 | C147: 22 | D147: 18215 | E147: 24 | F147: 18224 | K147: 0 | L147: 222
A148: 12 | B148: 18322 | C148: 24 | D148: 18338 | E148: 24 | F148: 18343 | K148: 0 | L148: 122
A149: 21 | B149: 18465 | C149: 22 | D149: 18471 | E149: 24 | F149: 18480 | K149: 0 | L149: 222
A150: 12 | B150: 18577 | C150: 13 | D150: 18586 | E150: 13 | F150: 18602 | K150: 0 | L150: 111
A151: 12 | B151: 18711 | C151: 24 | D151: 18722 | E151: 24 | F151: 18728 | K151: 0 | L151: 122
A152: 12 | B152: 18836 | C152: 24 | D152: 18850 | E152: 24 | F152: 18854 | K152: 0 | L152: 122
A153: 12 | B153: 18968 | C153: 24 | D153: 18981 | E153: 24 | F153: 18997 | K153: 0 | L153: 122
A154: 12 | B154: 19117 | C154: 24 | D154: 19135 | E154: 24 | F154: 19143 | K154: 0 | L154: 122
A155: 12 | B155: 19260 | C155: 24 | D155: 19271 | E155: 24 | F155: 19277 | K155: 0 | L155: 122
A156: 21 | B156: 19393 | C156: 22 | D156: 19406 | E156: 24 | F156: 19413 | K156: 0 | L156: 222
A157: 21 | B157: 19527 | C157: 22 | D157: 19536 | E157: 24 | F157: 19548 | K157: 0 | L157: 222
A158: 12 | B158: 19716 | C158: 24 | D158: 19734 | E158: 24 | F158: 19741 | K158: 0 | L158: 122
A159: 12 | B159: 19859 | C159: 24 | D159: 19869 | E159: 24 | F159: 19886 | K159: 0 | L159: 122
A160: 21 | B160: 20031 | C160: 22 | D160: 20038 | E160: 24 | F160: 20047 | K160: 0 | L160: 222
A161: 21 | B161: 20216 | C161: 22 | D161: 20226 | E161: 24 | F161: 20235 | K161: 0 | L161: 222
A162: 21 | B162: 20346 | C162: 22 | D162: 20365 | E162: 24 | F162: 20376 | K162: 0 | L162: 222
A163: 21 | B163: 20562 | C163: 22 | D163: 20586 | E163: 24 | F163: 20598 | K163: 0 | L163: 222
A164: 21 | B164: 21007 | C164: 11 | D164: 21110 | L164: 21

Sheet !M504650.185
A1: Report for:!M504650.185
A2: Date: | B2: <date>
A3: Hen: | B3: <hen> | F3: Correct Sequence | G3: =Start!J2 -> 211 | P3: Total Sequences in Data | Q3: =4994-COUNTBLANK(L7:L5000) -> 59 | V3: Total Sequences in Block Data | W3: =COUNTA(L7:L16) -> 10 | AA3: Total Sequences in Block Data | AB3: =COUNTA(L17:L26) -> 10 | AF3: Total Sequences in Block Data | AG3: =COUNTA(L27:L35) -> 9 | AK3: Total Sequences in Block Data | AL3: =COUNTA(L36:L45) -> 10 | AP3: Total Sequences in Block Data | AQ3: =COUNTA(L46:L55) -> 10 | AU3: Total Sequences in Block Data | AV3: =COUNTA(L56:L65) -> 10
P4: Total Sequences in Summary | Q4: =SUM(O7:O14) -> 59 | V4: Total Sequences in Block Summary | W4: =SUM(U7:U14) -> 10 | AA4: Total Sequences in Block Summary | AB4: =SUM(Z7:Z14) -> 10 | AF4: Total Sequences in Block Summary | AG4: =SUM(AE7:AE14) -> 9 | AK4: Total Sequences in Block Summary | AL4: =SUM(AJ7:AJ14) -> 10 | AP4: Total Sequences in Block Summary | AQ4: =SUM(AO7:AO14) -> 10 | AU4: Total Sequences in Block Summary | AV4: =SUM(AT7:AT14) -> 10
T5: Block 1 | Y5: Block 2 | AD5: Block 3 | AI5: Block 4 | AN5: Block 5 | AS5: Block 6
A6: Sequence Component 1 | B6: Time 1 | C6: Sequence Component 2 | D6: Time 2 | E6: Sequence Component 3 | F6: Time 3 | G6: Sequence Component 4 | H6: Time 4 | I6: Sequence Component 5 | J6: Time 5 | K6: Correct? 0=No 1=Yes | L6: Sequence | N6: Frequency | P6: Relative Frequency | Q6: Variability | T6: Frequency | V6: Relative Frequency | W6: Variability | Y6: Frequency | AA6: Relative Frequency | AB6: Variability | AD6: Frequency | AF6: Relative Frequency | AG6: Variability | AI6: Frequency | AK6: Relative Frequency | AL6: Variability | AN6: Frequency | AP6: Relative Frequency | AQ6: Variability | AS6: Frequency | AU6: Relative Frequency | AV6: Variability
A7: 12 | B7: 11 | C7: 13 | D7: 22 | E7: 13 | F7: 48 | K7: 0 | L7: 111 | N7: 111 | O7: =COUNTIF($L$7:$L$500,N7) -> 24 | P7: =O7/$Q$4 -> 0.406779661 | Q7: =IF(P7=0,0,(P7*((LOG(P7))/LOG(2)))) -> -0.5278700537 | T7: =N7 -> 111 | U7: =COUNTIF(L7:L16,T7) -> 3 | V7: =U7/(W4-U11) -> 0.3 | W7: =IF(V7=0,0,(V7*((LOG(V7))/LOG(2)))) -> -0.5210896782 | Y7: =N7 -> 111 | Z7: =COUNTIF(L17:L26,Y7) -> 0 | AA7: =Z7/(AB4-Z11) -> 0 | AB7: =IF(AA7=0,0,(AA7*((LOG(AA7))/LOG(2)))) -> 0 | AD7: =N7 -> 111 | AE7: =COUNTIF(L27:L35,AD7) -> 5 | AF7: =AE7/(AG4-AE11) -> 0.625 | AG7: =IF(AF7=0,0,(AF7*((LOG(AF7))/LOG(2)))) -> -0.4237949407 | AI7: =N7 -> 111 | AJ7: =COUNTIF(L36:L45,AI7) -> 3 | AK7: =AJ7/(AL4-AJ11) -> 0.3 | AL7: =IF(AK7=0,0,(AK7*((LOG(AK7))/LOG(2)))) -> -0.5210896782 | AN7: =N7 -> 111 | AO7: =COUNTIF(L46:L55,AN7) -> 5 | AP7: =AO7/(AQ4-AO11) -> 0.5 | AQ7: =IF(AP7=0,0,(AP7*((LOG(AP7))/LOG(2)))) -> -0.5 | AS7: =N7 -> 111 | AT7: =COUNTIF(L56:L65,AS7) -> 8 | AU7: =AT7/(AV4-AT11) -> 0.8 | AV7: =IF(AU7=0,0,(AU7*((LOG(AU7))/LOG(2)))) -> -0.2575424759
A8: 12 | B8: 145 | C8: 13 | D8: 155 | E8: 13 | F8: 166 | K8: 0 | L8: 111 | N8: 112 | O8: =COUNTIF($L$7:$L$500,N8) -> 12 | P8: =O8/$Q$4 -> 0.2033898305 | Q8: =IF(P8=0,0,(P8*((LOG(P8))/LOG(2)))) -> -0.4673248574 | T8: =N8 -> 112 | U8: =COUNTIF(L7:L16,T8) -> 3 | V8: =U8/(W4-U11) -> 0.3 | W8: =IF(V8=0,0,(V8*((LOG(V8))/LOG(2)))) -> -0.5210896782 | Y8: =N8 -> 112 | Z8: =COUNTIF(L17:L26,Y8) -> 0 | AA8: =Z8/(AB4-Z11) -> 0 | AB8: =IF(AA8=0,0,(AA8*((LOG(AA8))/LOG(2)))) -> 0 | AD8: =N8 -> 112 | AE8: =COUNTIF(L27:L35,AD8) -> 2 | AF8: =AE8/(AG4-AE11) -> 0.25 | AG8: =IF(AF8=0,0,(AF8*((LOG(AF8))/LOG(2)))) -> -0.5 | AI8: =N8 -> 112 | AJ8: =COUNTIF(L36:L45,AI8) -> 3 | AK8: =AJ8/(AL4-AJ11) -> 0.3 | AL8: =IF(AK8=0,0,(AK8*((LOG(AK8))/LOG(2)))) -> -0.5210896782 | AN8: =N8 -> 112 | AO8: =COUNTIF(L46:L55,AN8) -> 3 | AP8: =AO8/(AQ4-AO11) -> 0.3 | AQ8: =IF(AP8=0,0,(AP8*((LOG(AP8))/LOG(2)))) -> -0.5210896782 | AS8: =N8 -> 112 | AT8: =COUNTIF(L56:L65,AS8) -> 1 | AU8: =AT8/(AV4-AT11) -> 0.1 | AV8: =IF(AU8=0,0,(AU8*((LOG(AU8))/LOG(2)))) -> -0.3321928095
A9: 12 | B9: 267 | C9: 24 | D9: 290 | E9: 24 | F9: 298 | K9: 0 | L9: 122 | N9: 121 | O9: =COUNTIF($L$7:$L$500,N9) -> 1 | P9: =O9/$Q$4 -> 0.01694915254 | Q9: =IF(P9=0,0,(P9*((LOG(P9))/LOG(2)))) -> -0.0997058144 | T9: =N9 -> 121 | U9: =COUNTIF(L7:L16,T9) -> 0 | V9: =U9/(W4-U11) -> 0 | W9: =IF(V9=0,0,(V9*((LOG(V9))/LOG(2)))) -> 0 | Y9: =N9 -> 121 | Z9: =COUNTIF(L17:L26,Y9) -> 0 | AA9: =Z9/(AB4-Z11) -> 0 | AB9: =IF(AA9=0,0,(AA9*((LOG(AA9))/LOG(2)))) -> 0 | AD9: =N9 -> 121 | AE9: =COUNTIF(L27:L35,AD9) -> 1 | AF9: =AE9/(AG4-AE11) -> 0.125 | AG9: =IF(AF9=0,0,(AF9*((LOG(AF9))/LOG(2)))) -> -0.375 | AI9: =N9 -> 121 | AJ9: =COUNTIF(L36:L45,AI9) -> 0 | AK9: =AJ9/(AL4-AJ11) -> 0 | AL9: =IF(AK9=0,0,(AK9*((LOG(AK9))/LOG(2)))) -> 0 | AN9: =N9 -> 121 | AO9: =COUNTIF(L46:L55,AN9) -> 0 | AP9: =AO9/(AQ4-AO11) -> 0 | AQ9: =IF(AP9=0,0,(AP9*((LOG(AP9))/LOG(2)))) -> 0 | AS9: =N9 -> 121 | AT9: =COUNTIF(L56:L65,AS9) -> 0 | AU9: =AT9/(AV4-AT11) -> 0 | AV9: =IF(AU9=0,0,(AU9*((LOG(AU9))/LOG(2)))) -> 0
A10: 12 | B10: 400 | C10: 24 | D10: 444 | E10: 24 | F10: 453 | K10: 0 | L10: 122 | N10: 122 | O10: =COUNTIF($L$7:$L$500,N10) -> 20 | P10: =O10/$Q$4 -> 0.3389830508 | Q10: =IF(P10=0,0,(P10*((LOG(P10))/LOG(2)))) -> -0.5290559168 | T10: =N10 -> 122 | U10: =COUNTIF(L7:L16,T10) -> 4 | V10: =U10/(W4-U11) -> 0.4 | W10: =IF(V10=0,0,(V10*((LOG(V10))/LOG(2)))) -> -0.528771238 | Y10: =N10 -> 122 | Z10: =COUNTIF(L17:L26,Y10) -> 10 | AA10: =Z10/(AB4-Z11) -> 1 | AB10: =IF(AA10=0,0,(AA10*((LOG(AA10))/LOG(2)))) -> 0 | AD10: =N10 -> 122 | AE10: =COUNTIF(L27:L35,AD10) -> 0 | AF10: =AE10/(AG4-AE11) -> 0 | AG10: =IF(AF10=0,0,(AF10*((LOG(AF10))/LOG(2)))) -> 0 | AI10: =N10 -> 122 | AJ10: =COUNTIF(L36:L45,AI10) -> 4 | AK10: =AJ10/(AL4-AJ11) -> 0.4 | AL10: =IF(AK10=0,0,(AK10*((LOG(AK10))/LOG(2)))) -> -0.528771238 | AN10: =N10 -> 122 | AO10: =COUNTIF(L46:L55,AN10) -> 1 | AP10: =AO10/(AQ4-AO11) -> 0.1 | AQ10: =IF(AP10=0,0,(AP10*((LOG(AP10))/LOG(2)))) -> -0.3321928095 | AS10: =N10 -> 122 | AT10: =COUNTIF(L56:L65,AS10) -> 1 | AU10: =AT10/(AV4-AT11) -> 0.1 | AV10: =IF(AU10=0,0,(AU10*((LOG(AU10))/LOG(2)))) -> -0.3321928095
A11: 12 | B11: 557 | C11: 13 | D11: 595 | E11: 13 | F11: 619 | K11: 0 | L11: 111 | N11: 211 | O11: =COUNTIF($L$7:$L$500,N11) -> 1 | P11: =O11/$Q$4 -> 0.01694915254 | Q11: =IF(P11=0,0,(P11*((LOG(P11))/LOG(2)))) -> -0.0997058144 | T11: =N11 -> 211 | U11: =COUNTIF(L7:L16,T11) -> 0 | Y11: =N11 -> 211 | Z11: =COUNTIF(L17:L26,Y11) -> 0 | AD11: =N11 -> 211 | AE11: =COUNTIF(L27:L35,AD11) -> 1 | AI11: =N11 -> 211 | AJ11: =COUNTIF(L36:L45,AI11) -> 0 | AN11: =N11 -> 211 | AO11: =COUNTIF(L46:L55,AN11) -> 0 | AS11: =N11 -> 211 | AT11: =COUNTIF(L56:L65,AS11) -> 0
A12: 12 | B12: 723 | C12: 24 | D12: 741 | E12: 24 | F12: 749 | K12: 0 | L12: 122 | N12: 212 | O12: =COUNTIF($L$7:$L$500,N12) -> 0 | P12: =O12/$Q$4 -> 0 | Q12: =IF(P12=0,0,(P12*((LOG(P12))/LOG(2)))) -> 0 | T12: =N12 -> 212 | U12: =COUNTIF(L7:L16,T12) -> 0 | V12: =U12/(W4-U11) -> 0 | W12: =IF(V12=0,0,(V12*((LOG(V12))/LOG(2)))) -> 0 | Y12: =N12 -> 212 | Z12: =COUNTIF(L17:L26,Y12) -> 0 | AA12: =Z12/(AB4-Z11) -> 0 | AB12: =IF(AA12=0,0,(AA12*((LOG(AA12))/LOG(2)))) -> 0 | AD12: =N12 -> 212 | AE12: =COUNTIF(L27:L35,AD12) -> 0 | AF12: =AE12/(AG4-AE11) -> 0 | AG12: =IF(AF12=0,0,(AF12*((LOG(AF12))/LOG(2)))) -> 0 | AI12: =N12 -> 212 | AJ12: =COUNTIF(L36:L45,AI12) -> 0 | AK12: =AJ12/(AL4-AJ11) -> 0 | AL12: =IF(AK12=0,0,(AK12*((LOG(AK12))/LOG(2)))) -> 0 | AN12: =N12 -> 212 | AO12: =COUNTIF(L46:L55,AN12) -> 0 | AP12: =AO12/(AQ4-AO11) -> 0 | AQ12: =IF(AP12=0,0,(AP12*((LOG(AP12))/LOG(2)))) -> 0 | AS12: =N12 -> 212 | AT12: =COUNTIF(L56:L65,AS12) -> 0 | AU12: =AT12/(AV4-AT11) -> 0 | AV12: =IF(AU12=0,0,(AU12*((LOG(AU12))/LOG(2)))) -> 0
A13: 12 | B13: 918 | C13: 13 | D13: 930 | E13: 24 | F13: 1012 | K13: 0 | L13: 112 | N13: 221 | O13: =COUNTIF($L$7:$L$500,N13) -> 0 | P13: =O13/$Q$4 -> 0 | Q13: =IF(P13=0,0,(P13*((LOG(P13))/LOG(2)))) -> 0 | T13: =N13 -> 221 | U13: =COUNTIF(L7:L16,T13) -> 0 | V13: =U13/(W4-U11) -> 0 | W13: =IF(V13=0,0,(V13*((LOG(V13))/LOG(2)))) -> 0 | Y13: =N13 -> 221 | Z13: =COUNTIF(L17:L26,Y13) -> 0 | AA13: =Z13/(AB4-Z11) -> 0 | AB13: =IF(AA13=0,0,(AA13*((LOG(AA13))/LOG(2)))) -> 0 | AD13: =N13 -> 221 | AE13: =COUNTIF(L27:L35,AD13) -> 0 | AF13: =AE13/(AG4-AE11) -> 0 | AG13: =IF(AF13=0,0,(AF13*((LOG(AF13))/LOG(2)))) -> 0 | AI13: =N13 -> 221 | AJ13: =COUNTIF(L36:L45,AI13) -> 0 | AK13: =AJ13/(AL4-AJ11) -> 0 | AL13: =IF(AK13=0,0,(AK13*((LOG(AK13))/LOG(2)))) -> 0 | AN13: =N13 -> 221 | AO13: =COUNTIF(L46:L55,AN13) -> 0 | AP13: =AO13/(AQ4-AO11) -> 0 | AQ13: =IF(AP13=0,0,(AP13*((LOG(AP13))/LOG(2)))) -> 0 | AS13: =N13 -> 221 | AT13: =COUNTIF(L56:L65,AS13) -> 0 | AU13: =AT13/(AV4-AT11) -> 0 | AV13: =IF(AU13=0,0,(AU13*((LOG(AU13))/LOG(2)))) -> 0
A14: 12 | B14: 1119 | C14: 24 | D14: 1129 | E14: 24 | F14: 1150 | K14: 0 | L14: 122 | N14: 222 | O14: =COUNTIF($L$7:$L$500,N14) -> 1 | P14: =O14/$Q$4 -> 0.01694915254 | Q14: =IF(P14=0,0,(P14*((LOG(P14))/LOG(2)))) -> -0.0997058144 | T14: =N14 -> 222 | U14: =COUNTIF(L7:L16,T14) -> 0 | V14: =U14/(W4-U11) -> 0 | W14: =IF(V14=0,0,(V14*((LOG(V14))/LOG(2)))) -> 0 | Y14: =N14 -> 222 | Z14: =COUNTIF(L17:L26,Y14) -> 0 | AA14: =Z14/(AB4-Z11) -> 0 | AB14: =IF(AA14=0,0,(AA14*((LOG(AA14))/LOG(2)))) -> 0 | AD14: =N14 -> 222 | AE14: =COUNTIF(L27:L35,AD14) -> 0 | AF14: =AE14/(AG4-AE11) -> 0 | AG14: =IF(AF14=0,0,(AF14*((LOG(AF14))/LOG(2)))) -> 0 | AI14: =N14 -> 222 | AJ14: =COUNTIF(L36:L45,AI14) -> 0 | AK14: =AJ14/(AL4-AJ11) -> 0 | AL14: =IF(AK14=0,0,(AK14*((LOG(AK14))/LOG(2)))) -> 0 | AN14: =N14 -> 222 | AO14: =COUNTIF(L46:L55,AN14) -> 1 | AP14: =AO14/(AQ4-AO11) -> 0.1 | AQ14: =IF(AP14=0,0,(AP14*((LOG(AP14))/LOG(2)))) -> -0.3321928095 | AS14: =N14 -> 222 | AT14: =COUNTIF(L56:L65,AS14) -> 0 | AU14: =AT14/(AV4-AT11) -> 0 | AV14: =IF(AU14=0,0,(AU14*((LOG(AU14))/LOG(2)))) -> 0
A15: 12 | B15: 1257 | C15: 13 | D15: 1266 | E15: 24 | F15: 1283 | K15: 0 | L15: 112 | P15: =SUM(P7:P14) -> 1 | Q15: =-SUM(Q7:Q14) -> 1.823368271 | V15: =SUM(V7:V14) -> 1 | W15: =-SUM(W7:W14) -> 1.570950594 | AA15: =SUM(AA7:AA14) -> 1 | AB15: =-SUM(AB7:AB14) -> 0 | AF15: =SUM(AF7:AF14) -> 1 | AG15: =-SUM(AG7:AG14) -> 1.298794941 | AK15: =SUM(AK7:AK14) -> 1 | AL15: =-SUM(AL7:AL14) -> 1.570950594 | AP15: =SUM(AP7:AP14) -> 1 | AQ15: =-SUM(AQ7:AQ14) -> 1.685475297 | AU15: =SUM(AU7:AU14) -> 1 | AV15: =-SUM(AV7:AV14) -> 0.9219280949
A16: 12 | B16: 1386 | C16: 13 | D16: 1393 | E16: 24 | F16: 1423 | K16: 0 | L16: 112 | P16: U= | Q16: =Q15/(LOG(Q4)/LOG(2)) -> 0.3099573195 | V16: U1= | W16: =W15/(LOG(W4)/LOG(2)) -> 0.4729032506 | AA16: U2= | AB16: =AB15/(LOG(AB4)/LOG(2)) -> 0 | AF16: U3= | AG16: =AG15/(LOG(AG4)/LOG(2)) -> 0.4097241859 | AK16: U4= | AL16: =AL15/(LOG(AL4)/LOG(2)) -> 0.4729032506 | AP16: U5= | AQ16: =AQ15/(LOG(AQ4)/LOG(2)) -> 0.5073786214 | AU16: U6= | AV16: =AV15/(LOG(AV4)/LOG(2)) -> 0.2775280104
A17: 12 | B17: 1528 | C17: 24 | D17: 1550 | E17: 24 | F17: 1557 | K17: 0 | L17: 122
A18: 12 | B18: 1655 | C18: 24 | D18: 1670 | E18: 24 | F18: 1676 | K18: 0 | L18: 122
A19: 12 | B19: 1776 | C19: 24 | D19: 1790 | E19: 24 | F19: 1801 | K19: 0 | L19: 122 | N19: Total Target Seq
A20: 12 | B20: 1904 | C20: 24 | D20: 1942 | E20: 24 | F20: 1954 | K20: 0 | L20: 122 | N20: =COUNTIF(L7:L65,G3) -> 1 | P20: 10 | Q20: 10 | R20: 9 | S20: 10 | T20: 10 | U20: 10
A21: 12 | B21: 2051 | C21: 24 | D21: 2097 | E21: 24 | F21: 2102 | K21: 0 | L21: 122 | P21: % of reinforcement given in 6 equal intervals based on number of trials
A22: 12 | B22: 2203 | C22: 24 | D22: 2215 | E22: 24 | F22: 2219 | K22: 0 | L22: 122 | P22: %_1 | Q22: %_2 | R22: %_3 | S22: %_4 | T22: %_5 | U22: %_6
A23: 12 | B23: 2322 | C23: 24 | D23: 2338 | E23: 24 | F23: 2349 | K23: 0 | L23: 122 | O23: target sequence | P23: =$G$3 -> 211 | Q23: =$G$3 -> 211 | R23: =$G$3 -> 211 | S23: =$G$3 -> 211 | T23: =$G$3 -> 211 | U23: =$G$3 -> 211
A24: 12 | B24: 2478 | C24: 24 | D24: 2498 | E24: 24 | F24: 2508 | K24: 0 | L24: 122 | O24: total reinforcement | P24: =U11 -> 0 | Q24: =Z11 -> 0 | R24: =AE11 -> 1 | S24: =AJ11 -> 0 | T24: =AO11 -> 0 | U24: =AT11 -> 0
A25: 12 | B25: 2626 | C25: 24 | D25: 2653 | E25: 24 | F25: 2662 | K25: 0 | L25: 122 | O25: % target
A26: 12 | B26: 2812 | C26: 24 | D26: 2827 | E26: 24 | F26: 2834 | K26: 0 | L26: 122 | O26: CCRF
A27: 12 | B27: 3022 | C27: 13 | D27: 3058 | E27: 24 | F27: 3119 | K27: 0 | L27: 112 | O27: % CCRf
A28: 12 | B28: 3386 | C28: 13 | D28: 3398 | E28: 13 | F28: 3500 | K28: 0 | L28: 111 | O28: average response rate | P28: =F16/P20 -> 142.3 | Q28: =(F26-F16)/Q20 -> 141.1 | R28: =(F35-F26)/R20 -> 1899.777778 | S28: =(F45-F35)/S20 -> 140.7 | T28: =(F55-F45)/T20 -> 132.6 | U28: =(F65-F55)/U20 -> 131.5
A29: 12 | B29: 3658 | C29: 13 | D29: 5103 | E29: 13 | F29: 5116 | K29: 0 | L29: 111
A30: 21 | B30: 17650 | C30: 11 | D30: 18970 | E30: 11 | F30: 18982 | K30: 0 | L30: 211
A31: 12 | B31: 19109 | C31: 13 | D31: 19120 | E31: 13 | F31: 19135 | K31: 0 | L31: 111
A32: 12 | B32: 19258 | C32: 13 | D32: 19356 | E32: 13 | F32: 19367 | K32: 0 | L32: 111
A33: 12 | B33: 19496 | C33: 13 | D33: 19504 | E33: 13 | F33: 19514 | K33: 0 | L33: 111
A34: 12 | B34: 19616 | C34: 13 | D34: 19626 | E34: 24 | F34: 19662 | K34: 0 | L34: 112
A35: 12 | B35: 19775 | C35: 24 | D35: 19881 | E35: 13 | F35: 19932 | K35: 0 | L35: 121
A36: 12 | B36: 20035 | C36: 24 | D36: 20050 | E36: 24 | F36: 20076 | K36: 0 | L36: 122
A37: 12 | B37: 20198 | C37: 24 | D37: 20222 | E37: 24 | F37: 20258 | K37: 0 | L37: 122
A38: 12 | B38: 20363 | C38: 24 | D38: 20384 | E38: 24 | F38: 20407 | K38: 0 | L38: 122
A39: 12 | B39: 20515 | C39: 13 | D39: 20538 | E39: 24 | F39: 20550 | K39: 0 | L39: 112
A40: 12 | B40: 20648 | C40: 24 | D40: 20674 | E40: 24 | F40: 20689 | K40: 0 | L40: 122
A41: 12 | B41: 20790 | C41: 13 | D41: 20801 | E41: 24 | F41: 20825 | K41: 0 | L41: 112
A42: 12 | B42: 20922 | C42: 13 | D42: 20933 | E42: 13 | F42: 20948 | K42: 0 | L42: 111
A43: 12 | B43: 21050 | C43: 13 | D43: 21062 | E43: 13 | F43: 21078 | K43: 0 | L43: 111
A44: 12 | B44: 21176 | C44: 13 | D44: 21185 | E44: 24 | F44: 21224 | K44: 0 | L44: 112
A45: 12 | B45: 21324 | C45: 13 | D45: 21332 | E45: 13 | F45: 21339 | K45: 0 | L45: 111
A46: 12 | B46: 21437 | C46: 13 | D46: 21445 | E46: 24 | F46: 21461 | K46: 0 | L46: 112
A47: 12 | B47: 21561 | C47: 13 | D47: 21569 | E47: 13 | F47: 21582 | K47: 0 | L47: 111
A48: 12 | B48: 21682 | C48: 13 | D48: 21691 | E48: 13 | F48: 21734 | K48: 0 | L48: 111
A49: 21 | B49: 21847 | C49: 22 | D49: 21861 | E49: 24 | F49: 21872 | K49: 0 | L49: 222
A50: 12 | B50: 21978 | C50: 24 | D50: 21995 | E50: 24 | F50: 22005 | K50: 0 | L50: 122
A51: 12 | B51: 22106 | C51: 13 | D51: 22123 | E51: 13 | F51: 22134 | K51: 0 | L51: 111
A52: 12 | B52: 22235 | C52: 13 | D52: 22261 | E52: 13 | F52: 22270 | K52: 0 | L52: 111
A53: 12 | B53: 22373 | C53: 13 | D53: 22382 | E53: 24 | F53: 22399 | K53: 0 | L53: 112
A54: 12 | B54: 22500 | C54: 13 | D54: 22510 | E54: 24 | F54: 22536 | K54: 0 | L54: 112
A55: 12 | B55: 22640 | C55: 13 | D55: 22655 | E55: 13 | F55: 22665 | K55: 0 | L55: 111
A56: 12 | B56: 22761 | C56: 13 | D56: 22767 | E56: 13 | F56: 22773 | K56: 0 | L56: 111
A57: 12 | B57: 22878 | C57: 13 | D57: 22887 | E57: 13 | F57: 22896 | K57: 0 | L57: 111
A58: 12 | B58: 23010 | C58: 13 | D58: 23022 | E58: 24 | F58: 23041 | K58: 0 | L58: 112
A59: 12 | B59: 23140 | C59: 13 | D59: 23165 | E59: 13 | F59: 23179 | K59: 0 | L59: 111
A60: 12 | B60: 23282 | C60: 13 | D60: 23295 | E60: 13 | F60: 23297 | K60: 0 | L60: 111
A61: 12 | B61: 23399 | C61: 13 | D61: 23410 | E61: 13 | F61: 23424 | K61: 0 | L61: 111
A62: 12 | B62: 23531 | C62: 13 | D62: 23551 | E62: 13 | F62: 23567 | K62: 0 | L62: 111
A63: 12 | B63: 23670 | C63: 13 | D63: 23683 | E63: 13 | F63: 23696 | K63: 0 | L63: 111
A64: 12 | B64: 23798 | C64: 24 | D64: 23826 | E64: 24 | F64: 23838 | K64: 0 | L64: 122
A65: 12 | B65: 23954 | C65: 13 | D65: 23968 | E65: 13 | F65: 23980 | L65: 111

Sheet !M505B10.185
A1: Report for:!M505B10.185
A2: Date: | B2: <date>
A3: Hen: | B3: <hen> | F3: Correct Sequence | G3: =Start!J2 -> 211 | P3: Total Sequences in Data | Q3: =4994-COUNTBLANK(L7:L5000) -> 170 | V3: Total Sequences in Block Data | W3: =COUNTA(L7:L34) -> 28 | AA3: Total Sequences in Block Data | AB3: =COUNTA(L35:L63) -> 29 | AF3: Total Sequences in Block Data | AG3: =COUNTA(L64:L91) -> 28 | AK3: Total Sequences in Block Data | AL3: =COUNTA(L92:L119) -> 28 | AP3: Total Sequences in Block Data | AQ3: =COUNTA(L120:L148) -> 29 | AU3: Total Sequences in Block Data | AV3: =COUNTA(L149:L176) -> 28
P4: Total Sequences in Summary | Q4: =SUM(O7:O14) -> 170 | V4: Total Sequences in Block Summary | W4: =SUM(U7:U14) -> 28 | AA4: Total Sequences in Block Summary | AB4: =SUM(Z7:Z14) -> 29 | AF4: Total Sequences in Block Summary | AG4: =SUM(AE7:AE14) -> 28 | AK4: Total Sequences in Block Summary | AL4: =SUM(AJ7:AJ14) -> 28 | AP4: Total Sequences in Block Summary | AQ4: =SUM(AO7:AO14) -> 29 | AU4: Total Sequences in Block Summary | AV4: =SUM(AT7:AT14) -> 28
T5: Block 1 | Y5: Block 2 | AD5: Block 3 | AI5: Block 4 | AN5: Block 5 | AS5: Block 6
A6: Sequence Component 1 | B6: Time 1 | C6: Sequence Component 2 | D6: Time 2 | E6: Sequence Component 3 | F6: Time 3 | G6: Sequence Component 4 | H6: Time 4 | I6: Sequence Component 5 | J6: Time 5 | K6: Correct? 0=No 1=Yes | L6: Sequence | N6: Frequency | P6: Relative Frequency | Q6: Variability | T6: Frequency | V6: Relative Frequency | W6: Variability | Y6: Frequency | AA6: Relative Frequency | AB6: Variability | AD6: Frequency | AF6: Relative Frequency | AG6: Variability | AI6: Frequency | AK6: Relative Frequency | AL6: Variability | AN6: Frequency | AP6: Relative Frequency | AQ6: Variability | AS6: Frequency | AU6: Relative Frequency | AV6: Variability
A7: 12 | B7: 7 | C7: 24 | D7: 22 | E7: 13 | F7: 41 | K7: 0 | L7: 121 | N7: 111 | O7: =COUNTIF($L$7:$L$500,N7) -> 72 | P7: =O7/$Q$4 -> 0.4235294118 | Q7: =IF(P7=0,0,(P7*((LOG(P7))/LOG(2)))) -> -0.5249502782 | T7: =N7 -> 111 | U7: =COUNTIF(L7:L34,T7) -> 8 | V7: =U7/(W4-U11) -> 0.2857142857 | W7: =IF(V7=0,0,(V7*((LOG(V7))/LOG(2)))) -> -0.5163871206 | Y7: =N7 -> 111 | Z7: =COUNTIF(L35:L63,Y7) -> 11 | AA7: =Z7/(AB4-Z11) -> 0.3793103448 | AB7: =IF(AA7=0,0,(AA7*((LOG(AA7))/LOG(2)))) -> -0.5304842463 | AD7: =N7 -> 111 | AE7: =COUNTIF(L64:L91,AD7) -> 13 | AF7: =AE7/(AG4-AE11) -> 0.4814814815 | AG7: =IF(AF7=0,0,(AF7*((LOG(AF7))/LOG(2)))) -> -0.5076970812 | AI7: =N7 -> 111 | AJ7: =COUNTIF(L92:L119,AI7) -> 16 | AK7: =AJ7/(AL4-AJ11) -> 0.5925925926 | AL7: =IF(AK7=0,0,(AK7*((LOG(AK7))/LOG(2)))) -> -0.447340742 | AN7: =N7 -> 111 | AO7: =COUNTIF(L120:L148,AN7) -> 10 | AP7: =AO7/(AQ4-AO11) -> 0.3448275862 | AQ7: =IF(AP7=0,0,(AP7*((LOG(AP7))/LOG(2)))) -> -0.5296734139 | AS7: =N7 -> 111 | AT7: =COUNTIF(L149:L176,AS7) -> 14 | AU7: =AT7/(AV4-AT11) -> 0.5 | AV7: =IF(AU7=0,0,(AU7*((LOG(AU7))/LOG(2)))) -> -0.5
A8: 21 | B8: 145 | C8: 22 | D8: 155 | E8: 24 | F8: 166 | K8: 0 | L8: 222 | N8: 112 | O8: =COUNTIF($L$7:$L$500,N8) -> 31 | P8: =O8/$Q$4 -> 0.1823529412 | Q8: =IF(P8=0,0,(P8*((LOG(P8))/LOG(2)))) -> -0.4477119612 | T8: =N8 -> 112 | U8: =COUNTIF(L7:L34,T8) -> 4 | V8: =U8/(W4-U11) -> 0.1428571429 | W8: =IF(V8=0,0,(V8*((LOG(V8))/LOG(2)))) -> -0.4010507032 | Y8: =N8 -> 112 | Z8: =COUNTIF(L35:L63,Y8) -> 4 | AA8: =Z8/(AB4-Z11) -> 0.1379310345 | AB8: =IF(AA8=0,0,(AA8*((LOG(AA8))/LOG(2)))) -> -0.3942042752 | AD8: =N8 -> 112 | AE8: =COUNTIF(L64:L91,AD8) -> 3 | AF8: =AE8/(AG4-AE11) -> 0.1111111111 | AG8: =IF(AF8=0,0,(AF8*((LOG(AF8))/LOG(2)))) -> -0.352213889 | AI8: =N8 -> 112 | AJ8: =COUNTIF(L92:L119,AI8) -> 5 | AK8: =AJ8/(AL4-AJ11) -> 0.1851851852 | AL8: =IF(AK8=0,0,(AK8*((LOG(AK8))/LOG(2)))) -> -0.4505480384 | AN8: =N8 -> 112 | AO8: =COUNTIF(L120:L148,AN8) -> 11 | AP8: =AO8/(AQ4-AO11) -> 0.3793103448 | AQ8: =IF(AP8=0,0,(AP8*((LOG(AP8))/LOG(2)))) -> -0.5304842463 | AS8: =N8 -> 112 | AT8: =COUNTIF(L149:L176,AS8) -> 4 | AU8: =AT8/(AV4-AT11) -> 0.1428571429 | AV8: =IF(AU8=0,0,(AU8*((LOG(AU8))/LOG(2)))) -> -0.4010507032
A9: 12 | B9: 266 | C9: 13 | D9: 274 | E9: 13 | F9: 288 | K9: 0 | L9: 111 | N9: 121 | O9: =COUNTIF($L$7:$L$500,N9) -> 5 | P9: =O9/$Q$4 -> 0.02941176471 | Q9: =IF(P9=0,0,(P9*((LOG(P9))/LOG(2)))) -> -0.14963126 | T9: =N9 -> 121 | U9: =COUNTIF(L7:L34,T9) -> 1 | V9: =U9/(W4-U11) -> 0.03571428571 | W9: =IF(V9=0,0,(V9*((LOG(V9))/LOG(2)))) -> -0.1716912472 | Y9: =N9 -> 121 | Z9: =COUNTIF(L35:L63,Y9) -> 1 | AA9: =Z9/(AB4-Z11) -> 0.03448275862 | AB9: =IF(AA9=0,0,(AA9*((LOG(AA9))/LOG(2)))) -> -0.167516586 | AD9: =N9 -> 121 | AE9: =COUNTIF(L64:L91,AD9) -> 0 | AF9: =AE9/(AG4-AE11) -> 0 | AG9: =IF(AF9=0,0,(AF9*((LOG(AF9))/LOG(2)))) -> 0 | AI9: =N9 -> 121 | AJ9: =COUNTIF(L92:L119,AI9) -> 0 | AK9: =AJ9/(AL4-AJ11) -> 0 | AL9: =IF(AK9=0,0,(AK9*((LOG(AK9))/LOG(2)))) -> 0 | AN9: =N9 -> 121 | AO9: =COUNTIF(L120:L148,AN9) -> 0 | AP9: =AO9/(AQ4-AO11) -> 0 | AQ9: =IF(AP9=0,0,(AP9*((LOG(AP9))/LOG(2)))) -> 0 | AS9: =N9 -> 121 | AT9: =COUNTIF(L149:L176,AS9) -> 3 | AU9: =AT9/(AV4-AT11) -> 0.1071428571 | AV9: =IF(AU9=0,0,(AU9*((LOG(AU9))/LOG(2)))) -> -0.3452563309
A10: 12 | B10: 391 | C10: 24 | D10: 402 | E10: 24 | F10: 410 | K10: 0 | L10: 122 | N10: 122 | O10: =COUNTIF($L$7:$L$500,N10) -> 30 | P10: =O10/$Q$4 -> 0.1764705882 | Q10: =IF(P10=0,0,(P10*((LOG(P10))/LOG(2)))) -> -0.4416177072 | T10: =N10 -> 122 | U10: =COUNTIF(L7:L34,T10) -> 12 | V10: =U10/(W4-U11) -> 0.4285714286 | W10: =IF(V10=0,0,(V10*((LOG(V10))/LOG(2)))) -> -0.5238824663 | Y10: =N10 -> 122 | Z10: =COUNTIF(L35:L63,Y10) -> 5 | AA10: =Z10/(AB4-Z11) -> 0.1724137931 | AB10: =IF(AA10=0,0,(AA10*((LOG(AA10))/LOG(2)))) -> -0.4372505 | AD10: =N10 -> 122 | AE10: =COUNTIF(L64:L91,AD10) -> 4 | AF10: =AE10/(AG4-AE11) -> 0.1481481481 | AG10: =IF(AF10=0,0,(AF10*((LOG(AF10))/LOG(2)))) -> -0.4081314818 | AI10: =N10 -> 122 | AJ10: =COUNTIF(L92:L119,AI10) -> 1 | AK10: =AJ10/(AL4-AJ11) -> 0.03703703704 | AL10: =IF(AK10=0,0,(AK10*((LOG(AK10))/LOG(2)))) -> -0.1761069445 | AN10: =N10 -> 122 | AO10: =COUNTIF(L120:L148,AN10) -> 5 | AP10: =AO10/(AQ4-AO11) -> 0.1724137931 | AQ10: =IF(AP10=0,0,(AP10*((LOG(AP10))/LOG(2)))) -> -0.4372505 | AS10: =N10 -> 122 | AT10: =COUNTIF(L149:L176,AS10) -> 3 | AU10: =AT10/(AV4-AT11) -> 0.1071428571 | AV10: =IF(AU10=0,0,(AU10*((LOG(AU10))/LOG(2)))) -> -0.3452563309
A11: 12 | B11: 508 | C11: 13 | D11: 513 | E11: 13 | F11: 527 | K11: 0 | L11: 111 | N11: 211 | O11: =COUNTIF($L$7:$L$500,N11) -> 2 | P11: =O11/$Q$4 -> 0.01176470588 | Q11: =IF(P11=0,0,(P11*((LOG(P11))/LOG(2)))) -> -0.07540459925 | T11: =N11 -> 211 | U11: =COUNTIF(L7:L34,T11) -> 0 | Y11: =N11 -> 211 | Z11: =COUNTIF(L35:L63,Y11) -> 0 | AD11: =N11 -> 211 | AE11: =COUNTIF(L64:L91,AD11) -> 1 | AI11: =N11 -> 211 | AJ11: =COUNTIF(L92:L119,AI11) -> 1 | AN11: =N11 -> 211 | AO11: =COUNTIF(L120:L148,AN11) -> 0 | AS11: =N11 -> 211 | AT11: =COUNTIF(L149:L176,AS11) -> 0
A12: 12 | B12: 630 | C12: 13 | D12: 643 | E12: 13 | F12: 657 | K12: 0 | L12: 111 | N12: 212 | O12: =COUNTIF($L$7:$L$500,N12) -> 0 | P12: =O12/$Q$4 -> 0 | Q12: =IF(P12=0,0,(P12*((LOG(P12))/LOG(2)))) -> 0 | T12: =N12 -> 212 | U12: =COUNTIF(L7:L34,T12) -> 0 | V12: =U12/(W4-U11) -> 0 | W12: =IF(V12=0,0,(V12*((LOG(V12))/LOG(2)))) -> 0 | Y12: =N12 -> 212 | Z12: =COUNTIF(L35:L63,Y12) -> 0 | AA12: =Z12/(AB4-Z11) -> 0 | AB12: =IF(AA12=0,0,(AA12*((LOG(AA12))/LOG(2)))) -> 0 | AD12: =N12 -> 212 | AE12: =COUNTIF(L64:L91,AD12) -> 0 | AF12: =AE12/(AG4-AE11) -> 0 | AG12: =IF(AF12=0,0,(AF12*((LOG(AF12))/LOG(2)))) -> 0 | AI12: =N12 -> 212 | AJ12: =COUNTIF(L92:L119,AI12) -> 0 | AK12: =AJ12/(AL4-AJ11) -> 0 | AL12: =IF(AK12=0,0,(AK12*((LOG(AK12))/LOG(2)))) -> 0 | AN12: =N12 -> 212 | AO12: =COUNTIF(L120:L148,AN12) -> 0 | AP12: =AO12/(AQ4-AO11) -> 0 | AQ12: =IF(AP12=0,0,(AP12*((LOG(AP12))/LOG(2)))) -> 0 | AS12: =N12 -> 212 | AT12: =COUNTIF(L149:L176,AS12) -> 0 | AU12: =AT12/(AV4-AT11) -> 0 | AV12: =IF(AU12=0,0,(AU12*((LOG(AU12))/LOG(2)))) -> 0
A13: 12 | B13: 757 | C13: 13 | D13: 765 | E13: 13 | F13: 773 | K13: 0 | L13: 111 | N13: 221 | O13: =COUNTIF($L$7:$L$500,N13) -> 1 | P13: =O13/$Q$4 -> 0.005882352941 | Q13: =IF(P13=0,0,(P13*((LOG(P13))/LOG(2)))) -> -0.04358465257 | T13: =N13 -> 221 | U13: =COUNTIF(L7:L34,T13) -> 0 | V13: =U13/(W4-U11) -> 0 | W13: =IF(V13=0,0,(V13*((LOG(V13))/LOG(2)))) -> 0 | Y13: =N13 -> 221 | Z13: =COUNTIF(L35:L63,Y13) -> 1 | AA13: =Z13/(AB4-Z11) -> 0.03448275862 | AB13: =IF(AA13=0,0,(AA13*((LOG(AA13))/LOG(2)))) -> -0.167516586 | AD13: =N13 -> 221 | AE13: =COUNTIF(L64:L91,AD13) -> 0 | AF13: =AE13/(AG4-AE11) -> 0 | AG13: =IF(AF13=0,0,(AF13*((LOG(AF13))/LOG(2)))) -> 0 | AI13: =N13 -> 221 | AJ13: =COUNTIF(L92:L119,AI13) -> 0 | AK13: =AJ13/(AL4-AJ11) -> 0 | AL13: =IF(AK13=0,0,(AK13*((LOG(AK13))/LOG(2)))) -> 0 | AN13: =N13 -> 221 | AO13: =COUNTIF(L120:L148,AN13) -> 0 | AP13: =AO13/(AQ4-AO11) -> 0 | AQ13: =IF(AP13=0,0,(AP13*((LOG(AP13))/LOG(2)))) -> 0 | AS13: =N13 -> 221 | AT13: =COUNTIF(L149:L176,AS13) -> 0 | AU13: =AT13/(AV4-AT11) -> 0 | AV13: =IF(AU13=0,0,(AU13*((LOG(AU13))/LOG(2)))) -> 0
A14: 12 | B14: 878 | C14: 13 | D14: 887 | E14: 24 | F14: 901 | K14: 0 | L14: 112 | N14: 222 | O14: =COUNTIF($L$7:$L$500,N14) -> 29 | P14: =O14/$Q$4 -> 0.1705882353 | Q14: =IF(P14=0,0,(P14*((LOG(P14))/LOG(2)))) -> -0.4352405193 | T14: =N14 -> 222 | U14: =COUNTIF(L7:L34,T14) -> 3 | V14: =U14/(W4-U11) -> 0.1071428571 | W14: =IF(V14=0,0,(V14*((LOG(V14))/LOG(2)))) -> -0.3452563309 | Y14: =N14 -> 222 | Z14: =COUNTIF(L35:L63,Y14) -> 7 | AA14: =Z14/(AB4-Z11) -> 0.2413793103 | AB14: =IF(AA14=0,0,(AA14*((LOG(AA14))/LOG(2)))) -> -0.4949787073 | AD14: =N14 -> 222 | AE14: =COUNTIF(L64:L91,AD14) -> 7 | AF14: =AE14/(AG4-AE11) -> 0.2592592593 | AG14: =IF(AF14=0,0,(AF14*((LOG(AF14))/LOG(2)))) -> -0.5049158541 | AI14: =N14 -> 222 | AJ14: =COUNTIF(L92:L119,AI14) -> 5 | AK14: =AJ14/(AL4-AJ11) -> 0.1851851852 | AL14: =IF(AK14=0,0,(AK14*((LOG(AK14))/LOG(2)))) -> -0.4505480384 | AN14: =N14 -> 222 | AO14: =COUNTIF(L120:L148,AN14) -> 3 | AP14: =AO14/(AQ4-AO11) -> 0.1034482759 | AQ14: =IF(AP14=0,0,(AP14*((LOG(AP14))/LOG(2)))) -> -0.3385881201 | AS14: =N14 -> 222 | AT14: =COUNTIF(L149:L176,AS14) -> 4 | AU14: =AT14/(AV4-AT11) -> 0.1428571429 | AV14: =IF(AU14=0,0,(AU14*((LOG(AU14))/LOG(2)))) -> -0.4010507032
A15: 12 | B15: 1004 | C15: 13 | D15: 1010 | E15: 24 | F15: 1024 | K15: 0 | L15: 112 | P15: =SUM(P7:P14) -> 1 | Q15: =-SUM(Q7:Q14) -> 2.118140978 | V15: =SUM(V7:V14) -> 1 | W15: =-SUM(W7:W14) -> 1.958267868 | AA15: =SUM(AA7:AA14) -> 1 | AB15: =-SUM(AB7:AB14) -> 2.191950901 | AF15: =SUM(AF7:AF14) -> 1 | AG15: =-SUM(AG7:AG14) -> 1.772958306 | AK15: =SUM(AK7:AK14) -> 1 | AL15: =-SUM(AL7:AL14) -> 1.524543763 | AP15: =SUM(AP7:AP14) -> 1 | AQ15: =-SUM(AQ7:AQ14) -> 1.83599628 | AU15: =SUM(AU7:AU14) -> 1 | AV15: =-SUM(AV7:AV14) -> 1.992614068
A16: 12 | B16: 1127 | C16: 13 | D16: 1135 | E16: 13 | F16: 1144 | K16: 0 | L16: 111 | P16: U= | Q16: =Q15/(LOG(Q4)/LOG(2)) -> 0.2858724821 | V16: U1= | W16: =W15/(LOG(W4)/LOG(2)) -> 0.4073483027 | AA16: U2= | AB16: =AB15/(LOG(AB4)/LOG(2)) -> 0.4512061499 | AF16: U3= | AG16: =AG15/(LOG(AG4)/LOG(2)) -> 0.3688012088 | AK16: U4= | AL16: =AL15/(LOG(AL4)/LOG(2)) -> 0.3171273576 | AP16: U5= | AQ16: =AQ15/(LOG(AQ4)/LOG(2)) -> 0.3779340187 | AU16: U6= | AV16: =AV15/(LOG(AV4)/LOG(2)) -> 0.4144928137
A17: 21 | B17: 1247 | C17: 22 | D17: 1254 | E17: 24 | F17: 1261 | K17: 0 | L17: 222
A18: 12 | B18: 1358 | C18: 13 | D18: 1364 | E18: 13 | F18: 1370 | K18: 0 | L18: 111
A19: 12 | B19: 1470 | C19: 24 | D19: 1486 | E19: 24 | F19: 1493 | K19: 0 | L19: 122 | N19: Total Target Seq
A20: 12 | B20: 1591 | C20: 24 | D20: 1606 | E20: 24 | F20: 1621 | K20: 0 | L20: 122 | N20: =COUNTIF(L7:L176,G3) -> 2 | P20: 28 | Q20: 29 | R20: 28 | S20: 28 | T20: 29 | U20: 28
A21: 12 | B21: 1723 | C21: 24 | D21: 1734 | E21: 24 | F21: 1739 | K21: 0 | L21: 122 | P21: % of reinforcement given in 6 equal intervals based on number of trials
A22: 12 | B22: 1839 | C22: 24 | D22: 1853 | E22: 24 | F22: 1859 | K22: 0 | L22: 122 | P22: %_1 | Q22: %_2 | R22: %_3 | S22: %_4 | T22: %_5 | U22: %_6
A23: 12 | B23: 1962 | C23: 24 | D23: 2004 | E23: 24 | F23: 2015 | K23: 0 | L23: 122 | O23: target sequence | P23: =$G$3 -> 211 | Q23: =$G$3 -> 211 | R23: =$G$3 -> 211 | S23: =$G$3 -> 211 | T23: =$G$3 -> 211 | U23: =$G$3 -> 211
A24: 12 | B24: 2113 | C24: 24 | D24: 2125 | E24: 24 | F24: 2131 | K24: 0 | L24: 122 | O24: total reinforcement | P24: =U11 -> 0 | Q24: =Z11 -> 0 | R24: =AE11 -> 1 | S24: =AJ11 -> 1 | T24: =AO11 -> 0 | U24: =AT11 -> 0
A25: 12 | B25: 2229 | C25: 24 | D25: 2262 | E25: 24 | F25: 2278 | K25: 0 | L25: 122 | O25: % target
A26: 12 | B26: 2374 | C26: 24 | D26: 2386 | E26: 24 | F26: 2402 | K26: 0 | L26: 122 | O26: CCRF
A27: 12 | B27: 2499 | C27: 13 | D27: 2506 | E27: 24 | F27: 2518 | K27: 0 | L27: 112 | O27: % CCRf
A28: 21 | B28: 2628 | C28: 22 | D28: 2636 | E28: 24 | F28: 2646 | K28: 0 | L28: 222 | O28: average response rate | P28: =F34/P20 -> 119.6428571 | Q28: =(F63-F34)/Q20 -> 158.2068966 | R28: =(F91-F63)/R20 -> 130.2142857 | S28: =(F119-F91)/S20 -> 133.75 | T28: =(F148-F119)/T20 -> 133.7931034 | U28: =(F176-F148)/U20 -> 165.7857143
A29: 12 | B29: 2750 | C29: 24 | D29: 2762 | E29: 24 | F29: 2767 | K29: 0 | L29: 122
A30: 12 | B30: 2866 | C30: 24 | D30: 2878 | E30: 24 | F30: 2890 | K30: 0 | L30: 122
A31: 12 | B31: 2988 | C31: 24 | D31: 2998 | E31: 24 | F31: 3003 | K31: 0 | L31: 122
A32: 12 | B32: 3105 | C32: 13 | D32: 3107 | E32: 24 | F32: 3119 | K32: 0 | L32: 112
A33: 12 | B33: 3219 | C33: 13 | D33: 3228 | E33: 13 | F33: 3236 | K33: 0 | L33: 111
A34: 12 | B34: 3334 | C34: 13 | D34: 3342 | E34: 13 | F34: 3350 | K34: 0 | L34: 111
A35: 21 | B35: 3464 | C35: 22 | D35: 3474 | E35: 24 | F35: 3484 | K35: 0 | L35: 222
A36: 21 | B36: 3596 | C36: 22 | D36: 3606 | E36: 24 | F36: 3615 | K36: 0 | L36: 222
A37: 12 | B37: 3717 | C37: 13 | D37: 3727 | E37: 13 | F37: 3735 | K37: 0 | L37: 111
A38: 12 | B38: 3845 | C38: 13 | D38: 3857 | E38: 24 | F38: 3874 | K38: 0 | L38: 112
A39: 12 | B39: 3972 | C39: 13 | D39: 3980 | E39: 13 | F39: 3987 | K39: 0 | L39: 111
A40: 12 | B40: 4088 | C40: 24 | D40: 4098 | E40: 24 | F40: 4104 | K40: 0 | L40: 122
A41: 21 | B41: 4217 | C41: 22 | D41: 4223 | E41: 24 | F41: 4230 | K41: 0 | L41: 222
A42: 12 | B42: 4338 | C42: 13 | D42: 4348 | E42: 13 | F42: 4369 | K42: 0 | L42: 111
A43: 12 | B43: 4474 | C43: 13 | D43: 4487 | E43: 13 | F43: 4520 | K43: 0 | L43: 111
A44: 12 | B44: 4621 | C44: 13 | D44: 4652 | E44: 13 | F44: 4661 | K44: 0 | L44: 111
A45: 12 | B45: 4772 | C45: 24 | D45: 4781 | E45: 24 | F45: 4789 | K45: 0 | L45: 122
A46: 12 | B46: 4897 | C46: 13 | D46: 4904 | E46: 13 | F46: 4913 | K46: 0 | L46: 111
A47: 12 | B47: 5041 | C47: 24 | D47: 5077 | E47: 13 | F47: 5099 | K47: 0 | L47: 121
A48: 12 | B48: 5226 | C48: 24 | D48: 5248 | E48: 24 | F48: 5262 | K48: 0 | L48: 122
A49: 21 | B49: 5417 | C49: 22 | D49: 5424 | E49: 24 | F49: 5431 | K49: 0 | L49: 222
A50: 12 | B50: 5541 | C50: 13 | D50: 5560 | E50: 24 | F50: 5579 | K50: 0 | L50: 112
A51: 12 | B51: 5701 | C51: 13 | D51: 5711 | E51: 13 | F51: 5717 | K51: 0 | L51: 111
A52: 21 | B52: 5835 | C52: 22 | D52: 5839 | E52: 24 | F52: 5847 | K52: 0 | L52: 222
A53: 12 | B53: 5976 | C53: 13 | D53: 5989 | E53: 13 | F53: 5997 | K53: 0 | L53: 111
A54: 21 | B54: 6133 | C54: 22 | D54: 6142 | E54: 24 | F54: 6152 | K54: 0 | L54: 222
A55: 12 | B55: 6695 | C55: 13 | D55: 6706 | E55: 13 | F55: 6716 | K55: 0 | L55: 111
A56: 21 | B56: 6991 | C56: 22 | D56: 7003 | E56: 13 | F56: 7049 | K56: 0 | L56: 221
A57: 21 | B57: 7161 | C57: 22 | D57: 7188 | E57: 24 | F57: 7199 | K57: 0 | L57: 222
A58: 12 | B58: 7299 | C58: 13 | D58: 7307 | E58: 13 | F58: 7317 | K58: 0 | L58: 111
A59: 12 | B59: 7429 | C59: 24 | D59: 7445 | E59: 24 | F59: 7453 | K59: 0 | L59: 122
A60: 12 | B60: 7551 | C60: 13 | D60: 7561 | E60: 24 | F60: 7581 | K60: 0 | L60: 112
A61: 12 | B61: 7688 | C61: 24 | D61: 7698 | E61: 24 | F61: 7704 | K61: 0 | L61: 122
A62: 12 | B62: 7801 | C62: 13 | D62: 7810 | E62: 24 | F62: 7823 | K62: 0 | L62: 112
A63: 12 | B63: 7922 | C63: 13 | D63: 7929 | E63: 13 | F63: 7938 | K63: 0 | L63: 111
A64: 12 | B64: 8039 | C64: 13 | D64: 8049 | E64: 24 | F64: 8060 | K64: 0 | L64: 112
A65: 21 | B65: 8168 | C65: 22 | D65: 8176 | E65: 24 | F65: 8185 | K65: 0 | L65: 222
A66: 12 | B66: 8291 | C66: 13 | D66: 8300 | E66: 24 | F66: 8312 | K66: 0 | L66: 112
A67: 21 | B67: 8419 | C67: 22 | D67: 8429 | E67: 24 | F67: 8437 | K67: 0 | L67: 222
A68: 12 | B68: 8540 | C68: 24 | D68: 8550 | E68: 24 | F68: 8555 | K68: 0 | L68: 122
A69: 12 | B69: 8657 | C69: 24 | D69: 8683 | E69: 24 | F69: 8692 | K69: 0 | L69: 122
A70: 12 | B70: 8790 | C70: 13 | D70: 8798 | E70: 13 | F70: 8806 | K70: 0 | L70: 111
A71: 21 | B71: 8918 | C71: 22 | D71: 8922 | E71: 24 | F71: 8927 | K71: 0 | L71: 222
A72: 12 | B72: 9031 | C72: 13 | D72: 9041 | E72: 24 | F72: 9055 | K72: 0 | L72: 112
A73: 12 | B73: 9163 | C73: 24 | D73: 9173 | E73: 24 | F73: 9179 | K73: 0 | L73: 122
A74: 12 | B74: 9281 | C74: 13 | D74: 9289 | E74: 13 | F74: 9299 | K74: 0 | L74: 111
A75: 12 | B75: 9398 | C75: 13 | D75: 9409 | E75: 13 | F75: 9417 | K75: 0 | L75: 111
A76: 12 | B76: 9517 | C76: 13 | D76: 9526 | E76: 13 | F76: 9536 | K76: 0 | L76: 111
A77: 12 | B77: 9640 | C77: 24 | D77: 9671 | E77: 24 | F77: 9686 | K77: 0 | L77: 122
A78: 12 | B78: 9787 | C78: 13 | D78: 9800 | E78: 13 | F78: 9808 | K78: 0 | L78: 111
A79: 12 | B79: 9910 | C79: 13 | D79: 9917 | E79: 13 | F79: 9926 | K79: 0 | L79: 111
A80: 12 | B80: 10036 | C80: 13 | D80: 10045 | E80: 13 | F80: 10063 | K80: 0 | L80: 111
A81: 21 | B81: 10185 | C81: 22 | D81: 10197 | E81: 24 | F81: 10208 | K81: 0 | L81: 222
A82: 21 | B82: 10316 | C82: 22 | D82: 10330 | E82: 24 | F82: 10337 | K82: 0 | L82: 222
A83: 21 | B83: 10453 | C83: 22 | D83: 10462 | E83: 24 | F83: 10470 | K83: 0 | L83: 222
A84: 12 | B84: 10606 | C84: 13 | D84: 10623 | E84: 13 | F84: 10632 | K84: 0 | L84: 111
A85: 12 | B85: 10744 | C85: 13 | D85: 10752 | E85: 13 | F85: 10760 | K85: 0 | L85: 111
A86: 12 | B86: 10895 | C86: 13 | D86: 10903 | E86: 13 | F86: 10911 | K86: 0 | L86: 111
A87: 21 | B87: 11072 | C87: 11 | D87: 11093 | E87: 11 | F87: 11102 | K87: 0 | L87: 211
A88: 12 | B88: 11199 | C88: 13 | D88: 11213 | E88: 13 | F88: 11222 | K88: 0 | L88: 111
A89: 21 | B89: 11333 | C89: 22 | D89: 11347 | E89: 24 | F89: 11354 | K89: 0 | L89: 222
A90: 12 | B90: 11453 | C90: 13 | D90: 11462 | E90: 13 | F90: 11469 | K90: 0 | L90: 111
A91: 12 | B91: 11568 | C91: 13 | D91: 11575 | E91: 13 | F91: 11584 | K91: 0 | L91: 111
A92: 12 | B92: 11686 | C92: 13 | D92: 11693 | E92: 13 | F92: 11702 | K92: 0 | L92: 111
A93: 12 | B93: 11800 | C93: 13 | D93: 11808 | E93: 13 | F93: 11825 | K93: 0 | L93: 111
A94: 12 | B94: 11924 | C94: 13 | D94: 11932 | E94: 13 | F94: 11941 | K94: 0 | L94: 111
A95: 12 | B95: 12042 | C95: 13 | D95: 12050 | E95: 13 | F95: 12060 | K95: 0 | L95: 111
A96: 12 | B96: 12158 | C96: 13 | D96: 12165 | E96: 13 | F96: 12173 | K96: 0 | L96: 111
A97: 12 | B97: 12270 | C97: 13 | D97: 12280 | E97: 13 | F97: 12288 | K97: 0 | L97: 111
A98: 12 | B98: 12386 | C98: 13 | D98: 12400 | E98: 13 | F98: 12407 | K98: 0 | L98: 111
A99: 12 | B99: 12503 | C99: 13 | D99: 12508 | E99: 13 | F99: 12525 | K99: 0 | L99: 111
A100: 12 | B100: 12624 | C100: 13 | D100: 12647 | E100: 13 | F100: 12657 | K100: 0 | L100: 111
A101: 12 | B101: 12761 | C101: 13 | D101: 12770 | E101: 13 | F101: 12780 | K101: 0 | L101: 111
A102: 21 | B102: 12900 | C102: 22 | D102: 12918 | E102: 24 | F102: 12935 | K102: 0 | L102: 222
A103: 12 | B103: 13036 | C103: 13 | D103: 13046 | E103: 13 | F103: 13053 | K103: 0 | L103: 111
A104: 12 | B104: 13159 | C104: 13 | D104: 13172 | E104: 13 | F104: 13193 | K104: 0 | L104: 111
A105: 12 | B105: 13325 | C105: 13 | D105: 13356 | E105: 13 | F105: 13368 | K105: 0 | L105: 111
A106: 12 | B106: 13472 | C106: 13 | D106: 13481 | E106: 13 | F106: 13490 | K106: 0 | L106: 111
A107: 12 | B107: 13591 | C107: 13 | D107: 13598 | E107: 24 | F107: 13611 | K107: 0 | L107: 112
A108: 21 | B108: 13807 | C108: 22 | D108: 13820 | E108: 24 | F108: 13837 | K108: 0 | L108: 222
A109: 21 | B109: 13980 | C109: 22 | D109: 13988 | E109: 24 | F109: 13994 | K109: 0 | L109: 222
A110: 12 | B110: 14107 | C110: 13 | D110: 14116 | E110: 24 | F110: 14133 | K110: 0 | L110: 112
A111: 12 | B111: 14243 | C111: 13 | D111: 14254 | E111: 24 | F111: 14267 | K111: 0 | L111: 112
A112: 12 | B112: 14378 | C112: 13 | D112: 14387 | E112: 13 | F112: 14408 | K112: 0 | L112: 111
A113: 12 | B113: 14518 | C113: 13 | D113: 14526 | E113: 13 | F113: 14535 | K113: 0 | L113: 111
A114: 12 | B114: 14644 | C114: 13 | D114: 14655 | E114: 24 | F114: 14669 | K114: 0 | L114: 112
A115: 21 | B115: 14771 | C115: 22 | D115: 14777 | E115: 24 | F115: 14787 | K115: 0 | L115: 222
A116: 21 | B116: 14900 | C116: 22 | D116: 14911 | E116: 24 | F116: 14919 | K116: 0 | L116: 222
A117: 21 | B117: 15035 | C117: 11 | D117: 15062 | E117: 11 | F117: 15071 | K117: 0 | L117: 211
A118: 12 | B118: 15185 | C118: 24 | D118: 15197 | E118: 24 | F118: 15203 | K118: 0 | L118: 122
A119: 12 | B119: 15304 | C119: 13 | D119: 15317 | E119: 24 | F119: 15329 | K119: 0 | L119: 112
A120: 12 | B120: 15425 | C120: 13 | D120: 15434 | E120: 13 | F120: 15443 | K120: 0 | L120: 111
A121: 21 | B121: 15556 | C121: 22 | D121: 15564 | E121: 24 | F121: 15572 | K121: 0 | L121: 222
A122: 12 | B122: 15668 | C122: 13 | D122: 15678 | E122: 24 | F122: 15691 | K122: 0 | L122: 112
A123: 12 | B123: 15790 | C123: 13 | D123: 15798 | E123: 24 | F123: 15812 | K123: 0 | L123: 112
A124: 12 | B124: 15921 | C124: 13 | D124: 15930 | E124: 13 | F124: 15947 | K124: 0 | L124: 111
A125: 12 | B125: 16106 | C125: 13 | D125: 16115 | E125: 13 | F125: 16124 | K125: 0 | L125: 111
A126: 12 | B126: 16221 | C126: 13 | D126: 16231 | E126: 24 | F126: 16244 | K126: 0 | L126: 112
A127: 12 | B127: 16345 | C127: 24 | D127: 16356 | E127: 24 | F127: 16372 | K127: 0 | L127: 122
A128: 12 | B128: 16473 | C128: 13 | D128: 16481 | E128: 24 | F128: 16493 | K128: 0 | L128: 112
A129: 12 | B129: 16598 | C129: 13 | D129: 16614 | E129: 24 | F129: 16627 | K129: 0 | L129: 112
A130: 21 | B130: 16766 | C130: 22 | D130: 16772 | E130: 24 | F130: 16782 | K130: 0 | L130: 222
A131: 12 | B131: 16883 | C131: 13 | D131: 16891 | E131: 13 | F131: 16899 | K131: 0 | L131: 111
A132: 12 | B132: 17001 | C132: 13 | D132: 17009 | E132: 24 | F132: 17021 | K132: 0 | L132: 112
A133: 12 | B133: 17119 | C133: 13 | D133: 17132 | E133: 24 | F133: 17144 | K133: 0 | L133: 112
A134: 12 | B134: 17253 | C134: 13 | D134: 17260 | E134: 24 | F134: 17274 | K134: 0 | L134: 112
A135: 12 | B135: 17382 | C135: 24 | D135: 17398 | E135: 24 | F135: 17404 | K135: 0 | L135: 122
A136: 12 | B136: 17532 | C136: 13 | D136: 17549 | E136: 13 | F136: 17557 | K136: 0 | L136: 111
A137: 12 | B137: 17670 | C137: 24 | D137: 17684 | E137: 24 | F137: 17692 | K137: 0 | L137: 122
A138: 12 | B138: 17797 | C138: 13 | D138: 17806 | E138: 13 | F138: 17813 | K138: 0 | L138: 111
A139: 12 | B139: 17917 | C139: 13 | D139: 17930 | E139: 24 | F139: 17942 | K139: 0 | L139: 112
A140: 12 | B140: 18044 | C140: 13 | D140: 18052 | E140: 13 | F140: 18060 | K140: 0 | L140: 111
A141: 12 | B141: 18170 | C141: 13 | D141: 18177 | E141: 24 | F141: 18191 | K141: 0 | L141: 112
A142: 12 | B142: 18287 | C142: 13 | D142: 18295 | E142: 13 | F142: 18303 | K142: 0 | L142: 111
A143: 12 | B143: 18438 | C143: 24 | D143: 18453 | E143: 24 | F143: 18460 | K143: 0 | L143: 122
A144: 21 | B144: 18575 | C144: 22 | D144: 18582 | E144: 24 | F144: 18588 | K144: 0 | L144: 222
A145: 12 | B145: 18696 | C145: 13 | D145: 18703 | E145: 13 | F145: 18711 | K145: 0 | L145: 111
A146: 12 | B146: 18825 | C146: 13 | D146: 18833 | E146: 13 | F146: 18841 | K146: 0 | L146: 111
A147: 12 | B147: 18975 | C147: 13 | D147: 18995 | E147: 24 | F147: 19010 | K147: 0 | L147: 112
A148: 12 | B148: 19168 | C148: 24 | D148: 19201 | E148: 24 | F148: 19209 | K148: 0 | L148: 122
A149: 12 | B149: 19316 | C149: 13 | D149: 19324 | E149: 24 | F149: 19335 | K149: 0 | L149: 112
A150: 21 | B150: 19462 | C150: 22 | D150: 19471 | E150: 24 | F150: 19485 | K150: 0 | L150: 222
A151: 21 | B151: 19623 | C151: 22 | D151: 19630 | E151: 24 | F151: 19639 | K151: 0 | L151: 222
A152: 21 | B152: 19807 | C152: 22 | D152: 19814 | E152: 24 | F152: 19822 | K152: 0 | L152: 222
A153: 21 | B153: 19943 | C153: 22 | D153: 19960 | E153: 24 | F153: 19973 | K153: 0 | L153: 222
A154: 12 | B154: 20093 | C154: 13 | D154: 20104 | E154: 24 | F154: 20116 | K154: 0 | L154: 112
A155: 12 | B155: 20246 | C155: 24 | D155: 20259 | E155: 24 | F155: 20266 | K155: 0 | L155: 122
A156: 12 | B156: 20375 | C156: 13 | D156: 20384 | E156: 24 | F156: 20405 | K156: 0 | L156: 112
A157: 12 | B157: 20533 | C157: 13 | D157: 20555 | E157: 13 | F157: 20596 | K157: 0 | L157: 111
A158: 12 | B158: 20722 | C158: 13 | D158: 20735 | E158: 13 | F158: 20743 | K158: 0 | L158: 111
A159: 12 | B159: 20888 | C159: 13 | D159: 20901 | E159: 13 | F159: 20913 | K159: 0 | L159: 111
A160: 12 | B160: 21018 | C160: 24 | D160: 21032 | E160: 13 | F160: 21048 | K160: 0 | L160: 121
A161: 12 | B161: 21169 | C161: 13 | D161: 21180 | E161: 13 | F161: 21189 | K161: 0 | L161: 111
A162: 12 | B162: 21296 | C162: 24 | D162: 21308 | E162: 13 | F162: 21322 | K162: 0 | L162: 121
A163: 12 | B163: 21470 | C163: 13 | D163: 21477 | E163: 13 | F163: 21504 | K163: 0 | L163: 111
A164: 12 | B164: 21656 | C164: 24 | D164: 21678 | E164: 13 | F164: 21703 | K164: 0 | L164: 121
A165: 12 | B165: 21901 | C165: 13 | D165: 21913 | E165: 13 | F165: 21926 | K165: 0 | L165: 111
A166: 12 | B166: 22059 | C166: 13 | D166: 22092 | E166: 24 | F166: 22131 | K166: 0 | L166: 112
A167: 12 | B167: 22276 | C167: 13 | D167: 22284 | E167: 13 | F167: 22376 | K167: 0 | L167: 111
A168: 12 | B168: 22573 | C168: 13 | D168: 22582 | E168: 13 | F168: 22619 | K168: 0 | L168: 111
A169: 12 | B169: 22730 | C169: 24 | D169: 22744 | E169: 24 | F169: 22749 | K169: 0 | L169: 122
A170: 12 | B170: 22849 | C170: 13 | D170: 22857 | E170: 13 | F170: 22890 | K170: 0 | L170: 111
A171: 12 | B171: 23014 | C171: 13 | D171: 23040 | E171: 13 | F171: 23049 | K171: 0 | L171: 111
A172: 12 | B172: 23165 | C172: 13 | D172: 23190 | E172: 13 | F172: 23198 | K172: 0 | L172: 111
A173: 12 | B173: 23358 | C173: 13 | D173: 23377 | E173: 13 | F173: 23388 | K173: 0 | L173: 111
A174: 12 | B174: 23487 | C174: 13 | D174: 23502 | E174: 13 | F174: 23509 | K174: 0 | L174: 111
A175: 12 | B175: 23683 | C175: 13 | D175: 23699 | E175: 13 | F175: 23708 | K175: 0 | L175: 111
A176: 12 | B176: 23825 | C176: 24 | D176: 23843 | E176: 24 | F176: 23851 | K176: 0 | L176: 122

Sheet !M506840.185
A1: Report for:!M506840.185
A2: Date: | B2: <date>
A3: Hen: | B3: <hen> | F3: Correct Sequence | G3: =Start!J2 -> 211 | P3: Total Sequences in Data | Q3: =4994-COUNTBLANK(L7:L5000) -> 160 | V3: Total Sequences in Block Data | W3: =COUNTA(L7:L33) -> 27 | AA3: Total Sequences in Block Data | AB3: =COUNTA(L34:L59) -> 26 | AF3: Total Sequences in Block Data | AG3: =COUNTA(L60:L86) -> 27 | AK3: Total Sequences in Block Data | AL3: =COUNTA(L87:L113) -> 27 | AP3: Total Sequences in Block Data | AQ3: =COUNTA(L114:L139) -> 26 | AU3: Total Sequences in Block Data | AV3: =COUNTA(L140:L166) -> 27
P4: Total Sequences in Summary | Q4: =SUM(O7:O14) -> 160 | V4: Total Sequences in Block Summary | W4: =SUM(U7:U14) -> 27 | AA4: Total Sequences in Block Summary | AB4: =SUM(Z7:Z14) -> 26 | AF4: Total Sequences in Block Summary | AG4: =SUM(AE7:AE14) -> 27 | AK4: Total Sequences in Block Summary | AL4: =SUM(AJ7:AJ14) -> 27 | AP4: Total Sequences in Block Summary | AQ4: =SUM(AO7:AO14) -> 26 | AU4: Total Sequences in Block Summary | AV4: =SUM(AT7:AT14) -> 27
T5: Block 1 | Y5: Block 2 | AD5: Block 3 | AI5: Block 4 | AN5: Block 5 | AS5: Block 6
A6: Sequence Component 1 | B6: Time 1 | C6: Sequence Component 2 | D6: Time 2 | E6: Sequence Component 3 | F6: Time 3 | G6: Sequence Component 4 | H6: Time 4 | I6: Sequence Component 5 | J6: Time 5 | K6: Correct? 0=No 1=Yes | L6: Sequence | N6: Frequency | P6: Relative Frequency | Q6: Variability | T6: Frequency | V6: Relative Frequency | W6: Variability | Y6: Frequency | AA6: Relative Frequency | AB6: Variability | AD6: Frequency | AF6: Relative Frequency | AG6: Variability | AI6: Frequency | AK6: Relative Frequency | AL6: Variability | AN6: Frequency | AP6: Relative Frequency | AQ6: Variability | AS6: Frequency | AU6: Relative Frequency | AV6: Variability
A7: 12 | B7: 36 | C7: 13 | D7: 48 | E7: 13 | F7: 58 | K7: 0 | L7: 111 | N7: 111 | O7: =COUNTIF($L$7:$L$500,N7) -> 101 | P7: =O7/$Q$4 -> 0.63125 | Q7: =IF(P7=0,0,(P7*((LOG(P7))/LOG(2)))) -> -0.4189711114 | T7: =N7 -> 111 | U7: =COUNTIF(L7:L33,T7) -> 23 | V7: =U7/(W4-U11) -> 0.8846153846 | W7: =IF(V7=0,0,(V7*((LOG(V7))/LOG(2)))) -> -0.1564687895 | Y7: =N7 -> 111 | Z7: =COUNTIF(L34:L59,Y7) -> 21 | AA7: =Z7/(AB4-Z11) -> 0.8076923077 | AB7: =IF(AA7=0,0,(AA7*((LOG(AA7))/LOG(2)))) -> -0.2488680078 | AD7: =N7 -> 111 | AE7: =COUNTIF(L60:L86,AD7) -> 17 | AF7: =AE7/(AG4-AE11) -> 0.6538461538 | AG7: =IF(AF7=0,0,(AF7*((LOG(AF7))/LOG(2)))) -> -0.4007925734 | AI7: =N7 -> 111 | AJ7: =COUNTIF(L87:L113,AI7) -> 12 | AK7: =AJ7/(AL4-AJ11) -> 0.4615384615 | AL7: =IF(AK7=0,0,(AK7*((LOG(AK7))/LOG(2)))) -> -0.5148356388 | AN7: =N7 -> 111 | AO7: =COUNTIF(L114:L139,AN7) -> 16 | AP7: =AO7/(AQ4-AO11) -> 0.6956521739 | AQ7: =IF(AP7=0,0,(AP7*((LOG(AP7))/LOG(2)))) -> -0.3642170129 | AS7: =N7 -> 111 | AT7: =COUNTIF(L140:L166,AS7) -> 12 | AU7: =AT7/(AV4-AT11) -> 0.5217391304 | AV7: =IF(AU7=0,0,(AU7*((LOG(AU7))/LOG(2)))) -> -0.4897040637
A8: 12 | B8: 161 | C8: 13 | D8: 169 | E8: 13 | F8: 215 | K8: 0 | L8: 111 | N8: 112 | O8: =COUNTIF($L$7:$L$500,N8) -> 11 | P8: =O8/$Q$4 -> 0.06875 | Q8: =IF(P8=0,0,(P8*((LOG(P8))/LOG(2)))) -> -0.2655466327 | T8: =N8 -> 112 | U8: =COUNTIF(L7:L33,T8) -> 1 | V8: =U8/(W4-U11) -> 0.03846153846 | W8: =IF(V8=0,0,(V8*((LOG(V8))/LOG(2)))) -> -0.180786143 | Y8: =N8 -> 112 | Z8: =COUNTIF(L34:L59,Y8) -> 0 | AA8: =Z8/(AB4-Z11) -> 0 | AB8: =IF(AA8=0,0,(AA8*((LOG(AA8))/LOG(2)))) -> 0 | AD8: =N8 -> 112 | AE8: =COUNTIF(L60:L86,AD8) -> 3 | AF8: =AE8/(AG4-AE11) -> 0.1153846154 | AG8: =IF(AF8=0,0,(AF8*((LOG(AF8))/LOG(2)))) -> -0.3594781405 | AI8: =N8 -> 112 | AJ8: =COUNTIF(L87:L113,AI8) -> 2 | AK8: =AJ8/(AL4-AJ11) -> 0.07692307692 | AL8: =IF(AK8=0,0,(AK8*((LOG(AK8))/LOG(2)))) -> -0.2846492091 | AN8: =N8 -> 112 | AO8: =COUNTIF(L114:L139,AN8) -> 1 | AP8: =AO8/(AQ4-AO11) -> 0.04347826087 | AQ8: =IF(AP8=0,0,(AP8*((LOG(AP8))/LOG(2)))) -> -0.1966766068 | AS8: =N8 -> 112 | AT8: =COUNTIF(L140:L166,AS8) -> 4 | AU8: =AT8/(AV4-AT11) -> 0.1739130435 | AV8: =IF(AU8=0,0,(AU8*((LOG(AU8))/LOG(2)))) -> -0.4388803402
A9: 12 | B9: 326 | C9: 13 | D9: 381 | E9: 13 | F9: 398 | K9: 0 | L9: 111 | N9: 121 | O9: =COUNTIF($L$7:$L$500,N9) -> 12 | P9: =O9/$Q$4 -> 0.075 | Q9: =IF(P9=0,0,(P9*((LOG(P9))/LOG(2)))) -> -0.2802724196 | T9: =N9 -> 121 | U9: =COUNTIF(L7:L33,T9) -> 0 | V9: =U9/(W4-U11) -> 0 | W9: =IF(V9=0,0,(V9*((LOG(V9))/LOG(2)))) -> 0 | Y9: =N9 -> 121 | Z9: =COUNTIF(L34:L59,Y9) -> 0 | AA9: =Z9/(AB4-Z11) -> 0 | AB9: =IF(AA9=0,0,(AA9*((LOG(AA9))/LOG(2)))) -> 0 | AD9: =N9 -> 121 | AE9: =COUNTIF(L60:L86,AD9) -> 0 | AF9: =AE9/(AG4-AE11) -> 0 | AG9: =IF(AF9=0,0,(AF9*((LOG(AF9))/LOG(2)))) -> 0 | AI9: =N9 -> 121 | AJ9: =COUNTIF(L87:L113,AI9) -> 3 | AK9: =AJ9/(AL4-AJ11) -> 0.1153846154 | AL9: =IF(AK9=0,0,(AK9*((LOG(AK9))/LOG(2)))) -> -0.3594781405 | AN9: =N9 -> 121 | AO9: =COUNTIF(L114:L139,AN9) -> 4 | AP9: =AO9/(AQ4-AO11) -> 0.1739130435 | AQ9: =IF(AP9=0,0,(AP9*((LOG(AP9))/LOG(2)))) -> -0.4388803402 | AS9: =N9 -> 121 | AT9: =COUNTIF(L140:L166,AS9) -> 5 | AU9: =AT9/(AV4-AT11) -> 0.2173913043 | AV9: =IF(AU9=0,0,(AU9*((LOG(AU9))/LOG(2)))) -> -0.4786160568
A10: 12 | B10: 556 | C10: 13 | D10: 565 | E10: 13 | F10: 582 | K10: 0 | L10: 111 | N10: 122 | O10: =COUNTIF($L$7:$L$500,N10) -> 11 | P10: =O10/$Q$4 -> 0.06875 | Q10: =IF(P10=0,0,(P10*((LOG(P10))/LOG(2)))) -> -0.2655466327 | T10: =N10 -> 122 | U10: =COUNTIF(L7:L33,T10) -> 1 | V10: =U10/(W4-U11) -> 0.03846153846 | W10: =IF(V10=0,0,(V10*((LOG(V10))/LOG(2)))) -> -0.180786143 | Y10: =N10 -> 122 | Z10: =COUNTIF(L34:L59,Y10) -> 0 | AA10: =Z10/(AB4-Z11) -> 0 | AB10: =IF(AA10=0,0,(AA10*((LOG(AA10))/LOG(2)))) -> 0 | AD10: =N10 -> 122 | AE10: =COUNTIF(L60:L86,AD10) -> 2 | AF10: =AE10/(AG4-AE11) -> 0.07692307692 | AG10: =IF(AF10=0,0,(AF10*((LOG(AF10))/LOG(2)))) -> -0.2846492091 | AI10: =N10 -> 122 | AJ10: =COUNTIF(L87:L113,AI10) -> 6 | AK10: =AJ10/(AL4-AJ11) -> 0.2307692308 | AL10: =IF(AK10=0,0,(AK10*((LOG(AK10))/LOG(2)))) -> -0.4881870502 | AN10: =N10 -> 122 | AO10: =COUNTIF(L114:L139,AN10) -> 1 | AP10: =AO10/(AQ4-AO11) -> 0.04347826087 | AQ10: =IF(AP10=0,0,(AP10*((LOG(AP10))/LOG(2)))) -> -0.1966766068 | AS10: =N10 -> 122 | AT10: =COUNTIF(L140:L166,AS10) -> 1 | AU10: =AT10/(AV4-AT11) -> 0.04347826087 | AV10: =IF(AU10=0,0,(AU10*((LOG(AU10))/LOG(2)))) -> -0.1966766068
A11: 12 | B11: 804 | C11: 13 | D11: 835 | E11: 13 | F11: 845 | K11: 0 | L11: 111 | N11: 211 | O11: =COUNTIF($L$7:$L$500,N11) -> 10 | P11: =O11/$Q$4 -> 0.0625 | Q11: =IF(P11=0,0,(P11*((LOG(P11))/LOG(2)))) -> -0.25 | T11: =N11 -> 211 | U11: =COUNTIF(L7:L33,T11) -> 1 | Y11: =N11 -> 211 | Z11: =COUNTIF(L34:L59,Y11) -> 0 | AD11: =N11 -> 211 | AE11: =COUNTIF(L60:L86,AD11) -> 1 | AI11: =N11 -> 211 | AJ11: =COUNTIF(L87:L113,AI11) -> 1 | AN11: =N11 -> 211 | AO11: =COUNTIF(L114:L139,AN11) -> 3 | AS11: =N11 -> 211 | AT11: =COUNTIF(L140:L166,AS11) -> 4
A12: 12 | B12: 1068 | C12: 13 | D12: 1083 | E12: 13 | F12: 1102 | K12: 0 | L12: 111 | N12: 212 | O12: =COUNTIF($L$7:$L$500,N12) -> 1 | P12: =O12/$Q$4 -> 0.00625 | Q12: =IF(P12=0,0,(P12*((LOG(P12))/LOG(2)))) -> -0.04576205059 | T12: =N12 -> 212 | U12: =COUNTIF(L7:L33,T12) -> 0 | V12: =U12/(W4-U11) -> 0 | W12: =IF(V12=0,0,(V12*((LOG(V12))/LOG(2)))) -> 0 | Y12: =N12 -> 212 | Z12: =COUNTIF(L34:L59,Y12) -> 0 | AA12: =Z12/(AB4-Z11) -> 0 | AB12: =IF(AA12=0,0,(AA12*((LOG(AA12))/LOG(2)))) -> 0 | AD12: =N12 -> 212 | AE12: =COUNTIF(L60:L86,AD12) -> 1 | AF12: =AE12/(AG4-AE11) -> 0.03846153846 | AG12: =IF(AF12=0,0,(AF12*((LOG(AF12))/LOG(2)))) -> -0.180786143 | AI12: =N12 -> 212 | AJ12: =COUNTIF(L87:L113,AI12) -> 0 | AK12: =AJ12/(AL4-AJ11) -> 0 | AL12: =IF(AK12=0,0,(AK12*((LOG(AK12))/LOG(2)))) -> 0 | AN12: =N12 -> 212 | AO12: =COUNTIF(L114:L139,AN12) -> 0 | AP12: =AO12/(AQ4-AO11) -> 0 | AQ12: =IF(AP12=0,0,(AP12*((LOG(AP12))/LOG(2)))) -> 0 | AS12: =N12 -> 212 | AT12: =COUNTIF(L140:L166,AS12) -> 0 | AU12: =AT12/(AV4-AT11) -> 0 | AV12: =IF(AU12=0,0,(AU12*((LOG(AU12))/LOG(2)))) -> 0
A13: 12 | B13: 1255 | C13: 13 | D13: 1324 | E13: 13 | F13: 1332 | K13: 0 | L13: 111 | N13: 221 | O13: =COUNTIF($L$7:$L$500,N13) -> 1 | P13: =O13/$Q$4 -> 0.00625 | Q13: =IF(P13=0,0,(P13*((LOG(P13))/LOG(2)))) -> -0.04576205059 | T13: =N13 -> 221 | U13: =COUNTIF(L7:L33,T13) -> 0 | V13: =U13/(W4-U11) -> 0 | W13: =IF(V13=0,0,(V13*((LOG(V13))/LOG(2)))) -> 0 | Y13: =N13 -> 221 | Z13: =COUNTIF(L34:L59,Y13) -> 0 | AA13: =Z13/(AB4-Z11) -> 0 | AB13: =IF(AA13=0,0,(AA13*((LOG(AA13))/LOG(2)))) -> 0 | AD13: =N13 -> 221 | AE13: =COUNTIF(L60:L86,AD13) -> 0 | AF13: =AE13/(AG4-AE11) -> 0 | AG13: =IF(AF13=0,0,(AF13*((LOG(AF13))/LOG(2)))) -> 0 | AI13: =N13 -> 221 | AJ13: =COUNTIF(L87:L113,AI13) -> 1 | AK13: =AJ13/(AL4-AJ11) -> 0.03846153846 | AL13: =IF(AK13=0,0,(AK13*((LOG(AK13))/LOG(2)))) -> -0.180786143 | AN13: =N13 -> 221 | AO13: =COUNTIF(L114:L139,AN13) -> 0 | AP13: =AO13/(AQ4-AO11) -> 0 | AQ13: =IF(AP13=0,0,(AP13*((LOG(AP13))/LOG(2)))) -> 0 | AS13: =N13 -> 221 | AT13: =COUNTIF(L140:L166,AS13) -> 0 | AU13: =AT13/(AV4-AT11) -> 0 | AV13: =IF(AU13=0,0,(AU13*((LOG(AU13))/LOG(2)))) -> 0
A14: 12 | B14: 1447 | C14: 13 | D14: 1494 | E14: 13 | F14: 1508 | K14: 0 | L14: 111 | N14: 222 | O14: =COUNTIF($L$7:$L$500,N14) -> 13 | P14: =O14/$Q$4 -> 0.08125 | Q14: =IF(P14=0,0,(P14*((LOG(P14))/LOG(2)))) -> -0.2942459306 | T14: =N14 -> 222 | U14: =COUNTIF(L7:L33,T14) -> 1 | V14: =U14/(W4-U11) -> 0.03846153846 | W14: =IF(V14=0,0,(V14*((LOG(V14))/LOG(2)))) -> -0.180786143 | Y14: =N14 -> 222 | Z14: =COUNTIF(L34:L59,Y14) -> 5 | AA14: =Z14/(AB4-Z11) -> 0.1923076923 | AB14: =IF(AA14=0,0,(AA14*((LOG(AA14))/LOG(2)))) -> -0.4574060814 | AD14: =N14 -> 222 | AE14: =COUNTIF(L60:L86,AD14) -> 3 | AF14: =AE14/(AG4-AE11) -> 0.1153846154 | AG14: =IF(AF14=0,0,(AF14*((LOG(AF14))/LOG(2)))) -> -0.3594781405 | AI14: =N14 -> 222 | AJ14: =COUNTIF(L87:L113,AI14) -> 2 | AK14: =AJ14/(AL4-AJ11) -> 0.07692307692 | AL14: =IF(AK14=0,0,(AK14*((LOG(AK14))/LOG(2)))) -> -0.2846492091 | AN14: =N14 -> 222 | AO14: =COUNTIF(L114:L139,AN14) -> 1 | AP14: =AO14/(AQ4-AO11) -> 0.04347826087 | AQ14: =IF(AP14=0,0,(AP14*((LOG(AP14))/LOG(2)))) -> -0.1966766068 | AS14: =N14 -> 222 | AT14: =COUNTIF(L140:L166,AS14) -> 1 | AU14: =AT14/(AV4-AT11) -> 0.04347826087 | AV14: =IF(AU14=0,0,(AU14*((LOG(AU14))/LOG(2)))) -> -0.1966766068
A15: 12 | B15: 1618 | C15: 13 | D15: 1640 | E15: 13 | F15: 1686 | K15: 0 | L15: 111 | P15: =SUM(P7:P14) -> 1 | Q15: =-SUM(Q7:Q14) -> 1.866106828 | V15: =SUM(V7:V14) -> 1 | W15: =-SUM(W7:W14) -> 0.6988272186 | AA15: =SUM(AA7:AA14) -> 1 | AB15: =-SUM(AB7:AB14) -> 0.7062740892 | AF15: =SUM(AF7:AF14) -> 1 | AG15: =-SUM(AG7:AG14) -> 1.585184206 | AK15: =SUM(AK7:AK14) -> 1 | AL15: =-SUM(AL7:AL14) -> 2.112585391 | AP15: =SUM(AP7:AP14) -> 1 | AQ15: =-SUM(AQ7:AQ14) -> 1.393127173 | AU15: =SUM(AU7:AU14) -> 1 | AV15: =-SUM(AV7:AV14) -> 1.800553674
A16: 12 | B16: 1882 | C16: 13 | D16: 1891 | E16: 13 | F16: 1900 | K16: 0 | L16: 111 | P16: U= | Q16: =Q15/(LOG(Q4)/LOG(2)) -> 0.254865495 | V16: U1= | W16: =W15/(LOG(W4)/LOG(2)) -> 0.1469702949 | AA16: U2= | AB16: =AB15/(LOG(AB4)/LOG(2)) -> 0.1502570252 | AF16: U3= | AG16: =AG15/(LOG(AG4)/LOG(2)) -> 0.3333799602 | AK16: U4= | AL16: =AL15/(LOG(AL4)/LOG(2)) -> 0.44429766 | AP16: U5= | AQ16: =AQ15/(LOG(AQ4)/LOG(2)) -> 0.2963823082 | AU16: U6= | AV16: =AV15/(LOG(AV4)/LOG(2)) -> 0.3786742953
A17: 21 | B17: 2151 | C17: 11 | D17: 2193 | E17: 11 | F17: 2203 | K17: 0 | L17: 211
A18: 12 | B18: 2317 | C18: 13 | D18: 2327 | E18: 13 | F18: 2334 | K18: 0 | L18: 111
A19: 12 | B19: 2433 | C19: 24 | D19: 2463 | E19: 24 | F19: 2472 | K19: 0 | L19: 122 | N19: Total Target Seq
A20: 21 | B20: 2579 | C20: 22 | D20: 2613 | E20: 24 | F20: 2626 | K20: 0 | L20: 222 | N20: =COUNTIF(L7:L166,G3) -> 10 | P20: 27 | Q20: 26 | R20: 27 | S20: 27 | T20: 26 | U20: 27
A21: 12 | B21: 2727 | C21: 13 | D21: 2737 | E21: 24 | F21: 2769 | K21: 0 | L21: 112 | P21: % of reinforcement given in 6 equal intervals based on number of trials
A22: 12 | B22: 2883 | C22: 13 | D22: 2894 | E22: 13 | F22: 2908 | K22: 0 | L22: 111 | P22: %_1 | Q22: %_2 | R22: %_3 | S22: %_4 | T22: %_5 | U22: %_6
A23: 12 | B23: 3013 | C23: 13 | D23: 3031 | E23: 13 | F23: 3042 | K23: 0 | L23: 111 | O23: target sequence | P23: =$G$3 -> 211 | Q23: =$G$3 -> 211 | R23: =$G$3 -> 211 | S23: =$G$3 -> 211 | T23: =$G$3 -> 211 | U23: =$G$3 -> 211
A24: 12 | B24: 3140 | C24: 13 | D24: 3147 | E24: 13 | F24: 3155 | K24: 0 | L24: 111 | O24: total reinforcement | P24: =U11 -> 1 | Q24: =Z11 -> 0 | R24: =AE11 -> 1 | S24: =AJ11 -> 1 | T24: =AO11 -> 3 | U24: =AT11 -> 4
A25: 12 | B25: 3259 | C25: 13 | D25: 3268 | E25: 13 | F25: 3278 | K25: 0 | L25: 111 | O25: % target
A26: 12 | B26: 3410 | C26: 13 | D26: 3435 | E26: 13 | F26: 3443 | K26: 0 | L26: 111 | O26: CCRF
A27: 12 | B27: 3548 | C27: 13 | D27: 3582 | E27: 13 | F27: 3591 | K27: 0 | L27: 111 | O27: % CCRf
A28: 12 | B28: 3691 | C28: 13 | D28: 3700 | E28: 13 | F28: 3709 | K28: 0 | L28: 111 | O28: average response rate | P28: =F33/P20 -> 163.3703704 | Q28: =(F59-F33)/Q20 -> 156.7307692 | R28: =(F86-F59)/R20 -> 162.5555556 | S28: =(F113-F86)/S20 -> 138.5925926 | T28: =(F139-F113)/T20 -> 143.1923077 | U28: =(F166-F139)/U20 -> 134.7037037
A29: 12 | B29: 3831 | C29: 13 | D29: 3839 | E29: 13 | F29: 3849 | K29: 0 | L29: 111
A30: 12 | B30: 3971 | C30: 13 | D30: 3984 | E30: 13 | F30: 4003 | K30: 0 | L30: 111
A31: 12 | B31: 4132 | C31: 13 | D31: 4142 | E31: 13 | F31: 4153 | K31: 0 | L31: 111
A32: 12 | B32: 4253 | C32: 13 | D32: 4262 | E32: 13 | F32: 4270 | K32: 0 | L32: 111
A33: 12 | B33: 4396 | C33: 13 | D33: 4404 | E33: 13 | F33: 4411 | K33: 0 | L33: 111
A34: 12 | B34: 4510 | C34: 13 | D34: 4517 | E34: 13 | F34: 4525 | K34: 0 | L34: 111
A35: 12 | B35: 4635 | C35: 13 | D35: 4667 | E35: 13 | F35: 4677 | K35: 0 | L35: 111
A36: 12 | B36: 4782 | C36: 13 | D36: 4792 | E36: 13 | F36: 4800 | K36: 0 | L36: 111
A37: 12 | B37: 4925 | C37: 13 | D37: 4939 | E37: 13 | F37: 4952 | K37: 0 | L37: 111
A38: 12 | B38: 5049 | C38: 13 | D38: 5057 | E38: 13 | F38: 5066 | K38: 0 | L38: 111
A39: 12 | B39: 5184 | C39: 13 | D39: 5193 | E39: 13 | F39: 5205 | K39: 0 | L39: 111
A40: 12 | B40: 5311 | C40: 13 | D40: 5320 | E40: 13 | F40: 5327 | K40: 0 | L40: 111
A41: 12 | B41: 5517 | C41: 13 | D41: 5543 | E41: 13 | F41: 5552 | K41: 0 | L41: 111
A42: 12 | B42: 5650 | C42: 13 | D42: 5658 | E42: 13 | F42: 5680 | K42: 0 | L42: 111
A43: 12 | B43: 5778 | C43: 13 | D43: 5787 | E43: 13 | F43: 5798 | K43: 0 | L43: 111
A44: 12 | B44: 5921 | C44: 13 | D44: 5930 | E44: 13 | F44: 5982 | K44: 0 | L44: 111
A45: 21 | B45: 6103 | C45: 22 | D45: 6170 | E45: 24 | F45: 6188 | K45: 0 | L45: 222
A46: 12 | B46: 6396 | C46: 13 | D46: 6412 | E46: 13 | F46: 6420 | K46: 0 | L46: 111
A47: 21 | B47: 6563 | C47: 22 | D47: 6575 | E47: 24 | F47: 6594 | K47: 0 | L47: 222
A48: 21 | B48: 6729 | C48: 22 | D48: 6737 | E48: 24 | F48: 6745 | K48: 0 | L48: 222
A49: 12 | B49: 6884 | C49: 13 | D49: 6893 | E49: 13 | F49: 6904 | K49: 0 | L49: 111
A50: 12 | B50: 7023 | C50: 13 | D50: 7041 | E50: 13 | F50: 7048 | K50: 0 | L50: 111
A51: 21 | B51: 7157 | C51: 22 | D51: 7166 | E51: 24 | F51: 7186 | K51: 0 | L51: 222
A52: 12 | B52: 7285 | C52: 13 | D52: 7315 | E52: 13 | F52: 7327 | K52: 0 | L52: 111
A53: 12 | B53: 7465 | C53: 13 | D53: 7472 | E53: 13 | F53: 7480 | K53: 0 | L53: 111
A54: 12 | B54: 7594 | C54: 13 | D54: 7601 | E54: 13 | F54: 7640 | K54: 0 | L54: 111
A55: 12 | B55: 7799 | C55: 13 | D55: 7807 | E55: 13 | F55: 7817 | K55: 0 | L55: 111
A56: 12 | B56: 7947 | C56: 13 | D56: 7955 | E56: 13 | F56: 7963 | K56: 0 | L56: 111
A57: 21 | B57: 8123 | C57: 22 | D57: 8135 | E57: 24 | F57: 8145 | K57: 0 | L57: 222
A58: 12 | B58: 8295 | C58: 13 | D58: 8305 | E58: 13 | F58: 8316 | K58: 0 | L58: 111
A59: 12 | B59: 8458 | C59: 13 | D59: 8476 | E59: 13 | F59: 8486 | K59: 0 | L59: 111
A60: 12 | B60: 8660 | C60: 13 | D60: 8668 | E60: 13 | F60: 8677 | K60: 0 | L60: 111
A61: 12 | B61: 8858 | C61: 13 | D61: 8867 | E61: 13 | F61: 8877 | K61: 0 | L61: 111
A62: 21 | B62: 9032 | C62: 11 | D62: 9064 | E62: 22 | F62: 9092 | K62: 0 | L62: 212
A63: 12 | B63: 9199 | C63: 13 | D63: 9216 | E63: 13 | F63: 9251 | K63: 0 | L63: 111
A64: 12 | B64: 9351 | C64: 13 | D64: 9359 | E64: 24 | F64: 9373 | K64: 0 | L64: 112
A65: 12 | B65: 9511 | C65: 13 | D65: 9518 | E65: 13 | F65: 9528 | K65: 0 | L65: 111
A66: 12 | B66: 9632 | C66: 13 | D66: 9640 | E66: 13 | F66: 9663 | K66: 0 | L66: 111
A67: 21 | B67: 9781 | C67: 22 | D67: 9839 | E67: 24 | F67: 9858 | K67: 0 | L67: 222
A68: 12 | B68: 9980 | C68: 13 | D68: 9990 | E68: 13 | F68: 10027 | K68: 0 | L68: 111
A69: 12 | B69: 10122 | C69: 24 | D69: 10142 | E69: 24 | F69: 10149 | K69: 0 | L69: 122
A70: 12 | B70: 10300 | C70: 13 | D70: 10314 | E70: 13 | F70: 10327 | K70: 0 | L70: 111
A71: 12 | B71: 10442 | C71: 13 | D71: 10452 | E71: 13 | F71: 10460 | K71: 0 | L71: 111
A72: 12 | B72: 10574 | C72: 13 | D72: 10612 | E72: 13 | F72: 10621 | K72: 0 | L72: 111
A73: 21 | B73: 10741 | C73: 22 | D73: 10765 | E73: 24 | F73: 10772 | K73: 0 | L73: 222
A74: 12 | B74: 10910 | C74: 13 | D74: 10922 | E74: 13 | F74: 10941 | K74: 0 | L74: 111
A75: 12 | B75: 11047 | C75: 13 | D75: 11055 | E75: 13 | F75: 11073 | K75: 0 | L75: 111
A76: 12 | B76: 11233 | C76: 13 | D76: 11245 | E76: 24 | F76: 11259 | K76: 0 | L76: 112
A77: 12 | B77: 11410 | C77: 13 | D77: 11419 | E77: 13 | F77: 11433 | K77: 0 | L77: 111
A78: 12 | B78: 11557 | C78: 13 | D78: 11566 | E78: 13 | F78: 11575 | K78: 0 | L78: 111
A79: 12 | B79: 11700 | C79: 13 | D79: 11709 | E79: 24 | F79: 11729 | K79: 0 | L79: 112
A80: 12 | B80: 11854 | C80: 24 | D80: 11872 | E80: 24 | F80: 11879 | K80: 0 | L80: 122
A81: 12 | B81: 12132 | C81: 13 | D81: 12145 | E81: 13 | F81: 12168 | K81: 0 | L81: 111
A82: 21 | B82: 12298 | C82: 11 | D82: 12317 | E82: 11 | F82: 12335 | K82: 0 | L82: 211
A83: 21 | B83: 12461 | C83: 22 | D83: 12486 | E83: 24 | F83: 12493 | K83: 0 | L83: 222
A84: 12 | B84: 12606 | C84: 13 | D84: 12615 | E84: 13 | F84: 12624 | K84: 0 | L84: 111
A85: 12 | B85: 12741 | C85: 13 | D85: 12750 | E85: 13 | F85: 12759 | K85: 0 | L85: 111
A86: 12 | B86: 12857 | C86: 13 | D86: 12865 | E86: 13 | F86: 12875 | K86: 0 | L86: 111
A87: 12 | B87: 12977 | C87: 13 | D87: 12985 | E87: 24 | F87: 13005 | K87: 0 | L87: 112
A88: 12 | B88: 13109 | C88: 24 | D88: 13123 | E88: 24 | F88: 13135 | K88: 0 | L88: 122
A89: 21 | B89: 13248 | C89: 22 | D89: 13258 | E89: 24 | F89: 13265 | K89: 0 | L89: 222
A90: 21 | B90: 13368 | C90: 22 | D90: 13373 | E90: 24 | F90: 13381 | K90: 0 | L90: 222
A91: 12 | B91: 13499 | C91: 13 | D91: 13509 | E91: 13 | F91: 13528 | K91: 0 | L91: 111
A92: 21 | B92: 13642 | C92: 22 | D92: 13659 | E92: 13 | F92: 13690 | K92: 0 | L92: 221
A93: 12 | B93: 13810 | C93: 24 | D93: 13827 | E93: 24 | F93: 13838 | K93: 0 | L93: 122
A94: 12 | B94: 13944 | C94: 13 | D94: 13955 | E94: 24 | F94: 13973 | K94: 0 | L94: 112
A95: 12 | B95: 14072 | C95: 24 | D95: 14085 | E95: 24 | F95: 14090 | K95: 0 | L95: 122
A96: 12 | B96: 14193 | C96: 24 | D96: 14205 | E96: 24 | F96: 14213 | K96: 0 | L96: 122
A97: 12 | B97: 14313 | C97: 13 | D97: 14322 | E97: 13 | F97: 14339 | K97: 0 | L97: 111
A98: 12 | B98: 14438 | C98: 24 | D98: 14457 | E98: 24 | F98: 14519 | K98: 0 | L98: 122
A99: 12 | B99: 14620 | C99: 13 | D99: 14629 | E99: 13 | F99: 14643 | K99: 0 | L99: 111
A100: 12 | B100: 14746 | C100: 24 | D100: 14762 | E100: 13 | F100: 14795 | K100: 0 | L100: 121
A101: 12 | B101: 14894 | C101: 13 | D101: 14921 | E101: 13 | F101: 14930 | K101: 0 | L101: 111
A102: 12 | B102: 15095 | C102: 13 | D102: 15108 | E102: 13 | F102: 15117 | K102: 0 | L102: 111
A103: 12 | B103: 15224 | C103: 13 | D103: 15233 | E103: 13 | F103: 15242 | K103: 0 | L103: 111
A104: 12 | B104: 15349 | C104: 13 | D104: 15393 | E104: 13 | F104: 15414 | K104: 0 | L104: 111
A105: 21 | B105: 15529 | C105: 11 | D105: 15573 | E105: 11 | F105: 15582 | K105: 0 | L105: 211
A106: 12 | B106: 15678 | C106: 24 | D106: 15696 | E106: 13 | F106: 15718 | K106: 0 | L106: 121
A107: 12 | B107: 15820 | C107: 13 | D107: 15822 | E107: 13 | F107: 15836 | K107: 0 | L107: 111
A108: 12 | B108: 15938 | C108: 13 | D108: 15949 | E108: 13 | F108: 15957 | K108: 0 | L108: 111
A109: 12 | B109: 16072 | C109: 13 | D109: 16091 | E109: 13 | F109: 16099 | K109: 0 | L109: 111
A110: 12 | B110: 16201 | C110: 13 | D110: 16209 | E110: 13 | F110: 16218 | K110: 0 | L110: 111
A111: 12 | B111: 16327 | C111: 13 | D111: 16335 | E111: 13 | F111: 16341 | K111: 0 | L111: 111
A112: 12 | B112: 16440 | C112: 24 | D112: 16461 | E112: 13 | F112: 16483 | K112: 0 | L112: 121
A113: 12 | B113: 16590 | C113: 24 | D113: 16607 | E113: 24 | F113: 16617 | K113: 0 | L113: 122
A114: 12 | B114: 16748 | C114: 13 | D114: 16756 | E114: 13 | F114: 16765 | K114: 0 | L114: 111
A115: 12 | B115: 16870 | C115: 13 | D115: 16890 | E115: 24 | F115: 16908 | K115: 0 | L115: 112
A116: 12 | B116: 17014 | C116: 13 | D116: 17053 | E116: 13 | F116: 17062 | K116: 0 | L116: 111
A117: 12 | B117: 17172 | C117: 24 | D117: 17185 | E117: 24 | F117: 17191 | K117: 0 | L117: 122
A118: 12 | B118: 17477 | C118: 13 | D118: 17489 | E118: 13 | F118: 17501 | K118: 0 | L118: 111
A119: 12 | B119: 17616 | C119: 13 | D119: 17625 | E119: 13 | F119: 17644 | K119: 0 | L119: 111
A120: 21 | B120: 17772 | C120: 11 | D120: 17791 | E120: 11 | F120: 17800 | K120: 0 | L120: 211
A121: 12 | B121: 17924 | C121: 13 | D121: 17934 | E121: 13 | F121: 17946 | K121: 0 | L121: 111
A122: 12 | B122: 18059 | C122: 13 | D122: 18067 | E122: 13 | F122: 18081 | K122: 0 | L122: 111
A123: 12 | B123: 18187 | C123: 24 | D123: 18200 | E123: 13 | F123: 18228 | K123: 0 | L123: 121
A124: 12 | B124: 18331 | C124: 13 | D124: 18357 | E124: 13 | F124: 18365 | K124: 0 | L124: 111
A125: 21 | B125: 18464 | C125: 22 | D125: 18476 | E125: 24 | F125: 18481 | K125: 0 | L125: 222
A126: 21 | B126: 18579 | C126: 11 | D126: 18598 | E126: 11 | F126: 18611 | K126: 0 | L126: 211
A127: 12 | B127: 18715 | C127: 24 | D127: 18729 | E127: 13 | F127: 18746 | K127: 0 | L127: 121
A128: 12 | B128: 18845 | C128: 13 | D128: 18855 | E128: 13 | F128: 18864 | K128: 0 | L128: 111
A129: 12 | B129: 18964 | C129: 13 | D129: 18973 | E129: 13 | F129: 18985 | K129: 0 | L129: 111
A130: 12 | B130: 19083 | C130: 13 | D130: 19090 | E130: 13 | F130: 19100 | K130: 0 | L130: 111
A131: 12 | B131: 19197 | C131: 13 | D131: 19209 | E131: 13 | F131: 19211 | K131: 0 | L131: 111
A132: 12 | B132: 19311 | C132: 13 | D132: 19318 | E132: 13 | F132: 19327 | K132: 0 | L132: 111
A133: 12 | B133: 19445 | C133: 13 | D133: 19474 | E133: 13 | F133: 19487 | K133: 0 | L133: 111
A134: 12 | B134: 19594 | C134: 13 | D134: 19620 | E134: 13 | F134: 19637 | K134: 0 | L134: 111
A135: 12 | B135: 19736 | C135: 13 | D135: 19745 | E135: 13 | F135: 19783 | K135: 0 | L135: 111
A136: 21 | B136: 19886 | C136: 11 | D136: 19913 | E136: 11 | F136: 19936 | K136: 0 | L136: 211
A137: 12 | B137: 20037 | C137: 13 | D137: 20047 | E137: 13 | F137: 20055 | K137: 0 | L137: 111
A138: 12 | B138: 20155 | C138: 24 | D138: 20186 | E138: 13 | F138: 20206 | K138: 0 | L138: 121
A139: 12 | B139: 20308 | C139: 24 | D139: 20321 | E139: 13 | F139: 20340 | K139: 0 | L139: 121
A140: 12 | B140: 20443 | C140: 13 | D140: 20457 | E140: 13 | F140: 20465 | K140: 0 | L140: 111
A141: 12 | B141: 20570 | C141: 13 | D141: 20588 | E141: 24 | F141: 20602 | K141: 0 | L141: 112
A142: 12 | B142: 20712 | C142: 13 | D142: 20720 | E142: 24 | F142: 20734 | K142: 0 | L142: 112
A143: 21 | B143: 20831 | C143: 22 | D143: 20845 | E143: 24 | F143: 20852 | K143: 0 | L143: 222
A144: 12 | B144: 20953 | C144: 13 | D144: 20960 | E144: 13 | F144: 20981 | K144: 0 | L144: 111
A145: 12 | B145: 21084 | C145: 13 | D145: 21095 | E145: 24 | F145: 21111 | K145: 0 | L145: 112
A146: 12 | B146: 21231 | C146: 24 | D146: 21245 | E146: 24 | F146: 21252 | K146: 0 | L146: 122
A147: 21 | B147: 21370 | C147: 11 | D147: 21390 | E147: 11 | F147: 21400 | K147: 0 | L147: 211
A148: 21 | B148: 21516 | C148: 11 | D148: 21551 | E148: 11 | F148: 21570 | K148: 0 | L148: 211
A149: 12 | B149: 21674 | C149: 13 | D149: 21688 | E149: 13 | F149: 21697 | K149: 0 | L149: 111
A150: 12 | B150: 21803 | C150: 13 | D150: 21828 | E150: 13 | F150: 21837 | K150: 0 | L150: 111
A151: 12 | B151: 21935 | C151: 13 | D151: 21944 | E151: 13 | F151: 21957 | K151: 0 | L151: 111
A152: 12 | B152: 22064 | C152: 13 | D152: 22072 | E152: 13 | F152: 22081 | K152: 0 | L152: 111
A153: 12 | B153: 22190 | C153: 13 | D153: 22200 | E153: 24 | F153: 22212 | K153: 0 | L153: 112
A154: 12 | B154: 22319 | C154: 24 | D154: 22329 | E154: 13 | F154: 22347 | K154: 0 | L154: 121
A155: 21 | B155: 22454 | C155: 11 | D155: 22476 | E155: 11 | F155: 22484 | K155: 0 | L155: 211
A156: 12 | B156: 22596 | C156: 24 | D156: 22606 | E156: 13 | F156: 22626 | K156: 0 | L156: 121
A157: 21 | B157: 22737 | C157: 11 | D157: 22753 | E157: 11 | F157: 22781 | K157: 0 | L157: 211
A158: 12 | B158: 22888 | C158: 24 | D158: 22903 | E158: 13 | F158: 22923 | K158: 0 | L158: 121
A159: 12 | B159: 23035 | C159: 13 | D159: 23044 | E159: 13 | F159: 23056 | K159: 0 | L159: 111
A160: 12 | B160: 23158 | C160: 13 | D160: 23166 | E160: 13 | F160: 23175 | K160: 0 | L160: 111
A161: 12 | B161: 23272 | C161: 13 | D161: 23285 | E161: 13 | F161: 23294 | K161: 0 | L161: 111
A162: 12 | B162: 23411 | C162: 13 | D162: 23420 | E162: 13 | F162: 23430 | K162: 0 | L162: 111
A163: 12 | B163: 23530 | C163: 24 | D163: 23541 | E163: 13 | F163: 23559 | K163: 0 | L163: 121
A164: 12 | B164: 23672 | C164: 24 | D164: 23685 | E164: 13 | F164: 23707 | K164: 0 | L164: 121
A165: 12 | B165: 23808 | C165: 13 | D165: 23817 | E165: 13 | F165: 23826 | K165: 0 | L165: 111
A166: 12 | B166: 23943 | C166: 13 | D166: 23969 | E166: 13 | F166: 23977 | L166: 111

Sheet !M507A00.185
A1: Report for:!M507A00.185
A2: Date: | B2: <date>
A3: Hen: | B3: <hen> | F3: Correct Sequence | G3: =Start!J2 -> 211 | P3: Total Sequences in Data | Q3: =4994-COUNTBLANK(L7:L5000) -> 100 | V3: Total Sequences in Block Data | W3: =COUNTA(L7:L23) -> 17 | AA3: Total Sequences in Block Data | AB3: =COUNTA(L24:L39) -> 16 | AF3: Total Sequences in Block Data | AG3: =COUNTA(L40:L56) -> 17 | AK3: Total Sequences in Block Data | AL3: =COUNTA(L57:L73) -> 17 | AP3: Total Sequences in Block Data | AQ3: =COUNTA(L74:L89) -> 16 | AU3: Total Sequences in Block Data | AV3: =COUNTA(L90:L106) -> 17
P4: Total Sequences in Summary | Q4: =SUM(O7:O14) -> 100 | V4: Total Sequences in Block Summary | W4: =SUM(U7:U14) -> 17 | AA4: Total Sequences in Block Summary | AB4: =SUM(Z7:Z14) -> 16 | AF4: Total Sequences in Block Summary | AG4: =SUM(AE7:AE14) -> 17 | AK4: Total Sequences in Block Summary | AL4: =SUM(AJ7:AJ14) -> 17 | AP4: Total Sequences in Block Summary | AQ4: =SUM(AO7:AO14) -> 16 | AU4: Total Sequences in Block Summary | AV4: =SUM(AT7:AT14) -> 17
T5: Block 1 | Y5: Block 2 | AD5: Block 3 | AI5: Block 4 | AN5: Block 5 | AS5: Block 6
A6: Sequence Component 1 | B6: Time 1 | C6: Sequence Component 2 | D6: Time 2 | E6: Sequence Component 3 | F6: Time 3 | G6: Sequence Component 4 | H6: Time 4 | I6: Sequence Component 5 | J6: Time 5 | K6: Correct? 0=No 1=Yes | L6: Sequence | N6: Frequency | P6: Relative Frequency | Q6: Variability | T6: Frequency | V6: Relative Frequency | W6: Variability | Y6: Frequency | AA6: Relative Frequency | AB6: Variability | AD6: Frequency | AF6: Relative Frequency | AG6: Variability | AI6: Frequency | AK6: Relative Frequency | AL6: Variability | AN6: Frequency | AP6: Relative Frequency | AQ6: Variability | AS6: Frequency | AU6: Relative Frequency | AV6: Variability
A7: 12 | B7: 26 | C7: 13 | D7: 36 | E7: 13 | F7: 45 | K7: 0 | L7: 111 | N7: 111 | O7: =COUNTIF($L$7:$L$500,N7) -> 29 | P7: =O7/$Q$4 -> 0.29 | Q7: =IF(P7=0,0,(P7*((LOG(P7))/LOG(2)))) -> -0.5179038064 | T7: =N7 -> 111 | U7: =COUNTIF(L7:L23,T7) -> 12 | V7: =U7/(W4-U11) -> 0.8 | W7: =IF(V7=0,0,(V7*((LOG(V7))/LOG(2)))) -> -0.2575424759 | Y7: =N7 -> 111 | Z7: =COUNTIF(L24:L39,Y7) -> 3 | AA7: =Z7/(AB4-Z11) -> 0.2727272727 | AB7: =IF(AA7=0,0,(AA7*((LOG(AA7))/LOG(2)))) -> -0.5112188503 | AD7: =N7 -> 111 | AE7: =COUNTIF(L40:L56,AD7) -> 3 | AF7: =AE7/(AG4-AE11) -> 0.25 | AG7: =IF(AF7=0,0,(AF7*((LOG(AF7))/LOG(2)))) -> -0.5 | AI7: =N7 -> 111 | AJ7: =COUNTIF(L57:L73,AI7) -> 5 | AK7: =AJ7/(AL4-AJ11) -> 0.5555555556 | AL7: =IF(AK7=0,0,(AK7*((LOG(AK7))/LOG(2)))) -> -0.4711093925 | AN7: =N7 -> 111 | AO7: =COUNTIF(L74:L89,AN7) -> 3 | AP7: =AO7/(AQ4-AO11) -> 0.375 | AQ7: =IF(AP7=0,0,(AP7*((LOG(AP7))/LOG(2)))) -> -0.5306390622 | AS7: =N7 -> 111 | AT7: =COUNTIF(L90:L106,AS7) -> 3 | AU7: =AT7/(AV4-AT11) -> 0.4285714286 | AV7: =IF(AU7=0,0,(AU7*((LOG(AU7))/LOG(2)))) -> -0.5238824663
A8: 12 | B8: 145 | C8: 13 | D8: 154 | E8: 13 | F8: 162 | K8: 0 | L8: 111 | N8: 112 | O8: =COUNTIF($L$7:$L$500,N8) -> 2 | P8: =O8/$Q$4 -> 0.02 | Q8: =IF(P8=0,0,(P8*((LOG(P8))/LOG(2)))) -> -0.1128771238 | T8: =N8 -> 112 | U8: =COUNTIF(L7:L23,T8) -> 0 | V8: =U8/(W4-U11) -> 0 | W8: =IF(V8=0,0,(V8*((LOG(V8))/LOG(2)))) -> 0 | Y8: =N8 -> 112 | Z8: =COUNTIF(L24:L39,Y8) -> 2 | AA8: =Z8/(AB4-Z11) -> 0.1818181818 | AB8: =IF(AA8=0,0,(AA8*((LOG(AA8))/LOG(2)))) -> -0.4471693852 | AD8: =N8 -> 112 | AE8: =COUNTIF(L40:L56,AD8) -> 0 | AF8: =AE8/(AG4-AE11) -> 0 | AG8: =IF(AF8=0,0,(AF8*((LOG(AF8))/LOG(2)))) -> 0 | AI8: =N8 -> 112 | AJ8: =COUNTIF(L57:L73,AI8) -> 0 | AK8: =AJ8/(AL4-AJ11) -> 0 | AL8: =IF(AK8=0,0,(AK8*((LOG(AK8))/LOG(2)))) -> 0 | AN8: =N8 -> 112 | AO8: =COUNTIF(L74:L89,AN8) -> 0 | AP8: =AO8/(AQ4-AO11) -> 0 | AQ8: =IF(AP8=0,0,(AP8*((LOG(AP8))/LOG(2)))) -> 0 | AS8: =N8 -> 112 | AT8: =COUNTIF(L90:L106,AS8) -> 0 | AU8: =AT8/(AV4-AT11) -> 0 | AV8: =IF(AU8=0,0,(AU8*((LOG(AU8))/LOG(2)))) -> 0
A9: 12 | B9: 259 | C9: 13 | D9: 267 | E9: 13 | F9: 291 | K9: 0 | L9: 111 | N9: 121 | O9: =COUNTIF($L$7:$L$500,N9) -> 21 | P9: =O9/$Q$4 -> 0.21 | Q9: =IF(P9=0,0,(P9*((LOG(P9))/LOG(2)))) -> -0.4728231411 | T9: =N9 -> 121 | U9: =COUNTIF(L7:L23,T9) -> 3 | V9: =U9/(W4-U11) -> 0.2 | W9: =IF(V9=0,0,(V9*((LOG(V9))/LOG(2)))) -> -0.464385619 | Y9: =N9 -> 121 | Z9: =COUNTIF(L24:L39,Y9) -> 3 | AA9: =Z9/(AB4-Z11) -> 0.2727272727 | AB9: =IF(AA9=0,0,(AA9*((LOG(AA9))/LOG(2)))) -> -0.5112188503 | AD9: =N9 -> 121 | AE9: =COUNTIF(L40:L56,AD9) -> 5 | AF9: =AE9/(AG4-AE11) -> 0.4166666667 | AG9: =IF(AF9=0,0,(AF9*((LOG(AF9))/LOG(2)))) -> -0.5262643358 | AI9: =N9 -> 121 | AJ9: =COUNTIF(L57:L73,AI9) -> 3 | AK9: =AJ9/(AL4-AJ11) -> 0.3333333333 | AL9: =IF(AK9=0,0,(AK9*((LOG(AK9))/LOG(2)))) -> -0.5283208336 | AN9: =N9 -> 121 | AO9: =COUNTIF(L74:L89,AN9) -> 3 | AP9: =AO9/(AQ4-AO11) -> 0.375 | AQ9: =IF(AP9=0,0,(AP9*((LOG(AP9))/LOG(2)))) -> -0.5306390622 | AS9: =N9 -> 121 | AT9: =COUNTIF(L90:L106,AS9) -> 4 | AU9: =AT9/(AV4-AT11) -> 0.5714285714 | AV9: =IF(AU9=0,0,(AU9*((LOG(AU9))/LOG(2)))) -> -0.4613456697
A10: 12 | B10: 390 | C10: 13 | D10: 399 | E10: 13 | F10: 407 | K10: 0 | L10: 111 | N10: 122 | O10: =COUNTIF($L$7:$L$500,N10) -> 2 | P10: =O10/$Q$4 -> 0.02 | Q10: =IF(P10=0,0,(P10*((LOG(P10))/LOG(2)))) -> -0.1128771238 | T10: =N10 -> 122 | U10: =COUNTIF(L7:L23,T10) -> 0 | V10: =U10/(W4-U11) -> 0 | W10: =IF(V10=0,0,(V10*((LOG(V10))/LOG(2)))) -> 0 | Y10: =N10 -> 122 | Z10: =COUNTIF(L24:L39,Y10) -> 0 | AA10: =Z10/(AB4-Z11) -> 0 | AB10: =IF(AA10=0,0,(AA10*((LOG(AA10))/LOG(2)))) -> 0 | AD10: =N10 -> 122 | AE10: =COUNTIF(L40:L56,AD10) -> 0 | AF10: =AE10/(AG4-AE11) -> 0 | AG10: =IF(AF10=0,0,(AF10*((LOG(AF10))/LOG(2)))) -> 0 | AI10: =N10 -> 122 | AJ10: =COUNTIF(L57:L73,AI10) -> 1 | AK10: =AJ10/(AL4-AJ11) -> 0.1111111111 | AL10: =IF(AK10=0,0,(AK10*((LOG(AK10))/LOG(2)))) -> -0.352213889 | AN10: =N10 -> 122 | AO10: =COUNTIF(L74:L89,AN10) -> 1 | AP10: =AO10/(AQ4-AO11) -> 0.125 | AQ10: =IF(AP10=0,0,(AP10*((LOG(AP10))/LOG(2)))) -> -0.375 | AS10: =N10 -> 122 | AT10: =COUNTIF(L90:L106,AS10) -> 0 | AU10: =AT10/(AV4-AT11) -> 0 | AV10: =IF(AU10=0,0,(AU10*((LOG(AU10))/LOG(2)))) -> 0
A11: 12 | B11: 520 | C11: 13 | D11: 535 | E11: 13 | F11: 548 | K11: 0 | L11: 111 | N11: 211 | O11: =COUNTIF($L$7:$L$500,N11) -> 38 | P11: =O11/$Q$4 -> 0.38 | Q11: =IF(P11=0,0,(P11*((LOG(P11))/LOG(2)))) -> -0.530452897 | T11: =N11 -> 211 | U11: =COUNTIF(L7:L23,T11) -> 2 | Y11: =N11 -> 211 | Z11: =COUNTIF(L24:L39,Y11) -> 5 | AD11: =N11 -> 211 | AE11: =COUNTIF(L40:L56,AD11) -> 5 | AI11: =N11 -> 211 | AJ11: =COUNTIF(L57:L73,AI11) -> 8 | AN11: =N11 -> 211 | AO11: =COUNTIF(L74:L89,AN11) -> 8 | AS11: =N11 -> 211 | AT11: =COUNTIF(L90:L106,AS11) -> 10
A12: 12 | B12: 655 | C12: 13 | D12: 673 | E12: 13 | F12: 682 | K12: 0 | L12: 111 | N12: 212 | O12: =COUNTIF($L$7:$L$500,N12) -> 3 | P12: =O12/$Q$4 -> 0.03 | Q12: =IF(P12=0,0,(P12*((LOG(P12))/LOG(2)))) -> -0.1517668107 | T12: =N12 -> 212 | U12: =COUNTIF(L7:L23,T12) -> 0 | V12: =U12/(W4-U11) -> 0 | W12: =IF(V12=0,0,(V12*((LOG(V12))/LOG(2)))) -> 0 | Y12: =N12 -> 212 | Z12: =COUNTIF(L24:L39,Y12) -> 2 | AA12: =Z12/(AB4-Z11) -> 0.1818181818 | AB12: =IF(AA12=0,0,(AA12*((LOG(AA12))/LOG(2)))) -> -0.4471693852 | AD12: =N12 -> 212 | AE12: =COUNTIF(L40:L56,AD12) -> 1 | AF12: =AE12/(AG4-AE11) -> 0.08333333333 | AG12: =IF(AF12=0,0,(AF12*((LOG(AF12))/LOG(2)))) -> -0.2987468751 | AI12: =N12 -> 212 | AJ12: =COUNTIF(L57:L73,AI12) -> 0 | AK12: =AJ12/(AL4-AJ11) -> 0 | AL12: =IF(AK12=0,0,(AK12*((LOG(AK12))/LOG(2)))) -> 0 | AN12: =N12 -> 212 | AO12: =COUNTIF(L74:L89,AN12) -> 0 | AP12: =AO12/(AQ4-AO11) -> 0 | AQ12: =IF(AP12=0,0,(AP12*((LOG(AP12))/LOG(2)))) -> 0 | AS12: =N12 -> 212 | AT12: =COUNTIF(L90:L106,AS12) -> 0 | AU12: =AT12/(AV4-AT11) -> 0 | AV12: =IF(AU12=0,0,(AU12*((LOG(AU12))/LOG(2)))) -> 0
A13: 12 | B13: 809 | C13: 13 | D13: 818 | E13: 13 | F13: 840 | K13: 0 | L13: 111 | N13: 221 | O13: =COUNTIF($L$7:$L$500,N13) -> 5 | P13: =O13/$Q$4 -> 0.05 | Q13: =IF(P13=0,0,(P13*((LOG(P13))/LOG(2)))) -> -0.2160964047 | T13: =N13 -> 221 | U13: =COUNTIF(L7:L23,T13) -> 0 | V13: =U13/(W4-U11) -> 0 | W13: =IF(V13=0,0,(V13*((LOG(V13))/LOG(2)))) -> 0 | Y13: =N13 -> 221 | Z13: =COUNTIF(L24:L39,Y13) -> 1 | AA13: =Z13/(AB4-Z11) -> 0.09090909091 | AB13: =IF(AA13=0,0,(AA13*((LOG(AA13))/LOG(2)))) -> -0.3144937835 | AD13: =N13 -> 221 | AE13: =COUNTIF(L40:L56,AD13) -> 3 | AF13: =AE13/(AG4-AE11) -> 0.25 | AG13: =IF(AF13=0,0,(AF13*((LOG(AF13))/LOG(2)))) -> -0.5 | AI13: =N13 -> 221 | AJ13: =COUNTIF(L57:L73,AI13) -> 0 | AK13: =AJ13/(AL4-AJ11) -> 0 | AL13: =IF(AK13=0,0,(AK13*((LOG(AK13))/LOG(2)))) -> 0 | AN13: =N13 -> 221 | AO13: =COUNTIF(L74:L89,AN13) -> 1 | AP13: =AO13/(AQ4-AO11) -> 0.125 | AQ13: =IF(AP13=0,0,(AP13*((LOG(AP13))/LOG(2)))) -> -0.375 | AS13: =N13 -> 221 | AT13: =COUNTIF(L90:L106,AS13) -> 0 | AU13: =AT13/(AV4-AT11) -> 0 | AV13: =IF(AU13=0,0,(AU13*((LOG(AU13))/LOG(2)))) -> 0
A14: 12 | B14: 943 | C14: 13 | D14: 951 | E14: 13 | F14: 987 | K14: 0 | L14: 111 | N14: 222 | O14: =COUNTIF($L$7:$L$500,N14) -> 0 | P14: =O14/$Q$4 -> 0 | Q14: =IF(P14=0,0,(P14*((LOG(P14))/LOG(2)))) -> 0 | T14: =N14 -> 222 | U14: =COUNTIF(L7:L23,T14) -> 0 | V14: =U14/(W4-U11) -> 0 | W14: =IF(V14=0,0,(V14*((LOG(V14))/LOG(2)))) -> 0 | Y14: =N14 -> 222 | Z14: =COUNTIF(L24:L39,Y14) -> 0 | AA14: =Z14/(AB4-Z11) -> 0 | AB14: =IF(AA14=0,0,(AA14*((LOG(AA14))/LOG(2)))) -> 0 | AD14: =N14 -> 222 | AE14: =COUNTIF(L40:L56,AD14) -> 0 | AF14: =AE14/(AG4-AE11) -> 0 | AG14: =IF(AF14=0,0,(AF14*((LOG(AF14))/LOG(2)))) -> 0 | AI14: =N14 -> 222 | AJ14: =COUNTIF(L57:L73,AI14) -> 0 | AK14: =AJ14/(AL4-AJ11) -> 0 | AL14: =IF(AK14=0,0,(AK14*((LOG(AK14))/LOG(2)))) -> 0 | AN14: =N14 -> 222 | AO14: =COUNTIF(L74:L89,AN14) -> 0 | AP14: =AO14/(AQ4-AO11) -> 0 | AQ14: =IF(AP14=0,0,(AP14*((LOG(AP14))/LOG(2)))) -> 0 | AS14: =N14 -> 222 | AT14: =COUNTIF(L90:L106,AS14) -> 0 | AU14: =AT14/(AV4-AT11) -> 0 | AV14: =IF(AU14=0,0,(AU14*((LOG(AU14))/LOG(2)))) -> 0
A15: 12 | B15: 1095 | C15: 13 | D15: 1116 | E15: 13 | F15: 1125 | K15: 0 | L15: 111 | P15: =SUM(P7:P14) -> 1 | Q15: =-SUM(Q7:Q14) -> 2.114797308 | V15: =SUM(V7:V14) -> 1 | W15: =-SUM(W7:W14) -> 0.7219280949 | AA15: =SUM(AA7:AA14) -> 1 | AB15: =-SUM(AB7:AB14) -> 2.231270255 | AF15: =SUM(AF7:AF14) -> 1 | AG15: =-SUM(AG7:AG14) -> 1.825011211 | AK15: =SUM(AK7:AK14) -> 1 | AL15: =-SUM(AL7:AL14) -> 1.351644115 | AP15: =SUM(AP7:AP14) -> 1 | AQ15: =-SUM(AQ7:AQ14) -> 1.811278124 | AU15: =SUM(AU7:AU14) -> 1 | AV15: =-SUM(AV7:AV14) -> 0.985228136
A16: 12 | B16: 1306 | C16: 13 | D16: 1315 | E16: 13 | F16: 1335 | K16: 0 | L16: 111 | P16: U= | Q16: =Q15/(LOG(Q4)/LOG(2)) -> 0.3183087122 | V16: U1= | W16: =W15/(LOG(W4)/LOG(2)) -> 0.1766200998 | AA16: U2= | AB16: =AB15/(LOG(AB4)/LOG(2)) -> 0.5578175637 | AF16: U3= | AG16: =AG15/(LOG(AG4)/LOG(2)) -> 0.4464899821 | AK16: U4= | AL16: =AL15/(LOG(AL4)/LOG(2)) -> 0.3306804655 | AP16: U5= | AQ16: =AQ15/(LOG(AQ4)/LOG(2)) -> 0.4528195311 | AU16: U6= | AV16: =AV15/(LOG(AV4)/LOG(2)) -> 0.2410365976
A17: 12 | B17: 1463 | C17: 24 | D17: 1482 | E17: 13 | F17: 1503 | K17: 0 | L17: 121
A18: 12 | B18: 1622 | C18: 13 | D18: 1636 | E18: 13 | F18: 1665 | K18: 0 | L18: 111
A19: 12 | B19: 1775 | C19: 24 | D19: 1825 | E19: 13 | F19: 1840 | K19: 0 | L19: 121 | N19: Total Target Seq
A20: 12 | B20: 1968 | C20: 13 | D20: 1978 | E20: 13 | F20: 1988 | K20: 0 | L20: 111 | N20: =COUNTIF(L7:L106,G3) -> 38 | P20: 17 | Q20: 16 | R20: 17 | S20: 17 | T20: 16 | U20: 17
A21: 21 | B21: 2112 | C21: 11 | D21: 2130 | E21: 11 | F21: 2139 | K21: 0 | L21: 211 | P21: % of reinforcement given in 6 equal intervals based on number of trials
A22: 12 | B22: 2276 | C22: 24 | D22: 2304 | E22: 13 | F22: 2326 | K22: 0 | L22: 121 | P22: %_1 | Q22: %_2 | R22: %_3 | S22: %_4 | T22: %_5 | U22: %_6
A23: 21 | B23: 2441 | C23: 11 | D23: 2457 | E23: 11 | F23: 2466 | K23: 0 | L23: 211 | O23: target sequence | P23: =$G$3 -> 211 | Q23: =$G$3 -> 211 | R23: =$G$3 -> 211 | S23: =$G$3 -> 211 | T23: =$G$3 -> 211 | U23: =$G$3 -> 211
A24: 21 | B24: 2584 | C24: 11 | D24: 2601 | E24: 11 | F24: 2611 | K24: 0 | L24: 211 | O24: total reinforcement | P24: =U11 -> 2 | Q24: =Z11 -> 5 | R24: =AE11 -> 5 | S24: =AJ11 -> 8 | T24: =AO11 -> 8 | U24: =AT11 -> 10
A25: 21 | B25: 2733 | C25: 11 | D25: 2750 | E25: 11 | F25: 2760 | K25: 0 | L25: 211 | O25: % target
A26: 21 | B26: 2882 | C26: 11 | D26: 2898 | E26: 22 | F26: 2922 | K26: 0 | L26: 212 | O26: CCRF
A27: 21 | B27: 3034 | C27: 11 | D27: 3048 | E27: 11 | F27: 3057 | K27: 0 | L27: 211 | O27: % CCRf
A28: 21 | B28: 3191 | C28: 11 | D28: 3211 | E28: 11 | F28: 3222 | K28: 0 | L28: 211 | O28: average response rate | P28: =F23/P20 -> 145.0588235 | Q28: =(F39-F23)/Q20 -> 140.5625 | R28: =(F56-F39)/R20 -> 141.3529412 | S28: =(F73-F56)/S20 -> 129.1176471 | T28: =(F89-F73)/T20 -> 135.625 | U28: =(F106-F89)/U20 -> 131.8235294
A29: 12 | B29: 3317 | C29: 24 | D29: 3340 | E29: 13 | F29: 3356 | K29: 0 | L29: 121
A30: 12 | B30: 3465 | C30: 24 | D30: 3479 | E30: 13 | F30: 3496 | K30: 0 | L30: 121
A31: 21 | B31: 3613 | C31: 22 | D31: 3633 | E31: 13 | F31: 3655 | K31: 0 | L31: 221
A32: 12 | B32: 3752 | C32: 13 | D32: 3758 | E32: 13 | F32: 3766 | K32: 0 | L32: 111
A33: 12 | B33: 3863 | C33: 13 | D33: 3871 | E33: 24 | F33: 3896 | K33: 0 | L33: 112
A34: 12 | B34: 3992 | C34: 13 | D34: 4000 | E34: 13 | F34: 4020 | K34: 0 | L34: 111
A35: 12 | B35: 4119 | C35: 13 | D35: 4128 | E35: 24 | F35: 4151 | K35: 0 | L35: 112
A36: 12 | B36: 4251 | C36: 13 | D36: 4272 | E36: 13 | F36: 4281 | K36: 0 | L36: 111
A37: 12 | B37: 4388 | C37: 24 | D37: 4400 | E37: 13 | F37: 4414 | K37: 0 | L37: 121
A38: 21 | B38: 4520 | C38: 11 | D38: 4538 | E38: 22 | F38: 4570 | K38: 0 | L38: 212
A39: 21 | B39: 4687 | C39: 11 | D39: 4705 | E39: 11 | F39: 4715 | K39: 0 | L39: 211
A40: 12 | B40: 4841 | C40: 13 | D40: 4850 | E40: 13 | F40: 4858 | K40: 0 | L40: 111
A41: 12 | B41: 4983 | C41: 13 | D41: 4992 | E41: 13 | F41: 5001 | K41: 0 | L41: 111
A42: 12 | B42: 5099 | C42: 13 | D42: 5121 | E42: 13 | F42: 5129 | K42: 0 | L42: 111
A43: 12 | B43: 5262 | C43: 24 | D43: 5276 | E43: 13 | F43: 5290 | K43: 0 | L43: 121
A44: 21 | B44: 5405 | C44: 11 | D44: 5423 | E44: 22 | F44: 5441 | K44: 0 | L44: 212
A45: 12 | B45: 5537 | C45: 24 | D45: 5564 | E45: 13 | F45: 5583 | K45: 0 | L45: 121
A46: 21 | B46: 5727 | C46: 11 | D46: 5740 | E46: 11 | F46: 5749 | K46: 0 | L46: 211
A47: 21 | B47: 5864 | C47: 22 | D47: 5872 | E47: 13 | F47: 5891 | K47: 0 | L47: 221
A48: 21 | B48: 6020 | C48: 22 | D48: 6028 | E48: 13 | F48: 6046 | K48: 0 | L48: 221
A49: 21 | B49: 6154 | C49: 11 | D49: 6171 | E49: 11 | F49: 6180 | K49: 0 | L49: 211
A50: 12 | B50: 6279 | C50: 24 | D50: 6289 | E50: 13 | F50: 6305 | K50: 0 | L50: 121
A51: 21 | B51: 6429 | C51: 11 | D51: 6446 | E51: 11 | F51: 6455 | K51: 0 | L51: 211
A52: 21 | B52: 6570 | C52: 11 | D52: 6583 | E52: 11 | F52: 6591 | K52: 0 | L52: 211
A53: 12 | B53: 6682 | C53: 24 | D53: 6704 | E53: 13 | F53: 6716 | K53: 0 | L53: 121
A54: 21 | B54: 6829 | C54: 11 | D54: 6846 | E54: 11 | F54: 6854 | K54: 0 | L54: 211
A55: 12 | B55: 6960 | C55: 24 | D55: 6972 | E55: 13 | F55: 6987 | K55: 0 | L55: 121
A56: 21 | B56: 7093 | C56: 22 | D56: 7104 | E56: 13 | F56: 7118 | K56: 0 | L56: 221
A57: 12 | B57: 7218 | C57: 24 | D57: 7241 | E57: 13 | F57: 7253 | K57: 0 | L57: 121
A58: 12 | B58: 7351 | C58: 24 | D58: 7366 | E58: 13 | F58: 7385 | K58: 0 | L58: 121
A59: 12 | B59: 7489 | C59: 13 | D59: 7499 | E59: 13 | F59: 7508 | K59: 0 | L59: 111
A60: 12 | B60: 7605 | C60: 24 | D60: 7615 | E60: 13 | F60: 7629 | K60: 0 | L60: 121
A61: 21 | B61: 7757 | C61: 11 | D61: 7770 | E61: 11 | F61: 7788 | K61: 0 | L61: 211
A62: 21 | B62: 7908 | C62: 11 | D62: 7937 | E62: 11 | F62: 7946 | K62: 0 | L62: 211
A63: 12 | B63: 8043 | C63: 13 | D63: 8051 | E63: 13 | F63: 8060 | K63: 0 | L63: 111
A64: 12 | B64: 8157 | C64: 24 | D64: 8167 | E64: 24 | F64: 8171 | K64: 0 | L64: 122
A65: 12 | B65: 8277 | C65: 13 | D65: 8286 | E65: 13 | F65: 8293 | K65: 0 | L65: 111
A66: 12 | B66: 8390 | C66: 13 | D66: 8403 | E66: 13 | F66: 8412 | K66: 0 | L66: 111
A67: 21 | B67: 8523 | C67: 11 | D67: 8540 | E67: 11 | F67: 8548 | K67: 0 | L67: 211
A68: 21 | B68: 8646 | C68: 11 | D68: 8660 | E68: 11 | F68: 8668 | K68: 0 | L68: 211
A69: 21 | B69: 8793 | C69: 11 | D69: 8819 | E69: 11 | F69: 8827 | K69: 0 | L69: 211
A70: 21 | B70: 8927 | C70: 11 | D70: 8939 | E70: 11 | F70: 8946 | K70: 0 | L70: 211
A71: 21 | B71: 9053 | C71: 11 | D71: 9065 | E71: 11 | F71: 9073 | K71: 0 | L71: 211
A72: 21 | B72: 9178 | C72: 11 | D72: 9191 | E72: 11 | F72: 9199 | K72: 0 | L72: 211
A73: 12 | B73: 9297 | C73: 13 | D73: 9304 | E73: 13 | F73: 9313 | K73: 0 | L73: 111
A74: 12 | B74: 9418 | C74: 13 | D74: 9426 | E74: 13 | F74: 9434 | K74: 0 | L74: 111
A75: 21 | B75: 9555 | C75: 11 | D75: 9569 | E75: 11 | F75: 9577 | K75: 0 | L75: 211
A76: 21 | B76: 9690 | C76: 11 | D76: 9708 | E76: 11 | F76: 9716 | K76: 0 | L76: 211
A77: 12 | B77: 9805 | C77: 24 | D77: 9827 | E77: 13 | F77: 9845 | K77: 0 | L77: 121
A78: 21 | B78: 9954 | C78: 11 | D78: 9967 | E78: 11 | F78: 9975 | K78: 0 | L78: 211
A79: 21 | B79: 10091 | C79: 11 | D79: 10104 | E79: 11 | F79: 10112 | K79: 0 | L79: 211
A80: 21 | B80: 10210 | C80: 11 | D80: 10227 | E80: 11 | F80: 10243 | K80: 0 | L80: 211
A81: 12 | B81: 10370 | C81: 13 | D81: 10378 | E81: 13 | F81: 10386 | K81: 0 | L81: 111
A82: 12 | B82: 10495 | C82: 13 | D82: 10527 | E82: 13 | F82: 10535 | K82: 0 | L82: 111
A83: 12 | B83: 10632 | C83: 24 | D83: 10657 | E83: 13 | F83: 10674 | K83: 0 | L83: 121
A84: 12 | B84: 10772 | C84: 24 | D84: 10785 | E84: 13 | F84: 10798 | K84: 0 | L84: 121
A85: 21 | B85: 10913 | C85: 11 | D85: 10931 | E85: 11 | F85: 10939 | K85: 0 | L85: 211
A86: 12 | B86: 11047 | C86: 24 | D86: 11060 | E86: 24 | F86: 11073 | K86: 0 | L86: 122
A87: 21 | B87: 11186 | C87: 22 | D87: 11204 | E87: 13 | F87: 11217 | K87: 0 | L87: 221
A88: 21 | B88: 11325 | C88: 11 | D88: 11342 | E88: 11 | F88: 11351 | K88: 0 | L88: 211
A89: 21 | B89: 11460 | C89: 11 | D89: 11474 | E89: 11 | F89: 11483 | K89: 0 | L89: 211
A90: 21 | B90: 11586 | C90: 11 | D90: 11599 | E90: 11 | F90: 11607 | K90: 0 | L90: 211
A91: 12 | B91: 11727 | C91: 13 | D91: 11742 | E91: 13 | F91: 11759 | K91: 0 | L91: 111
A92: 12 | B92: 11855 | C92: 24 | D92: 11869 | E92: 13 | F92: 11887 | K92: 0 | L92: 121
A93: 12 | B93: 11986 | C93: 24 | D93: 11996 | E93: 13 | F93: 12016 | K93: 0 | L93: 121
A94: 12 | B94: 12114 | C94: 24 | D94: 12129 | E94: 13 | F94: 12141 | K94: 0 | L94: 121
A95: 21 | B95: 12249 | C95: 11 | D95: 12266 | E95: 11 | F95: 12274 | K95: 0 | L95: 211
A96: 21 | B96: 12380 | C96: 11 | D96: 12393 | E96: 11 | F96: 12401 | K96: 0 | L96: 211
A97: 12 | B97: 12523 | C97: 13 | D97: 12539 | E97: 13 | F97: 12555 | K97: 0 | L97: 111
A98: 21 | B98: 12691 | C98: 11 | D98: 12705 | E98: 11 | F98: 12713 | K98: 0 | L98: 211
A99: 21 | B99: 12822 | C99: 11 | D99: 12836 | E99: 11 | F99: 12843 | K99: 0 | L99: 211
A100: 21 | B100: 12949 | C100: 11 | D100: 12961 | E100: 11 | F100: 12969 | K100: 0 | L100: 211
A101: 12 | B101: 13058 | C101: 24 | D101: 13069 | E101: 13 | F101: 13081 | K101: 0 | L101: 121
A102: 21 | B102: 13187 | C102: 11 | D102: 13201 | E102: 11 | F102: 13208 | K102: 0 | L102: 211
A103: 12 | B103: 13329 | C103: 13 | D103: 13337 | E103: 13 | F103: 13345 | K103: 0 | L103: 111
A104: 21 | B104: 13456 | C104: 11 | D104: 13469 | E104: 11 | F104: 13476 | K104: 0 | L104: 211
A105: 21 | B105: 13582 | C105: 11 | D105: 13595 | E105: 11 | F105: 13603 | K105: 0 | L105: 211
A106: 21 | B106: 13703 | C106: 11 | D106: 13716 | E106: 11 | F106: 13724 | K106: 1 | L106: 211

Sheet !M509B30.185
A1: Report for:!M509B30.185
A2: Date: | B2: <date>
A3: Hen: | B3: <hen> | F3: Correct Sequence | G3: =Start!J2 -> 211 | P3: Total Sequences in Data | Q3: =4994-COUNTBLANK(L7:L5000) -> 79 | V3: Total Sequences in Block Data | W3: =COUNTA(L7:L19) -> 13 | AA3: Total Sequences in Block Data | AB3: =COUNTA(L20:L32) -> 13 | AF3: Total Sequences in Block Data | AG3: =COUNTA(L33:L46) -> 14 | AK3: Total Sequences in Block Data | AL3: =COUNTA(L47:L59) -> 13 | AP3: Total Sequences in Block Data | AQ3: =COUNTA(L60:L72) -> 13 | AU3: Total Sequences in Block Data | AV3: =COUNTA(L73:L85) -> 13
P4: Total Sequences in Summary | Q4: =SUM(O7:O14) -> 79 | V4: Total Sequences in Block Summary | W4: =SUM(U7:U14) -> 13 | AA4: Total Sequences in Block Summary | AB4: =SUM(Z7:Z14) -> 13 | AF4: Total Sequences in Block Summary | AG4: =SUM(AE7:AE14) -> 14 | AK4: Total Sequences in Block Summary | AL4: =SUM(AJ7:AJ14) -> 13 | AP4: Total Sequences in Block Summary | AQ4: =SUM(AO7:AO14) -> 13 | AU4: Total Sequences in Block Summary | AV4: =SUM(AT7:AT14) -> 13
T5: Block 1 | Y5: Block 2 | AD5: Block 3 | AI5: Block 4 | AN5: Block 5 | AS5: Block 6
A6: Sequence Component 1 | B6: Time 1 | C6: Sequence Component 2 | D6: Time 2 | E6: Sequence Component 3 | F6: Time 3 | G6: Sequence Component 4 | H6: Time 4 | I6: Sequence Component 5 | J6: Time 5 | K6: Correct? 0=No 1=Yes | L6: Sequence | N6: Frequency | P6: Relative Frequency | Q6: Variability | T6: Frequency | V6: Relative Frequency | W6: Variability | Y6: Frequency | AA6: Relative Frequency | AB6: Variability | AD6: Frequency | AF6: Relative Frequency | AG6: Variability | AI6: Frequency | AK6: Relative Frequency | AL6: Variability | AN6: Frequency | AP6: Relative Frequency | AQ6: Variability | AS6: Frequency | AU6: Relative Frequency | AV6: Variability
A7: 12 | B7: 45 | C7: 13 | D7: 83 | E7: 13 | F7: 104 | K7: 0 | L7: 111 | N7: 111 | O7: =COUNTIF($L$7:$L$500,N7) -> 12 | P7: =O7/$Q$4 -> 0.1518987342 | Q7: =IF(P7=0,0,(P7*((LOG(P7))/LOG(2)))) -> -0.4129850502 | T7: =N7 -> 111 | U7: =COUNTIF(L7:L19,T7) -> 4 | V7: =U7/(W4-U11) -> 0.6666666667 | W7: =IF(V7=0,0,(V7*((LOG(V7))/LOG(2)))) -> -0.3899750005 | Y7: =N7 -> 111 | Z7: =COUNTIF(L20:L32,Y7) -> 1 | AA7: =Z7/(AB4-Z11) -> 0.3333333333 | AB7: =IF(AA7=0,0,(AA7*((LOG(AA7))/LOG(2)))) -> -0.5283208336 | AD7: =N7 -> 111 | AE7: =COUNTIF(L33:L46,AD7) -> 0 | AF7: =AE7/(AG4-AE11) -> 0 | AG7: =IF(AF7=0,0,(AF7*((LOG(AF7))/LOG(2)))) -> 0 | AI7: =N7 -> 111 | AJ7: =COUNTIF(L47:L59,AI7) -> 3 | AK7: =AJ7/(AL4-AJ11) -> 0.5 | AL7: =IF(AK7=0,0,(AK7*((LOG(AK7))/LOG(2)))) -> -0.5 | AN7: =N7 -> 111 | AO7: =COUNTIF(L60:L72,AN7) -> 3 | AP7: =AO7/(AQ4-AO11) -> 0.3 | AQ7: =IF(AP7=0,0,(AP7*((LOG(AP7))/LOG(2)))) -> -0.5210896782 | AS7: =N7 -> 111 | AT7: =COUNTIF(L73:L85,AS7) -> 1 | AU7: =AT7/(AV4-AT11) -> 0.1111111111 | AV7: =IF(AU7=0,0,(AU7*((LOG(AU7))/LOG(2)))) -> -0.352213889
A8: 12 | B8: 237 | C8: 13 | D8: 246 | E8: 13 | F8: 255 | K8: 0 | L8: 111 | N8: 112 | O8: =COUNTIF($L$7:$L$500,N8) -> 1 | P8: =O8/$Q$4 -> 0.01265822785 | Q8: =IF(P8=0,0,(P8*((LOG(P8))/LOG(2)))) -> -0.07979469301 | T8: =N8 -> 112 | U8: =COUNTIF(L7:L19,T8) -> 1 | V8: =U8/(W4-U11) -> 0.1666666667 | W8: =IF(V8=0,0,(V8*((LOG(V8))/LOG(2)))) -> -0.4308270835 | Y8: =N8 -> 112 | Z8: =COUNTIF(L20:L32,Y8) -> 0 | AA8: =Z8/(AB4-Z11) -> 0 | AB8: =IF(AA8=0,0,(AA8*((LOG(AA8))/LOG(2)))) -> 0 | AD8: =N8 -> 112 | AE8: =COUNTIF(L33:L46,AD8) -> 0 | AF8: =AE8/(AG4-AE11) -> 0 | AG8: =IF(AF8=0,0,(AF8*((LOG(AF8))/LOG(2)))) -> 0 | AI8: =N8 -> 112 | AJ8: =COUNTIF(L47:L59,AI8) -> 0 | AK8: =AJ8/(AL4-AJ11) -> 0 | AL8: =IF(AK8=0,0,(AK8*((LOG(AK8))/LOG(2)))) -> 0 | AN8: =N8 -> 112 | AO8: =COUNTIF(L60:L72,AN8) -> 0 | AP8: =AO8/(AQ4-AO11) -> 0 | AQ8: =IF(AP8=0,0,(AP8*((LOG(AP8))/LOG(2)))) -> 0 | AS8: =N8 -> 112 | AT8: =COUNTIF(L73:L85,AS8) -> 0 | AU8: =AT8/(AV4-AT11) -> 0 | AV8: =IF(AU8=0,0,(AU8*((LOG(AU8))/LOG(2)))) -> 0
A9: 21 | B9: 374 | C9: 11 | D9: 392 | E9: 22 | F9: 418 | K9: 0 | L9: 212 | N9: 121 | O9: =COUNTIF($L$7:$L$500,N9) -> 11 | P9: =O9/$Q$4 -> 0.1392405063 | Q9: =IF(P9=0,0,(P9*((LOG(P9))/LOG(2)))) -> -0.396048613 | T9: =N9 -> 121 | U9: =COUNTIF(L7:L19,T9) -> 0 | V9: =U9/(W4-U11) -> 0 | W9: =IF(V9=0,0,(V9*((LOG(V9))/LOG(2)))) -> 0 | Y9: =N9 -> 121 | Z9: =COUNTIF(L20:L32,Y9) -> 1 | AA9: =Z9/(AB4-Z11) -> 0.3333333333 | AB9: =IF(AA9=0,0,(AA9*((LOG(AA9))/LOG(2)))) -> -0.5283208336 | AD9: =N9 -> 121 | AE9: =COUNTIF(L33:L46,AD9) -> 1 | AF9: =AE9/(AG4-AE11) -> 0.1428571429 | AG9: =IF(AF9=0,0,(AF9*((LOG(AF9))/LOG(2)))) -> -0.4010507032 | AI9: =N9 -> 121 | AJ9: =COUNTIF(L47:L59,AI9) -> 2 | AK9: =AJ9/(AL4-AJ11) -> 0.3333333333 | AL9: =IF(AK9=0,0,(AK9*((LOG(AK9))/LOG(2)))) -> -0.5283208336 | AN9: =N9 -> 121 | AO9: =COUNTIF(L60:L72,AN9) -> 4 | AP9: =AO9/(AQ4-AO11) -> 0.4 | AQ9: =IF(AP9=0,0,(AP9*((LOG(AP9))/LOG(2)))) -> -0.528771238 | AS9: =N9 -> 121 | AT9: =COUNTIF(L73:L85,AS9) -> 3 | AU9: =AT9/(AV4-AT11) -> 0.3333333333 | AV9: =IF(AU9=0,0,(AU9*((LOG(AU9))/LOG(2)))) -> -0.5283208336
A10: 21 | B10: 525 | C10: 11 | D10: 543 | E10: 11 | F10: 561 | K10: 0 | L10: 211 | N10: 122 | O10: =COUNTIF($L$7:$L$500,N10) -> 2 | P10: =O10/$Q$4 -> 0.0253164557 | Q10: =IF(P10=0,0,(P10*((LOG(P10))/LOG(2)))) -> -0.1342729303 | T10: =N10 -> 122 | U10: =COUNTIF(L7:L19,T10) -> 0 | V10: =U10/(W4-U11) -> 0 | W10: =IF(V10=0,0,(V10*((LOG(V10))/LOG(2)))) -> 0 | Y10: =N10 -> 122 | Z10: =COUNTIF(L20:L32,Y10) -> 0 | AA10: =Z10/(AB4-Z11) -> 0 | AB10: =IF(AA10=0,0,(AA10*((LOG(AA10))/LOG(2)))) -> 0 | AD10: =N10 -> 122 | AE10: =COUNTIF(L33:L46,AD10) -> 0 | AF10: =AE10/(AG4-AE11) -> 0 | AG10: =IF(AF10=0,0,(AF10*((LOG(AF10))/LOG(2)))) -> 0 | AI10: =N10 -> 122 | AJ10: =COUNTIF(L47:L59,AI10) -> 0 | AK10: =AJ10/(AL4-AJ11) -> 0 | AL10: =IF(AK10=0,0,(AK10*((LOG(AK10))/LOG(2)))) -> 0 | AN10: =N10 -> 122 | AO10: =COUNTIF(L60:L72,AN10) -> 0 | AP10: =AO10/(AQ4-AO11) -> 0 | AQ10: =IF(AP10=0,0,(AP10*((LOG(AP10))/LOG(2)))) -> 0 | AS10: =N10 -> 122 | AT10: =COUNTIF(L73:L85,AS10) -> 2 | AU10: =AT10/(AV4-AT11) -> 0.2222222222 | AV10: =IF(AU10=0,0,(AU10*((LOG(AU10))/LOG(2)))) -> -0.4822055559
A11: 21 | B11: 679 | C11: 11 | D11: 694 | E11: 11 | F11: 706 | K11: 0 | L11: 211 | N11: 211 | O11: =COUNTIF($L$7:$L$500,N11) -> 38 | P11: =O11/$Q$4 -> 0.4810126582 | Q11: =IF(P11=0,0,(P11*((LOG(P11))/LOG(2)))) -> -0.5078787711 | T11: =N11 -> 211 | U11: =COUNTIF(L7:L19,T11) -> 7 | Y11: =N11 -> 211 | Z11: =COUNTIF(L20:L32,Y11) -> 10 | AD11: =N11 -> 211 | AE11: =COUNTIF(L33:L46,AD11) -> 7 | AI11: =N11 -> 211 | AJ11: =COUNTIF(L47:L59,AI11) -> 7 | AN11: =N11 -> 211 | AO11: =COUNTIF(L60:L72,AN11) -> 3 | AS11: =N11 -> 211 | AT11: =COUNTIF(L73:L85,AS11) -> 4
A12: 12 | B12: 845 | C12: 13 | D12: 860 | E12: 24 | F12: 896 | K12: 0 | L12: 112 | N12: 212 | O12: =COUNTIF($L$7:$L$500,N12) -> 1 | P12: =O12/$Q$4 -> 0.01265822785 | Q12: =IF(P12=0,0,(P12*((LOG(P12))/LOG(2)))) -> -0.07979469301 | T12: =N12 -> 212 | U12: =COUNTIF(L7:L19,T12) -> 1 | V12: =U12/(W4-U11) -> 0.1666666667 | W12: =IF(V12=0,0,(V12*((LOG(V12))/LOG(2)))) -> -0.4308270835 | Y12: =N12 -> 212 | Z12: =COUNTIF(L20:L32,Y12) -> 0 | AA12: =Z12/(AB4-Z11) -> 0 | AB12: =IF(AA12=0,0,(AA12*((LOG(AA12))/LOG(2)))) -> 0 | AD12: =N12 -> 212 | AE12: =COUNTIF(L33:L46,AD12) -> 0 | AF12: =AE12/(AG4-AE11) -> 0 | AG12: =IF(AF12=0,0,(AF12*((LOG(AF12))/LOG(2)))) -> 0 | AI12: =N12 -> 212 | AJ12: =COUNTIF(L47:L59,AI12) -> 0 | AK12: =AJ12/(AL4-AJ11) -> 0 | AL12: =IF(AK12=0,0,(AK12*((LOG(AK12))/LOG(2)))) -> 0 | AN12: =N12 -> 212 | AO12: =COUNTIF(L60:L72,AN12) -> 0 | AP12: =AO12/(AQ4-AO11) -> 0 | AQ12: =IF(AP12=0,0,(AP12*((LOG(AP12))/LOG(2)))) -> 0 | AS12: =N12 -> 212 | AT12: =COUNTIF(L73:L85,AS12) -> 0 | AU12: =AT12/(AV4-AT11) -> 0 | AV12: =IF(AU12=0,0,(AU12*((LOG(AU12))/LOG(2)))) -> 0
A13: 12 | B13: 1017 | C13: 13 | D13: 1033 | E13: 13 | F13: 1052 | K13: 0 | L13: 111 | N13: 221 | O13: =COUNTIF($L$7:$L$500,N13) -> 10 | P13: =O13/$Q$4 -> 0.1265822785 | Q13: =IF(P13=0,0,(P13*((LOG(P13))/LOG(2)))) -> -0.3774497029 | T13: =N13 -> 221 | U13: =COUNTIF(L7:L19,T13) -> 0 | V13: =U13/(W4-U11) -> 0 | W13: =IF(V13=0,0,(V13*((LOG(V13))/LOG(2)))) -> 0 | Y13: =N13 -> 221 | Z13: =COUNTIF(L20:L32,Y13) -> 1 | AA13: =Z13/(AB4-Z11) -> 0.3333333333 | AB13: =IF(AA13=0,0,(AA13*((LOG(AA13))/LOG(2)))) -> -0.5283208336 | AD13: =N13 -> 221 | AE13: =COUNTIF(L33:L46,AD13) -> 4 | AF13: =AE13/(AG4-AE11) -> 0.5714285714 | AG13: =IF(AF13=0,0,(AF13*((LOG(AF13))/LOG(2)))) -> -0.4613456697 | AI13: =N13 -> 221 | AJ13: =COUNTIF(L47:L59,AI13) -> 1 | AK13: =AJ13/(AL4-AJ11) -> 0.1666666667 | AL13: =IF(AK13=0,0,(AK13*((LOG(AK13))/LOG(2)))) -> -0.4308270835 | AN13: =N13 -> 221 | AO13: =COUNTIF(L60:L72,AN13) -> 2 | AP13: =AO13/(AQ4-AO11) -> 0.2 | AQ13: =IF(AP13=0,0,(AP13*((LOG(AP13))/LOG(2)))) -> -0.464385619 | AS13: =N13 -> 221 | AT13: =COUNTIF(L73:L85,AS13) -> 2 | AU13: =AT13/(AV4-AT11) -> 0.2222222222 | AV13: =IF(AU13=0,0,(AU13*((LOG(AU13))/LOG(2)))) -> -0.4822055559
A14: 21 | B14: 1159 | C14: 11 | D14: 1173 | E14: 11 | F14: 1184 | K14: 0 | L14: 211 | N14: 222 | O14: =COUNTIF($L$7:$L$500,N14) -> 4 | P14: =O14/$Q$4 -> 0.05063291139 | Q14: =IF(P14=0,0,(P14*((LOG(P14))/LOG(2)))) -> -0.2179129493 | T14: =N14 -> 222 | U14: =COUNTIF(L7:L19,T14) -> 0 | V14: =U14/(W4-U11) -> 0 | W14: =IF(V14=0,0,(V14*((LOG(V14))/LOG(2)))) -> 0 | Y14: =N14 -> 222 | Z14: =COUNTIF(L20:L32,Y14) -> 0 | AA14: =Z14/(AB4-Z11) -> 0 | AB14: =IF(AA14=0,0,(AA14*((LOG(AA14))/LOG(2)))) -> 0 | AD14: =N14 -> 222 | AE14: =COUNTIF(L33:L46,AD14) -> 2 | AF14: =AE14/(AG4-AE11) -> 0.2857142857 | AG14: =IF(AF14=0,0,(AF14*((LOG(AF14))/LOG(2)))) -> -0.5163871206 | AI14: =N14 -> 222 | AJ14: =COUNTIF(L47:L59,AI14) -> 0 | AK14: =AJ14/(AL4-AJ11) -> 0 | AL14: =IF(AK14=0,0,(AK14*((LOG(AK14))/LOG(2)))) -> 0 | AN14: =N14 -> 222 | AO14: =COUNTIF(L60:L72,AN14) -> 1 | AP14: =AO14/(AQ4-AO11) -> 0.1 | AQ14: =IF(AP14=0,0,(AP14*((LOG(AP14))/LOG(2)))) -> -0.3321928095 | AS14: =N14 -> 222 | AT14: =COUNTIF(L73:L85,AS14) -> 1 | AU14: =AT14/(AV4-AT11) -> 0.1111111111 | AV14: =IF(AU14=0,0,(AU14*((LOG(AU14))/LOG(2)))) -> -0.352213889
A15: 21 | B15: 1291 | C15: 11 | D15: 1303 | E15: 11 | F15: 1312 | K15: 0 | L15: 211 | P15: =SUM(P7:P14) -> 1 | Q15: =-SUM(Q7:Q14) -> 2.206137403 | V15: =SUM(V7:V14) -> 1 | W15: =-SUM(W7:W14) -> 1.251629167 | AA15: =SUM(AA7:AA14) -> 1 | AB15: =-SUM(AB7:AB14) -> 1.584962501 | AF15: =SUM(AF7:AF14) -> 1 | AG15: =-SUM(AG7:AG14) -> 1.378783493 | AK15: =SUM(AK7:AK14) -> 1 | AL15: =-SUM(AL7:AL14) -> 1.459147917 | AP15: =SUM(AP7:AP14) -> 1 | AQ15: =-SUM(AQ7:AQ14) -> 1.846439345 | AU15: =SUM(AU7:AU14) -> 1 | AV15: =-SUM(AV7:AV14) -> 2.197159723
A16: 21 | B16: 1416 | C16: 11 | D16: 1438 | E16: 11 | F16: 1448 | K16: 0 | L16: 211 | P16: U= | Q16: =Q15/(LOG(Q4)/LOG(2)) -> 0.3499705163 | V16: U1= | W16: =W15/(LOG(W4)/LOG(2)) -> 0.3382379562 | AA16: U2= | AB16: =AB15/(LOG(AB4)/LOG(2)) -> 0.428317341 | AF16: U3= | AG16: =AG15/(LOG(AG4)/LOG(2)) -> 0.3621368435 | AK16: U4= | AL16: =AL15/(LOG(AL4)/LOG(2)) -> 0.3943174401 | AP16: U5= | AQ16: =AQ15/(LOG(AQ4)/LOG(2)) -> 0.4989783608 | AU16: U6= | AV16: =AV15/(LOG(AV4)/LOG(2)) -> 0.5937563886
A17: 21 | B17: 1574 | C17: 11 | D17: 1592 | E17: 11 | F17: 1601 | K17: 0 | L17: 211
A18: 12 | B18: 1718 | C18: 13 | D18: 1727 | E18: 13 | F18: 1737 | K18: 0 | L18: 111
A19: 21 | B19: 1847 | C19: 11 | D19: 1862 | E19: 11 | F19: 1871 | K19: 0 | L19: 211 | N19: Total Target Seq
A20: 21 | B20: 1979 | C20: 11 | D20: 1991 | E20: 11 | F20: 1999 | K20: 0 | L20: 211 | N20: =COUNTIF(L7:L85,G3) -> 38 | P20: 13 | Q20: 13 | R20: 14 | S20: 13 | T20: 13 | U20: 13
A21: 21 | B21: 2098 | C21: 11 | D21: 2111 | E21: 11 | F21: 2119 | K21: 0 | L21: 211 | P21: % of reinforcement given in 6 equal intervals based on number of trials
A22: 21 | B22: 2221 | C22: 11 | D22: 2235 | E22: 11 | F22: 2243 | K22: 0 | L22: 211 | P22: %_1 | Q22: %_2 | R22: %_3 | S22: %_4 | T22: %_5 | U22: %_6
A23: 21 | B23: 2346 | C23: 11 | D23: 2359 | E23: 11 | F23: 2366 | K23: 0 | L23: 211 | O23: target sequence | P23: =$G$3 -> 211 | Q23: =$G$3 -> 211 | R23: =$G$3 -> 211 | S23: =$G$3 -> 211 | T23: =$G$3 -> 211 | U23: =$G$3 -> 211
A24: 21 | B24: 2467 | C24: 11 | D24: 2479 | E24: 11 | F24: 2488 | K24: 0 | L24: 211 | O24: total reinforcement | P24: =U11 -> 7 | Q24: =Z11 -> 10 | R24: =AE11 -> 7 | S24: =AJ11 -> 7 | T24: =AO11 -> 3 | U24: =AT11 -> 4
A25: 21 | B25: 2622 | C25: 11 | D25: 2642 | E25: 11 | F25: 2650 | K25: 0 | L25: 211 | O25: % target
A26: 21 | B26: 2754 | C26: 11 | D26: 2767 | E26: 11 | F26: 2778 | K26: 0 | L26: 211 | O26: CCRF
A27: 12 | B27: 2867 | C27: 24 | D27: 2886 | E27: 13 | F27: 2899 | K27: 0 | L27: 121 | O27: % CCRf
A28: 21 | B28: 3008 | C28: 11 | D28: 3020 | E28: 11 | F28: 3028 | K28: 0 | L28: 211 | O28: average response rate | P28: =F19/P20 -> 143.9230769 | Q28: =(F32-F19)/Q20 -> 128.2307692 | R28: =(F46-F32)/R20 -> 128 | S28: =(F59-F46)/S20 -> 127.8461538 | T28: =(F72-F59)/T20 -> 126.5384615 | U28: =(F85-F72)/U20 -> 128.3076923
A29: 12 | B29: 3141 | C29: 13 | D29: 3149 | E29: 13 | F29: 3157 | K29: 0 | L29: 111
A30: 21 | B30: 3261 | C30: 22 | D30: 3279 | E30: 13 | F30: 3292 | K30: 0 | L30: 221
A31: 21 | B31: 3400 | C31: 11 | D31: 3412 | E31: 11 | F31: 3419 | K31: 0 | L31: 211
A32: 21 | B32: 3518 | C32: 11 | D32: 3530 | E32: 11 | F32: 3538 | K32: 0 | L32: 211
A33: 21 | B33: 3639 | C33: 11 | D33: 3652 | E33: 11 | F33: 3659 | K33: 0 | L33: 211
A34: 21 | B34: 3780 | C34: 11 | D34: 3793 | E34: 11 | F34: 3801 | K34: 0 | L34: 211
A35: 21 | B35: 3898 | C35: 11 | D35: 3913 | E35: 11 | F35: 3921 | K35: 0 | L35: 211
A36: 21 | B36: 4014 | C36: 22 | D36: 4029 | E36: 13 | F36: 4041 | K36: 0 | L36: 221
A37: 21 | B37: 4147 | C37: 22 | D37: 4160 | E37: 13 | F37: 4177 | K37: 0 | L37: 221
A38: 21 | B38: 4282 | C38: 22 | D38: 4300 | E38: 24 | F38: 4318 | K38: 0 | L38: 222
A39: 21 | B39: 4421 | C39: 22 | D39: 4429 | E39: 13 | F39: 4442 | K39: 0 | L39: 221
A40: 21 | B40: 4543 | C40: 22 | D40: 4558 | E40: 24 | F40: 4567 | K40: 0 | L40: 222
A41: 21 | B41: 4669 | C41: 22 | D41: 4674 | E41: 13 | F41: 4691 | K41: 0 | L41: 221
A42: 21 | B42: 4802 | C42: 11 | D42: 4822 | E42: 11 | F42: 4831 | K42: 0 | L42: 211
A43: 12 | B43: 4924 | C43: 24 | D43: 4936 | E43: 13 | F43: 4949 | K43: 0 | L43: 121
A44: 21 | B44: 5054 | C44: 11 | D44: 5080 | E44: 11 | F44: 5088 | K44: 0 | L44: 211
A45: 21 | B45: 5187 | C45: 11 | D45: 5203 | E45: 11 | F45: 5212 | K45: 0 | L45: 211
A46: 21 | B46: 5311 | C46: 11 | D46: 5322 | E46: 11 | F46: 5330 | K46: 0 | L46: 211
A47: 12 | B47: 5420 | C47: 24 | D47: 5429 | E47: 13 | F47: 5440 | K47: 0 | L47: 121
A48: 12 | B48: 5575 | C48: 13 | D48: 5583 | E48: 13 | F48: 5591 | K48: 0 | L48: 111
A49: 21 | B49: 5703 | C49: 11 | D49: 5720 | E49: 11 | F49: 5727 | K49: 0 | L49: 211
A50: 21 | B50: 5823 | C50: 22 | D50: 5835 | E50: 13 | F50: 5849 | K50: 0 | L50: 221
A51: 21 | B51: 5962 | C51: 11 | D51: 5975 | E51: 11 | F51: 5982 | K51: 0 | L51: 211
A52: 21 | B52: 6081 | C52: 11 | D52: 6093 | E52: 11 | F52: 6101 | K52: 0 | L52: 211
A53: 21 | B53: 6199 | C53: 11 | D53: 6211 | E53: 11 | F53: 6219 | K53: 0 | L53: 211
A54: 12 | B54: 6307 | C54: 24 | D54: 6315 | E54: 13 | F54: 6328 | K54: 0 | L54: 121
A55: 21 | B55: 6436 | C55: 11 | D55: 6450 | E55: 11 | F55: 6457 | K55: 0 | L55: 211
A56: 21 | B56: 6572 | C56: 11 | D56: 6583 | E56: 11 | F56: 6590 | K56: 0 | L56: 211
A57: 12 | B57: 6705 | C57: 13 | D57: 6714 | E57: 13 | F57: 6721 | K57: 0 | L57: 111
A58: 21 | B58: 6842 | C58: 11 | D58: 6859 | E58: 11 | F58: 6867 | K58: 0 | L58: 211
A59: 12 | B59: 6977 | C59: 13 | D59: 6984 | E59: 13 | F59: 6992 | K59: 0 | L59: 111
A60: 21 | B60: 7097 | C60: 22 | D60: 7107 | E60: 13 | F60: 7122 | K60: 0 | L60: 221
A61: 12 | B61: 7238 | C61: 13 | D61: 7246 | E61: 13 | F61: 7253 | K61: 0 | L61: 111
A62: 21 | B62: 7359 | C62: 11 | D62: 7370 | E62: 11 | F62: 7378 | K62: 0 | L62: 211
A63: 21 | B63: 7482 | C63: 11 | D63: 7493 | E63: 11 | F63: 7500 | K63: 0 | L63: 211
A64: 12 | B64: 7588 | C64: 13 | D64: 7594 | E64: 13 | F64: 7601 | K64: 0 | L64: 111
A65: 12 | B65: 7698 | C65: 24 | D65: 7710 | E65: 13 | F65: 7725 | K65: 0 | L65: 121
A66: 21 | B66: 7831 | C66: 11 | D66: 7844 | E66: 11 | F66: 7851 | K66: 0 | L66: 211
A67: 12 | B67: 7941 | C67: 24 | D67: 7949 | E67: 13 | F67: 7961 | K67: 0 | L67: 121
A68: 21 | B68: 8062 | C68: 22 | D68: 8079 | E68: 13 | F68: 8094 | K68: 0 | L68: 221
A69: 12 | B69: 8190 | C69: 24 | D69: 8226 | E69: 13 | F69: 8239 | K69: 0 | L69: 121
A70: 12 | B70: 8336 | C70: 24 | D70: 8345 | E70: 13 | F70: 8357 | K70: 0 | L70: 121
A71: 12 | B71: 8482 | C71: 13 | D71: 8490 | E71: 13 | F71: 8498 | K71: 0 | L71: 111
A72: 21 | B72: 8608 | C72: 22 | D72: 8619 | E72: 24 | F72: 8637 | K72: 0 | L72: 222
A73: 21 | B73: 8733 | C73: 22 | D73: 8739 | E73: 24 | F73: 8755 | K73: 0 | L73: 222
A74: 21 | B74: 8879 | C74: 11 | D74: 8892 | E74: 11 | F74: 8908 | K74: 0 | L74: 211
A75: 12 | B75: 9021 | C75: 13 | D75: 9028 | E75: 13 | F75: 9036 | K75: 0 | L75: 111
A76: 21 | B76: 9143 | C76: 22 | D76: 9152 | E76: 13 | F76: 9166 | K76: 0 | L76: 221
A77: 21 | B77: 9277 | C77: 11 | D77: 9292 | E77: 11 | F77: 9301 | K77: 0 | L77: 211
A78: 21 | B78: 9396 | C78: 11 | D78: 9426 | E78: 11 | F78: 9433 | K78: 0 | L78: 211
A79: 12 | B79: 9522 | C79: 24 | D79: 9530 | E79: 13 | F79: 9542 | K79: 0 | L79: 121
A80: 12 | B80: 9639 | C80: 24 | D80: 9659 | E80: 13 | F80: 9673 | K80: 0 | L80: 121
A81: 12 | B81: 9769 | C81: 24 | D81: 9779 | E81: 13 | F81: 9792 | K81: 0 | L81: 121
A82: 12 | B82: 9888 | C82: 24 | D82: 9900 | E82: 24 | F82: 9913 | K82: 0 | L82: 122
A83: 21 | B83: 10014 | C83: 22 | D83: 10034 | E83: 13 | F83: 10047 | K83: 0 | L83: 221
A84: 12 | B84: 10143 | C84: 24 | D84: 10153 | E84: 24 | F84: 10169 | K84: 0 | L84: 122
A85: 21 | B85: 10279 | C85: 11 | D85: 10297 | E85: 11 | F85: 10305 | K85: 1 | L85: 211

Sheet !M510A10.185
A1: Report for:!M510A10.185
A2: Date: | B2: <date>
A3: Hen: | B3: <hen> | F3: Correct Sequence | G3: =Start!J2 -> 211 | P3: Total Sequences in Data | Q3: =4994-COUNTBLANK(L7:L5000) -> 58 | V3: Total Sequences in Block Data | W3: =COUNTA(L7:L16) -> 10 | AA3: Total Sequences in Block Data | AB3: =COUNTA(L17:L25) -> 9 | AF3: Total Sequences in Block Data | AG3: =COUNTA(L26:L35) -> 10 | AK3: Total Sequences in Block Data | AL3: =COUNTA(L36:L45) -> 10 | AP3: Total Sequences in Block Data | AQ3: =COUNTA(L46:L54) -> 9 | AU3: Total Sequences in Block Data | AV3: =COUNTA(L55:L64) -> 10
P4: Total Sequences in Summary | Q4: =SUM(O7:O14) -> 58 | V4: Total Sequences in Block Summary | W4: =SUM(U7:U14) -> 10 | AA4: Total Sequences in Block Summary | AB4: =SUM(Z7:Z14) -> 9 | AF4: Total Sequences in Block Summary | AG4: =SUM(AE7:AE14) -> 10 | AK4: Total Sequences in Block Summary | AL4: =SUM(AJ7:AJ14) -> 10 | AP4: Total Sequences in Block Summary | AQ4: =SUM(AO7:AO14) -> 9 | AU4: Total Sequences in Block Summary | AV4: =SUM(AT7:AT14) -> 10
T5: Block 1 | Y5: Block 2 | AD5: Block 3 | AI5: Block 4 | AN5: Block 5 | AS5: Block 6
A6: Sequence Component 1 | B6: Time 1 | C6: Sequence Component 2 | D6: Time 2 | E6: Sequence Component 3 | F6: Time 3 | G6: Sequence Component 4 | H6: Time 4 | I6: Sequence Component 5 | J6: Time 5 | K6: Correct? 0=No 1=Yes | L6: Sequence | N6: Frequency | P6: Relative Frequency | Q6: Variability | T6: Frequency | V6: Relative Frequency | W6: Variability | Y6: Frequency | AA6: Relative Frequency | AB6: Variability | AD6: Frequency | AF6: Relative Frequency | AG6: Variability | AI6: Frequency | AK6: Relative Frequency | AL6: Variability | AN6: Frequency | AP6: Relative Frequency | AQ6: Variability | AS6: Frequency | AU6: Relative Frequency | AV6: Variability
A7: 12 | B7: 44 | C7: 24 | D7: 81 | E7: 13 | F7: 110 | K7: 0 | L7: 121 | N7: 111 | O7: =COUNTIF($L$7:$L$500,N7) -> 8 | P7: =O7/$Q$4 -> 0.1379310345 | Q7: =IF(P7=0,0,(P7*((LOG(P7))/LOG(2)))) -> -0.3942042752 | T7: =N7 -> 111 | U7: =COUNTIF(L7:L16,T7) -> 1 | V7: =U7/(W4-U11) -> 0.5 | W7: =IF(V7=0,0,(V7*((LOG(V7))/LOG(2)))) -> -0.5 | Y7: =N7 -> 111 | Z7: =COUNTIF(L17:L25,Y7) -> 2 | AA7: =Z7/(AB4-Z11) -> 0.4 | AB7: =IF(AA7=0,0,(AA7*((LOG(AA7))/LOG(2)))) -> -0.528771238 | AD7: =N7 -> 111 | AE7: =COUNTIF(L26:L35,AD7) -> 0 | AF7: =AE7/(AG4-AE11) -> 0 | AG7: =IF(AF7=0,0,(AF7*((LOG(AF7))/LOG(2)))) -> 0 | AI7: =N7 -> 111 | AJ7: =COUNTIF(L36:L45,AI7) -> 0 | AK7: =AJ7/(AL4-AJ11) -> 0 | AL7: =IF(AK7=0,0,(AK7*((LOG(AK7))/LOG(2)))) -> 0 | AN7: =N7 -> 111 | AO7: =COUNTIF(L46:L54,AN7) -> 2 | AP7: =AO7/(AQ4-AO11) -> 1 | AQ7: =IF(AP7=0,0,(AP7*((LOG(AP7))/LOG(2)))) -> 0 | AS7: =N7 -> 111 | AT7: =COUNTIF(L55:L64,AS7) -> 3 | AU7: =AT7/(AV4-AT11) -> 0.5 | AV7: =IF(AU7=0,0,(AU7*((LOG(AU7))/LOG(2)))) -> -0.5
A8: 21 | B8: 247 | C8: 11 | D8: 260 | E8: 11 | F8: 269 | K8: 0 | L8: 211 | N8: 112 | O8: =COUNTIF($L$7:$L$500,N8) -> 1 | P8: =O8/$Q$4 -> 0.01724137931 | Q8: =IF(P8=0,0,(P8*((LOG(P8))/LOG(2)))) -> -0.1009996723 | T8: =N8 -> 112 | U8: =COUNTIF(L7:L16,T8) -> 0 | V8: =U8/(W4-U11) -> 0 | W8: =IF(V8=0,0,(V8*((LOG(V8))/LOG(2)))) -> 0 | Y8: =N8 -> 112 | Z8: =COUNTIF(L17:L25,Y8) -> 1 | AA8: =Z8/(AB4-Z11) -> 0.2 | AB8: =IF(AA8=0,0,(AA8*((LOG(AA8))/LOG(2)))) -> -0.464385619 | AD8: =N8 -> 112 | AE8: =COUNTIF(L26:L35,AD8) -> 0 | AF8: =AE8/(AG4-AE11) -> 0 | AG8: =IF(AF8=0,0,(AF8*((LOG(AF8))/LOG(2)))) -> 0 | AI8: =N8 -> 112 | AJ8: =COUNTIF(L36:L45,AI8) -> 0 | AK8: =AJ8/(AL4-AJ11) -> 0 | AL8: =IF(AK8=0,0,(AK8*((LOG(AK8))/LOG(2)))) -> 0 | AN8: =N8 -> 112 | AO8: =COUNTIF(L46:L54,AN8) -> 0 | AP8: =AO8/(AQ4-AO11) -> 0 | AQ8: =IF(AP8=0,0,(AP8*((LOG(AP8))/LOG(2)))) -> 0 | AS8: =N8 -> 112 | AT8: =COUNTIF(L55:L64,AS8) -> 0 | AU8: =AT8/(AV4-AT11) -> 0 | AV8: =IF(AU8=0,0,(AU8*((LOG(AU8))/LOG(2)))) -> 0
A9: 21 | B9: 377 | C9: 11 | D9: 391 | E9: 11 | F9: 398 | K9: 0 | L9: 211 | N9: 121 | O9: =COUNTIF($L$7:$L$500,N9) -> 4 | P9: =O9/$Q$4 -> 0.06896551724 | Q9: =IF(P9=0,0,(P9*((LOG(P9))/LOG(2)))) -> -0.2660676548 | T9: =N9 -> 121 | U9: =COUNTIF(L7:L16,T9) -> 1 | V9: =U9/(W4-U11) -> 0.5 | W9: =IF(V9=0,0,(V9*((LOG(V9))/LOG(2)))) -> -0.5 | Y9: =N9 -> 121 | Z9: =COUNTIF(L17:L25,Y9) -> 0 | AA9: =Z9/(AB4-Z11) -> 0 | AB9: =IF(AA9=0,0,(AA9*((LOG(AA9))/LOG(2)))) -> 0 | AD9: =N9 -> 121 | AE9: =COUNTIF(L26:L35,AD9) -> 1 | AF9: =AE9/(AG4-AE11) -> 0.3333333333 | AG9: =IF(AF9=0,0,(AF9*((LOG(AF9))/LOG(2)))) -> -0.5283208336 | AI9: =N9 -> 121 | AJ9: =COUNTIF(L36:L45,AI9) -> 1 | AK9: =AJ9/(AL4-AJ11) -> 1 | AL9: =IF(AK9=0,0,(AK9*((LOG(AK9))/LOG(2)))) -> 0 | AN9: =N9 -> 121 | AO9: =COUNTIF(L46:L54,AN9) -> 0 | AP9: =AO9/(AQ4-AO11) -> 0 | AQ9: =IF(AP9=0,0,(AP9*((LOG(AP9))/LOG(2)))) -> 0 | AS9: =N9 -> 121 | AT9: =COUNTIF(L55:L64,AS9) -> 1 | AU9: =AT9/(AV4-AT11) -> 0.1666666667 | AV9: =IF(AU9=0,0,(AU9*((LOG(AU9))/LOG(2)))) -> -0.4308270835
A10: 12 | B10: 519 | C10: 13 | D10: 527 | E10: 13 | F10: 553 | K10: 0 | L10: 111 | N10: 122 | O10: =COUNTIF($L$7:$L$500,N10) -> 0 | P10: =O10/$Q$4 -> 0 | Q10: =IF(P10=0,0,(P10*((LOG(P10))/LOG(2)))) -> 0 | T10: =N10 -> 122 | U10: =COUNTIF(L7:L16,T10) -> 0 | V10: =U10/(W4-U11) -> 0 | W10: =IF(V10=0,0,(V10*((LOG(V10))/LOG(2)))) -> 0 | Y10: =N10 -> 122 | Z10: =COUNTIF(L17:L25,Y10) -> 0 | AA10: =Z10/(AB4-Z11) -> 0 | AB10: =IF(AA10=0,0,(AA10*((LOG(AA10))/LOG(2)))) -> 0 | AD10: =N10 -> 122 | AE10: =COUNTIF(L26:L35,AD10) -> 0 | AF10: =AE10/(AG4-AE11) -> 0 | AG10: =IF(AF10=0,0,(AF10*((LOG(AF10))/LOG(2)))) -> 0 | AI10: =N10 -> 122 | AJ10: =COUNTIF(L36:L45,AI10) -> 0 | AK10: =AJ10/(AL4-AJ11) -> 0 | AL10: =IF(AK10=0,0,(AK10*((LOG(AK10))/LOG(2)))) -> 0 | AN10: =N10 -> 122 | AO10: =COUNTIF(L46:L54,AN10) -> 0 | AP10: =AO10/(AQ4-AO11) -> 0 | AQ10: =IF(AP10=0,0,(AP10*((LOG(AP10))/LOG(2)))) -> 0 | AS10: =N10 -> 122 | AT10: =COUNTIF(L55:L64,AS10) -> 0 | AU10: =AT10/(AV4-AT11) -> 0 | AV10: =IF(AU10=0,0,(AU10*((LOG(AU10))/LOG(2)))) -> 0
A11: 21 | B11: 669 | C11: 11 | D11: 682 | E11: 11 | F11: 691 | K11: 0 | L11: 211 | N11: 211 | O11: =COUNTIF($L$7:$L$500,N11) -> 39 | P11: =O11/$Q$4 -> 0.6724137931 | Q11: =IF(P11=0,0,(P11*((LOG(P11))/LOG(2)))) -> -0.3850098668 | T11: =N11 -> 211 | U11: =COUNTIF(L7:L16,T11) -> 8 | Y11: =N11 -> 211 | Z11: =COUNTIF(L17:L25,Y11) -> 4 | AD11: =N11 -> 211 | AE11: =COUNTIF(L26:L35,AD11) -> 7 | AI11: =N11 -> 211 | AJ11: =COUNTIF(L36:L45,AI11) -> 9 | AN11: =N11 -> 211 | AO11: =COUNTIF(L46:L54,AN11) -> 7 | AS11: =N11 -> 211 | AT11: =COUNTIF(L55:L64,AS11) -> 4
A12: 21 | B12: 814 | C12: 11 | D12: 829 | E12: 11 | F12: 837 | K12: 0 | L12: 211 | N12: 212 | O12: =COUNTIF($L$7:$L$500,N12) -> 0 | P12: =O12/$Q$4 -> 0 | Q12: =IF(P12=0,0,(P12*((LOG(P12))/LOG(2)))) -> 0 | T12: =N12 -> 212 | U12: =COUNTIF(L7:L16,T12) -> 0 | V12: =U12/(W4-U11) -> 0 | W12: =IF(V12=0,0,(V12*((LOG(V12))/LOG(2)))) -> 0 | Y12: =N12 -> 212 | Z12: =COUNTIF(L17:L25,Y12) -> 0 | AA12: =Z12/(AB4-Z11) -> 0 | AB12: =IF(AA12=0,0,(AA12*((LOG(AA12))/LOG(2)))) -> 0 | AD12: =N12 -> 212 | AE12: =COUNTIF(L26:L35,AD12) -> 0 | AF12: =AE12/(AG4-AE11) -> 0 | AG12: =IF(AF12=0,0,(AF12*((LOG(AF12))/LOG(2)))) -> 0 | AI12: =N12 -> 212 | AJ12: =COUNTIF(L36:L45,AI12) -> 0 | AK12: =AJ12/(AL4-AJ11) -> 0 | AL12: =IF(AK12=0,0,(AK12*((LOG(AK12))/LOG(2)))) -> 0 | AN12: =N12 -> 212 | AO12: =COUNTIF(L46:L54,AN12) -> 0 | AP12: =AO12/(AQ4-AO11) -> 0 | AQ12: =IF(AP12=0,0,(AP12*((LOG(AP12))/LOG(2)))) -> 0 | AS12: =N12 -> 212 | AT12: =COUNTIF(L55:L64,AS12) -> 0 | AU12: =AT12/(AV4-AT11) -> 0 | AV12: =IF(AU12=0,0,(AU12*((LOG(AU12))/LOG(2)))) -> 0
A13: 21 | B13: 939 | C13: 11 | D13: 952 | E13: 11 | F13: 959 | K13: 0 | L13: 211 | N13: 221 | O13: =COUNTIF($L$7:$L$500,N13) -> 5 | P13: =O13/$Q$4 -> 0.08620689655 | Q13: =IF(P13=0,0,(P13*((LOG(P13))/LOG(2)))) -> -0.3048321466 | T13: =N13 -> 221 | U13: =COUNTIF(L7:L16,T13) -> 0 | V13: =U13/(W4-U11) -> 0 | W13: =IF(V13=0,0,(V13*((LOG(V13))/LOG(2)))) -> 0 | Y13: =N13 -> 221 | Z13: =COUNTIF(L17:L25,Y13) -> 2 | AA13: =Z13/(AB4-Z11) -> 0.4 | AB13: =IF(AA13=0,0,(AA13*((LOG(AA13))/LOG(2)))) -> -0.528771238 | AD13: =N13 -> 221 | AE13: =COUNTIF(L26:L35,AD13) -> 1 | AF13: =AE13/(AG4-AE11) -> 0.3333333333 | AG13: =IF(AF13=0,0,(AF13*((LOG(AF13))/LOG(2)))) -> -0.5283208336 | AI13: =N13 -> 221 | AJ13: =COUNTIF(L36:L45,AI13) -> 0 | AK13: =AJ13/(AL4-AJ11) -> 0 | AL13: =IF(AK13=0,0,(AK13*((LOG(AK13))/LOG(2)))) -> 0 | AN13: =N13 -> 221 | AO13: =COUNTIF(L46:L54,AN13) -> 0 | AP13: =AO13/(AQ4-AO11) -> 0 | AQ13: =IF(AP13=0,0,(AP13*((LOG(AP13))/LOG(2)))) -> 0 | AS13: =N13 -> 221 | AT13: =COUNTIF(L55:L64,AS13) -> 2 | AU13: =AT13/(AV4-AT11) -> 0.3333333333 | AV13: =IF(AU13=0,0,(AU13*((LOG(AU13))/LOG(2)))) -> -0.5283208336
A14: 21 | B14: 1057 | C14: 11 | D14: 1068 | E14: 11 | F14: 1076 | K14: 0 | L14: 211 | N14: 222 | O14: =COUNTIF($L$7:$L$500,N14) -> 1 | P14: =O14/$Q$4 -> 0.01724137931 | Q14: =IF(P14=0,0,(P14*((LOG(P14))/LOG(2)))) -> -0.1009996723 | T14: =N14 -> 222 | U14: =COUNTIF(L7:L16,T14) -> 0 | V14: =U14/(W4-U11) -> 0 | W14: =IF(V14=0,0,(V14*((LOG(V14))/LOG(2)))) -> 0 | Y14: =N14 -> 222 | Z14: =COUNTIF(L17:L25,Y14) -> 0 | AA14: =Z14/(AB4-Z11) -> 0 | AB14: =IF(AA14=0,0,(AA14*((LOG(AA14))/LOG(2)))) -> 0 | AD14: =N14 -> 222 | AE14: =COUNTIF(L26:L35,AD14) -> 1 | AF14: =AE14/(AG4-AE11) -> 0.3333333333 | AG14: =IF(AF14=0,0,(AF14*((LOG(AF14))/LOG(2)))) -> -0.5283208336 | AI14: =N14 -> 222 | AJ14: =COUNTIF(L36:L45,AI14) -> 0 | AK14: =AJ14/(AL4-AJ11) -> 0 | AL14: =IF(AK14=0,0,(AK14*((LOG(AK14))/LOG(2)))) -> 0 | AN14: =N14 -> 222 | AO14: =COUNTIF(L46:L54,AN14) -> 0 | AP14: =AO14/(AQ4-AO11) -> 0 | AQ14: =IF(AP14=0,0,(AP14*((LOG(AP14))/LOG(2)))) -> 0 | AS14: =N14 -> 222 | AT14: =COUNTIF(L55:L64,AS14) -> 0 | AU14: =AT14/(AV4-AT11) -> 0 | AV14: =IF(AU14=0,0,(AU14*((LOG(AU14))/LOG(2)))) -> 0
A15: 21 | B15: 1178 | C15: 11 | D15: 1190 | E15: 11 | F15: 1198 | K15: 0 | L15: 211 | P15: =SUM(P7:P14) -> 1 | Q15: =-SUM(Q7:Q14) -> 1.552113288 | V15: =SUM(V7:V14) -> 1 | W15: =-SUM(W7:W14) -> 1 | AA15: =SUM(AA7:AA14) -> 1 | AB15: =-SUM(AB7:AB14) -> 1.521928095 | AF15: =SUM(AF7:AF14) -> 1 | AG15: =-SUM(AG7:AG14) -> 1.584962501 | AK15: =SUM(AK7:AK14) -> 1 | AL15: =-SUM(AL7:AL14) -> 0 | AP15: =SUM(AP7:AP14) -> 1 | AQ15: =-SUM(AQ7:AQ14) -> 0 | AU15: =SUM(AU7:AU14) -> 1 | AV15: =-SUM(AV7:AV14) -> 1.459147917
A16: 21 | B16: 1296 | C16: 11 | D16: 1311 | E16: 11 | F16: 1319 | K16: 0 | L16: 211 | P16: U= | Q16: =Q15/(LOG(Q4)/LOG(2)) -> 0.2649570371 | V16: U1= | W16: =W15/(LOG(W4)/LOG(2)) -> 0.3010299957 | AA16: U2= | AB16: =AB15/(LOG(AB4)/LOG(2)) -> 0.4801148589 | AF16: U3= | AG16: =AG15/(LOG(AG4)/LOG(2)) -> 0.4771212547 | AK16: U4= | AL16: =AL15/(LOG(AL4)/LOG(2)) -> 0 | AP16: U5= | AQ16: =AQ15/(LOG(AQ4)/LOG(2)) -> 0 | AU16: U6= | AV16: =AV15/(LOG(AV4)/LOG(2)) -> 0.4392472911
A17: 21 | B17: 1417 | C17: 11 | D17: 1429 | E17: 11 | F17: 1437 | K17: 0 | L17: 211
A18: 12 | B18: 1550 | C18: 13 | D18: 1566 | E18: 24 | F18: 1599 | K18: 0 | L18: 112
A19: 12 | B19: 1710 | C19: 13 | D19: 1717 | E19: 13 | F19: 1724 | K19: 0 | L19: 111 | N19: Total Target Seq
A20: 21 | B20: 1827 | C20: 22 | D20: 1846 | E20: 13 | F20: 1858 | K20: 0 | L20: 221 | N20: =COUNTIF(L7:L64,G3) -> 39 | P20: 10 | Q20: 9 | R20: 10 | S20: 10 | T20: 9 | U20: 10
A21: 21 | B21: 1961 | C21: 22 | D21: 1970 | E21: 13 | F21: 1987 | K21: 0 | L21: 221 | P21: % of reinforcement given in 6 equal intervals based on number of trials
A22: 12 | B22: 2119 | C22: 13 | D22: 2126 | E22: 13 | F22: 2134 | K22: 0 | L22: 111 | P22: %_1 | Q22: %_2 | R22: %_3 | S22: %_4 | T22: %_5 | U22: %_6
A23: 21 | B23: 2237 | C23: 11 | D23: 2249 | E23: 11 | F23: 2256 | K23: 0 | L23: 211 | O23: target sequence | P23: =$G$3 -> 211 | Q23: =$G$3 -> 211 | R23: =$G$3 -> 211 | S23: =$G$3 -> 211 | T23: =$G$3 -> 211 | U23: =$G$3 -> 211
A24: 21 | B24: 2355 | C24: 11 | D24: 2367 | E24: 11 | F24: 2374 | K24: 0 | L24: 211 | O24: total reinforcement | P24: =U11 -> 8 | Q24: =Z11 -> 4 | R24: =AE11 -> 7 | S24: =AJ11 -> 9 | T24: =AO11 -> 7 | U24: =AT11 -> 4
A25: 21 | B25: 2495 | C25: 11 | D25: 2508 | E25: 11 | F25: 2515 | K25: 0 | L25: 211 | O25: % target
A26: 21 | B26: 2615 | C26: 11 | D26: 2627 | E26: 11 | F26: 2635 | K26: 0 | L26: 211 | O26: CCRF
A27: 21 | B27: 2730 | C27: 11 | D27: 2739 | E27: 11 | F27: 2745 | K27: 0 | L27: 211 | O27: % CCRf
A28: 21 | B28: 2840 | C28: 11 | D28: 2851 | E28: 11 | F28: 2858 | K28: 0 | L28: 211 | O28: average response rate | P28: =F16/P20 -> 131.9 | Q28: =(F25-F16)/Q20 -> 132.8888889 | R28: =(F35-F25)/R20 -> 125.6 | S28: =(F45-F35)/S20 -> 124.4 | T28: =(F54-F45)/T20 -> 123.2222222 | U28: =(F64-F54)/U20 -> 125.3
A29: 21 | B29: 2958 | C29: 11 | D29: 2998 | E29: 11 | F29: 3006 | K29: 0 | L29: 211
A30: 21 | B30: 3110 | C30: 11 | D30: 3124 | E30: 11 | F30: 3131 | K30: 0 | L30: 211
A31: 12 | B31: 3220 | C31: 24 | D31: 3229 | E31: 13 | F31: 3241 | K31: 0 | L31: 121
A32: 21 | B32: 3351 | C32: 22 | D32: 3369 | E32: 24 | F32: 3397 | K32: 0 | L32: 222
A33: 21 | B33: 3504 | C33: 11 | D33: 3516 | E33: 11 | F33: 3523 | K33: 0 | L33: 211
A34: 21 | B34: 3622 | C34: 22 | D34: 3635 | E34: 13 | F34: 3649 | K34: 0 | L34: 221
A35: 21 | B35: 3752 | C35: 11 | D35: 3764 | E35: 11 | F35: 3771 | K35: 0 | L35: 211
A36: 21 | B36: 3869 | C36: 11 | D36: 3882 | E36: 11 | F36: 3889 | K36: 0 | L36: 211
A37: 21 | B37: 3987 | C37: 11 | D37: 3999 | E37: 11 | F37: 4007 | K37: 0 | L37: 211
A38: 21 | B38: 4125 | C38: 11 | D38: 4135 | E38: 11 | F38: 4143 | K38: 0 | L38: 211
A39: 21 | B39: 4248 | C39: 11 | D39: 4258 | E39: 11 | F39: 4265 | K39: 0 | L39: 211
A40: 21 | B40: 4363 | C40: 11 | D40: 4375 | E40: 11 | F40: 4389 | K40: 0 | L40: 211
A41: 21 | B41: 4502 | C41: 11 | D41: 4514 | E41: 11 | F41: 4521 | K41: 0 | L41: 211
A42: 21 | B42: 4619 | C42: 11 | D42: 4632 | E42: 11 | F42: 4639 | K42: 0 | L42: 211
A43: 12 | B43: 4737 | C43: 24 | D43: 4754 | E43: 13 | F43: 4766 | K43: 0 | L43: 121
A44: 21 | B44: 4881 | C44: 11 | D44: 4893 | E44: 11 | F44: 4901 | K44: 0 | L44: 211
A45: 21 | B45: 4996 | C45: 11 | D45: 5008 | E45: 11 | F45: 5015 | K45: 0 | L45: 211
A46: 12 | B46: 5126 | C46: 13 | D46: 5133 | E46: 13 | F46: 5141 | K46: 0 | L46: 111
A47: 21 | B47: 5248 | C47: 11 | D47: 5260 | E47: 11 | F47: 5267 | K47: 0 | L47: 211
A48: 21 | B48: 5365 | C48: 11 | D48: 5377 | E48: 11 | F48: 5384 | K48: 0 | L48: 211
A49: 12 | B49: 5488 | C49: 13 | D49: 5495 | E49: 13 | F49: 5514 | K49: 0 | L49: 111
A50: 21 | B50: 5621 | C50: 11 | D50: 5634 | E50: 11 | F50: 5641 | K50: 0 | L50: 211
A51: 21 | B51: 5738 | C51: 11 | D51: 5750 | E51: 11 | F51: 5756 | K51: 0 | L51: 211
A52: 21 | B52: 5857 | C52: 11 | D52: 5869 | E52: 11 | F52: 5876 | K52: 0 | L52: 211
A53: 21 | B53: 5974 | C53: 11 | D53: 5988 | E53: 11 | F53: 5994 | K53: 0 | L53: 211
A54: 21 | B54: 6104 | C54: 11 | D54: 6116 | E54: 11 | F54: 6124 | K54: 0 | L54: 211
A55: 12 | B55: 6235 | C55: 13 | D55: 6245 | E55: 13 | F55: 6252 | K55: 0 | L55: 111
A56: 21 | B56: 6361 | C56: 11 | D56: 6371 | E56: 11 | F56: 6378 | K56: 0 | L56: 211
A57: 21 | B57: 6477 | C57: 22 | D57: 6488 | E57: 13 | F57: 6501 | K57: 0 | L57: 221
A58: 21 | B58: 6612 | C58: 11 | D58: 6625 | E58: 11 | F58: 6632 | K58: 0 | L58: 211
A59: 21 | B59: 6733 | C59: 22 | D59: 6749 | E59: 13 | F59: 6762 | K59: 0 | L59: 221
A60: 21 | B60: 6867 | C60: 11 | D60: 6880 | E60: 11 | F60: 6888 | K60: 0 | L60: 211
A61: 12 | B61: 6979 | C61: 13 | D61: 7003 | E61: 13 | F61: 7010 | K61: 0 | L61: 111
A62: 12 | B62: 7106 | C62: 24 | D62: 7124 | E62: 13 | F62: 7136 | K62: 0 | L62: 121
A63: 12 | B63: 7232 | C63: 13 | D63: 7239 | E63: 13 | F63: 7247 | K63: 0 | L63: 111
A64: 21 | B64: 7356 | C64: 11 | D64: 7370 | E64: 11 | F64: 7377 | K64: 1 | L64: 211

Sheet !M511A30.185
A1: Report for:!M511A30.185
A2: Date: | B2: <date>
A3: Hen: | B3: <hen> | F3: Correct Sequence | G3: =Start!J2 -> 211 | P3: Total Sequences in Data | Q3: =4994-COUNTBLANK(L7:L5000) -> 100 | V3: Total Sequences in Block Data | W3: =COUNTA(L7:L23) -> 17 | AA3: Total Sequences in Block Data | AB3: =COUNTA(L24:L39) -> 16 | AF3: Total Sequences in Block Data | AG3: =COUNTA(L40:L56) -> 17 | AK3: Total Sequences in Block Data | AL3: =COUNTA(L57:L73) -> 17 | AP3: Total Sequences in Block Data | AQ3: =COUNTA(L74:L89) -> 16 | AU3: Total Sequences in Block Data | AV3: =COUNTA(L90:L106) -> 17
P4: Total Sequences in Summary | Q4: =SUM(O7:O14) -> 100 | V4: Total Sequences in Block Summary | W4: =SUM(U7:U14) -> 17 | AA4: Total Sequences in Block Summary | AB4: =SUM(Z7:Z14) -> 16 | AF4: Total Sequences in Block Summary | AG4: =SUM(AE7:AE14) -> 17 | AK4: Total Sequences in Block Summary | AL4: =SUM(AJ7:AJ14) -> 17 | AP4: Total Sequences in Block Summary | AQ4: =SUM(AO7:AO14) -> 16 | AU4: Total Sequences in Block Summary | AV4: =SUM(AT7:AT14) -> 17
T5: Block 1 | Y5: Block 2 | AD5: Block 3 | AI5: Block 4 | AN5: Block 5 | AS5: Block 6
A6: Sequence Component 1 | B6: Time 1 | C6: Sequence Component 2 | D6: Time 2 | E6: Sequence Component 3 | F6: Time 3 | G6: Sequence Component 4 | H6: Time 4 | I6: Sequence Component 5 | J6: Time 5 | K6: Correct? 0=No 1=Yes | L6: Sequence | N6: Frequency | P6: Relative Frequency | Q6: Variability | T6: Frequency | V6: Relative Frequency | W6: Variability | Y6: Frequency | AA6: Relative Frequency | AB6: Variability | AD6: Frequency | AF6: Relative Frequency | AG6: Variability | AI6: Frequency | AK6: Relative Frequency | AL6: Variability | AN6: Frequency | AP6: Relative Frequency | AQ6: Variability | AS6: Frequency | AU6: Relative Frequency | AV6: Variability
A7: 21 | B7: 19 | C7: 11 | D7: 34 | E7: 22 | F7: 47 | K7: 0 | L7: 212 | N7: 111 | O7: =COUNTIF($L$7:$L$500,N7) -> 45 | P7: =O7/$Q$4 -> 0.45 | Q7: =IF(P7=0,0,(P7*((LOG(P7))/LOG(2)))) -> -0.5184013921 | T7: =N7 -> 111 | U7: =COUNTIF(L7:L23,T7) -> 5 | V7: =U7/(W4-U11) -> 0.7142857143 | W7: =IF(V7=0,0,(V7*((LOG(V7))/LOG(2)))) -> -0.346733448 | Y7: =N7 -> 111 | Z7: =COUNTIF(L24:L39,Y7) -> 13 | AA7: =Z7/(AB4-Z11) -> 1 | AB7: =IF(AA7=0,0,(AA7*((LOG(AA7))/LOG(2)))) -> 0 | AD7: =N7 -> 111 | AE7: =COUNTIF(L40:L56,AD7) -> 8 | AF7: =AE7/(AG4-AE11) -> 0.6666666667 | AG7: =IF(AF7=0,0,(AF7*((LOG(AF7))/LOG(2)))) -> -0.3899750005 | AI7: =N7 -> 111 | AJ7: =COUNTIF(L57:L73,AI7) -> 6 | AK7: =AJ7/(AL4-AJ11) -> 0.4285714286 | AL7: =IF(AK7=0,0,(AK7*((LOG(AK7))/LOG(2)))) -> -0.5238824663 | AN7: =N7 -> 111 | AO7: =COUNTIF(L74:L89,AN7) -> 6 | AP7: =AO7/(AQ4-AO11) -> 0.8571428571 | AQ7: =IF(AP7=0,0,(AP7*((LOG(AP7))/LOG(2)))) -> -0.1906220754 | AS7: =N7 -> 111 | AT7: =COUNTIF(L90:L106,AS7) -> 7 | AU7: =AT7/(AV4-AT11) -> 0.875 | AV7: =IF(AU7=0,0,(AU7*((LOG(AU7))/LOG(2)))) -> -0.1685644432
A8: 21 | B8: 153 | C8: 11 | D8: 165 | E8: 11 | F8: 172 | K8: 0 | L8: 211 | N8: 112 | O8: =COUNTIF($L$7:$L$500,N8) -> 0 | P8: =O8/$Q$4 -> 0 | Q8: =IF(P8=0,0,(P8*((LOG(P8))/LOG(2)))) -> 0 | T8: =N8 -> 112 | U8: =COUNTIF(L7:L23,T8) -> 0 | V8: =U8/(W4-U11) -> 0 | W8: =IF(V8=0,0,(V8*((LOG(V8))/LOG(2)))) -> 0 | Y8: =N8 -> 112 | Z8: =COUNTIF(L24:L39,Y8) -> 0 | AA8: =Z8/(AB4-Z11) -> 0 | AB8: =IF(AA8=0,0,(AA8*((LOG(AA8))/LOG(2)))) -> 0 | AD8: =N8 -> 112 | AE8: =COUNTIF(L40:L56,AD8) -> 0 | AF8: =AE8/(AG4-AE11) -> 0 | AG8: =IF(AF8=0,0,(AF8*((LOG(AF8))/LOG(2)))) -> 0 | AI8: =N8 -> 112 | AJ8: =COUNTIF(L57:L73,AI8) -> 0 | AK8: =AJ8/(AL4-AJ11) -> 0 | AL8: =IF(AK8=0,0,(AK8*((LOG(AK8))/LOG(2)))) -> 0 | AN8: =N8 -> 112 | AO8: =COUNTIF(L74:L89,AN8) -> 0 | AP8: =AO8/(AQ4-AO11) -> 0 | AQ8: =IF(AP8=0,0,(AP8*((LOG(AP8))/LOG(2)))) -> 0 | AS8: =N8 -> 112 | AT8: =COUNTIF(L90:L106,AS8) -> 0 | AU8: =AT8/(AV4-AT11) -> 0 | AV8: =IF(AU8=0,0,(AU8*((LOG(AU8))/LOG(2)))) -> 0
A9: 21 | B9: 270 | C9: 11 | D9: 282 | E9: 11 | F9: 297 | K9: 0 | L9: 211 | N9: 121 | O9: =COUNTIF($L$7:$L$500,N9) -> 6 | P9: =O9/$Q$4 -> 0.06 | Q9: =IF(P9=0,0,(P9*((LOG(P9))/LOG(2)))) -> -0.2435336213 | T9: =N9 -> 121 | U9: =COUNTIF(L7:L23,T9) -> 0 | V9: =U9/(W4-U11) -> 0 | W9: =IF(V9=0,0,(V9*((LOG(V9))/LOG(2)))) -> 0 | Y9: =N9 -> 121 | Z9: =COUNTIF(L24:L39,Y9) -> 0 | AA9: =Z9/(AB4-Z11) -> 0 | AB9: =IF(AA9=0,0,(AA9*((LOG(AA9))/LOG(2)))) -> 0 | AD9: =N9 -> 121 | AE9: =COUNTIF(L40:L56,AD9) -> 3 | AF9: =AE9/(AG4-AE11) -> 0.25 | AG9: =IF(AF9=0,0,(AF9*((LOG(AF9))/LOG(2)))) -> -0.5 | AI9: =N9 -> 121 | AJ9: =COUNTIF(L57:L73,AI9) -> 2 | AK9: =AJ9/(AL4-AJ11) -> 0.1428571429 | AL9: =IF(AK9=0,0,(AK9*((LOG(AK9))/LOG(2)))) -> -0.4010507032 | AN9: =N9 -> 121 | AO9: =COUNTIF(L74:L89,AN9) -> 0 | AP9: =AO9/(AQ4-AO11) -> 0 | AQ9: =IF(AP9=0,0,(AP9*((LOG(AP9))/LOG(2)))) -> 0 | AS9: =N9 -> 121 | AT9: =COUNTIF(L90:L106,AS9) -> 1 | AU9: =AT9/(AV4-AT11) -> 0.125 | AV9: =IF(AU9=0,0,(AU9*((LOG(AU9))/LOG(2)))) -> -0.375
A10: 12 | B10: 409 | C10: 13 | D10: 416 | E10: 13 | F10: 425 | K10: 0 | L10: 111 | N10: 122 | O10: =COUNTIF($L$7:$L$500,N10) -> 0 | P10: =O10/$Q$4 -> 0 | Q10: =IF(P10=0,0,(P10*((LOG(P10))/LOG(2)))) -> 0 | T10: =N10 -> 122 | U10: =COUNTIF(L7:L23,T10) -> 0 | V10: =U10/(W4-U11) -> 0 | W10: =IF(V10=0,0,(V10*((LOG(V10))/LOG(2)))) -> 0 | Y10: =N10 -> 122 | Z10: =COUNTIF(L24:L39,Y10) -> 0 | AA10: =Z10/(AB4-Z11) -> 0 | AB10: =IF(AA10=0,0,(AA10*((LOG(AA10))/LOG(2)))) -> 0 | AD10: =N10 -> 122 | AE10: =COUNTIF(L40:L56,AD10) -> 0 | AF10: =AE10/(AG4-AE11) -> 0 | AG10: =IF(AF10=0,0,(AF10*((LOG(AF10))/LOG(2)))) -> 0 | AI10: =N10 -> 122 | AJ10: =COUNTIF(L57:L73,AI10) -> 0 | AK10: =AJ10/(AL4-AJ11) -> 0 | AL10: =IF(AK10=0,0,(AK10*((LOG(AK10))/LOG(2)))) -> 0 | AN10: =N10 -> 122 | AO10: =COUNTIF(L74:L89,AN10) -> 0 | AP10: =AO10/(AQ4-AO11) -> 0 | AQ10: =IF(AP10=0,0,(AP10*((LOG(AP10))/LOG(2)))) -> 0 | AS10: =N10 -> 122 | AT10: =COUNTIF(L90:L106,AS10) -> 0 | AU10: =AT10/(AV4-AT11) -> 0 | AV10: =IF(AU10=0,0,(AU10*((LOG(AU10))/LOG(2)))) -> 0
A11: 21 | B11: 538 | C11: 11 | D11: 549 | E11: 11 | F11: 600 | K11: 0 | L11: 211 | N11: 211 | O11: =COUNTIF($L$7:$L$500,N11) -> 39 | P11: =O11/$Q$4 -> 0.39 | Q11: =IF(P11=0,0,(P11*((LOG(P11))/LOG(2)))) -> -0.5297970487 | T11: =N11 -> 211 | U11: =COUNTIF(L7:L23,T11) -> 10 | Y11: =N11 -> 211 | Z11: =COUNTIF(L24:L39,Y11) -> 3 | AD11: =N11 -> 211 | AE11: =COUNTIF(L40:L56,AD11) -> 5 | AI11: =N11 -> 211 | AJ11: =COUNTIF(L57:L73,AI11) -> 3 | AN11: =N11 -> 211 | AO11: =COUNTIF(L74:L89,AN11) -> 9 | AS11: =N11 -> 211 | AT11: =COUNTIF(L90:L106,AS11) -> 9
A12: 21 | B12: 699 | C12: 11 | D12: 709 | E12: 11 | F12: 717 | K12: 0 | L12: 211 | N12: 212 | O12: =COUNTIF($L$7:$L$500,N12) -> 2 | P12: =O12/$Q$4 -> 0.02 | Q12: =IF(P12=0,0,(P12*((LOG(P12))/LOG(2)))) -> -0.1128771238 | T12: =N12 -> 212 | U12: =COUNTIF(L7:L23,T12) -> 1 | V12: =U12/(W4-U11) -> 0.1428571429 | W12: =IF(V12=0,0,(V12*((LOG(V12))/LOG(2)))) -> -0.4010507032 | Y12: =N12 -> 212 | Z12: =COUNTIF(L24:L39,Y12) -> 0 | AA12: =Z12/(AB4-Z11) -> 0 | AB12: =IF(AA12=0,0,(AA12*((LOG(AA12))/LOG(2)))) -> 0 | AD12: =N12 -> 212 | AE12: =COUNTIF(L40:L56,AD12) -> 0 | AF12: =AE12/(AG4-AE11) -> 0 | AG12: =IF(AF12=0,0,(AF12*((LOG(AF12))/LOG(2)))) -> 0 | AI12: =N12 -> 212 | AJ12: =COUNTIF(L57:L73,AI12) -> 1 | AK12: =AJ12/(AL4-AJ11) -> 0.07142857143 | AL12: =IF(AK12=0,0,(AK12*((LOG(AK12))/LOG(2)))) -> -0.271953923 | AN12: =N12 -> 212 | AO12: =COUNTIF(L74:L89,AN12) -> 0 | AP12: =AO12/(AQ4-AO11) -> 0 | AQ12: =IF(AP12=0,0,(AP12*((LOG(AP12))/LOG(2)))) -> 0 | AS12: =N12 -> 212 | AT12: =COUNTIF(L90:L106,AS12) -> 0 | AU12: =AT12/(AV4-AT11) -> 0 | AV12: =IF(AU12=0,0,(AU12*((LOG(AU12))/LOG(2)))) -> 0
A13: 12 | B13: 825 | C13: 13 | D13: 832 | E13: 13 | F13: 840 | K13: 0 | L13: 111 | N13: 221 | O13: =COUNTIF($L$7:$L$500,N13) -> 6 | P13: =O13/$Q$4 -> 0.06 | Q13: =IF(P13=0,0,(P13*((LOG(P13))/LOG(2)))) -> -0.2435336213 | T13: =N13 -> 221 | U13: =COUNTIF(L7:L23,T13) -> 0 | V13: =U13/(W4-U11) -> 0 | W13: =IF(V13=0,0,(V13*((LOG(V13))/LOG(2)))) -> 0 | Y13: =N13 -> 221 | Z13: =COUNTIF(L24:L39,Y13) -> 0 | AA13: =Z13/(AB4-Z11) -> 0 | AB13: =IF(AA13=0,0,(AA13*((LOG(AA13))/LOG(2)))) -> 0 | AD13: =N13 -> 221 | AE13: =COUNTIF(L40:L56,AD13) -> 1 | AF13: =AE13/(AG4-AE11) -> 0.08333333333 | AG13: =IF(AF13=0,0,(AF13*((LOG(AF13))/LOG(2)))) -> -0.2987468751 | AI13: =N13 -> 221 | AJ13: =COUNTIF(L57:L73,AI13) -> 4 | AK13: =AJ13/(AL4-AJ11) -> 0.2857142857 | AL13: =IF(AK13=0,0,(AK13*((LOG(AK13))/LOG(2)))) -> -0.5163871206 | AN13: =N13 -> 221 | AO13: =COUNTIF(L74:L89,AN13) -> 1 | AP13: =AO13/(AQ4-AO11) -> 0.1428571429 | AQ13: =IF(AP13=0,0,(AP13*((LOG(AP13))/LOG(2)))) -> -0.4010507032 | AS13: =N13 -> 221 | AT13: =COUNTIF(L90:L106,AS13) -> 0 | AU13: =AT13/(AV4-AT11) -> 0 | AV13: =IF(AU13=0,0,(AU13*((LOG(AU13))/LOG(2)))) -> 0
A14: 21 | B14: 949 | C14: 11 | D14: 960 | E14: 11 | F14: 967 | K14: 0 | L14: 211 | N14: 222 | O14: =COUNTIF($L$7:$L$500,N14) -> 2 | P14: =O14/$Q$4 -> 0.02 | Q14: =IF(P14=0,0,(P14*((LOG(P14))/LOG(2)))) -> -0.1128771238 | T14: =N14 -> 222 | U14: =COUNTIF(L7:L23,T14) -> 1 | V14: =U14/(W4-U11) -> 0.1428571429 | W14: =IF(V14=0,0,(V14*((LOG(V14))/LOG(2)))) -> -0.4010507032 | Y14: =N14 -> 222 | Z14: =COUNTIF(L24:L39,Y14) -> 0 | AA14: =Z14/(AB4-Z11) -> 0 | AB14: =IF(AA14=0,0,(AA14*((LOG(AA14))/LOG(2)))) -> 0 | AD14: =N14 -> 222 | AE14: =COUNTIF(L40:L56,AD14) -> 0 | AF14: =AE14/(AG4-AE11) -> 0 | AG14: =IF(AF14=0,0,(AF14*((LOG(AF14))/LOG(2)))) -> 0 | AI14: =N14 -> 222 | AJ14: =COUNTIF(L57:L73,AI14) -> 1 | AK14: =AJ14/(AL4-AJ11) -> 0.07142857143 | AL14: =IF(AK14=0,0,(AK14*((LOG(AK14))/LOG(2)))) -> -0.271953923 | AN14: =N14 -> 222 | AO14: =COUNTIF(L74:L89,AN14) -> 0 | AP14: =AO14/(AQ4-AO11) -> 0 | AQ14: =IF(AP14=0,0,(AP14*((LOG(AP14))/LOG(2)))) -> 0 | AS14: =N14 -> 222 | AT14: =COUNTIF(L90:L106,AS14) -> 0 | AU14: =AT14/(AV4-AT11) -> 0 | AV14: =IF(AU14=0,0,(AU14*((LOG(AU14))/LOG(2)))) -> 0
A15: 21 | B15: 1062 | C15: 11 | D15: 1073 | E15: 11 | F15: 1080 | K15: 0 | L15: 211 | P15: =SUM(P7:P14) -> 1 | Q15: =-SUM(Q7:Q14) -> 1.761019931 | V15: =SUM(V7:V14) -> 1 | W15: =-SUM(W7:W14) -> 1.148834854 | AA15: =SUM(AA7:AA14) -> 1 | AB15: =-SUM(AB7:AB14) -> 0 | AF15: =SUM(AF7:AF14) -> 1 | AG15: =-SUM(AG7:AG14) -> 1.188721876 | AK15: =SUM(AK7:AK14) -> 1 | AL15: =-SUM(AL7:AL14) -> 1.985228136 | AP15: =SUM(AP7:AP14) -> 1 | AQ15: =-SUM(AQ7:AQ14) -> 0.5916727786 | AU15: =SUM(AU7:AU14) -> 1 | AV15: =-SUM(AV7:AV14) -> 0.5435644432
A16: 12 | B16: 1187 | C16: 13 | D16: 1195 | E16: 13 | F16: 1202 | K16: 0 | L16: 111 | P16: U= | Q16: =Q15/(LOG(Q4)/LOG(2)) -> 0.2650599111 | V16: U1= | W16: =W15/(LOG(W4)/LOG(2)) -> 0.2810630699 | AA16: U2= | AB16: =AB15/(LOG(AB4)/LOG(2)) -> 0 | AF16: U3= | AG16: =AG15/(LOG(AG4)/LOG(2)) -> 0.2908214513 | AK16: U4= | AL16: =AL15/(LOG(AL4)/LOG(2)) -> 0.4856871397 | AP16: U5= | AQ16: =AQ15/(LOG(AQ4)/LOG(2)) -> 0.1479181946 | AU16: U6= | AV16: =AV15/(LOG(AV4)/LOG(2)) -> 0.1329833357
A17: 12 | B17: 1315 | C17: 13 | D17: 1324 | E17: 13 | F17: 1331 | K17: 0 | L17: 111
A18: 21 | B18: 1432 | C18: 22 | D18: 1442 | E18: 24 | F18: 1462 | K18: 0 | L18: 222
A19: 21 | B19: 1563 | C19: 11 | D19: 1576 | E19: 11 | F19: 1584 | K19: 0 | L19: 211 | N19: Total Target Seq
A20: 21 | B20: 1684 | C20: 11 | D20: 1693 | E20: 11 | F20: 1699 | K20: 0 | L20: 211 | N20: =COUNTIF(L7:L106,G3) -> 39 | P20: 17 | Q20: 16 | R20: 17 | S20: 17 | T20: 16 | U20: 17
A21: 21 | B21: 1800 | C21: 11 | D21: 1811 | E21: 11 | F21: 1836 | K21: 0 | L21: 211 | P21: % of reinforcement given in 6 equal intervals based on number of trials
A22: 21 | B22: 1934 | C22: 11 | D22: 1945 | E22: 11 | F22: 1952 | K22: 0 | L22: 211 | P22: %_1 | Q22: %_2 | R22: %_3 | S22: %_4 | T22: %_5 | U22: %_6
A23: 12 | B23: 2040 | C23: 13 | D23: 2058 | E23: 13 | F23: 2066 | K23: 0 | L23: 111 | O23: target sequence | P23: =$G$3 -> 211 | Q23: =$G$3 -> 211 | R23: =$G$3 -> 211 | S23: =$G$3 -> 211 | T23: =$G$3 -> 211 | U23: =$G$3 -> 211
A24: 12 | B24: 2169 | C24: 13 | D24: 2176 | E24: 13 | F24: 2186 | K24: 0 | L24: 111 | O24: total reinforcement | P24: =U11 -> 10 | Q24: =Z11 -> 3 | R24: =AE11 -> 5 | S24: =AJ11 -> 3 | T24: =AO11 -> 9 | U24: =AT11 -> 9
A25: 12 | B25: 2283 | C25: 13 | D25: 2290 | E25: 13 | F25: 2298 | K25: 0 | L25: 111 | O25: % target
A26: 12 | B26: 2394 | C26: 13 | D26: 2400 | E26: 13 | F26: 2405 | K26: 0 | L26: 111 | O26: CCRF
A27: 12 | B27: 2501 | C27: 13 | D27: 2509 | E27: 13 | F27: 2515 | K27: 0 | L27: 111 | O27: % CCRf
A28: 12 | B28: 2615 | C28: 13 | D28: 2628 | E28: 13 | F28: 2637 | K28: 0 | L28: 111 | O28: average response rate | P28: =F23/P20 -> 121.5294118 | Q28: =(F39-F23)/Q20 -> 126.1875 | R28: =(F56-F39)/R20 -> 127.6470588 | S28: =(F73-F56)/S20 -> 126.3529412 | T28: =(F89-F73)/T20 -> 128 | U28: =(F106-F89)/U20 -> 127.9411765
A29: 12 | B29: 2741 | C29: 13 | D29: 2755 | E29: 13 | F29: 2768 | K29: 0 | L29: 111
A30: 21 | B30: 2872 | C30: 11 | D30: 2885 | E30: 11 | F30: 2892 | K30: 0 | L30: 211
A31: 21 | B31: 3000 | C31: 11 | D31: 3012 | E31: 11 | F31: 3020 | K31: 0 | L31: 211
A32: 21 | B32: 3137 | C32: 11 | D32: 3148 | E32: 11 | F32: 3155 | K32: 0 | L32: 211
A33: 12 | B33: 3264 | C33: 13 | D33: 3270 | E33: 13 | F33: 3280 | K33: 0 | L33: 111
A34: 12 | B34: 3376 | C34: 13 | D34: 3399 | E34: 13 | F34: 3406 | K34: 0 | L34: 111
A35: 12 | B35: 3502 | C35: 13 | D35: 3528 | E35: 13 | F35: 3536 | K35: 0 | L35: 111
A36: 12 | B36: 3654 | C36: 13 | D36: 3686 | E36: 13 | F36: 3694 | K36: 0 | L36: 111
A37: 12 | B37: 3812 | C37: 13 | D37: 3821 | E37: 13 | F37: 3829 | K37: 0 | L37: 111
A38: 12 | B38: 3938 | C38: 13 | D38: 3946 | E38: 13 | F38: 3954 | K38: 0 | L38: 111
A39: 12 | B39: 4071 | C39: 13 | D39: 4077 | E39: 13 | F39: 4085 | K39: 0 | L39: 111
A40: 12 | B40: 4213 | C40: 13 | D40: 4221 | E40: 13 | F40: 4230 | K40: 0 | L40: 111
A41: 12 | B41: 4326 | C41: 13 | D41: 4348 | E41: 13 | F41: 4368 | K41: 0 | L41: 111
A42: 12 | B42: 4464 | C42: 13 | D42: 4489 | E42: 13 | F42: 4496 | K42: 0 | L42: 111
A43: 12 | B43: 4594 | C43: 13 | D43: 4620 | E43: 13 | F43: 4642 | K43: 0 | L43: 111
A44: 12 | B44: 4758 | C44: 13 | D44: 4765 | E44: 13 | F44: 4774 | K44: 0 | L44: 111
A45: 21 | B45: 4909 | C45: 11 | D45: 4926 | E45: 11 | F45: 4934 | K45: 0 | L45: 211
A46: 12 | B46: 5024 | C46: 24 | D46: 5036 | E46: 13 | F46: 5048 | K46: 0 | L46: 121
A47: 21 | B47: 5159 | C47: 11 | D47: 5171 | E47: 11 | F47: 5178 | K47: 0 | L47: 211
A48: 21 | B48: 5275 | C48: 22 | D48: 5285 | E48: 13 | F48: 5298 | K48: 0 | L48: 221
A49: 21 | B49: 5404 | C49: 11 | D49: 5417 | E49: 11 | F49: 5425 | K49: 0 | L49: 211
A50: 21 | B50: 5522 | C50: 11 | D50: 5533 | E50: 11 | F50: 5539 | K50: 0 | L50: 211
A51: 12 | B51: 5627 | C51: 13 | D51: 5651 | E51: 13 | F51: 5657 | K51: 0 | L51: 111
A52: 12 | B52: 5754 | C52: 13 | D52: 5776 | E52: 13 | F52: 5782 | K52: 0 | L52: 111
A53: 12 | B53: 5877 | C53: 24 | D53: 5887 | E53: 13 | F53: 5899 | K53: 0 | L53: 121
A54: 21 | B54: 6002 | C54: 11 | D54: 6013 | E54: 11 | F54: 6020 | K54: 0 | L54: 211
A55: 12 | B55: 6108 | C55: 24 | D55: 6119 | E55: 13 | F55: 6130 | K55: 0 | L55: 121
A56: 12 | B56: 6242 | C56: 13 | D56: 6248 | E56: 13 | F56: 6255 | K56: 0 | L56: 111
A57: 21 | B57: 6354 | C57: 11 | D57: 6365 | E57: 11 | F57: 6371 | K57: 0 | L57: 211
A58: 12 | B58: 6459 | C58: 13 | D58: 6478 | E58: 13 | F58: 6485 | K58: 0 | L58: 111
A59: 12 | B59: 6581 | C59: 24 | D59: 6590 | E59: 13 | F59: 6602 | K59: 0 | L59: 121
A60: 12 | B60: 6719 | C60: 13 | D60: 6724 | E60: 13 | F60: 6732 | K60: 0 | L60: 111
A61: 12 | B61: 6845 | C61: 13 | D61: 6852 | E61: 13 | F61: 6861 | K61: 0 | L61: 111
A62: 21 | B62: 6965 | C62: 22 | D62: 6982 | E62: 13 | F62: 6993 | K62: 0 | L62: 221
A63: 21 | B63: 7111 | C63: 22 | D63: 7121 | E63: 24 | F63: 7130 | K63: 0 | L63: 222
A64: 12 | B64: 7249 | C64: 13 | D64: 7257 | E64: 13 | F64: 7274 | K64: 0 | L64: 111
A65: 21 | B65: 7388 | C65: 11 | D65: 7401 | E65: 11 | F65: 7407 | K65: 0 | L65: 211
A66: 21 | B66: 7502 | C66: 22 | D66: 7512 | E66: 13 | F66: 7524 | K66: 0 | L66: 221
A67: 21 | B67: 7625 | C67: 22 | D67: 7634 | E67: 13 | F67: 7647 | K67: 0 | L67: 221
A68: 12 | B68: 7758 | C68: 13 | D68: 7765 | E68: 13 | F68: 7773 | K68: 0 | L68: 111
A69: 21 | B69: 7875 | C69: 11 | D69: 7884 | E69: 11 | F69: 7892 | K69: 0 | L69: 211
A70: 12 | B70: 8007 | C70: 13 | D70: 8014 | E70: 13 | F70: 8022 | K70: 0 | L70: 111
A71: 12 | B71: 8119 | C71: 24 | D71: 8128 | E71: 13 | F71: 8138 | K71: 0 | L71: 121
A72: 21 | B72: 8248 | C72: 22 | D72: 8265 | E72: 13 | F72: 8277 | K72: 0 | L72: 221
A73: 21 | B73: 8380 | C73: 11 | D73: 8391 | E73: 22 | F73: 8403 | K73: 0 | L73: 212
A74: 21 | B74: 8508 | C74: 11 | D74: 8522 | E74: 11 | F74: 8529 | K74: 0 | L74: 211
A75: 21 | B75: 8621 | C75: 11 | D75: 8632 | E75: 11 | F75: 8639 | K75: 0 | L75: 211
A76: 12 | B76: 8729 | C76: 13 | D76: 8752 | E76: 13 | F76: 8760 | K76: 0 | L76: 111
A77: 21 | B77: 8866 | C77: 11 | D77: 8896 | E77: 11 | F77: 8903 | K77: 0 | L77: 211
A78: 12 | B78: 9006 | C78: 13 | D78: 9013 | E78: 13 | F78: 9024 | K78: 0 | L78: 111
A79: 12 | B79: 9136 | C79: 13 | D79: 9144 | E79: 13 | F79: 9152 | K79: 0 | L79: 111
A80: 12 | B80: 9268 | C80: 13 | D80: 9275 | E80: 13 | F80: 9285 | K80: 0 | L80: 111
A81: 21 | B81: 9393 | C81: 11 | D81: 9406 | E81: 11 | F81: 9413 | K81: 0 | L81: 211
A82: 21 | B82: 9515 | C82: 11 | D82: 9525 | E82: 11 | F82: 9532 | K82: 0 | L82: 211
A83: 21 | B83: 9630 | C83: 11 | D83: 9640 | E83: 11 | F83: 9647 | K83: 0 | L83: 211
A84: 21 | B84: 9754 | C84: 11 | D84: 9766 | E84: 11 | F84: 9772 | K84: 0 | L84: 211
A85: 12 | B85: 9882 | C85: 13 | D85: 9890 | E85: 13 | F85: 9903 | K85: 0 | L85: 111
A86: 21 | B86: 10010 | C86: 11 | D86: 10023 | E86: 11 | F86: 10031 | K86: 0 | L86: 211
A87: 21 | B87: 10144 | C87: 11 | D87: 10158 | E87: 11 | F87: 10167 | K87: 0 | L87: 211
A88: 21 | B88: 10293 | C88: 22 | D88: 10310 | E88: 13 | F88: 10340 | K88: 0 | L88: 221
A89: 12 | B89: 10436 | C89: 13 | D89: 10443 | E89: 13 | F89: 10451 | K89: 0 | L89: 111
A90: 12 | B90: 10559 | C90: 13 | D90: 10567 | E90: 13 | F90: 10575 | K90: 0 | L90: 111
A91: 21 | B91: 10679 | C91: 11 | D91: 10691 | E91: 11 | F91: 10702 | K91: 0 | L91: 211
A92: 12 | B92: 10810 | C92: 13 | D92: 10817 | E92: 13 | F92: 10828 | K92: 0 | L92: 111
A93: 12 | B93: 10939 | C93: 24 | D93: 10947 | E93: 13 | F93: 10959 | K93: 0 | L93: 121
A94: 21 | B94: 11063 | C94: 11 | D94: 11076 | E94: 11 | F94: 11083 | K94: 0 | L94: 211
A95: 12 | B95: 11186 | C95: 13 | D95: 11193 | E95: 13 | F95: 11204 | K95: 0 | L95: 111
A96: 12 | B96: 11318 | C96: 13 | D96: 11325 | E96: 13 | F96: 11332 | K96: 0 | L96: 111
A97: 21 | B97: 11436 | C97: 11 | D97: 11448 | E97: 11 | F97: 11454 | K97: 0 | L97: 211
A98: 21 | B98: 11549 | C98: 11 | D98: 11561 | E98: 11 | F98: 11580 | K98: 0 | L98: 211
A99: 12 | B99: 11714 | C99: 13 | D99: 11721 | E99: 13 | F99: 11731 | K99: 0 | L99: 111
A100: 21 | B100: 11852 | C100: 11 | D100: 11863 | E100: 11 | F100: 11870 | K100: 0 | L100: 211
A101: 21 | B101: 11973 | C101: 11 | D101: 11984 | E101: 11 | F101: 11992 | K101: 0 | L101: 211
A102: 21 | B102: 12096 | C102: 11 | D102: 12108 | E102: 11 | F102: 12116 | K102: 0 | L102: 211
A103: 12 | B103: 12220 | C103: 13 | D103: 12227 | E103: 13 | F103: 12241 | K103: 0 | L103: 111
A104: 21 | B104: 12339 | C104: 11 | D104: 12349 | E104: 11 | F104: 12354 | K104: 0 | L104: 211
A105: 12 | B105: 12462 | C105: 13 | D105: 12469 | E105: 13 | F105: 12486 | K105: 0 | L105: 111
A106: 21 | B106: 12588 | C106: 11 | D106: 12619 | E106: 11 | F106: 12626 | K106: 1 | L106: 211

Sheet !M512B50.185
A1: Report for:!M512B50.185
A2: Date: | B2: <date>
A3: Hen: | B3: <hen> | F3: Correct Sequence | G3: =Start!J2 -> 211 | P3: Total Sequences in Data | Q3: =4994-COUNTBLANK(L7:L5000) -> 74 | V3: Total Sequences in Block Data | W3: =COUNTA(L7:L18) -> 12 | AA3: Total Sequences in Block Data | AB3: =COUNTA(L19:L31) -> 13 | AF3: Total Sequences in Block Data | AG3: =COUNTA(L32:L43) -> 12 | AK3: Total Sequences in Block Data | AL3: =COUNTA(L44:L55) -> 12 | AP3: Total Sequences in Block Data | AQ3: =COUNTA(L56:L68) -> 13 | AU3: Total Sequences in Block Data | AV3: =COUNTA(L69:L80) -> 12
P4: Total Sequences in Summary | Q4: =SUM(O7:O14) -> 74 | V4: Total Sequences in Block Summary | W4: =SUM(U7:U14) -> 12 | AA4: Total Sequences in Block Summary | AB4: =SUM(Z7:Z14) -> 13 | AF4: Total Sequences in Block Summary | AG4: =SUM(AE7:AE14) -> 12 | AK4: Total Sequences in Block Summary | AL4: =SUM(AJ7:AJ14) -> 12 | AP4: Total Sequences in Block Summary | AQ4: =SUM(AO7:AO14) -> 13 | AU4: Total Sequences in Block Summary | AV4: =SUM(AT7:AT14) -> 12
T5: Block 1 | Y5: Block 2 | AD5: Block 3 | AI5: Block 4 | AN5: Block 5 | AS5: Block 6
A6: Sequence Component 1 | B6: Time 1 | C6: Sequence Component 2 | D6: Time 2 | E6: Sequence Component 3 | F6: Time 3 | G6: Sequence Component 4 | H6: Time 4 | I6: Sequence Component 5 | J6: Time 5 | K6: Correct? 0=No 1=Yes | L6: Sequence | N6: Frequency | P6: Relative Frequency | Q6: Variability | T6: Frequency | V6: Relative Frequency | W6: Variability | Y6: Frequency | AA6: Relative Frequency | AB6: Variability | AD6: Frequency | AF6: Relative Frequency | AG6: Variability | AI6: Frequency | AK6: Relative Frequency | AL6: Variability | AN6: Frequency | AP6: Relative Frequency | AQ6: Variability | AS6: Frequency | AU6: Relative Frequency | AV6: Variability
A7: 21 | B7: 39 | C7: 11 | D7: 61 | E7: 11 | F7: 75 | K7: 0 | L7: 211 | N7: 111 | O7: =COUNTIF($L$7:$L$500,N7) -> 26 | P7: =O7/$Q$4 -> 0.3513513514 | Q7: =IF(P7=0,0,(P7*((LOG(P7))/LOG(2)))) -> -0.5301939843 | T7: =N7 -> 111 | U7: =COUNTIF(L7:L18,T7) -> 6 | V7: =U7/(W4-U11) -> 0.6 | W7: =IF(V7=0,0,(V7*((LOG(V7))/LOG(2)))) -> -0.4421793565 | Y7: =N7 -> 111 | Z7: =COUNTIF(L19:L31,Y7) -> 3 | AA7: =Z7/(AB4-Z11) -> 0.75 | AB7: =IF(AA7=0,0,(AA7*((LOG(AA7))/LOG(2)))) -> -0.3112781245 | AD7: =N7 -> 111 | AE7: =COUNTIF(L32:L43,AD7) -> 8 | AF7: =AE7/(AG4-AE11) -> 0.8888888889 | AG7: =IF(AF7=0,0,(AF7*((LOG(AF7))/LOG(2)))) -> -0.1510444457 | AI7: =N7 -> 111 | AJ7: =COUNTIF(L44:L55,AI7) -> 2 | AK7: =AJ7/(AL4-AJ11) -> 0.5 | AL7: =IF(AK7=0,0,(AK7*((LOG(AK7))/LOG(2)))) -> -0.5 | AN7: =N7 -> 111 | AO7: =COUNTIF(L56:L68,AN7) -> 4 | AP7: =AO7/(AQ4-AO11) -> 0.6666666667 | AQ7: =IF(AP7=0,0,(AP7*((LOG(AP7))/LOG(2)))) -> -0.3899750005 | AS7: =N7 -> 111 | AT7: =COUNTIF(L69:L80,AS7) -> 3 | AU7: =AT7/(AV4-AT11) -> 1 | AV7: =IF(AU7=0,0,(AU7*((LOG(AU7))/LOG(2)))) -> 0
A8: 12 | B8: 201 | C8: 13 | D8: 228 | E8: 13 | F8: 250 | K8: 0 | L8: 111 | N8: 112 | O8: =COUNTIF($L$7:$L$500,N8) -> 1 | P8: =O8/$Q$4 -> 0.01351351351 | Q8: =IF(P8=0,0,(P8*((LOG(P8))/LOG(2)))) -> -0.08391153197 | T8: =N8 -> 112 | U8: =COUNTIF(L7:L18,T8) -> 0 | V8: =U8/(W4-U11) -> 0 | W8: =IF(V8=0,0,(V8*((LOG(V8))/LOG(2)))) -> 0 | Y8: =N8 -> 112 | Z8: =COUNTIF(L19:L31,Y8) -> 0 | AA8: =Z8/(AB4-Z11) -> 0 | AB8: =IF(AA8=0,0,(AA8*((LOG(AA8))/LOG(2)))) -> 0 | AD8: =N8 -> 112 | AE8: =COUNTIF(L32:L43,AD8) -> 0 | AF8: =AE8/(AG4-AE11) -> 0 | AG8: =IF(AF8=0,0,(AF8*((LOG(AF8))/LOG(2)))) -> 0 | AI8: =N8 -> 112 | AJ8: =COUNTIF(L44:L55,AI8) -> 0 | AK8: =AJ8/(AL4-AJ11) -> 0 | AL8: =IF(AK8=0,0,(AK8*((LOG(AK8))/LOG(2)))) -> 0 | AN8: =N8 -> 112 | AO8: =COUNTIF(L56:L68,AN8) -> 1 | AP8: =AO8/(AQ4-AO11) -> 0.1666666667 | AQ8: =IF(AP8=0,0,(AP8*((LOG(AP8))/LOG(2)))) -> -0.4308270835 | AS8: =N8 -> 112 | AT8: =COUNTIF(L69:L80,AS8) -> 0 | AU8: =AT8/(AV4-AT11) -> 0 | AV8: =IF(AU8=0,0,(AU8*((LOG(AU8))/LOG(2)))) -> 0
A9: 21 | B9: 360 | C9: 11 | D9: 373 | E9: 11 | F9: 381 | K9: 0 | L9: 211 | N9: 121 | O9: =COUNTIF($L$7:$L$500,N9) -> 1 | P9: =O9/$Q$4 -> 0.01351351351 | Q9: =IF(P9=0,0,(P9*((LOG(P9))/LOG(2)))) -> -0.08391153197 | T9: =N9 -> 121 | U9: =COUNTIF(L7:L18,T9) -> 0 | V9: =U9/(W4-U11) -> 0 | W9: =IF(V9=0,0,(V9*((LOG(V9))/LOG(2)))) -> 0 | Y9: =N9 -> 121 | Z9: =COUNTIF(L19:L31,Y9) -> 1 | AA9: =Z9/(AB4-Z11) -> 0.25 | AB9: =IF(AA9=0,0,(AA9*((LOG(AA9))/LOG(2)))) -> -0.5 | AD9: =N9 -> 121 | AE9: =COUNTIF(L32:L43,AD9) -> 0 | AF9: =AE9/(AG4-AE11) -> 0 | AG9: =IF(AF9=0,0,(AF9*((LOG(AF9))/LOG(2)))) -> 0 | AI9: =N9 -> 121 | AJ9: =COUNTIF(L44:L55,AI9) -> 0 | AK9: =AJ9/(AL4-AJ11) -> 0 | AL9: =IF(AK9=0,0,(AK9*((LOG(AK9))/LOG(2)))) -> 0 | AN9: =N9 -> 121 | AO9: =COUNTIF(L56:L68,AN9) -> 0 | AP9: =AO9/(AQ4-AO11) -> 0 | AQ9: =IF(AP9=0,0,(AP9*((LOG(AP9))/LOG(2)))) -> 0 | AS9: =N9 -> 121 | AT9: =COUNTIF(L69:L80,AS9) -> 0 | AU9: =AT9/(AV4-AT11) -> 0 | AV9: =IF(AU9=0,0,(AU9*((LOG(AU9))/LOG(2)))) -> 0
A10: 21 | B10: 477 | C10: 22 | D10: 500 | E10: 13 | F10: 514 | K10: 0 | L10: 221 | N10: 122 | O10: =COUNTIF($L$7:$L$500,N10) -> 0 | P10: =O10/$Q$4 -> 0 | Q10: =IF(P10=0,0,(P10*((LOG(P10))/LOG(2)))) -> 0 | T10: =N10 -> 122 | U10: =COUNTIF(L7:L18,T10) -> 0 | V10: =U10/(W4-U11) -> 0 | W10: =IF(V10=0,0,(V10*((LOG(V10))/LOG(2)))) -> 0 | Y10: =N10 -> 122 | Z10: =COUNTIF(L19:L31,Y10) -> 0 | AA10: =Z10/(AB4-Z11) -> 0 | AB10: =IF(AA10=0,0,(AA10*((LOG(AA10))/LOG(2)))) -> 0 | AD10: =N10 -> 122 | AE10: =COUNTIF(L32:L43,AD10) -> 0 | AF10: =AE10/(AG4-AE11) -> 0 | AG10: =IF(AF10=0,0,(AF10*((LOG(AF10))/LOG(2)))) -> 0 | AI10: =N10 -> 122 | AJ10: =COUNTIF(L44:L55,AI10) -> 0 | AK10: =AJ10/(AL4-AJ11) -> 0 | AL10: =IF(AK10=0,0,(AK10*((LOG(AK10))/LOG(2)))) -> 0 | AN10: =N10 -> 122 | AO10: =COUNTIF(L56:L68,AN10) -> 0 | AP10: =AO10/(AQ4-AO11) -> 0 | AQ10: =IF(AP10=0,0,(AP10*((LOG(AP10))/LOG(2)))) -> 0 | AS10: =N10 -> 122 | AT10: =COUNTIF(L69:L80,AS10) -> 0 | AU10: =AT10/(AV4-AT11) -> 0 | AV10: =IF(AU10=0,0,(AU10*((LOG(AU10))/LOG(2)))) -> 0
A11: 21 | B11: 616 | C11: 22 | D11: 626 | E11: 24 | F11: 635 | K11: 0 | L11: 222 | N11: 211 | O11: =COUNTIF($L$7:$L$500,N11) -> 38 | P11: =O11/$Q$4 -> 0.5135135135 | Q11: =IF(P11=0,0,(P11*((LOG(P11))/LOG(2)))) -> -0.4937565187 | T11: =N11 -> 211 | U11: =COUNTIF(L7:L18,T11) -> 2 | Y11: =N11 -> 211 | Z11: =COUNTIF(L19:L31,Y11) -> 9 | AD11: =N11 -> 211 | AE11: =COUNTIF(L32:L43,AD11) -> 3 | AI11: =N11 -> 211 | AJ11: =COUNTIF(L44:L55,AI11) -> 8 | AN11: =N11 -> 211 | AO11: =COUNTIF(L56:L68,AN11) -> 7 | AS11: =N11 -> 211 | AT11: =COUNTIF(L69:L80,AS11) -> 9
A12: 21 | B12: 744 | C12: 22 | D12: 754 | E12: 24 | F12: 766 | K12: 0 | L12: 222 | N12: 212 | O12: =COUNTIF($L$7:$L$500,N12) -> 0 | P12: =O12/$Q$4 -> 0 | Q12: =IF(P12=0,0,(P12*((LOG(P12))/LOG(2)))) -> 0 | T12: =N12 -> 212 | U12: =COUNTIF(L7:L18,T12) -> 0 | V12: =U12/(W4-U11) -> 0 | W12: =IF(V12=0,0,(V12*((LOG(V12))/LOG(2)))) -> 0 | Y12: =N12 -> 212 | Z12: =COUNTIF(L19:L31,Y12) -> 0 | AA12: =Z12/(AB4-Z11) -> 0 | AB12: =IF(AA12=0,0,(AA12*((LOG(AA12))/LOG(2)))) -> 0 | AD12: =N12 -> 212 | AE12: =COUNTIF(L32:L43,AD12) -> 0 | AF12: =AE12/(AG4-AE11) -> 0 | AG12: =IF(AF12=0,0,(AF12*((LOG(AF12))/LOG(2)))) -> 0 | AI12: =N12 -> 212 | AJ12: =COUNTIF(L44:L55,AI12) -> 0 | AK12: =AJ12/(AL4-AJ11) -> 0 | AL12: =IF(AK12=0,0,(AK12*((LOG(AK12))/LOG(2)))) -> 0 | AN12: =N12 -> 212 | AO12: =COUNTIF(L56:L68,AN12) -> 0 | AP12: =AO12/(AQ4-AO11) -> 0 | AQ12: =IF(AP12=0,0,(AP12*((LOG(AP12))/LOG(2)))) -> 0 | AS12: =N12 -> 212 | AT12: =COUNTIF(L69:L80,AS12) -> 0 | AU12: =AT12/(AV4-AT11) -> 0 | AV12: =IF(AU12=0,0,(AU12*((LOG(AU12))/LOG(2)))) -> 0
A13: 21 | B13: 866 | C13: 22 | D13: 875 | E13: 24 | F13: 885 | K13: 0 | L13: 222 | N13: 221 | O13: =COUNTIF($L$7:$L$500,N13) -> 5 | P13: =O13/$Q$4 -> 0.06756756757 | Q13: =IF(P13=0,0,(P13*((LOG(P13))/LOG(2)))) -> -0.2626706264 | T13: =N13 -> 221 | U13: =COUNTIF(L7:L18,T13) -> 1 | V13: =U13/(W4-U11) -> 0.1 | W13: =IF(V13=0,0,(V13*((LOG(V13))/LOG(2)))) -> -0.3321928095 | Y13: =N13 -> 221 | Z13: =COUNTIF(L19:L31,Y13) -> 0 | AA13: =Z13/(AB4-Z11) -> 0 | AB13: =IF(AA13=0,0,(AA13*((LOG(AA13))/LOG(2)))) -> 0 | AD13: =N13 -> 221 | AE13: =COUNTIF(L32:L43,AD13) -> 1 | AF13: =AE13/(AG4-AE11) -> 0.1111111111 | AG13: =IF(AF13=0,0,(AF13*((LOG(AF13))/LOG(2)))) -> -0.352213889 | AI13: =N13 -> 221 | AJ13: =COUNTIF(L44:L55,AI13) -> 2 | AK13: =AJ13/(AL4-AJ11) -> 0.5 | AL13: =IF(AK13=0,0,(AK13*((LOG(AK13))/LOG(2)))) -> -0.5 | AN13: =N13 -> 221 | AO13: =COUNTIF(L56:L68,AN13) -> 1 | AP13: =AO13/(AQ4-AO11) -> 0.1666666667 | AQ13: =IF(AP13=0,0,(AP13*((LOG(AP13))/LOG(2)))) -> -0.4308270835 | AS13: =N13 -> 221 | AT13: =COUNTIF(L69:L80,AS13) -> 0 | AU13: =AT13/(AV4-AT11) -> 0 | AV13: =IF(AU13=0,0,(AU13*((LOG(AU13))/LOG(2)))) -> 0
A14: 12 | B14: 1001 | C14: 13 | D14: 1014 | E14: 13 | F14: 1023 | K14: 0 | L14: 111 | N14: 222 | O14: =COUNTIF($L$7:$L$500,N14) -> 3 | P14: =O14/$Q$4 -> 0.04054054054 | Q14: =IF(P14=0,0,(P14*((LOG(P14))/LOG(2)))) -> -0.1874793594 | T14: =N14 -> 222 | U14: =COUNTIF(L7:L18,T14) -> 3 | V14: =U14/(W4-U11) -> 0.3 | W14: =IF(V14=0,0,(V14*((LOG(V14))/LOG(2)))) -> -0.5210896782 | Y14: =N14 -> 222 | Z14: =COUNTIF(L19:L31,Y14) -> 0 | AA14: =Z14/(AB4-Z11) -> 0 | AB14: =IF(AA14=0,0,(AA14*((LOG(AA14))/LOG(2)))) -> 0 | AD14: =N14 -> 222 | AE14: =COUNTIF(L32:L43,AD14) -> 0 | AF14: =AE14/(AG4-AE11) -> 0 | AG14: =IF(AF14=0,0,(AF14*((LOG(AF14))/LOG(2)))) -> 0 | AI14: =N14 -> 222 | AJ14: =COUNTIF(L44:L55,AI14) -> 0 | AK14: =AJ14/(AL4-AJ11) -> 0 | AL14: =IF(AK14=0,0,(AK14*((LOG(AK14))/LOG(2)))) -> 0 | AN14: =N14 -> 222 | AO14: =COUNTIF(L56:L68,AN14) -> 0 | AP14: =AO14/(AQ4-AO11) -> 0 | AQ14: =IF(AP14=0,0,(AP14*((LOG(AP14))/LOG(2)))) -> 0 | AS14: =N14 -> 222 | AT14: =COUNTIF(L69:L80,AS14) -> 0 | AU14: =AT14/(AV4-AT11) -> 0 | AV14: =IF(AU14=0,0,(AU14*((LOG(AU14))/LOG(2)))) -> 0
A15: 12 | B15: 1145 | C15: 13 | D15: 1153 | E15: 13 | F15: 1160 | K15: 0 | L15: 111 | P15: =SUM(P7:P14) -> 1 | Q15: =-SUM(Q7:Q14) -> 1.641923553 | V15: =SUM(V7:V14) -> 1 | W15: =-SUM(W7:W14) -> 1.295461844 | AA15: =SUM(AA7:AA14) -> 1 | AB15: =-SUM(AB7:AB14) -> 0.8112781245 | AF15: =SUM(AF7:AF14) -> 1 | AG15: =-SUM(AG7:AG14) -> 0.5032583348 | AK15: =SUM(AK7:AK14) -> 1 | AL15: =-SUM(AL7:AL14) -> 1 | AP15: =SUM(AP7:AP14) -> 1 | AQ15: =-SUM(AQ7:AQ14) -> 1.251629167 | AU15: =SUM(AU7:AU14) -> 1 | AV15: =-SUM(AV7:AV14) -> 0
A16: 12 | B16: 1281 | C16: 13 | D16: 1288 | E16: 13 | F16: 1295 | K16: 0 | L16: 111 | P16: U= | Q16: =Q15/(LOG(Q4)/LOG(2)) -> 0.2644232038 | V16: U1= | W16: =W15/(LOG(W4)/LOG(2)) -> 0.3613599428 | AA16: U2= | AB16: =AB15/(LOG(AB4)/LOG(2)) -> 0.2192383031 | AF16: U3= | AG16: =AG15/(LOG(AG4)/LOG(2)) -> 0.1403803623 | AK16: U4= | AL16: =AL15/(LOG(AL4)/LOG(2)) -> 0.2789429457 | AP16: U5= | AQ16: =AQ15/(LOG(AQ4)/LOG(2)) -> 0.3382379562 | AU16: U6= | AV16: =AV15/(LOG(AV4)/LOG(2)) -> 0
A17: 12 | B17: 1414 | C17: 13 | D17: 1422 | E17: 13 | F17: 1431 | K17: 0 | L17: 111
A18: 12 | B18: 1564 | C18: 13 | D18: 1592 | E18: 13 | F18: 1600 | K18: 0 | L18: 111
A19: 12 | B19: 1721 | C19: 24 | D19: 1735 | E19: 13 | F19: 1748 | K19: 0 | L19: 121 | N19: Total Target Seq
A20: 21 | B20: 1844 | C20: 11 | D20: 1856 | E20: 11 | F20: 1864 | K20: 0 | L20: 211 | N20: =COUNTIF(L7:L80,G3) -> 38 | P20: 12 | Q20: 13 | R20: 12 | S20: 12 | T20: 13 | U20: 12
A21: 21 | B21: 1959 | C21: 11 | D21: 1971 | E21: 11 | F21: 1982 | K21: 0 | L21: 211 | P21: % of reinforcement given in 6 equal intervals based on number of trials
A22: 21 | B22: 2080 | C22: 11 | D22: 2091 | E22: 11 | F22: 2098 | K22: 0 | L22: 211 | P22: %_1 | Q22: %_2 | R22: %_3 | S22: %_4 | T22: %_5 | U22: %_6
A23: 21 | B23: 2193 | C23: 11 | D23: 2204 | E23: 11 | F23: 2212 | K23: 0 | L23: 211 | O23: target sequence | P23: =$G$3 -> 211 | Q23: =$G$3 -> 211 | R23: =$G$3 -> 211 | S23: =$G$3 -> 211 | T23: =$G$3 -> 211 | U23: =$G$3 -> 211
A24: 12 | B24: 2325 | C24: 13 | D24: 2334 | E24: 13 | F24: 2349 | K24: 0 | L24: 111 | O24: total reinforcement | P24: =U11 -> 2 | Q24: =Z11 -> 9 | R24: =AE11 -> 3 | S24: =AJ11 -> 8 | T24: =AO11 -> 7 | U24: =AT11 -> 9
A25: 12 | B25: 2468 | C25: 13 | D25: 2475 | E25: 13 | F25: 2484 | K25: 0 | L25: 111 | O25: % target
A26: 21 | B26: 2595 | C26: 11 | D26: 2608 | E26: 11 | F26: 2615 | K26: 0 | L26: 211 | O26: CCRF
A27: 21 | B27: 2710 | C27: 11 | D27: 2722 | E27: 11 | F27: 2730 | K27: 0 | L27: 211 | O27: % CCRf
A28: 12 | B28: 2838 | C28: 13 | D28: 2846 | E28: 13 | F28: 2858 | K28: 0 | L28: 111 | O28: average response rate | P28: =F18/P20 -> 133.3333333 | Q28: =(F31-F18)/Q20 -> 124.4615385 | R28: =(F43-F31)/R20 -> 138.5833333 | S28: =(F55-F43)/S20 -> 127.6666667 | T28: =(F68-F55)/T20 -> 129.0769231 | U28: =(F80-F68)/U20 -> 120.3333333
A29: 21 | B29: 2959 | C29: 11 | D29: 2971 | E29: 11 | F29: 2979 | K29: 0 | L29: 211
A30: 21 | B30: 3088 | C30: 11 | D30: 3098 | E30: 11 | F30: 3106 | K30: 0 | L30: 211
A31: 21 | B31: 3198 | C31: 11 | D31: 3210 | E31: 11 | F31: 3218 | K31: 0 | L31: 211
A32: 12 | B32: 3340 | C32: 13 | D32: 3348 | E32: 13 | F32: 3360 | K32: 0 | L32: 111
A33: 12 | B33: 3469 | C33: 13 | D33: 3476 | E33: 13 | F33: 3500 | K33: 0 | L33: 111
A34: 12 | B34: 3615 | C34: 13 | D34: 3622 | E34: 13 | F34: 3649 | K34: 0 | L34: 111
A35: 12 | B35: 3762 | C35: 13 | D35: 3771 | E35: 13 | F35: 3790 | K35: 0 | L35: 111
A36: 21 | B36: 3896 | C36: 11 | D36: 3907 | E36: 11 | F36: 3915 | K36: 0 | L36: 211
A37: 12 | B37: 4021 | C37: 13 | D37: 4027 | E37: 13 | F37: 4068 | K37: 0 | L37: 111
A38: 12 | B38: 4188 | C38: 13 | D38: 4206 | E38: 13 | F38: 4232 | K38: 0 | L38: 111
A39: 21 | B39: 4341 | C39: 11 | D39: 4354 | E39: 11 | F39: 4362 | K39: 0 | L39: 211
A40: 21 | B40: 4472 | C40: 11 | D40: 4485 | E40: 11 | F40: 4496 | K40: 0 | L40: 211
A41: 12 | B41: 4603 | C41: 13 | D41: 4632 | E41: 13 | F41: 4640 | K41: 0 | L41: 111
A42: 21 | B42: 4741 | C42: 22 | D42: 4751 | E42: 13 | F42: 4762 | K42: 0 | L42: 221
A43: 12 | B43: 4867 | C43: 13 | D43: 4874 | E43: 13 | F43: 4881 | K43: 0 | L43: 111
A44: 21 | B44: 4983 | C44: 22 | D44: 4992 | E44: 13 | F44: 5026 | K44: 0 | L44: 221
A45: 21 | B45: 5134 | C45: 11 | D45: 5146 | E45: 11 | F45: 5152 | K45: 0 | L45: 211
A46: 21 | B46: 5249 | C46: 11 | D46: 5261 | E46: 11 | F46: 5276 | K46: 0 | L46: 211
A47: 21 | B47: 5384 | C47: 11 | D47: 5393 | E47: 11 | F47: 5401 | K47: 0 | L47: 211
A48: 21 | B48: 5497 | C48: 11 | D48: 5507 | E48: 11 | F48: 5513 | K48: 0 | L48: 211
A49: 21 | B49: 5608 | C49: 11 | D49: 5618 | E49: 11 | F49: 5625 | K49: 0 | L49: 211
A50: 21 | B50: 5716 | C50: 11 | D50: 5729 | E50: 11 | F50: 5745 | K50: 0 | L50: 211
A51: 12 | B51: 5847 | C51: 13 | D51: 5854 | E51: 13 | F51: 5875 | K51: 0 | L51: 111
A52: 21 | B52: 5982 | C52: 22 | D52: 5991 | E52: 13 | F52: 6004 | K52: 0 | L52: 221
A53: 21 | B53: 6114 | C53: 11 | D53: 6126 | E53: 11 | F53: 6134 | K53: 0 | L53: 211
A54: 21 | B54: 6275 | C54: 11 | D54: 6286 | E54: 11 | F54: 6292 | K54: 0 | L54: 211
A55: 12 | B55: 6399 | C55: 13 | D55: 6406 | E55: 13 | F55: 6413 | K55: 0 | L55: 111
A56: 21 | B56: 6515 | C56: 11 | D56: 6525 | E56: 11 | F56: 6532 | K56: 0 | L56: 211
A57: 21 | B57: 6621 | C57: 11 | D57: 6643 | E57: 11 | F57: 6650 | K57: 0 | L57: 211
A58: 12 | B58: 6757 | C58: 13 | D58: 6764 | E58: 13 | F58: 6797 | K58: 0 | L58: 111
A59: 12 | B59: 6916 | C59: 13 | D59: 6923 | E59: 13 | F59: 6948 | K59: 0 | L59: 111
A60: 21 | B60: 7050 | C60: 22 | D60: 7065 | E60: 13 | F60: 7077 | K60: 0 | L60: 221
A61: 21 | B61: 7192 | C61: 11 | D61: 7207 | E61: 11 | F61: 7215 | K61: 0 | L61: 211
A62: 12 | B62: 7320 | C62: 13 | D62: 7327 | E62: 13 | F62: 7335 | K62: 0 | L62: 111
A63: 21 | B63: 7444 | C63: 11 | D63: 7456 | E63: 11 | F63: 7463 | K63: 0 | L63: 211
A64: 21 | B64: 7561 | C64: 11 | D64: 7572 | E64: 11 | F64: 7580 | K64: 0 | L64: 211
A65: 12 | B65: 7684 | C65: 13 | D65: 7690 | E65: 13 | F65: 7697 | K65: 0 | L65: 111
A66: 12 | B66: 7814 | C66: 13 | D66: 7821 | E66: 24 | F66: 7866 | K66: 0 | L66: 112
A67: 21 | B67: 7963 | C67: 11 | D67: 7974 | E67: 11 | F67: 7981 | K67: 0 | L67: 211
A68: 21 | B68: 8071 | C68: 11 | D68: 8083 | E68: 11 | F68: 8091 | K68: 0 | L68: 211
A69: 12 | B69: 8222 | C69: 13 | D69: 8233 | E69: 13 | F69: 8264 | K69: 0 | L69: 111
A70: 21 | B70: 8366 | C70: 11 | D70: 8377 | E70: 11 | F70: 8383 | K70: 0 | L70: 211
A71: 21 | B71: 8478 | C71: 11 | D71: 8488 | E71: 11 | F71: 8495 | K71: 0 | L71: 211
A72: 21 | B72: 8583 | C72: 11 | D72: 8593 | E72: 11 | F72: 8599 | K72: 0 | L72: 211
A73: 21 | B73: 8697 | C73: 11 | D73: 8706 | E73: 11 | F73: 8712 | K73: 0 | L73: 211
A74: 12 | B74: 8815 | C74: 13 | D74: 8822 | E74: 13 | F74: 8832 | K74: 0 | L74: 111
A75: 21 | B75: 8937 | C75: 11 | D75: 8949 | E75: 11 | F75: 8956 | K75: 0 | L75: 211
A76: 12 | B76: 9063 | C76: 13 | D76: 9070 | E76: 13 | F76: 9077 | K76: 0 | L76: 111
A77: 21 | B77: 9181 | C77: 11 | D77: 9193 | E77: 11 | F77: 9200 | K77: 0 | L77: 211
A78: 21 | B78: 9288 | C78: 11 | D78: 9300 | E78: 11 | F78: 9309 | K78: 0 | L78: 211
A79: 21 | B79: 9408 | C79: 11 | D79: 9420 | E79: 11 | F79: 9426 | K79: 0 | L79: 211
A80: 21 | B80: 9517 | C80: 11 | D80: 9529 | E80: 11 | F80: 9535 | K80: 1 | L80: 211

Sheet !M513C40.185
A1: Report for:!M513C40.185
A2: Date: | B2: <date>
A3: Hen: | B3: <hen> | F3: Correct Sequence | G3: =Start!J2 -> 211 | P3: Total Sequences in Data | Q3: =4994-COUNTBLANK(L7:L5000) -> 63 | V3: Total Sequences in Block Data | W3: =COUNTA(L7:L17) -> 11 | AA3: Total Sequences in Block Data | AB3: =COUNTA(L18:L27) -> 10 | AF3: Total Sequences in Block Data | AG3: =COUNTA(L28:L38) -> 11 | AK3: Total Sequences in Block Data | AL3: =COUNTA(L39:L48) -> 10 | AP3: Total Sequences in Block Data | AQ3: =COUNTA(L49:L59) -> 11 | AU3: Total Sequences in Block Data | AV3: =COUNTA(L60:L69) -> 10
P4: Total Sequences in Summary | Q4: =SUM(O7:O14) -> 63 | V4: Total Sequences in Block Summary | W4: =SUM(U7:U14) -> 11 | AA4: Total Sequences in Block Summary | AB4: =SUM(Z7:Z14) -> 10 | AF4: Total Sequences in Block Summary | AG4: =SUM(AE7:AE14) -> 11 | AK4: Total Sequences in Block Summary | AL4: =SUM(AJ7:AJ14) -> 10 | AP4: Total Sequences in Block Summary | AQ4: =SUM(AO7:AO14) -> 11 | AU4: Total Sequences in Block Summary | AV4: =SUM(AT7:AT14) -> 10
T5: Block 1 | Y5: Block 2 | AD5: Block 3 | AI5: Block 4 | AN5: Block 5 | AS5: Block 6
A6: Sequence Component 1 | B6: Time 1 | C6: Sequence Component 2 | D6: Time 2 | E6: Sequence Component 3 | F6: Time 3 | G6: Sequence Component 4 | H6: Time 4 | I6: Sequence Component 5 | J6: Time 5 | K6: Correct? 0=No 1=Yes | L6: Sequence | N6: Frequency | P6: Relative Frequency | Q6: Variability | T6: Frequency | V6: Relative Frequency | W6: Variability | Y6: Frequency | AA6: Relative Frequency | AB6: Variability | AD6: Frequency | AF6: Relative Frequency | AG6: Variability | AI6: Frequency | AK6: Relative Frequency | AL6: Variability | AN6: Frequency | AP6: Relative Frequency | AQ6: Variability | AS6: Frequency | AU6: Relative Frequency | AV6: Variability
A7: 12 | B7: 28 | C7: 13 | D7: 34 | E7: 13 | F7: 42 | K7: 0 | L7: 111 | N7: 111 | O7: =COUNTIF($L$7:$L$500,N7) -> 17 | P7: =O7/$Q$4 -> 0.2698412698 | Q7: =IF(P7=0,0,(P7*((LOG(P7))/LOG(2)))) -> -0.5099506412 | T7: =N7 -> 111 | U7: =COUNTIF(L7:L17,T7) -> 6 | V7: =U7/(W4-U11) -> 0.8571428571 | W7: =IF(V7=0,0,(V7*((LOG(V7))/LOG(2)))) -> -0.1906220754 | Y7: =N7 -> 111 | Z7: =COUNTIF(L18:L27,Y7) -> 1 | AA7: =Z7/(AB4-Z11) -> 0.5 | AB7: =IF(AA7=0,0,(AA7*((LOG(AA7))/LOG(2)))) -> -0.5 | AD7: =N7 -> 111 | AE7: =COUNTIF(L28:L38,AD7) -> 1 | AF7: =AE7/(AG4-AE11) -> 0.5 | AG7: =IF(AF7=0,0,(AF7*((LOG(AF7))/LOG(2)))) -> -0.5 | AI7: =N7 -> 111 | AJ7: =COUNTIF(L39:L48,AI7) -> 2 | AK7: =AJ7/(AL4-AJ11) -> 0.6666666667 | AL7: =IF(AK7=0,0,(AK7*((LOG(AK7))/LOG(2)))) -> -0.3899750005 | AN7: =N7 -> 111 | AO7: =COUNTIF(L49:L59,AN7) -> 6 | AP7: =AO7/(AQ4-AO11) -> 0.8571428571 | AQ7: =IF(AP7=0,0,(AP7*((LOG(AP7))/LOG(2)))) -> -0.1906220754 | AS7: =N7 -> 111 | AT7: =COUNTIF(L60:L69,AS7) -> 1 | AU7: =AT7/(AV4-AT11) -> 0.3333333333 | AV7: =IF(AU7=0,0,(AU7*((LOG(AU7))/LOG(2)))) -> -0.5283208336
A8: 12 | B8: 161 | C8: 13 | D8: 194 | E8: 13 | F8: 229 | K8: 0 | L8: 111 | N8: 112 | O8: =COUNTIF($L$7:$L$500,N8) -> 5 | P8: =O8/$Q$4 -> 0.07936507937 | Q8: =IF(P8=0,0,(P8*((LOG(P8))/LOG(2)))) -> -0.290107288 | T8: =N8 -> 112 | U8: =COUNTIF(L7:L17,T8) -> 1 | V8: =U8/(W4-U11) -> 0.1428571429 | W8: =IF(V8=0,0,(V8*((LOG(V8))/LOG(2)))) -> -0.4010507032 | Y8: =N8 -> 112 | Z8: =COUNTIF(L18:L27,Y8) -> 1 | AA8: =Z8/(AB4-Z11) -> 0.5 | AB8: =IF(AA8=0,0,(AA8*((LOG(AA8))/LOG(2)))) -> -0.5 | AD8: =N8 -> 112 | AE8: =COUNTIF(L28:L38,AD8) -> 1 | AF8: =AE8/(AG4-AE11) -> 0.5 | AG8: =IF(AF8=0,0,(AF8*((LOG(AF8))/LOG(2)))) -> -0.5 | AI8: =N8 -> 112 | AJ8: =COUNTIF(L39:L48,AI8) -> 1 | AK8: =AJ8/(AL4-AJ11) -> 0.3333333333 | AL8: =IF(AK8=0,0,(AK8*((LOG(AK8))/LOG(2)))) -> -0.5283208336 | AN8: =N8 -> 112 | AO8: =COUNTIF(L49:L59,AN8) -> 0 | AP8: =AO8/(AQ4-AO11) -> 0 | AQ8: =IF(AP8=0,0,(AP8*((LOG(AP8))/LOG(2)))) -> 0 | AS8: =N8 -> 112 | AT8: =COUNTIF(L60:L69,AS8) -> 1 | AU8: =AT8/(AV4-AT11) -> 0.3333333333 | AV8: =IF(AU8=0,0,(AU8*((LOG(AU8))/LOG(2)))) -> -0.5283208336
A9: 21 | B9: 374 | C9: 11 | D9: 387 | E9: 11 | F9: 394 | K9: 0 | L9: 211 | N9: 121 | O9: =COUNTIF($L$7:$L$500,N9) -> 0 | P9: =O9/$Q$4 -> 0 | Q9: =IF(P9=0,0,(P9*((LOG(P9))/LOG(2)))) -> 0 | T9: =N9 -> 121 | U9: =COUNTIF(L7:L17,T9) -> 0 | V9: =U9/(W4-U11) -> 0 | W9: =IF(V9=0,0,(V9*((LOG(V9))/LOG(2)))) -> 0 | Y9: =N9 -> 121 | Z9: =COUNTIF(L18:L27,Y9) -> 0 | AA9: =Z9/(AB4-Z11) -> 0 | AB9: =IF(AA9=0,0,(AA9*((LOG(AA9))/LOG(2)))) -> 0 | AD9: =N9 -> 121 | AE9: =COUNTIF(L28:L38,AD9) -> 0 | AF9: =AE9/(AG4-AE11) -> 0 | AG9: =IF(AF9=0,0,(AF9*((LOG(AF9))/LOG(2)))) -> 0 | AI9: =N9 -> 121 | AJ9: =COUNTIF(L39:L48,AI9) -> 0 | AK9: =AJ9/(AL4-AJ11) -> 0 | AL9: =IF(AK9=0,0,(AK9*((LOG(AK9))/LOG(2)))) -> 0 | AN9: =N9 -> 121 | AO9: =COUNTIF(L49:L59,AN9) -> 0 | AP9: =AO9/(AQ4-AO11) -> 0 | AQ9: =IF(AP9=0,0,(AP9*((LOG(AP9))/LOG(2)))) -> 0 | AS9: =N9 -> 121 | AT9: =COUNTIF(L60:L69,AS9) -> 0 | AU9: =AT9/(AV4-AT11) -> 0 | AV9: =IF(AU9=0,0,(AU9*((LOG(AU9))/LOG(2)))) -> 0
A10: 21 | B10: 490 | C10: 11 | D10: 500 | E10: 11 | F10: 508 | K10: 0 | L10: 211 | N10: 122 | O10: =COUNTIF($L$7:$L$500,N10) -> 0 | P10: =O10/$Q$4 -> 0 | Q10: =IF(P10=0,0,(P10*((LOG(P10))/LOG(2)))) -> 0 | T10: =N10 -> 122 | U10: =COUNTIF(L7:L17,T10) -> 0 | V10: =U10/(W4-U11) -> 0 | W10: =IF(V10=0,0,(V10*((LOG(V10))/LOG(2)))) -> 0 | Y10: =N10 -> 122 | Z10: =COUNTIF(L18:L27,Y10) -> 0 | AA10: =Z10/(AB4-Z11) -> 0 | AB10: =IF(AA10=0,0,(AA10*((LOG(AA10))/LOG(2)))) -> 0 | AD10: =N10 -> 122 | AE10: =COUNTIF(L28:L38,AD10) -> 0 | AF10: =AE10/(AG4-AE11) -> 0 | AG10: =IF(AF10=0,0,(AF10*((LOG(AF10))/LOG(2)))) -> 0 | AI10: =N10 -> 122 | AJ10: =COUNTIF(L39:L48,AI10) -> 0 | AK10: =AJ10/(AL4-AJ11) -> 0 | AL10: =IF(AK10=0,0,(AK10*((LOG(AK10))/LOG(2)))) -> 0 | AN10: =N10 -> 122 | AO10: =COUNTIF(L49:L59,AN10) -> 0 | AP10: =AO10/(AQ4-AO11) -> 0 | AQ10: =IF(AP10=0,0,(AP10*((LOG(AP10))/LOG(2)))) -> 0 | AS10: =N10 -> 122 | AT10: =COUNTIF(L60:L69,AS10) -> 0 | AU10: =AT10/(AV4-AT11) -> 0 | AV10: =IF(AU10=0,0,(AU10*((LOG(AU10))/LOG(2)))) -> 0
A11: 12 | B11: 614 | C11: 13 | D11: 622 | E11: 13 | F11: 636 | K11: 0 | L11: 111 | N11: 211 | O11: =COUNTIF($L$7:$L$500,N11) -> 39 | P11: =O11/$Q$4 -> 0.619047619 | Q11: =IF(P11=0,0,(P11*((LOG(P11))/LOG(2)))) -> -0.4283052457 | T11: =N11 -> 211 | U11: =COUNTIF(L7:L17,T11) -> 4 | Y11: =N11 -> 211 | Z11: =COUNTIF(L18:L27,Y11) -> 8 | AD11: =N11 -> 211 | AE11: =COUNTIF(L28:L38,AD11) -> 9 | AI11: =N11 -> 211 | AJ11: =COUNTIF(L39:L48,AI11) -> 7 | AN11: =N11 -> 211 | AO11: =COUNTIF(L49:L59,AN11) -> 4 | AS11: =N11 -> 211 | AT11: =COUNTIF(L60:L69,AS11) -> 7
A12: 12 | B12: 753 | C12: 13 | D12: 762 | E12: 13 | F12: 771 | K12: 0 | L12: 111 | N12: 212 | O12: =COUNTIF($L$7:$L$500,N12) -> 0 | P12: =O12/$Q$4 -> 0 | Q12: =IF(P12=0,0,(P12*((LOG(P12))/LOG(2)))) -> 0 | T12: =N12 -> 212 | U12: =COUNTIF(L7:L17,T12) -> 0 | V12: =U12/(W4-U11) -> 0 | W12: =IF(V12=0,0,(V12*((LOG(V12))/LOG(2)))) -> 0 | Y12: =N12 -> 212 | Z12: =COUNTIF(L18:L27,Y12) -> 0 | AA12: =Z12/(AB4-Z11) -> 0 | AB12: =IF(AA12=0,0,(AA12*((LOG(AA12))/LOG(2)))) -> 0 | AD12: =N12 -> 212 | AE12: =COUNTIF(L28:L38,AD12) -> 0 | AF12: =AE12/(AG4-AE11) -> 0 | AG12: =IF(AF12=0,0,(AF12*((LOG(AF12))/LOG(2)))) -> 0 | AI12: =N12 -> 212 | AJ12: =COUNTIF(L39:L48,AI12) -> 0 | AK12: =AJ12/(AL4-AJ11) -> 0 | AL12: =IF(AK12=0,0,(AK12*((LOG(AK12))/LOG(2)))) -> 0 | AN12: =N12 -> 212 | AO12: =COUNTIF(L49:L59,AN12) -> 0 | AP12: =AO12/(AQ4-AO11) -> 0 | AQ12: =IF(AP12=0,0,(AP12*((LOG(AP12))/LOG(2)))) -> 0 | AS12: =N12 -> 212 | AT12: =COUNTIF(L60:L69,AS12) -> 0 | AU12: =AT12/(AV4-AT11) -> 0 | AV12: =IF(AU12=0,0,(AU12*((LOG(AU12))/LOG(2)))) -> 0
A13: 12 | B13: 886 | C13: 13 | D13: 894 | E13: 13 | F13: 945 | K13: 0 | L13: 111 | N13: 221 | O13: =COUNTIF($L$7:$L$500,N13) -> 2 | P13: =O13/$Q$4 -> 0.03174603175 | Q13: =IF(P13=0,0,(P13*((LOG(P13))/LOG(2)))) -> -0.1580088865 | T13: =N13 -> 221 | U13: =COUNTIF(L7:L17,T13) -> 0 | V13: =U13/(W4-U11) -> 0 | W13: =IF(V13=0,0,(V13*((LOG(V13))/LOG(2)))) -> 0 | Y13: =N13 -> 221 | Z13: =COUNTIF(L18:L27,Y13) -> 0 | AA13: =Z13/(AB4-Z11) -> 0 | AB13: =IF(AA13=0,0,(AA13*((LOG(AA13))/LOG(2)))) -> 0 | AD13: =N13 -> 221 | AE13: =COUNTIF(L28:L38,AD13) -> 0 | AF13: =AE13/(AG4-AE11) -> 0 | AG13: =IF(AF13=0,0,(AF13*((LOG(AF13))/LOG(2)))) -> 0 | AI13: =N13 -> 221 | AJ13: =COUNTIF(L39:L48,AI13) -> 0 | AK13: =AJ13/(AL4-AJ11) -> 0 | AL13: =IF(AK13=0,0,(AK13*((LOG(AK13))/LOG(2)))) -> 0 | AN13: =N13 -> 221 | AO13: =COUNTIF(L49:L59,AN13) -> 1 | AP13: =AO13/(AQ4-AO11) -> 0.1428571429 | AQ13: =IF(AP13=0,0,(AP13*((LOG(AP13))/LOG(2)))) -> -0.4010507032 | AS13: =N13 -> 221 | AT13: =COUNTIF(L60:L69,AS13) -> 1 | AU13: =AT13/(AV4-AT11) -> 0.3333333333 | AV13: =IF(AU13=0,0,(AU13*((LOG(AU13))/LOG(2)))) -> -0.5283208336
A14: 12 | B14: 1062 | C14: 13 | D14: 1079 | E14: 24 | F14: 1110 | K14: 0 | L14: 112 | N14: 222 | O14: =COUNTIF($L$7:$L$500,N14) -> 0 | P14: =O14/$Q$4 -> 0 | Q14: =IF(P14=0,0,(P14*((LOG(P14))/LOG(2)))) -> 0 | T14: =N14 -> 222 | U14: =COUNTIF(L7:L17,T14) -> 0 | V14: =U14/(W4-U11) -> 0 | W14: =IF(V14=0,0,(V14*((LOG(V14))/LOG(2)))) -> 0 | Y14: =N14 -> 222 | Z14: =COUNTIF(L18:L27,Y14) -> 0 | AA14: =Z14/(AB4-Z11) -> 0 | AB14: =IF(AA14=0,0,(AA14*((LOG(AA14))/LOG(2)))) -> 0 | AD14: =N14 -> 222 | AE14: =COUNTIF(L28:L38,AD14) -> 0 | AF14: =AE14/(AG4-AE11) -> 0 | AG14: =IF(AF14=0,0,(AF14*((LOG(AF14))/LOG(2)))) -> 0 | AI14: =N14 -> 222 | AJ14: =COUNTIF(L39:L48,AI14) -> 0 | AK14: =AJ14/(AL4-AJ11) -> 0 | AL14: =IF(AK14=0,0,(AK14*((LOG(AK14))/LOG(2)))) -> 0 | AN14: =N14 -> 222 | AO14: =COUNTIF(L49:L59,AN14) -> 0 | AP14: =AO14/(AQ4-AO11) -> 0 | AQ14: =IF(AP14=0,0,(AP14*((LOG(AP14))/LOG(2)))) -> 0 | AS14: =N14 -> 222 | AT14: =COUNTIF(L60:L69,AS14) -> 0 | AU14: =AT14/(AV4-AT11) -> 0 | AV14: =IF(AU14=0,0,(AU14*((LOG(AU14))/LOG(2)))) -> 0
A15: 21 | B15: 1223 | C15: 11 | D15: 1255 | E15: 11 | F15: 1264 | K15: 0 | L15: 211 | P15: =SUM(P7:P14) -> 1 | Q15: =-SUM(Q7:Q14) -> 1.386372061 | V15: =SUM(V7:V14) -> 1 | W15: =-SUM(W7:W14) -> 0.5916727786 | AA15: =SUM(AA7:AA14) -> 1 | AB15: =-SUM(AB7:AB14) -> 1 | AF15: =SUM(AF7:AF14) -> 1 | AG15: =-SUM(AG7:AG14) -> 1 | AK15: =SUM(AK7:AK14) -> 1 | AL15: =-SUM(AL7:AL14) -> 0.9182958341 | AP15: =SUM(AP7:AP14) -> 1 | AQ15: =-SUM(AQ7:AQ14) -> 0.5916727786 | AU15: =SUM(AU7:AU14) -> 1 | AV15: =-SUM(AV7:AV14) -> 1.584962501
A16: 12 | B16: 1399 | C16: 13 | D16: 1407 | E16: 13 | F16: 1466 | K16: 0 | L16: 111 | P16: U= | Q16: =Q15/(LOG(Q4)/LOG(2)) -> 0.2319402938 | V16: U1= | W16: =W15/(LOG(W4)/LOG(2)) -> 0.171031789 | AA16: U2= | AB16: =AB15/(LOG(AB4)/LOG(2)) -> 0.3010299957 | AF16: U3= | AG16: =AG15/(LOG(AG4)/LOG(2)) -> 0.2890648263 | AK16: U4= | AL16: =AL15/(LOG(AL4)/LOG(2)) -> 0.2764345909 | AP16: U5= | AQ16: =AQ15/(LOG(AQ4)/LOG(2)) -> 0.171031789 | AU16: U6= | AV16: =AV15/(LOG(AV4)/LOG(2)) -> 0.4771212547
A17: 21 | B17: 1568 | C17: 11 | D17: 1581 | E17: 11 | F17: 1596 | K17: 0 | L17: 211
A18: 21 | B18: 1695 | C18: 11 | D18: 1709 | E18: 11 | F18: 1717 | K18: 0 | L18: 211
A19: 21 | B19: 1811 | C19: 11 | D19: 1823 | E19: 11 | F19: 1832 | K19: 0 | L19: 211 | N19: Total Target Seq
A20: 21 | B20: 1938 | C20: 11 | D20: 1949 | E20: 11 | F20: 1956 | K20: 0 | L20: 211 | N20: =COUNTIF(L7:L69,G3) -> 39 | P20: 11 | Q20: 10 | R20: 11 | S20: 10 | T20: 11 | U20: 10
A21: 21 | B21: 2056 | C21: 11 | D21: 2070 | E21: 11 | F21: 2078 | K21: 0 | L21: 211 | P21: % of reinforcement given in 6 equal intervals based on number of trials
A22: 21 | B22: 2172 | C22: 11 | D22: 2184 | E22: 11 | F22: 2197 | K22: 0 | L22: 211 | P22: %_1 | Q22: %_2 | R22: %_3 | S22: %_4 | T22: %_5 | U22: %_6
A23: 21 | B23: 2289 | C23: 11 | D23: 2300 | E23: 11 | F23: 2308 | K23: 0 | L23: 211 | O23: target sequence | P23: =$G$3 -> 211 | Q23: =$G$3 -> 211 | R23: =$G$3 -> 211 | S23: =$G$3 -> 211 | T23: =$G$3 -> 211 | U23: =$G$3 -> 211
A24: 12 | B24: 2413 | C24: 13 | D24: 2426 | E24: 24 | F24: 2450 | K24: 0 | L24: 112 | O24: total reinforcement | P24: =U11 -> 4 | Q24: =Z11 -> 8 | R24: =AE11 -> 9 | S24: =AJ11 -> 7 | T24: =AO11 -> 4 | U24: =AT11 -> 7
A25: 21 | B25: 2550 | C25: 11 | D25: 2564 | E25: 11 | F25: 2571 | K25: 0 | L25: 211 | O25: % target
A26: 12 | B26: 2675 | C26: 13 | D26: 2685 | E26: 13 | F26: 2716 | K26: 0 | L26: 111 | O26: CCRF
A27: 21 | B27: 2815 | C27: 11 | D27: 2828 | E27: 11 | F27: 2833 | K27: 0 | L27: 211 | O27: % CCRf
A28: 12 | B28: 2939 | C28: 13 | D28: 2950 | E28: 24 | F28: 2971 | K28: 0 | L28: 112 | O28: average response rate | P28: =F17/P20 -> 145.0909091 | Q28: =(F27-F17)/Q20 -> 123.7 | R28: =(F38-F27)/R20 -> 121.9090909 | S28: =(F48-F38)/S20 -> 123.5 | T28: =(F59-F48)/T20 -> 126.0909091 | U28: =(F69-F59)/U20 -> 122.2
A29: 21 | B29: 3073 | C29: 11 | D29: 3083 | E29: 11 | F29: 3088 | K29: 0 | L29: 211
A30: 21 | B30: 3181 | C30: 11 | D30: 3191 | E30: 11 | F30: 3199 | K30: 0 | L30: 211
A31: 21 | B31: 3303 | C31: 11 | D31: 3326 | E31: 11 | F31: 3351 | K31: 0 | L31: 211
A32: 21 | B32: 3452 | C32: 11 | D32: 3465 | E32: 11 | F32: 3471 | K32: 0 | L32: 211
A33: 21 | B33: 3563 | C33: 11 | D33: 3576 | E33: 11 | F33: 3582 | K33: 0 | L33: 211
A34: 21 | B34: 3681 | C34: 11 | D34: 3691 | E34: 11 | F34: 3701 | K34: 0 | L34: 211
A35: 21 | B35: 3795 | C35: 11 | D35: 3807 | E35: 11 | F35: 3814 | K35: 0 | L35: 211
A36: 21 | B36: 3905 | C36: 11 | D36: 3917 | E36: 11 | F36: 3929 | K36: 0 | L36: 211
A37: 12 | B37: 4030 | C37: 13 | D37: 4036 | E37: 13 | F37: 4044 | K37: 0 | L37: 111
A38: 21 | B38: 4144 | C38: 11 | D38: 4154 | E38: 11 | F38: 4174 | K38: 0 | L38: 211
A39: 12 | B39: 4280 | C39: 13 | D39: 4288 | E39: 13 | F39: 4296 | K39: 0 | L39: 111
A40: 21 | B40: 4397 | C40: 11 | D40: 4409 | E40: 11 | F40: 4416 | K40: 0 | L40: 211
A41: 21 | B41: 4507 | C41: 11 | D41: 4517 | E41: 11 | F41: 4522 | K41: 0 | L41: 211
A42: 21 | B42: 4615 | C42: 11 | D42: 4628 | E42: 11 | F42: 4634 | K42: 0 | L42: 211
A43: 12 | B43: 4737 | C43: 13 | D43: 4744 | E43: 13 | F43: 4775 | K43: 0 | L43: 111
A44: 12 | B44: 4889 | C44: 13 | D44: 4897 | E44: 24 | F44: 4938 | K44: 0 | L44: 112
A45: 21 | B45: 5057 | C45: 11 | D45: 5071 | E45: 11 | F45: 5078 | K45: 0 | L45: 211
A46: 21 | B46: 5171 | C46: 11 | D46: 5183 | E46: 11 | F46: 5196 | K46: 0 | L46: 211
A47: 21 | B47: 5283 | C47: 11 | D47: 5295 | E47: 11 | F47: 5302 | K47: 0 | L47: 211
A48: 21 | B48: 5392 | C48: 11 | D48: 5402 | E48: 11 | F48: 5409 | K48: 0 | L48: 211
A49: 21 | B49: 5503 | C49: 11 | D49: 5516 | E49: 11 | F49: 5523 | K49: 0 | L49: 211
A50: 12 | B50: 5620 | C50: 13 | D50: 5625 | E50: 13 | F50: 5634 | K50: 0 | L50: 111
A51: 12 | B51: 5731 | C51: 13 | D51: 5756 | E51: 13 | F51: 5764 | K51: 0 | L51: 111
A52: 12 | B52: 5879 | C52: 13 | D52: 5886 | E52: 13 | F52: 5897 | K52: 0 | L52: 111
A53: 12 | B53: 6009 | C53: 13 | D53: 6017 | E53: 13 | F53: 6029 | K53: 0 | L53: 111
A54: 21 | B54: 6129 | C54: 11 | D54: 6141 | E54: 11 | F54: 6147 | K54: 0 | L54: 211
A55: 12 | B55: 6248 | C55: 13 | D55: 6255 | E55: 13 | F55: 6268 | K55: 0 | L55: 111
A56: 21 | B56: 6369 | C56: 11 | D56: 6379 | E56: 11 | F56: 6387 | K56: 0 | L56: 211
A57: 12 | B57: 6492 | C57: 13 | D57: 6501 | E57: 13 | F57: 6548 | K57: 0 | L57: 111
A58: 21 | B58: 6652 | C58: 22 | D58: 6667 | E58: 13 | F58: 6680 | K58: 0 | L58: 221
A59: 21 | B59: 6781 | C59: 11 | D59: 6791 | E59: 11 | F59: 6796 | K59: 0 | L59: 211
A60: 21 | B60: 6887 | C60: 22 | D60: 6900 | E60: 13 | F60: 6913 | K60: 0 | L60: 221
A61: 21 | B61: 7018 | C61: 11 | D61: 7031 | E61: 11 | F61: 7037 | K61: 0 | L61: 211
A62: 21 | B62: 7130 | C62: 11 | D62: 7141 | E62: 11 | F62: 7148 | K62: 0 | L62: 211
A63: 12 | B63: 7251 | C63: 13 | D63: 7258 | E63: 13 | F63: 7269 | K63: 0 | L63: 111
A64: 12 | B64: 7380 | C64: 13 | D64: 7388 | E64: 24 | F64: 7425 | K64: 0 | L64: 112
A65: 21 | B65: 7542 | C65: 11 | D65: 7555 | E65: 11 | F65: 7566 | K65: 0 | L65: 211
A66: 21 | B66: 7659 | C66: 11 | D66: 7670 | E66: 11 | F66: 7675 | K66: 0 | L66: 211
A67: 21 | B67: 7770 | C67: 11 | D67: 7782 | E67: 11 | F67: 7791 | K67: 0 | L67: 211
A68: 21 | B68: 7884 | C68: 11 | D68: 7896 | E68: 11 | F68: 7904 | K68: 0 | L68: 211
A69: 21 | B69: 8000 | C69: 11 | D69: 8010 | E69: 11 | F69: 8018 | K69: 1 | L69: 211

Sheet !M514A50.185
A1: Report for:!M514A50.185
A2: Date: | B2: <date>
A3: Hen: | B3: <hen> | F3: Correct Sequence | G3: =Start!J2 -> 211 | P3: Total Sequences in Data | Q3: =4994-COUNTBLANK(L7:L5000) -> 66 | V3: Total Sequences in Block Data | W3: =COUNTA(L7:L17) -> 11 | AA3: Total Sequences in Block Data | AB3: =COUNTA(L18:L28) -> 11 | AF3: Total Sequences in Block Data | AG3: =COUNTA(L29:L39) -> 11 | AK3: Total Sequences in Block Data | AL3: =COUNTA(L40:L50) -> 11 | AP3: Total Sequences in Block Data | AQ3: =COUNTA(L51:L61) -> 11 | AU3: Total Sequences in Block Data | AV3: =COUNTA(L62:L72) -> 11
P4: Total Sequences in Summary | Q4: =SUM(O7:O14) -> 66 | V4: Total Sequences in Block Summary | W4: =SUM(U7:U14) -> 11 | AA4: Total Sequences in Block Summary | AB4: =SUM(Z7:Z14) -> 11 | AF4: Total Sequences in Block Summary | AG4: =SUM(AE7:AE14) -> 11 | AK4: Total Sequences in Block Summary | AL4: =SUM(AJ7:AJ14) -> 11 | AP4: Total Sequences in Block Summary | AQ4: =SUM(AO7:AO14) -> 11 | AU4: Total Sequences in Block Summary | AV4: =SUM(AT7:AT14) -> 11
T5: Block 1 | Y5: Block 2 | AD5: Block 3 | AI5: Block 4 | AN5: Block 5 | AS5: Block 6
A6: Sequence Component 1 | B6: Time 1 | C6: Sequence Component 2 | D6: Time 2 | E6: Sequence Component 3 | F6: Time 3 | G6: Sequence Component 4 | H6: Time 4 | I6: Sequence Component 5 | J6: Time 5 | K6: Correct? 0=No 1=Yes | L6: Sequence | N6: Frequency | P6: Relative Frequency | Q6: Variability | T6: Frequency | V6: Relative Frequency | W6: Variability | Y6: Frequency | AA6: Relative Frequency | AB6: Variability | AD6: Frequency | AF6: Relative Frequency | AG6: Variability | AI6: Frequency | AK6: Relative Frequency | AL6: Variability | AN6: Frequency | AP6: Relative Frequency | AQ6: Variability | AS6: Frequency | AU6: Relative Frequency | AV6: Variability
A7: 12 | B7: 49 | C7: 13 | D7: 57 | E7: 13 | F7: 66 | K7: 0 | L7: 111 | N7: 111 | O7: =COUNTIF($L$7:$L$500,N7) -> 20 | P7: =O7/$Q$4 -> 0.303030303 | Q7: =IF(P7=0,0,(P7*((LOG(P7))/LOG(2)))) -> -0.5219594014 | T7: =N7 -> 111 | U7: =COUNTIF(L7:L17,T7) -> 2 | V7: =U7/(W4-U11) -> 0.6666666667 | W7: =IF(V7=0,0,(V7*((LOG(V7))/LOG(2)))) -> -0.3899750005 | Y7: =N7 -> 111 | Z7: =COUNTIF(L18:L28,Y7) -> 1 | AA7: =Z7/(AB4-Z11) -> 0.3333333333 | AB7: =IF(AA7=0,0,(AA7*((LOG(AA7))/LOG(2)))) -> -0.5283208336 | AD7: =N7 -> 111 | AE7: =COUNTIF(L29:L39,AD7) -> 2 | AF7: =AE7/(AG4-AE11) -> 0.4 | AG7: =IF(AF7=0,0,(AF7*((LOG(AF7))/LOG(2)))) -> -0.528771238 | AI7: =N7 -> 111 | AJ7: =COUNTIF(L40:L50,AI7) -> 4 | AK7: =AJ7/(AL4-AJ11) -> 1 | AL7: =IF(AK7=0,0,(AK7*((LOG(AK7))/LOG(2)))) -> 0 | AN7: =N7 -> 111 | AO7: =COUNTIF(L51:L61,AN7) -> 8 | AP7: =AO7/(AQ4-AO11) -> 0.8888888889 | AQ7: =IF(AP7=0,0,(AP7*((LOG(AP7))/LOG(2)))) -> -0.1510444457 | AS7: =N7 -> 111 | AT7: =COUNTIF(L62:L72,AS7) -> 3 | AU7: =AT7/(AV4-AT11) -> 1 | AV7: =IF(AU7=0,0,(AU7*((LOG(AU7))/LOG(2)))) -> 0
A8: 12 | B8: 207 | C8: 13 | D8: 215 | E8: 13 | F8: 225 | K8: 0 | L8: 111 | N8: 112 | O8: =COUNTIF($L$7:$L$500,N8) -> 6 | P8: =O8/$Q$4 -> 0.09090909091 | Q8: =IF(P8=0,0,(P8*((LOG(P8))/LOG(2)))) -> -0.3144937835 | T8: =N8 -> 112 | U8: =COUNTIF(L7:L17,T8) -> 1 | V8: =U8/(W4-U11) -> 0.3333333333 | W8: =IF(V8=0,0,(V8*((LOG(V8))/LOG(2)))) -> -0.5283208336 | Y8: =N8 -> 112 | Z8: =COUNTIF(L18:L28,Y8) -> 1 | AA8: =Z8/(AB4-Z11) -> 0.3333333333 | AB8: =IF(AA8=0,0,(AA8*((LOG(AA8))/LOG(2)))) -> -0.5283208336 | AD8: =N8 -> 112 | AE8: =COUNTIF(L29:L39,AD8) -> 3 | AF8: =AE8/(AG4-AE11) -> 0.6 | AG8: =IF(AF8=0,0,(AF8*((LOG(AF8))/LOG(2)))) -> -0.4421793565 | AI8: =N8 -> 112 | AJ8: =COUNTIF(L40:L50,AI8) -> 0 | AK8: =AJ8/(AL4-AJ11) -> 0 | AL8: =IF(AK8=0,0,(AK8*((LOG(AK8))/LOG(2)))) -> 0 | AN8: =N8 -> 112 | AO8: =COUNTIF(L51:L61,AN8) -> 1 | AP8: =AO8/(AQ4-AO11) -> 0.1111111111 | AQ8: =IF(AP8=0,0,(AP8*((LOG(AP8))/LOG(2)))) -> -0.352213889 | AS8: =N8 -> 112 | AT8: =COUNTIF(L62:L72,AS8) -> 0 | AU8: =AT8/(AV4-AT11) -> 0 | AV8: =IF(AU8=0,0,(AU8*((LOG(AU8))/LOG(2)))) -> 0
A9: 21 | B9: 328 | C9: 11 | D9: 349 | E9: 11 | F9: 354 | K9: 0 | L9: 211 | N9: 121 | O9: =COUNTIF($L$7:$L$500,N9) -> 0 | P9: =O9/$Q$4 -> 0 | Q9: =IF(P9=0,0,(P9*((LOG(P9))/LOG(2)))) -> 0 | T9: =N9 -> 121 | U9: =COUNTIF(L7:L17,T9) -> 0 | V9: =U9/(W4-U11) -> 0 | W9: =IF(V9=0,0,(V9*((LOG(V9))/LOG(2)))) -> 0 | Y9: =N9 -> 121 | Z9: =COUNTIF(L18:L28,Y9) -> 0 | AA9: =Z9/(AB4-Z11) -> 0 | AB9: =IF(AA9=0,0,(AA9*((LOG(AA9))/LOG(2)))) -> 0 | AD9: =N9 -> 121 | AE9: =COUNTIF(L29:L39,AD9) -> 0 | AF9: =AE9/(AG4-AE11) -> 0 | AG9: =IF(AF9=0,0,(AF9*((LOG(AF9))/LOG(2)))) -> 0 | AI9: =N9 -> 121 | AJ9: =COUNTIF(L40:L50,AI9) -> 0 | AK9: =AJ9/(AL4-AJ11) -> 0 | AL9: =IF(AK9=0,0,(AK9*((LOG(AK9))/LOG(2)))) -> 0 | AN9: =N9 -> 121 | AO9: =COUNTIF(L51:L61,AN9) -> 0 | AP9: =AO9/(AQ4-AO11) -> 0 | AQ9: =IF(AP9=0,0,(AP9*((LOG(AP9))/LOG(2)))) -> 0 | AS9: =N9 -> 121 | AT9: =COUNTIF(L62:L72,AS9) -> 0 | AU9: =AT9/(AV4-AT11) -> 0 | AV9: =IF(AU9=0,0,(AU9*((LOG(AU9))/LOG(2)))) -> 0
A10: 21 | B10: 451 | C10: 11 | D10: 462 | E10: 11 | F10: 469 | K10: 0 | L10: 211 | N10: 122 | O10: =COUNTIF($L$7:$L$500,N10) -> 0 | P10: =O10/$Q$4 -> 0 | Q10: =IF(P10=0,0,(P10*((LOG(P10))/LOG(2)))) -> 0 | T10: =N10 -> 122 | U10: =COUNTIF(L7:L17,T10) -> 0 | V10: =U10/(W4-U11) -> 0 | W10: =IF(V10=0,0,(V10*((LOG(V10))/LOG(2)))) -> 0 | Y10: =N10 -> 122 | Z10: =COUNTIF(L18:L28,Y10) -> 0 | AA10: =Z10/(AB4-Z11) -> 0 | AB10: =IF(AA10=0,0,(AA10*((LOG(AA10))/LOG(2)))) -> 0 | AD10: =N10 -> 122 | AE10: =COUNTIF(L29:L39,AD10) -> 0 | AF10: =AE10/(AG4-AE11) -> 0 | AG10: =IF(AF10=0,0,(AF10*((LOG(AF10))/LOG(2)))) -> 0 | AI10: =N10 -> 122 | AJ10: =COUNTIF(L40:L50,AI10) -> 0 | AK10: =AJ10/(AL4-AJ11) -> 0 | AL10: =IF(AK10=0,0,(AK10*((LOG(AK10))/LOG(2)))) -> 0 | AN10: =N10 -> 122 | AO10: =COUNTIF(L51:L61,AN10) -> 0 | AP10: =AO10/(AQ4-AO11) -> 0 | AQ10: =IF(AP10=0,0,(AP10*((LOG(AP10))/LOG(2)))) -> 0 | AS10: =N10 -> 122 | AT10: =COUNTIF(L62:L72,AS10) -> 0 | AU10: =AT10/(AV4-AT11) -> 0 | AV10: =IF(AU10=0,0,(AU10*((LOG(AU10))/LOG(2)))) -> 0
A11: 12 | B11: 589 | C11: 13 | D11: 597 | E11: 24 | F11: 614 | K11: 0 | L11: 112 | N11: 211 | O11: =COUNTIF($L$7:$L$500,N11) -> 39 | P11: =O11/$Q$4 -> 0.5909090909 | Q11: =IF(P11=0,0,(P11*((LOG(P11))/LOG(2)))) -> -0.4484952139 | T11: =N11 -> 211 | U11: =COUNTIF(L7:L17,T11) -> 8 | Y11: =N11 -> 211 | Z11: =COUNTIF(L18:L28,Y11) -> 8 | AD11: =N11 -> 211 | AE11: =COUNTIF(L29:L39,AD11) -> 6 | AI11: =N11 -> 211 | AJ11: =COUNTIF(L40:L50,AI11) -> 7 | AN11: =N11 -> 211 | AO11: =COUNTIF(L51:L61,AN11) -> 2 | AS11: =N11 -> 211 | AT11: =COUNTIF(L62:L72,AS11) -> 8
A12: 21 | B12: 721 | C12: 11 | D12: 731 | E12: 11 | F12: 737 | K12: 0 | L12: 211 | N12: 212 | O12: =COUNTIF($L$7:$L$500,N12) -> 1 | P12: =O12/$Q$4 -> 0.01515151515 | Q12: =IF(P12=0,0,(P12*((LOG(P12))/LOG(2)))) -> -0.09158172908 | T12: =N12 -> 212 | U12: =COUNTIF(L7:L17,T12) -> 0 | V12: =U12/(W4-U11) -> 0 | W12: =IF(V12=0,0,(V12*((LOG(V12))/LOG(2)))) -> 0 | Y12: =N12 -> 212 | Z12: =COUNTIF(L18:L28,Y12) -> 1 | AA12: =Z12/(AB4-Z11) -> 0.3333333333 | AB12: =IF(AA12=0,0,(AA12*((LOG(AA12))/LOG(2)))) -> -0.5283208336 | AD12: =N12 -> 212 | AE12: =COUNTIF(L29:L39,AD12) -> 0 | AF12: =AE12/(AG4-AE11) -> 0 | AG12: =IF(AF12=0,0,(AF12*((LOG(AF12))/LOG(2)))) -> 0 | AI12: =N12 -> 212 | AJ12: =COUNTIF(L40:L50,AI12) -> 0 | AK12: =AJ12/(AL4-AJ11) -> 0 | AL12: =IF(AK12=0,0,(AK12*((LOG(AK12))/LOG(2)))) -> 0 | AN12: =N12 -> 212 | AO12: =COUNTIF(L51:L61,AN12) -> 0 | AP12: =AO12/(AQ4-AO11) -> 0 | AQ12: =IF(AP12=0,0,(AP12*((LOG(AP12))/LOG(2)))) -> 0 | AS12: =N12 -> 212 | AT12: =COUNTIF(L62:L72,AS12) -> 0 | AU12: =AT12/(AV4-AT11) -> 0 | AV12: =IF(AU12=0,0,(AU12*((LOG(AU12))/LOG(2)))) -> 0
A13: 21 | B13: 835 | C13: 11 | D13: 846 | E13: 11 | F13: 854 | K13: 0 | L13: 211 | N13: 221 | O13: =COUNTIF($L$7:$L$500,N13) -> 0 | P13: =O13/$Q$4 -> 0 | Q13: =IF(P13=0,0,(P13*((LOG(P13))/LOG(2)))) -> 0 | T13: =N13 -> 221 | U13: =COUNTIF(L7:L17,T13) -> 0 | V13: =U13/(W4-U11) -> 0 | W13: =IF(V13=0,0,(V13*((LOG(V13))/LOG(2)))) -> 0 | Y13: =N13 -> 221 | Z13: =COUNTIF(L18:L28,Y13) -> 0 | AA13: =Z13/(AB4-Z11) -> 0 | AB13: =IF(AA13=0,0,(AA13*((LOG(AA13))/LOG(2)))) -> 0 | AD13: =N13 -> 221 | AE13: =COUNTIF(L29:L39,AD13) -> 0 | AF13: =AE13/(AG4-AE11) -> 0 | AG13: =IF(AF13=0,0,(AF13*((LOG(AF13))/LOG(2)))) -> 0 | AI13: =N13 -> 221 | AJ13: =COUNTIF(L40:L50,AI13) -> 0 | AK13: =AJ13/(AL4-AJ11) -> 0 | AL13: =IF(AK13=0,0,(AK13*((LOG(AK13))/LOG(2)))) -> 0 | AN13: =N13 -> 221 | AO13: =COUNTIF(L51:L61,AN13) -> 0 | AP13: =AO13/(AQ4-AO11) -> 0 | AQ13: =IF(AP13=0,0,(AP13*((LOG(AP13))/LOG(2)))) -> 0 | AS13: =N13 -> 221 | AT13: =COUNTIF(L62:L72,AS13) -> 0 | AU13: =AT13/(AV4-AT11) -> 0 | AV13: =IF(AU13=0,0,(AU13*((LOG(AU13))/LOG(2)))) -> 0
A14: 21 | B14: 951 | C14: 11 | D14: 968 | E14: 11 | F14: 976 | K14: 0 | L14: 211 | N14: 222 | O14: =COUNTIF($L$7:$L$500,N14) -> 0 | P14: =O14/$Q$4 -> 0 | Q14: =IF(P14=0,0,(P14*((LOG(P14))/LOG(2)))) -> 0 | T14: =N14 -> 222 | U14: =COUNTIF(L7:L17,T14) -> 0 | V14: =U14/(W4-U11) -> 0 | W14: =IF(V14=0,0,(V14*((LOG(V14))/LOG(2)))) -> 0 | Y14: =N14 -> 222 | Z14: =COUNTIF(L18:L28,Y14) -> 0 | AA14: =Z14/(AB4-Z11) -> 0 | AB14: =IF(AA14=0,0,(AA14*((LOG(AA14))/LOG(2)))) -> 0 | AD14: =N14 -> 222 | AE14: =COUNTIF(L29:L39,AD14) -> 0 | AF14: =AE14/(AG4-AE11) -> 0 | AG14: =IF(AF14=0,0,(AF14*((LOG(AF14))/LOG(2)))) -> 0 | AI14: =N14 -> 222 | AJ14: =COUNTIF(L40:L50,AI14) -> 0 | AK14: =AJ14/(AL4-AJ11) -> 0 | AL14: =IF(AK14=0,0,(AK14*((LOG(AK14))/LOG(2)))) -> 0 | AN14: =N14 -> 222 | AO14: =COUNTIF(L51:L61,AN14) -> 0 | AP14: =AO14/(AQ4-AO11) -> 0 | AQ14: =IF(AP14=0,0,(AP14*((LOG(AP14))/LOG(2)))) -> 0 | AS14: =N14 -> 222 | AT14: =COUNTIF(L62:L72,AS14) -> 0 | AU14: =AT14/(AV4-AT11) -> 0 | AV14: =IF(AU14=0,0,(AU14*((LOG(AU14))/LOG(2)))) -> 0
A15: 21 | B15: 1069 | C15: 11 | D15: 1081 | E15: 11 | F15: 1093 | K15: 0 | L15: 211 | P15: =SUM(P7:P14) -> 1 | Q15: =-SUM(Q7:Q14) -> 1.376530128 | V15: =SUM(V7:V14) -> 1 | W15: =-SUM(W7:W14) -> 0.9182958341 | AA15: =SUM(AA7:AA14) -> 1 | AB15: =-SUM(AB7:AB14) -> 1.584962501 | AF15: =SUM(AF7:AF14) -> 1 | AG15: =-SUM(AG7:AG14) -> 0.9709505945 | AK15: =SUM(AK7:AK14) -> 1 | AL15: =-SUM(AL7:AL14) -> 0 | AP15: =SUM(AP7:AP14) -> 1 | AQ15: =-SUM(AQ7:AQ14) -> 0.5032583348 | AU15: =SUM(AU7:AU14) -> 1 | AV15: =-SUM(AV7:AV14) -> 0
A16: 21 | B16: 1186 | C16: 11 | D16: 1198 | E16: 11 | F16: 1206 | K16: 0 | L16: 211 | P16: U= | Q16: =Q15/(LOG(Q4)/LOG(2)) -> 0.2277366599 | V16: U1= | W16: =W15/(LOG(W4)/LOG(2)) -> 0.2654470258 | AA16: U2= | AB16: =AB15/(LOG(AB4)/LOG(2)) -> 0.45815691 | AF16: U3= | AG16: =AG15/(LOG(AG4)/LOG(2)) -> 0.2806676649 | AK16: U4= | AL16: =AL15/(LOG(AL4)/LOG(2)) -> 0 | AP16: U5= | AQ16: =AQ15/(LOG(AQ4)/LOG(2)) -> 0.1454742831 | AU16: U6= | AV16: =AV15/(LOG(AV4)/LOG(2)) -> 0
A17: 21 | B17: 1293 | C17: 11 | D17: 1305 | E17: 11 | F17: 1311 | K17: 0 | L17: 211
A18: 21 | B18: 1402 | C18: 11 | D18: 1411 | E18: 11 | F18: 1419 | K18: 0 | L18: 211
A19: 21 | B19: 1507 | C19: 11 | D19: 1517 | E19: 11 | F19: 1522 | K19: 0 | L19: 211 | N19: Total Target Seq
A20: 21 | B20: 1617 | C20: 11 | D20: 1631 | E20: 11 | F20: 1646 | K20: 0 | L20: 211 | N20: =COUNTIF(L7:L72,G3) -> 39 | P20: 11 | Q20: 11 | R20: 11 | S20: 11 | T20: 11 | U20: 11
A21: 12 | B21: 1748 | C21: 13 | D21: 1754 | E21: 13 | F21: 1784 | K21: 0 | L21: 111 | P21: % of reinforcement given in 6 equal intervals based on number of trials
A22: 21 | B22: 1885 | C22: 11 | D22: 1895 | E22: 11 | F22: 1900 | K22: 0 | L22: 211 | P22: %_1 | Q22: %_2 | R22: %_3 | S22: %_4 | T22: %_5 | U22: %_6
A23: 21 | B23: 1992 | C23: 11 | D23: 2004 | E23: 22 | F23: 2031 | K23: 0 | L23: 212 | O23: target sequence | P23: =$G$3 -> 211 | Q23: =$G$3 -> 211 | R23: =$G$3 -> 211 | S23: =$G$3 -> 211 | T23: =$G$3 -> 211 | U23: =$G$3 -> 211
A24: 21 | B24: 2125 | C24: 11 | D24: 2135 | E24: 11 | F24: 2143 | K24: 0 | L24: 211 | O24: total reinforcement | P24: =U11 -> 8 | Q24: =Z11 -> 8 | R24: =AE11 -> 6 | S24: =AJ11 -> 7 | T24: =AO11 -> 2 | U24: =AT11 -> 8
A25: 21 | B25: 2234 | C25: 11 | D25: 2247 | E25: 11 | F25: 2254 | K25: 0 | L25: 211 | O25: % target
A26: 21 | B26: 2348 | C26: 11 | D26: 2361 | E26: 11 | F26: 2376 | K26: 0 | L26: 211 | O26: CCRF
A27: 21 | B27: 2467 | C27: 11 | D27: 2481 | E27: 11 | F27: 2487 | K27: 0 | L27: 211 | O27: % CCRf
A28: 12 | B28: 2591 | C28: 13 | D28: 2599 | E28: 24 | F28: 2635 | K28: 0 | L28: 112 | O28: average response rate | P28: =F17/P20 -> 119.1818182 | Q28: =(F28-F17)/Q20 -> 120.3636364 | R28: =(F39-F28)/R20 -> 123.7272727 | S28: =(F50-F39)/S20 -> 118.2727273 | T28: =(F61-F50)/T20 -> 135.0909091 | U28: =(F72-F61)/U20 -> 119.8181818
A29: 21 | B29: 2737 | C29: 11 | D29: 2747 | E29: 11 | F29: 2752 | K29: 0 | L29: 211
A30: 21 | B30: 2851 | C30: 11 | D30: 2865 | E30: 11 | F30: 2873 | K30: 0 | L30: 211
A31: 12 | B31: 2978 | C31: 13 | D31: 2986 | E31: 24 | F31: 3000 | K31: 0 | L31: 112
A32: 21 | B32: 3100 | C32: 11 | D32: 3112 | E32: 11 | F32: 3117 | K32: 0 | L32: 211
A33: 21 | B33: 3208 | C33: 11 | D33: 3223 | E33: 11 | F33: 3231 | K33: 0 | L33: 211
A34: 12 | B34: 3335 | C34: 13 | D34: 3344 | E34: 24 | F34: 3368 | K34: 0 | L34: 112
A35: 21 | B35: 3474 | C35: 11 | D35: 3485 | E35: 11 | F35: 3489 | K35: 0 | L35: 211
A36: 12 | B36: 3592 | C36: 13 | D36: 3598 | E36: 13 | F36: 3605 | K36: 0 | L36: 111
A37: 21 | B37: 3706 | C37: 11 | D37: 3716 | E37: 11 | F37: 3721 | K37: 0 | L37: 211
A38: 12 | B38: 3828 | C38: 13 | D38: 3835 | E38: 24 | F38: 3859 | K38: 0 | L38: 112
A39: 12 | B39: 3976 | C39: 13 | D39: 3983 | E39: 13 | F39: 3996 | K39: 0 | L39: 111
A40: 21 | B40: 4096 | C40: 11 | D40: 4105 | E40: 11 | F40: 4112 | K40: 0 | L40: 211
A41: 21 | B41: 4205 | C41: 11 | D41: 4217 | E41: 11 | F41: 4224 | K41: 0 | L41: 211
A42: 21 | B42: 4319 | C42: 11 | D42: 4328 | E42: 11 | F42: 4334 | K42: 0 | L42: 211
A43: 21 | B43: 4428 | C43: 11 | D43: 4441 | E43: 11 | F43: 4448 | K43: 0 | L43: 211
A44: 21 | B44: 4540 | C44: 11 | D44: 4551 | E44: 11 | F44: 4558 | K44: 0 | L44: 211
A45: 21 | B45: 4652 | C45: 11 | D45: 4664 | E45: 11 | F45: 4670 | K45: 0 | L45: 211
A46: 12 | B46: 4777 | C46: 13 | D46: 4785 | E46: 13 | F46: 4795 | K46: 0 | L46: 111
A47: 12 | B47: 4907 | C47: 13 | D47: 4914 | E47: 13 | F47: 4925 | K47: 0 | L47: 111
A48: 12 | B48: 5039 | C48: 13 | D48: 5044 | E48: 13 | F48: 5051 | K48: 0 | L48: 111
A49: 21 | B49: 5157 | C49: 11 | D49: 5167 | E49: 11 | F49: 5173 | K49: 0 | L49: 211
A50: 12 | B50: 5276 | C50: 13 | D50: 5286 | E50: 13 | F50: 5297 | K50: 0 | L50: 111
A51: 12 | B51: 5405 | C51: 13 | D51: 5410 | E51: 13 | F51: 5417 | K51: 0 | L51: 111
A52: 12 | B52: 5529 | C52: 13 | D52: 5534 | E52: 13 | F52: 5541 | K52: 0 | L52: 111
A53: 12 | B53: 5661 | C53: 13 | D53: 5669 | E53: 13 | F53: 5726 | K53: 0 | L53: 111
A54: 12 | B54: 5839 | C54: 13 | D54: 5847 | E54: 13 | F54: 5858 | K54: 0 | L54: 111
A55: 12 | B55: 5969 | C55: 13 | D55: 5977 | E55: 13 | F55: 5986 | K55: 0 | L55: 111
A56: 12 | B56: 6097 | C56: 13 | D56: 6104 | E56: 24 | F56: 6152 | K56: 0 | L56: 112
A57: 12 | B57: 6264 | C57: 13 | D57: 6272 | E57: 13 | F57: 6281 | K57: 0 | L57: 111
A58: 12 | B58: 6396 | C58: 13 | D58: 6404 | E58: 13 | F58: 6412 | K58: 0 | L58: 111
A59: 12 | B59: 6525 | C59: 13 | D59: 6532 | E59: 13 | F59: 6540 | K59: 0 | L59: 111
A60: 21 | B60: 6640 | C60: 11 | D60: 6655 | E60: 11 | F60: 6664 | K60: 0 | L60: 211
A61: 21 | B61: 6762 | C61: 11 | D61: 6775 | E61: 11 | F61: 6783 | K61: 0 | L61: 211
A62: 21 | B62: 6882 | C62: 11 | D62: 6896 | E62: 11 | F62: 6904 | K62: 0 | L62: 211
A63: 12 | B63: 7003 | C63: 13 | D63: 7010 | E63: 13 | F63: 7017 | K63: 0 | L63: 111
A64: 21 | B64: 7124 | C64: 11 | D64: 7137 | E64: 11 | F64: 7144 | K64: 0 | L64: 211
A65: 12 | B65: 7254 | C65: 13 | D65: 7262 | E65: 13 | F65: 7275 | K65: 0 | L65: 111
A66: 12 | B66: 7392 | C66: 13 | D66: 7397 | E66: 13 | F66: 7404 | K66: 0 | L66: 111
A67: 21 | B67: 7503 | C67: 11 | D67: 7514 | E67: 11 | F67: 7519 | K67: 0 | L67: 211
A68: 21 | B68: 7613 | C68: 11 | D68: 7626 | E68: 11 | F68: 7637 | K68: 0 | L68: 211
A69: 21 | B69: 7728 | C69: 11 | D69: 7739 | E69: 11 | F69: 7746 | K69: 0 | L69: 211
A70: 21 | B70: 7838 | C70: 11 | D70: 7847 | E70: 11 | F70: 7855 | K70: 0 | L70: 211
A71: 21 | B71: 7948 | C71: 11 | D71: 7960 | E71: 11 | F71: 7975 | K71: 0 | L71: 211
A72: 21 | B72: 8075 | C72: 11 | D72: 8086 | E72: 11 | F72: 8101 | K72: 1 | L72: 211

Sheet !M515A20.185
A1: Report for:!M515A20.185
A2: Date: | B2: <date>
A3: Hen: | B3: <hen> | F3: Correct Sequence | G3: =Start!J2 -> 211 | P3: Total Sequences in Data | Q3: =4994-COUNTBLANK(L7:L5000) -> 42 | V3: Total Sequences in Block Data | W3: =COUNTA(L7:L13) -> 7 | AA3: Total Sequences in Block Data | AB3: =COUNTA(L14:L20) -> 7 | AF3: Total Sequences in Block Data | AG3: =COUNTA(L21:L27) -> 7 | AK3: Total Sequences in Block Data | AL3: =COUNTA(L28:L34) -> 7 | AP3: Total Sequences in Block Data | AQ3: =COUNTA(L35:L41) -> 7 | AU3: Total Sequences in Block Data | AV3: =COUNTA(L42:L48) -> 7
P4: Total Sequences in Summary | Q4: =SUM(O7:O14) -> 42 | V4: Total Sequences in Block Summary | W4: =SUM(U7:U14) -> 7 | AA4: Total Sequences in Block Summary | AB4: =SUM(Z7:Z14) -> 7 | AF4: Total Sequences in Block Summary | AG4: =SUM(AE7:AE14) -> 7 | AK4: Total Sequences in Block Summary | AL4: =SUM(AJ7:AJ14) -> 7 | AP4: Total Sequences in Block Summary | AQ4: =SUM(AO7:AO14) -> 7 | AU4: Total Sequences in Block Summary | AV4: =SUM(AT7:AT14) -> 7
T5: Block 1 | Y5: Block 2 | AD5: Block 3 | AI5: Block 4 | AN5: Block 5 | AS5: Block 6
A6: Sequence Component 1 | B6: Time 1 | C6: Sequence Component 2 | D6: Time 2 | E6: Sequence Component 3 | F6: Time 3 | G6: Sequence Component 4 | H6: Time 4 | I6: Sequence Component 5 | J6: Time 5 | K6: Correct? 0=No 1=Yes | L6: Sequence | N6: Frequency | P6: Relative Frequency | Q6: Variability | T6: Frequency | V6: Relative Frequency | W6: Variability | Y6: Frequency | AA6: Relative Frequency | AB6: Variability | AD6: Frequency | AF6: Relative Frequency | AG6: Variability | AI6: Frequency | AK6: Relative Frequency | AL6: Variability | AN6: Frequency | AP6: Relative Frequency | AQ6: Variability | AS6: Frequency | AU6: Relative Frequency | AV6: Variability
A7: 21 | B7: 14 | C7: 11 | D7: 32 | E7: 22 | F7: 54 | K7: 0 | L7: 212 | N7: 111 | O7: =COUNTIF($L$7:$L$500,N7) -> 1 | P7: =O7/$Q$4 -> 0.02380952381 | Q7: =IF(P7=0,0,(P7*((LOG(P7))/LOG(2)))) -> -0.1283885101 | T7: =N7 -> 111 | U7: =COUNTIF(L7:L13,T7) -> 0 | V7: =U7/(W4-U11) -> 0 | W7: =IF(V7=0,0,(V7*((LOG(V7))/LOG(2)))) -> 0 | Y7: =N7 -> 111 | Z7: =COUNTIF(L14:L20,Y7) -> 0 | AA7: =Z7/(AB4-Z11) -> 0 | AB7: =IF(AA7=0,0,(AA7*((LOG(AA7))/LOG(2)))) -> 0 | AD7: =N7 -> 111 | AE7: =COUNTIF(L21:L27,AD7) -> 0 | AF7: =AE7/(AG4-AE11) ->  | AG7: =IF(AF7=0,0,(AF7*((LOG(AF7))/LOG(2)))) ->  | AI7: =N7 -> 111 | AJ7: =COUNTIF(L28:L34,AI7) -> 0 | AK7: =AJ7/(AL4-AJ11) ->  | AL7: =IF(AK7=0,0,(AK7*((LOG(AK7))/LOG(2)))) ->  | AN7: =N7 -> 111 | AO7: =COUNTIF(L35:L41,AN7) -> 0 | AP7: =AO7/(AQ4-AO11) ->  | AQ7: =IF(AP7=0,0,(AP7*((LOG(AP7))/LOG(2)))) ->  | AS7: =N7 -> 111 | AT7: =COUNTIF(L42:L48,AS7) -> 1 | AU7: =AT7/(AV4-AT11) -> 1 | AV7: =IF(AU7=0,0,(AU7*((LOG(AU7))/LOG(2)))) -> 0
A8: 21 | B8: 158 | C8: 11 | D8: 169 | E8: 11 | F8: 175 | K8: 0 | L8: 211 | N8: 112 | O8: =COUNTIF($L$7:$L$500,N8) -> 0 | P8: =O8/$Q$4 -> 0 | Q8: =IF(P8=0,0,(P8*((LOG(P8))/LOG(2)))) -> 0 | T8: =N8 -> 112 | U8: =COUNTIF(L7:L13,T8) -> 0 | V8: =U8/(W4-U11) -> 0 | W8: =IF(V8=0,0,(V8*((LOG(V8))/LOG(2)))) -> 0 | Y8: =N8 -> 112 | Z8: =COUNTIF(L14:L20,Y8) -> 0 | AA8: =Z8/(AB4-Z11) -> 0 | AB8: =IF(AA8=0,0,(AA8*((LOG(AA8))/LOG(2)))) -> 0 | AD8: =N8 -> 112 | AE8: =COUNTIF(L21:L27,AD8) -> 0 | AF8: =AE8/(AG4-AE11) ->  | AG8: =IF(AF8=0,0,(AF8*((LOG(AF8))/LOG(2)))) ->  | AI8: =N8 -> 112 | AJ8: =COUNTIF(L28:L34,AI8) -> 0 | AK8: =AJ8/(AL4-AJ11) ->  | AL8: =IF(AK8=0,0,(AK8*((LOG(AK8))/LOG(2)))) ->  | AN8: =N8 -> 112 | AO8: =COUNTIF(L35:L41,AN8) -> 0 | AP8: =AO8/(AQ4-AO11) ->  | AQ8: =IF(AP8=0,0,(AP8*((LOG(AP8))/LOG(2)))) ->  | AS8: =N8 -> 112 | AT8: =COUNTIF(L42:L48,AS8) -> 0 | AU8: =AT8/(AV4-AT11) -> 0 | AV8: =IF(AU8=0,0,(AU8*((LOG(AU8))/LOG(2)))) -> 0
A9: 21 | B9: 287 | C9: 11 | D9: 301 | E9: 11 | F9: 312 | K9: 0 | L9: 211 | N9: 121 | O9: =COUNTIF($L$7:$L$500,N9) -> 0 | P9: =O9/$Q$4 -> 0 | Q9: =IF(P9=0,0,(P9*((LOG(P9))/LOG(2)))) -> 0 | T9: =N9 -> 121 | U9: =COUNTIF(L7:L13,T9) -> 0 | V9: =U9/(W4-U11) -> 0 | W9: =IF(V9=0,0,(V9*((LOG(V9))/LOG(2)))) -> 0 | Y9: =N9 -> 121 | Z9: =COUNTIF(L14:L20,Y9) -> 0 | AA9: =Z9/(AB4-Z11) -> 0 | AB9: =IF(AA9=0,0,(AA9*((LOG(AA9))/LOG(2)))) -> 0 | AD9: =N9 -> 121 | AE9: =COUNTIF(L21:L27,AD9) -> 0 | AF9: =AE9/(AG4-AE11) ->  | AG9: =IF(AF9=0,0,(AF9*((LOG(AF9))/LOG(2)))) ->  | AI9: =N9 -> 121 | AJ9: =COUNTIF(L28:L34,AI9) -> 0 | AK9: =AJ9/(AL4-AJ11) ->  | AL9: =IF(AK9=0,0,(AK9*((LOG(AK9))/LOG(2)))) ->  | AN9: =N9 -> 121 | AO9: =COUNTIF(L35:L41,AN9) -> 0 | AP9: =AO9/(AQ4-AO11) ->  | AQ9: =IF(AP9=0,0,(AP9*((LOG(AP9))/LOG(2)))) ->  | AS9: =N9 -> 121 | AT9: =COUNTIF(L42:L48,AS9) -> 0 | AU9: =AT9/(AV4-AT11) -> 0 | AV9: =IF(AU9=0,0,(AU9*((LOG(AU9))/LOG(2)))) -> 0
A10: 21 | B10: 409 | C10: 11 | D10: 419 | E10: 11 | F10: 426 | K10: 0 | L10: 211 | N10: 122 | O10: =COUNTIF($L$7:$L$500,N10) -> 0 | P10: =O10/$Q$4 -> 0 | Q10: =IF(P10=0,0,(P10*((LOG(P10))/LOG(2)))) -> 0 | T10: =N10 -> 122 | U10: =COUNTIF(L7:L13,T10) -> 0 | V10: =U10/(W4-U11) -> 0 | W10: =IF(V10=0,0,(V10*((LOG(V10))/LOG(2)))) -> 0 | Y10: =N10 -> 122 | Z10: =COUNTIF(L14:L20,Y10) -> 0 | AA10: =Z10/(AB4-Z11) -> 0 | AB10: =IF(AA10=0,0,(AA10*((LOG(AA10))/LOG(2)))) -> 0 | AD10: =N10 -> 122 | AE10: =COUNTIF(L21:L27,AD10) -> 0 | AF10: =AE10/(AG4-AE11) ->  | AG10: =IF(AF10=0,0,(AF10*((LOG(AF10))/LOG(2)))) ->  | AI10: =N10 -> 122 | AJ10: =COUNTIF(L28:L34,AI10) -> 0 | AK10: =AJ10/(AL4-AJ11) ->  | AL10: =IF(AK10=0,0,(AK10*((LOG(AK10))/LOG(2)))) ->  | AN10: =N10 -> 122 | AO10: =COUNTIF(L35:L41,AN10) -> 0 | AP10: =AO10/(AQ4-AO11) ->  | AQ10: =IF(AP10=0,0,(AP10*((LOG(AP10))/LOG(2)))) ->  | AS10: =N10 -> 122 | AT10: =COUNTIF(L42:L48,AS10) -> 0 | AU10: =AT10/(AV4-AT11) -> 0 | AV10: =IF(AU10=0,0,(AU10*((LOG(AU10))/LOG(2)))) -> 0
A11: 21 | B11: 529 | C11: 11 | D11: 540 | E11: 11 | F11: 548 | K11: 0 | L11: 211 | N11: 211 | O11: =COUNTIF($L$7:$L$500,N11) -> 39 | P11: =O11/$Q$4 -> 0.9285714286 | Q11: =IF(P11=0,0,(P11*((LOG(P11))/LOG(2)))) -> -0.09927840364 | T11: =N11 -> 211 | U11: =COUNTIF(L7:L13,T11) -> 6 | Y11: =N11 -> 211 | Z11: =COUNTIF(L14:L20,Y11) -> 6 | AD11: =N11 -> 211 | AE11: =COUNTIF(L21:L27,AD11) -> 7 | AI11: =N11 -> 211 | AJ11: =COUNTIF(L28:L34,AI11) -> 7 | AN11: =N11 -> 211 | AO11: =COUNTIF(L35:L41,AN11) -> 7 | AS11: =N11 -> 211 | AT11: =COUNTIF(L42:L48,AS11) -> 6
A12: 21 | B12: 648 | C12: 11 | D12: 661 | E12: 11 | F12: 668 | K12: 0 | L12: 211 | N12: 212 | O12: =COUNTIF($L$7:$L$500,N12) -> 2 | P12: =O12/$Q$4 -> 0.04761904762 | Q12: =IF(P12=0,0,(P12*((LOG(P12))/LOG(2)))) -> -0.2091579725 | T12: =N12 -> 212 | U12: =COUNTIF(L7:L13,T12) -> 1 | V12: =U12/(W4-U11) -> 1 | W12: =IF(V12=0,0,(V12*((LOG(V12))/LOG(2)))) -> 0 | Y12: =N12 -> 212 | Z12: =COUNTIF(L14:L20,Y12) -> 1 | AA12: =Z12/(AB4-Z11) -> 1 | AB12: =IF(AA12=0,0,(AA12*((LOG(AA12))/LOG(2)))) -> 0 | AD12: =N12 -> 212 | AE12: =COUNTIF(L21:L27,AD12) -> 0 | AF12: =AE12/(AG4-AE11) ->  | AG12: =IF(AF12=0,0,(AF12*((LOG(AF12))/LOG(2)))) ->  | AI12: =N12 -> 212 | AJ12: =COUNTIF(L28:L34,AI12) -> 0 | AK12: =AJ12/(AL4-AJ11) ->  | AL12: =IF(AK12=0,0,(AK12*((LOG(AK12))/LOG(2)))) ->  | AN12: =N12 -> 212 | AO12: =COUNTIF(L35:L41,AN12) -> 0 | AP12: =AO12/(AQ4-AO11) ->  | AQ12: =IF(AP12=0,0,(AP12*((LOG(AP12))/LOG(2)))) ->  | AS12: =N12 -> 212 | AT12: =COUNTIF(L42:L48,AS12) -> 0 | AU12: =AT12/(AV4-AT11) -> 0 | AV12: =IF(AU12=0,0,(AU12*((LOG(AU12))/LOG(2)))) -> 0
A13: 21 | B13: 761 | C13: 11 | D13: 772 | E13: 11 | F13: 776 | K13: 0 | L13: 211 | N13: 221 | O13: =COUNTIF($L$7:$L$500,N13) -> 0 | P13: =O13/$Q$4 -> 0 | Q13: =IF(P13=0,0,(P13*((LOG(P13))/LOG(2)))) -> 0 | T13: =N13 -> 221 | U13: =COUNTIF(L7:L13,T13) -> 0 | V13: =U13/(W4-U11) -> 0 | W13: =IF(V13=0,0,(V13*((LOG(V13))/LOG(2)))) -> 0 | Y13: =N13 -> 221 | Z13: =COUNTIF(L14:L20,Y13) -> 0 | AA13: =Z13/(AB4-Z11) -> 0 | AB13: =IF(AA13=0,0,(AA13*((LOG(AA13))/LOG(2)))) -> 0 | AD13: =N13 -> 221 | AE13: =COUNTIF(L21:L27,AD13) -> 0 | AF13: =AE13/(AG4-AE11) ->  | AG13: =IF(AF13=0,0,(AF13*((LOG(AF13))/LOG(2)))) ->  | AI13: =N13 -> 221 | AJ13: =COUNTIF(L28:L34,AI13) -> 0 | AK13: =AJ13/(AL4-AJ11) ->  | AL13: =IF(AK13=0,0,(AK13*((LOG(AK13))/LOG(2)))) ->  | AN13: =N13 -> 221 | AO13: =COUNTIF(L35:L41,AN13) -> 0 | AP13: =AO13/(AQ4-AO11) ->  | AQ13: =IF(AP13=0,0,(AP13*((LOG(AP13))/LOG(2)))) ->  | AS13: =N13 -> 221 | AT13: =COUNTIF(L42:L48,AS13) -> 0 | AU13: =AT13/(AV4-AT11) -> 0 | AV13: =IF(AU13=0,0,(AU13*((LOG(AU13))/LOG(2)))) -> 0
A14: 21 | B14: 875 | C14: 11 | D14: 889 | E14: 22 | F14: 914 | K14: 0 | L14: 212 | N14: 222 | O14: =COUNTIF($L$7:$L$500,N14) -> 0 | P14: =O14/$Q$4 -> 0 | Q14: =IF(P14=0,0,(P14*((LOG(P14))/LOG(2)))) -> 0 | T14: =N14 -> 222 | U14: =COUNTIF(L7:L13,T14) -> 0 | V14: =U14/(W4-U11) -> 0 | W14: =IF(V14=0,0,(V14*((LOG(V14))/LOG(2)))) -> 0 | Y14: =N14 -> 222 | Z14: =COUNTIF(L14:L20,Y14) -> 0 | AA14: =Z14/(AB4-Z11) -> 0 | AB14: =IF(AA14=0,0,(AA14*((LOG(AA14))/LOG(2)))) -> 0 | AD14: =N14 -> 222 | AE14: =COUNTIF(L21:L27,AD14) -> 0 | AF14: =AE14/(AG4-AE11) ->  | AG14: =IF(AF14=0,0,(AF14*((LOG(AF14))/LOG(2)))) ->  | AI14: =N14 -> 222 | AJ14: =COUNTIF(L28:L34,AI14) -> 0 | AK14: =AJ14/(AL4-AJ11) ->  | AL14: =IF(AK14=0,0,(AK14*((LOG(AK14))/LOG(2)))) ->  | AN14: =N14 -> 222 | AO14: =COUNTIF(L35:L41,AN14) -> 0 | AP14: =AO14/(AQ4-AO11) ->  | AQ14: =IF(AP14=0,0,(AP14*((LOG(AP14))/LOG(2)))) ->  | AS14: =N14 -> 222 | AT14: =COUNTIF(L42:L48,AS14) -> 0 | AU14: =AT14/(AV4-AT11) -> 0 | AV14: =IF(AU14=0,0,(AU14*((LOG(AU14))/LOG(2)))) -> 0
A15: 21 | B15: 1019 | C15: 11 | D15: 1032 | E15: 11 | F15: 1039 | K15: 0 | L15: 211 | P15: =SUM(P7:P14) -> 1 | Q15: =-SUM(Q7:Q14) -> 0.4368248862 | V15: =SUM(V7:V14) -> 1 | W15: =-SUM(W7:W14) -> 0 | AA15: =SUM(AA7:AA14) -> 1 | AB15: =-SUM(AB7:AB14) -> 0 | AF15: =SUM(AF7:AF14) ->  | AG15: =-SUM(AG7:AG14) ->  | AK15: =SUM(AK7:AK14) ->  | AL15: =-SUM(AL7:AL14) ->  | AP15: =SUM(AP7:AP14) ->  | AQ15: =-SUM(AQ7:AQ14) ->  | AU15: =SUM(AU7:AU14) -> 1 | AV15: =-SUM(AV7:AV14) -> 0
A16: 21 | B16: 1137 | C16: 11 | D16: 1150 | E16: 11 | F16: 1157 | K16: 0 | L16: 211 | P16: U= | Q16: =Q15/(LOG(Q4)/LOG(2)) -> 0.08100874855 | V16: U1= | W16: =W15/(LOG(W4)/LOG(2)) -> 0 | AA16: U2= | AB16: =AB15/(LOG(AB4)/LOG(2)) -> 0 | AF16: U3= | AG16: =AG15/(LOG(AG4)/LOG(2)) ->  | AK16: U4= | AL16: =AL15/(LOG(AL4)/LOG(2)) ->  | AP16: U5= | AQ16: =AQ15/(LOG(AQ4)/LOG(2)) ->  | AU16: U6= | AV16: =AV15/(LOG(AV4)/LOG(2)) -> 0
A17: 21 | B17: 1254 | C17: 11 | D17: 1267 | E17: 11 | F17: 1274 | K17: 0 | L17: 211
A18: 21 | B18: 1366 | C18: 11 | D18: 1376 | E18: 11 | F18: 1381 | K18: 0 | L18: 211
A19: 21 | B19: 1474 | C19: 11 | D19: 1487 | E19: 11 | F19: 1499 | K19: 0 | L19: 211 | N19: Total Target Seq
A20: 21 | B20: 1592 | C20: 11 | D20: 1603 | E20: 11 | F20: 1608 | K20: 0 | L20: 211 | N20: =COUNTIF(L7:L48,G3) -> 39 | P20: 7 | Q20: 7 | R20: 7 | S20: 7 | T20: 7 | U20: 7
A21: 21 | B21: 1707 | C21: 11 | D21: 1719 | E21: 11 | F21: 1726 | K21: 0 | L21: 211 | P21: % of reinforcement given in 6 equal intervals based on number of trials
A22: 21 | B22: 1817 | C22: 11 | D22: 1826 | E22: 11 | F22: 1831 | K22: 0 | L22: 211 | P22: %_1 | Q22: %_2 | R22: %_3 | S22: %_4 | T22: %_5 | U22: %_6
A23: 21 | B23: 1922 | C23: 11 | D23: 1932 | E23: 11 | F23: 1940 | K23: 0 | L23: 211 | O23: target sequence | P23: =$G$3 -> 211 | Q23: =$G$3 -> 211 | R23: =$G$3 -> 211 | S23: =$G$3 -> 211 | T23: =$G$3 -> 211 | U23: =$G$3 -> 211
A24: 21 | B24: 2032 | C24: 11 | D24: 2042 | E24: 11 | F24: 2046 | K24: 0 | L24: 211 | O24: total reinforcement | P24: =U11 -> 6 | Q24: =Z11 -> 6 | R24: =AE11 -> 7 | S24: =AJ11 -> 7 | T24: =AO11 -> 7 | U24: =AT11 -> 6
A25: 21 | B25: 2138 | C25: 11 | D25: 2148 | E25: 11 | F25: 2154 | K25: 0 | L25: 211 | O25: % target
A26: 21 | B26: 2256 | C26: 11 | D26: 2270 | E26: 11 | F26: 2278 | K26: 0 | L26: 211 | O26: CCRF
A27: 21 | B27: 2369 | C27: 11 | D27: 2380 | E27: 11 | F27: 2387 | K27: 0 | L27: 211 | O27: % CCRf
A28: 21 | B28: 2481 | C28: 11 | D28: 2493 | E28: 11 | F28: 2500 | K28: 0 | L28: 211 | O28: average response rate | P28: =F13/P20 -> 110.8571429 | Q28: =(F20-F13)/Q20 -> 118.8571429 | R28: =(F27-F20)/R20 -> 111.2857143 | S28: =(F34-F27)/S20 -> 109.2857143 | T28: =(F41-F34)/T20 -> 108.8571429 | U28: =(F48-F41)/U20 -> 116
A29: 21 | B29: 2596 | C29: 11 | D29: 2605 | E29: 11 | F29: 2610 | K29: 0 | L29: 211
A30: 21 | B30: 2703 | C30: 11 | D30: 2713 | E30: 11 | F30: 2721 | K30: 0 | L30: 211
A31: 21 | B31: 2811 | C31: 11 | D31: 2820 | E31: 11 | F31: 2825 | K31: 0 | L31: 211
A32: 21 | B32: 2915 | C32: 11 | D32: 2924 | E32: 11 | F32: 2931 | K32: 0 | L32: 211
A33: 21 | B33: 3025 | C33: 11 | D33: 3035 | E33: 11 | F33: 3043 | K33: 0 | L33: 211
A34: 21 | B34: 3134 | C34: 11 | D34: 3144 | E34: 11 | F34: 3152 | K34: 0 | L34: 211
A35: 21 | B35: 3245 | C35: 11 | D35: 3254 | E35: 11 | F35: 3259 | K35: 0 | L35: 211
A36: 21 | B36: 3353 | C36: 11 | D36: 3362 | E36: 11 | F36: 3366 | K36: 0 | L36: 211
A37: 21 | B37: 3458 | C37: 11 | D37: 3467 | E37: 11 | F37: 3477 | K37: 0 | L37: 211
A38: 21 | B38: 3567 | C38: 11 | D38: 3577 | E38: 11 | F38: 3584 | K38: 0 | L38: 211
A39: 21 | B39: 3684 | C39: 11 | D39: 3693 | E39: 11 | F39: 3698 | K39: 0 | L39: 211
A40: 21 | B40: 3790 | C40: 11 | D40: 3798 | E40: 11 | F40: 3806 | K40: 0 | L40: 211
A41: 21 | B41: 3895 | C41: 11 | D41: 3907 | E41: 11 | F41: 3914 | K41: 0 | L41: 211
A42: 12 | B42: 4027 | C42: 13 | D42: 4035 | E42: 13 | F42: 4056 | K42: 0 | L42: 111
A43: 21 | B43: 4158 | C43: 11 | D43: 4168 | E43: 11 | F43: 4175 | K43: 0 | L43: 211
A44: 21 | B44: 4265 | C44: 11 | D44: 4275 | E44: 11 | F44: 4280 | K44: 0 | L44: 211
A45: 21 | B45: 4374 | C45: 11 | D45: 4384 | E45: 11 | F45: 4393 | K45: 0 | L45: 211
A46: 21 | B46: 4486 | C46: 11 | D46: 4495 | E46: 11 | F46: 4500 | K46: 0 | L46: 211
A47: 21 | B47: 4590 | C47: 11 | D47: 4600 | E47: 11 | F47: 4612 | K47: 0 | L47: 211
A48: 21 | B48: 4704 | C48: 11 | D48: 4718 | E48: 11 | F48: 4726 | K48: 1 | L48: 211

Sheet !M516B20.185
A1: Report for:!M516B20.185
A2: Date: | B2: <date>
A3: Hen: | B3: <hen> | F3: Correct Sequence | G3: =Start!J2 -> 211 | P3: Total Sequences in Data | Q3: =4994-COUNTBLANK(L7:L5000) -> 52 | V3: Total Sequences in Block Data | W3: =COUNTA(L7:L15) -> 9 | AA3: Total Sequences in Block Data | AB3: =COUNTA(L16:L23) -> 8 | AF3: Total Sequences in Block Data | AG3: =COUNTA(L24:L32) -> 9 | AK3: Total Sequences in Block Data | AL3: =COUNTA(L33:L41) -> 9 | AP3: Total Sequences in Block Data | AQ3: =COUNTA(L42:L49) -> 8 | AU3: Total Sequences in Block Data | AV3: =COUNTA(L50:L58) -> 9
P4: Total Sequences in Summary | Q4: =SUM(O7:O14) -> 52 | V4: Total Sequences in Block Summary | W4: =SUM(U7:U14) -> 9 | AA4: Total Sequences in Block Summary | AB4: =SUM(Z7:Z14) -> 8 | AF4: Total Sequences in Block Summary | AG4: =SUM(AE7:AE14) -> 9 | AK4: Total Sequences in Block Summary | AL4: =SUM(AJ7:AJ14) -> 9 | AP4: Total Sequences in Block Summary | AQ4: =SUM(AO7:AO14) -> 8 | AU4: Total Sequences in Block Summary | AV4: =SUM(AT7:AT14) -> 9
T5: Block 1 | Y5: Block 2 | AD5: Block 3 | AI5: Block 4 | AN5: Block 5 | AS5: Block 6
A6: Sequence Component 1 | B6: Time 1 | C6: Sequence Component 2 | D6: Time 2 | E6: Sequence Component 3 | F6: Time 3 | G6: Sequence Component 4 | H6: Time 4 | I6: Sequence Component 5 | J6: Time 5 | K6: Correct? 0=No 1=Yes | L6: Sequence | N6: Frequency | P6: Relative Frequency | Q6: Variability | T6: Frequency | V6: Relative Frequency | W6: Variability | Y6: Frequency | AA6: Relative Frequency | AB6: Variability | AD6: Frequency | AF6: Relative Frequency | AG6: Variability | AI6: Frequency | AK6: Relative Frequency | AL6: Variability | AN6: Frequency | AP6: Relative Frequency | AQ6: Variability | AS6: Frequency | AU6: Relative Frequency | AV6: Variability
A7: 21 | B7: 34 | C7: 11 | D7: 44 | E7: 11 | F7: 51 | K7: 0 | L7: 211 | N7: 111 | O7: =COUNTIF($L$7:$L$500,N7) -> 3 | P7: =O7/$Q$4 -> 0.05769230769 | Q7: =IF(P7=0,0,(P7*((LOG(P7))/LOG(2)))) -> -0.2374313779 | T7: =N7 -> 111 | U7: =COUNTIF(L7:L15,T7) -> 1 | V7: =U7/(W4-U11) -> 0.5 | W7: =IF(V7=0,0,(V7*((LOG(V7))/LOG(2)))) -> -0.5 | Y7: =N7 -> 111 | Z7: =COUNTIF(L16:L23,Y7) -> 0 | AA7: =Z7/(AB4-Z11) -> 0 | AB7: =IF(AA7=0,0,(AA7*((LOG(AA7))/LOG(2)))) -> 0 | AD7: =N7 -> 111 | AE7: =COUNTIF(L24:L32,AD7) -> 0 | AF7: =AE7/(AG4-AE11) -> 0 | AG7: =IF(AF7=0,0,(AF7*((LOG(AF7))/LOG(2)))) -> 0 | AI7: =N7 -> 111 | AJ7: =COUNTIF(L33:L41,AI7) -> 2 | AK7: =AJ7/(AL4-AJ11) -> 0.6666666667 | AL7: =IF(AK7=0,0,(AK7*((LOG(AK7))/LOG(2)))) -> -0.3899750005 | AN7: =N7 -> 111 | AO7: =COUNTIF(L42:L49,AN7) -> 0 | AP7: =AO7/(AQ4-AO11) -> 0 | AQ7: =IF(AP7=0,0,(AP7*((LOG(AP7))/LOG(2)))) -> 0 | AS7: =N7 -> 111 | AT7: =COUNTIF(L50:L58,AS7) -> 0 | AU7: =AT7/(AV4-AT11) -> 0 | AV7: =IF(AU7=0,0,(AU7*((LOG(AU7))/LOG(2)))) -> 0
A8: 21 | B8: 146 | C8: 11 | D8: 158 | E8: 11 | F8: 163 | K8: 0 | L8: 211 | N8: 112 | O8: =COUNTIF($L$7:$L$500,N8) -> 1 | P8: =O8/$Q$4 -> 0.01923076923 | Q8: =IF(P8=0,0,(P8*((LOG(P8))/LOG(2)))) -> -0.1096238407 | T8: =N8 -> 112 | U8: =COUNTIF(L7:L15,T8) -> 0 | V8: =U8/(W4-U11) -> 0 | W8: =IF(V8=0,0,(V8*((LOG(V8))/LOG(2)))) -> 0 | Y8: =N8 -> 112 | Z8: =COUNTIF(L16:L23,Y8) -> 0 | AA8: =Z8/(AB4-Z11) -> 0 | AB8: =IF(AA8=0,0,(AA8*((LOG(AA8))/LOG(2)))) -> 0 | AD8: =N8 -> 112 | AE8: =COUNTIF(L24:L32,AD8) -> 0 | AF8: =AE8/(AG4-AE11) -> 0 | AG8: =IF(AF8=0,0,(AF8*((LOG(AF8))/LOG(2)))) -> 0 | AI8: =N8 -> 112 | AJ8: =COUNTIF(L33:L41,AI8) -> 0 | AK8: =AJ8/(AL4-AJ11) -> 0 | AL8: =IF(AK8=0,0,(AK8*((LOG(AK8))/LOG(2)))) -> 0 | AN8: =N8 -> 112 | AO8: =COUNTIF(L42:L49,AN8) -> 0 | AP8: =AO8/(AQ4-AO11) -> 0 | AQ8: =IF(AP8=0,0,(AP8*((LOG(AP8))/LOG(2)))) -> 0 | AS8: =N8 -> 112 | AT8: =COUNTIF(L50:L58,AS8) -> 1 | AU8: =AT8/(AV4-AT11) -> 1 | AV8: =IF(AU8=0,0,(AU8*((LOG(AU8))/LOG(2)))) -> 0
A9: 21 | B9: 258 | C9: 11 | D9: 272 | E9: 11 | F9: 277 | K9: 0 | L9: 211 | N9: 121 | O9: =COUNTIF($L$7:$L$500,N9) -> 0 | P9: =O9/$Q$4 -> 0 | Q9: =IF(P9=0,0,(P9*((LOG(P9))/LOG(2)))) -> 0 | T9: =N9 -> 121 | U9: =COUNTIF(L7:L15,T9) -> 0 | V9: =U9/(W4-U11) -> 0 | W9: =IF(V9=0,0,(V9*((LOG(V9))/LOG(2)))) -> 0 | Y9: =N9 -> 121 | Z9: =COUNTIF(L16:L23,Y9) -> 0 | AA9: =Z9/(AB4-Z11) -> 0 | AB9: =IF(AA9=0,0,(AA9*((LOG(AA9))/LOG(2)))) -> 0 | AD9: =N9 -> 121 | AE9: =COUNTIF(L24:L32,AD9) -> 0 | AF9: =AE9/(AG4-AE11) -> 0 | AG9: =IF(AF9=0,0,(AF9*((LOG(AF9))/LOG(2)))) -> 0 | AI9: =N9 -> 121 | AJ9: =COUNTIF(L33:L41,AI9) -> 0 | AK9: =AJ9/(AL4-AJ11) -> 0 | AL9: =IF(AK9=0,0,(AK9*((LOG(AK9))/LOG(2)))) -> 0 | AN9: =N9 -> 121 | AO9: =COUNTIF(L42:L49,AN9) -> 0 | AP9: =AO9/(AQ4-AO11) -> 0 | AQ9: =IF(AP9=0,0,(AP9*((LOG(AP9))/LOG(2)))) -> 0 | AS9: =N9 -> 121 | AT9: =COUNTIF(L50:L58,AS9) -> 0 | AU9: =AT9/(AV4-AT11) -> 0 | AV9: =IF(AU9=0,0,(AU9*((LOG(AU9))/LOG(2)))) -> 0
A10: 21 | B10: 370 | C10: 11 | D10: 380 | E10: 11 | F10: 391 | K10: 0 | L10: 211 | N10: 122 | O10: =COUNTIF($L$7:$L$500,N10) -> 0 | P10: =O10/$Q$4 -> 0 | Q10: =IF(P10=0,0,(P10*((LOG(P10))/LOG(2)))) -> 0 | T10: =N10 -> 122 | U10: =COUNTIF(L7:L15,T10) -> 0 | V10: =U10/(W4-U11) -> 0 | W10: =IF(V10=0,0,(V10*((LOG(V10))/LOG(2)))) -> 0 | Y10: =N10 -> 122 | Z10: =COUNTIF(L16:L23,Y10) -> 0 | AA10: =Z10/(AB4-Z11) -> 0 | AB10: =IF(AA10=0,0,(AA10*((LOG(AA10))/LOG(2)))) -> 0 | AD10: =N10 -> 122 | AE10: =COUNTIF(L24:L32,AD10) -> 0 | AF10: =AE10/(AG4-AE11) -> 0 | AG10: =IF(AF10=0,0,(AF10*((LOG(AF10))/LOG(2)))) -> 0 | AI10: =N10 -> 122 | AJ10: =COUNTIF(L33:L41,AI10) -> 0 | AK10: =AJ10/(AL4-AJ11) -> 0 | AL10: =IF(AK10=0,0,(AK10*((LOG(AK10))/LOG(2)))) -> 0 | AN10: =N10 -> 122 | AO10: =COUNTIF(L42:L49,AN10) -> 0 | AP10: =AO10/(AQ4-AO11) -> 0 | AQ10: =IF(AP10=0,0,(AP10*((LOG(AP10))/LOG(2)))) -> 0 | AS10: =N10 -> 122 | AT10: =COUNTIF(L50:L58,AS10) -> 0 | AU10: =AT10/(AV4-AT11) -> 0 | AV10: =IF(AU10=0,0,(AU10*((LOG(AU10))/LOG(2)))) -> 0
A11: 21 | B11: 482 | C11: 22 | D11: 492 | E11: 13 | F11: 502 | K11: 0 | L11: 221 | N11: 211 | O11: =COUNTIF($L$7:$L$500,N11) -> 39 | P11: =O11/$Q$4 -> 0.75 | Q11: =IF(P11=0,0,(P11*((LOG(P11))/LOG(2)))) -> -0.3112781245 | T11: =N11 -> 211 | U11: =COUNTIF(L7:L15,T11) -> 7 | Y11: =N11 -> 211 | Z11: =COUNTIF(L16:L23,Y11) -> 7 | AD11: =N11 -> 211 | AE11: =COUNTIF(L24:L32,AD11) -> 4 | AI11: =N11 -> 211 | AJ11: =COUNTIF(L33:L41,AI11) -> 6 | AN11: =N11 -> 211 | AO11: =COUNTIF(L42:L49,AN11) -> 7 | AS11: =N11 -> 211 | AT11: =COUNTIF(L50:L58,AS11) -> 8
A12: 21 | B12: 607 | C12: 11 | D12: 617 | E12: 11 | F12: 632 | K12: 0 | L12: 211 | N12: 212 | O12: =COUNTIF($L$7:$L$500,N12) -> 0 | P12: =O12/$Q$4 -> 0 | Q12: =IF(P12=0,0,(P12*((LOG(P12))/LOG(2)))) -> 0 | T12: =N12 -> 212 | U12: =COUNTIF(L7:L15,T12) -> 0 | V12: =U12/(W4-U11) -> 0 | W12: =IF(V12=0,0,(V12*((LOG(V12))/LOG(2)))) -> 0 | Y12: =N12 -> 212 | Z12: =COUNTIF(L16:L23,Y12) -> 0 | AA12: =Z12/(AB4-Z11) -> 0 | AB12: =IF(AA12=0,0,(AA12*((LOG(AA12))/LOG(2)))) -> 0 | AD12: =N12 -> 212 | AE12: =COUNTIF(L24:L32,AD12) -> 0 | AF12: =AE12/(AG4-AE11) -> 0 | AG12: =IF(AF12=0,0,(AF12*((LOG(AF12))/LOG(2)))) -> 0 | AI12: =N12 -> 212 | AJ12: =COUNTIF(L33:L41,AI12) -> 0 | AK12: =AJ12/(AL4-AJ11) -> 0 | AL12: =IF(AK12=0,0,(AK12*((LOG(AK12))/LOG(2)))) -> 0 | AN12: =N12 -> 212 | AO12: =COUNTIF(L42:L49,AN12) -> 0 | AP12: =AO12/(AQ4-AO11) -> 0 | AQ12: =IF(AP12=0,0,(AP12*((LOG(AP12))/LOG(2)))) -> 0 | AS12: =N12 -> 212 | AT12: =COUNTIF(L50:L58,AS12) -> 0 | AU12: =AT12/(AV4-AT11) -> 0 | AV12: =IF(AU12=0,0,(AU12*((LOG(AU12))/LOG(2)))) -> 0
A13: 12 | B13: 746 | C13: 13 | D13: 753 | E13: 13 | F13: 796 | K13: 0 | L13: 111 | N13: 221 | O13: =COUNTIF($L$7:$L$500,N13) -> 9 | P13: =O13/$Q$4 -> 0.1730769231 | Q13: =IF(P13=0,0,(P13*((LOG(P13))/LOG(2)))) -> -0.437973701 | T13: =N13 -> 221 | U13: =COUNTIF(L7:L15,T13) -> 1 | V13: =U13/(W4-U11) -> 0.5 | W13: =IF(V13=0,0,(V13*((LOG(V13))/LOG(2)))) -> -0.5 | Y13: =N13 -> 221 | Z13: =COUNTIF(L16:L23,Y13) -> 1 | AA13: =Z13/(AB4-Z11) -> 1 | AB13: =IF(AA13=0,0,(AA13*((LOG(AA13))/LOG(2)))) -> 0 | AD13: =N13 -> 221 | AE13: =COUNTIF(L24:L32,AD13) -> 5 | AF13: =AE13/(AG4-AE11) -> 1 | AG13: =IF(AF13=0,0,(AF13*((LOG(AF13))/LOG(2)))) -> 0 | AI13: =N13 -> 221 | AJ13: =COUNTIF(L33:L41,AI13) -> 1 | AK13: =AJ13/(AL4-AJ11) -> 0.3333333333 | AL13: =IF(AK13=0,0,(AK13*((LOG(AK13))/LOG(2)))) -> -0.5283208336 | AN13: =N13 -> 221 | AO13: =COUNTIF(L42:L49,AN13) -> 1 | AP13: =AO13/(AQ4-AO11) -> 1 | AQ13: =IF(AP13=0,0,(AP13*((LOG(AP13))/LOG(2)))) -> 0 | AS13: =N13 -> 221 | AT13: =COUNTIF(L50:L58,AS13) -> 0 | AU13: =AT13/(AV4-AT11) -> 0 | AV13: =IF(AU13=0,0,(AU13*((LOG(AU13))/LOG(2)))) -> 0
A14: 21 | B14: 897 | C14: 11 | D14: 909 | E14: 11 | F14: 913 | K14: 0 | L14: 211 | N14: 222 | O14: =COUNTIF($L$7:$L$500,N14) -> 0 | P14: =O14/$Q$4 -> 0 | Q14: =IF(P14=0,0,(P14*((LOG(P14))/LOG(2)))) -> 0 | T14: =N14 -> 222 | U14: =COUNTIF(L7:L15,T14) -> 0 | V14: =U14/(W4-U11) -> 0 | W14: =IF(V14=0,0,(V14*((LOG(V14))/LOG(2)))) -> 0 | Y14: =N14 -> 222 | Z14: =COUNTIF(L16:L23,Y14) -> 0 | AA14: =Z14/(AB4-Z11) -> 0 | AB14: =IF(AA14=0,0,(AA14*((LOG(AA14))/LOG(2)))) -> 0 | AD14: =N14 -> 222 | AE14: =COUNTIF(L24:L32,AD14) -> 0 | AF14: =AE14/(AG4-AE11) -> 0 | AG14: =IF(AF14=0,0,(AF14*((LOG(AF14))/LOG(2)))) -> 0 | AI14: =N14 -> 222 | AJ14: =COUNTIF(L33:L41,AI14) -> 0 | AK14: =AJ14/(AL4-AJ11) -> 0 | AL14: =IF(AK14=0,0,(AK14*((LOG(AK14))/LOG(2)))) -> 0 | AN14: =N14 -> 222 | AO14: =COUNTIF(L42:L49,AN14) -> 0 | AP14: =AO14/(AQ4-AO11) -> 0 | AQ14: =IF(AP14=0,0,(AP14*((LOG(AP14))/LOG(2)))) -> 0 | AS14: =N14 -> 222 | AT14: =COUNTIF(L50:L58,AS14) -> 0 | AU14: =AT14/(AV4-AT11) -> 0 | AV14: =IF(AU14=0,0,(AU14*((LOG(AU14))/LOG(2)))) -> 0
A15: 21 | B15: 1018 | C15: 11 | D15: 1028 | E15: 11 | F15: 1032 | K15: 0 | L15: 211 | P15: =SUM(P7:P14) -> 1 | Q15: =-SUM(Q7:Q14) -> 1.096307044 | V15: =SUM(V7:V14) -> 1 | W15: =-SUM(W7:W14) -> 1 | AA15: =SUM(AA7:AA14) -> 1 | AB15: =-SUM(AB7:AB14) -> 0 | AF15: =SUM(AF7:AF14) -> 1 | AG15: =-SUM(AG7:AG14) -> 0 | AK15: =SUM(AK7:AK14) -> 1 | AL15: =-SUM(AL7:AL14) -> 0.9182958341 | AP15: =SUM(AP7:AP14) -> 1 | AQ15: =-SUM(AQ7:AQ14) -> 0 | AU15: =SUM(AU7:AU14) -> 1 | AV15: =-SUM(AV7:AV14) -> 0
A16: 21 | B16: 1124 | C16: 11 | D16: 1154 | E16: 11 | F16: 1162 | K16: 0 | L16: 211 | P16: U= | Q16: =Q15/(LOG(Q4)/LOG(2)) -> 0.1923197329 | V16: U1= | W16: =W15/(LOG(W4)/LOG(2)) -> 0.3154648768 | AA16: U2= | AB16: =AB15/(LOG(AB4)/LOG(2)) -> 0 | AF16: U3= | AG16: =AG15/(LOG(AG4)/LOG(2)) -> 0 | AK16: U4= | AL16: =AL15/(LOG(AL4)/LOG(2)) -> 0.2896900821 | AP16: U5= | AQ16: =AQ15/(LOG(AQ4)/LOG(2)) -> 0 | AU16: U6= | AV16: =AV15/(LOG(AV4)/LOG(2)) -> 0
A17: 21 | B17: 1255 | C17: 11 | D17: 1264 | E17: 11 | F17: 1269 | K17: 0 | L17: 211
A18: 21 | B18: 1369 | C18: 11 | D18: 1379 | E18: 11 | F18: 1383 | K18: 0 | L18: 211
A19: 21 | B19: 1474 | C19: 11 | D19: 1483 | E19: 11 | F19: 1491 | K19: 0 | L19: 211 | N19: Total Target Seq
A20: 21 | B20: 1581 | C20: 11 | D20: 1594 | E20: 11 | F20: 1598 | K20: 0 | L20: 211 | N20: =COUNTIF(L7:L58,G3) -> 39 | P20: 9 | Q20: 8 | R20: 9 | S20: 9 | T20: 8 | U20: 9
A21: 21 | B21: 1688 | C21: 11 | D21: 1701 | E21: 11 | F21: 1710 | K21: 0 | L21: 211 | P21: % of reinforcement given in 6 equal intervals based on number of trials
A22: 21 | B22: 1801 | C22: 22 | D22: 1818 | E22: 13 | F22: 1831 | K22: 0 | L22: 221 | P22: %_1 | Q22: %_2 | R22: %_3 | S22: %_4 | T22: %_5 | U22: %_6
A23: 21 | B23: 1931 | C23: 11 | D23: 1941 | E23: 11 | F23: 1949 | K23: 0 | L23: 211 | O23: target sequence | P23: =$G$3 -> 211 | Q23: =$G$3 -> 211 | R23: =$G$3 -> 211 | S23: =$G$3 -> 211 | T23: =$G$3 -> 211 | U23: =$G$3 -> 211
A24: 21 | B24: 2039 | C24: 22 | D24: 2057 | E24: 13 | F24: 2070 | K24: 0 | L24: 221 | O24: total reinforcement | P24: =U11 -> 7 | Q24: =Z11 -> 7 | R24: =AE11 -> 4 | S24: =AJ11 -> 6 | T24: =AO11 -> 7 | U24: =AT11 -> 8
A25: 21 | B25: 2170 | C25: 22 | D25: 2191 | E25: 13 | F25: 2201 | K25: 0 | L25: 221 | O25: % target
A26: 21 | B26: 2305 | C26: 22 | D26: 2320 | E26: 13 | F26: 2336 | K26: 0 | L26: 221 | O26: CCRF
A27: 21 | B27: 2437 | C27: 22 | D27: 2449 | E27: 13 | F27: 2460 | K27: 0 | L27: 221 | O27: % CCRf
A28: 21 | B28: 2560 | C28: 11 | D28: 2573 | E28: 11 | F28: 2582 | K28: 0 | L28: 211 | O28: average response rate | P28: =F15/P20 -> 114.6666667 | Q28: =(F23-F15)/Q20 -> 114.625 | R28: =(F32-F23)/R20 -> 119 | S28: =(F41-F32)/S20 -> 123.7777778 | T28: =(F49-F41)/T20 -> 108.625 | U28: =(F58-F49)/U20 -> 114.6666667
A29: 21 | B29: 2672 | C29: 11 | D29: 2682 | E29: 11 | F29: 2691 | K29: 0 | L29: 211
A30: 21 | B30: 2781 | C30: 11 | D30: 2791 | E30: 11 | F30: 2798 | K30: 0 | L30: 211
A31: 21 | B31: 2889 | C31: 11 | D31: 2898 | E31: 11 | F31: 2904 | K31: 0 | L31: 211
A32: 21 | B32: 2994 | C32: 22 | D32: 3010 | E32: 13 | F32: 3020 | K32: 0 | L32: 221
A33: 12 | B33: 3136 | C33: 13 | D33: 3151 | E33: 13 | F33: 3159 | K33: 0 | L33: 111
A34: 12 | B34: 3282 | C34: 13 | D34: 3287 | E34: 13 | F34: 3349 | K34: 0 | L34: 111
A35: 21 | B35: 3459 | C35: 11 | D35: 3471 | E35: 11 | F35: 3476 | K35: 0 | L35: 211
A36: 21 | B36: 3566 | C36: 22 | D36: 3579 | E36: 13 | F36: 3590 | K36: 0 | L36: 221
A37: 21 | B37: 3690 | C37: 11 | D37: 3703 | E37: 11 | F37: 3707 | K37: 0 | L37: 211
A38: 21 | B38: 3797 | C38: 11 | D38: 3806 | E38: 11 | F38: 3816 | K38: 0 | L38: 211
A39: 21 | B39: 3906 | C39: 11 | D39: 3915 | E39: 11 | F39: 3920 | K39: 0 | L39: 211
A40: 21 | B40: 4014 | C40: 11 | D40: 4023 | E40: 11 | F40: 4028 | K40: 0 | L40: 211
A41: 21 | B41: 4118 | C41: 11 | D41: 4127 | E41: 11 | F41: 4134 | K41: 0 | L41: 211
A42: 21 | B42: 4222 | C42: 22 | D42: 4234 | E42: 13 | F42: 4243 | K42: 0 | L42: 221
A43: 21 | B43: 4343 | C43: 11 | D43: 4352 | E43: 11 | F43: 4357 | K43: 0 | L43: 211
A44: 21 | B44: 4447 | C44: 11 | D44: 4455 | E44: 11 | F44: 4459 | K44: 0 | L44: 211
A45: 21 | B45: 4549 | C45: 11 | D45: 4560 | E45: 11 | F45: 4567 | K45: 0 | L45: 211
A46: 21 | B46: 4657 | C46: 11 | D46: 4668 | E46: 11 | F46: 4675 | K46: 0 | L46: 211
A47: 21 | B47: 4766 | C47: 11 | D47: 4777 | E47: 11 | F47: 4785 | K47: 0 | L47: 211
A48: 21 | B48: 4879 | C48: 11 | D48: 4887 | E48: 11 | F48: 4892 | K48: 0 | L48: 211
A49: 21 | B49: 4984 | C49: 11 | D49: 4996 | E49: 11 | F49: 5003 | K49: 0 | L49: 211
A50: 21 | B50: 5100 | C50: 11 | D50: 5106 | E50: 11 | F50: 5111 | K50: 0 | L50: 211
A51: 21 | B51: 5203 | C51: 11 | D51: 5212 | E51: 11 | F51: 5221 | K51: 0 | L51: 211
A52: 21 | B52: 5319 | C52: 11 | D52: 5328 | E52: 11 | F52: 5335 | K52: 0 | L52: 211
A53: 21 | B53: 5429 | C53: 11 | D53: 5437 | E53: 11 | F53: 5445 | K53: 0 | L53: 211
A54: 21 | B54: 5535 | C54: 11 | D54: 5544 | E54: 11 | F54: 5549 | K54: 0 | L54: 211
A55: 21 | B55: 5638 | C55: 11 | D55: 5647 | E55: 11 | F55: 5651 | K55: 0 | L55: 211
A56: 21 | B56: 5745 | C56: 11 | D56: 5760 | E56: 11 | F56: 5768 | K56: 0 | L56: 211
A57: 21 | B57: 5857 | C57: 11 | D57: 5866 | E57: 11 | F57: 5870 | K57: 0 | L57: 211
A58: 12 | B58: 5982 | C58: 13 | D58: 5990 | E58: 24 | F58: 6035 | K58: 1 | L58: 112

Sheet !M517C20.105
A1: Report for:!M517C20.105
A2: Date: | B2: <date>
A3: Hen: | B3: <hen> | F3: Correct Sequence | G3: =Start!J2 -> 211 | P3: Total Sequences in Data | Q3: =4994-COUNTBLANK(L7:L5000) -> 65 | V3: Total Sequences in Block Data | W3: =COUNTA(L7:L17) -> 11 | AA3: Total Sequences in Block Data | AB3: =COUNTA(L18:L28) -> 11 | AF3: Total Sequences in Block Data | AG3: =COUNTA(L29:L38) -> 10 | AK3: Total Sequences in Block Data | AL3: =COUNTA(L39:L49) -> 11 | AP3: Total Sequences in Block Data | AQ3: =COUNTA(L50:L60) -> 11 | AU3: Total Sequences in Block Data | AV3: =COUNTA(L61:L71) -> 11
P4: Total Sequences in Summary | Q4: =SUM(O7:O14) -> 65 | V4: Total Sequences in Block Summary | W4: =SUM(U7:U14) -> 11 | AA4: Total Sequences in Block Summary | AB4: =SUM(Z7:Z14) -> 11 | AF4: Total Sequences in Block Summary | AG4: =SUM(AE7:AE14) -> 10 | AK4: Total Sequences in Block Summary | AL4: =SUM(AJ7:AJ14) -> 11 | AP4: Total Sequences in Block Summary | AQ4: =SUM(AO7:AO14) -> 11 | AU4: Total Sequences in Block Summary | AV4: =SUM(AT7:AT14) -> 11
T5: Block 1 | Y5: Block 2 | AD5: Block 3 | AI5: Block 4 | AN5: Block 5 | AS5: Block 6
A6: Sequence Component 1 | B6: Time 1 | C6: Sequence Component 2 | D6: Time 2 | E6: Sequence Component 3 | F6: Time 3 | G6: Sequence Component 4 | H6: Time 4 | I6: Sequence Component 5 | J6: Time 5 | K6: Correct? 0=No 1=Yes | L6: Sequence | N6: Frequency | P6: Relative Frequency | Q6: Variability | T6: Frequency | V6: Relative Frequency | W6: Variability | Y6: Frequency | AA6: Relative Frequency | AB6: Variability | AD6: Frequency | AF6: Relative Frequency | AG6: Variability | AI6: Frequency | AK6: Relative Frequency | AL6: Variability | AN6: Frequency | AP6: Relative Frequency | AQ6: Variability | AS6: Frequency | AU6: Relative Frequency | AV6: Variability
A7: 21 | B7: 46 | C7: 22 | D7: 167 | E7: 24 | F7: 184 | K7: 0 | L7: 222 | N7: 111 | O7: =COUNTIF($L$7:$L$500,N7) -> 8 | P7: =O7/$Q$4 -> 0.1230769231 | Q7: =IF(P7=0,0,(P7*((LOG(P7))/LOG(2)))) -> -0.3719837308 | T7: =N7 -> 111 | U7: =COUNTIF(L7:L17,T7) -> 1 | V7: =U7/(W4-U11) -> 0.25 | W7: =IF(V7=0,0,(V7*((LOG(V7))/LOG(2)))) -> -0.5 | Y7: =N7 -> 111 | Z7: =COUNTIF(L18:L28,Y7) -> 1 | AA7: =Z7/(AB4-Z11) -> 0.1666666667 | AB7: =IF(AA7=0,0,(AA7*((LOG(AA7))/LOG(2)))) -> -0.4308270835 | AD7: =N7 -> 111 | AE7: =COUNTIF(L29:L38,AD7) -> 0 | AF7: =AE7/(AG4-AE11) -> 0 | AG7: =IF(AF7=0,0,(AF7*((LOG(AF7))/LOG(2)))) -> 0 | AI7: =N7 -> 111 | AJ7: =COUNTIF(L39:L49,AI7) -> 4 | AK7: =AJ7/(AL4-AJ11) -> 0.4444444444 | AL7: =IF(AK7=0,0,(AK7*((LOG(AK7))/LOG(2)))) -> -0.5199666673 | AN7: =N7 -> 111 | AO7: =COUNTIF(L50:L60,AN7) -> 2 | AP7: =AO7/(AQ4-AO11) -> 0.5 | AQ7: =IF(AP7=0,0,(AP7*((LOG(AP7))/LOG(2)))) -> -0.5 | AS7: =N7 -> 111 | AT7: =COUNTIF(L61:L71,AS7) -> 0 | AU7: =AT7/(AV4-AT11) -> 0 | AV7: =IF(AU7=0,0,(AU7*((LOG(AU7))/LOG(2)))) -> 0
A8: 12 | B8: 295 | C8: 13 | D8: 302 | E8: 13 | F8: 321 | K8: 0 | L8: 111 | N8: 112 | O8: =COUNTIF($L$7:$L$500,N8) -> 1 | P8: =O8/$Q$4 -> 0.01538461538 | Q8: =IF(P8=0,0,(P8*((LOG(P8))/LOG(2)))) -> -0.09265181251 | T8: =N8 -> 112 | U8: =COUNTIF(L7:L17,T8) -> 0 | V8: =U8/(W4-U11) -> 0 | W8: =IF(V8=0,0,(V8*((LOG(V8))/LOG(2)))) -> 0 | Y8: =N8 -> 112 | Z8: =COUNTIF(L18:L28,Y8) -> 0 | AA8: =Z8/(AB4-Z11) -> 0 | AB8: =IF(AA8=0,0,(AA8*((LOG(AA8))/LOG(2)))) -> 0 | AD8: =N8 -> 112 | AE8: =COUNTIF(L29:L38,AD8) -> 0 | AF8: =AE8/(AG4-AE11) -> 0 | AG8: =IF(AF8=0,0,(AF8*((LOG(AF8))/LOG(2)))) -> 0 | AI8: =N8 -> 112 | AJ8: =COUNTIF(L39:L49,AI8) -> 1 | AK8: =AJ8/(AL4-AJ11) -> 0.1111111111 | AL8: =IF(AK8=0,0,(AK8*((LOG(AK8))/LOG(2)))) -> -0.352213889 | AN8: =N8 -> 112 | AO8: =COUNTIF(L50:L60,AN8) -> 0 | AP8: =AO8/(AQ4-AO11) -> 0 | AQ8: =IF(AP8=0,0,(AP8*((LOG(AP8))/LOG(2)))) -> 0 | AS8: =N8 -> 112 | AT8: =COUNTIF(L61:L71,AS8) -> 0 | AU8: =AT8/(AV4-AT11) -> 0 | AV8: =IF(AU8=0,0,(AU8*((LOG(AU8))/LOG(2)))) -> 0
A9: 21 | B9: 415 | C9: 22 | D9: 424 | E9: 13 | F9: 435 | K9: 0 | L9: 221 | N9: 121 | O9: =COUNTIF($L$7:$L$500,N9) -> 0 | P9: =O9/$Q$4 -> 0 | Q9: =IF(P9=0,0,(P9*((LOG(P9))/LOG(2)))) -> 0 | T9: =N9 -> 121 | U9: =COUNTIF(L7:L17,T9) -> 0 | V9: =U9/(W4-U11) -> 0 | W9: =IF(V9=0,0,(V9*((LOG(V9))/LOG(2)))) -> 0 | Y9: =N9 -> 121 | Z9: =COUNTIF(L18:L28,Y9) -> 0 | AA9: =Z9/(AB4-Z11) -> 0 | AB9: =IF(AA9=0,0,(AA9*((LOG(AA9))/LOG(2)))) -> 0 | AD9: =N9 -> 121 | AE9: =COUNTIF(L29:L38,AD9) -> 0 | AF9: =AE9/(AG4-AE11) -> 0 | AG9: =IF(AF9=0,0,(AF9*((LOG(AF9))/LOG(2)))) -> 0 | AI9: =N9 -> 121 | AJ9: =COUNTIF(L39:L49,AI9) -> 0 | AK9: =AJ9/(AL4-AJ11) -> 0 | AL9: =IF(AK9=0,0,(AK9*((LOG(AK9))/LOG(2)))) -> 0 | AN9: =N9 -> 121 | AO9: =COUNTIF(L50:L60,AN9) -> 0 | AP9: =AO9/(AQ4-AO11) -> 0 | AQ9: =IF(AP9=0,0,(AP9*((LOG(AP9))/LOG(2)))) -> 0 | AS9: =N9 -> 121 | AT9: =COUNTIF(L61:L71,AS9) -> 0 | AU9: =AT9/(AV4-AT11) -> 0 | AV9: =IF(AU9=0,0,(AU9*((LOG(AU9))/LOG(2)))) -> 0
A10: 21 | B10: 536 | C10: 11 | D10: 548 | E10: 11 | F10: 553 | K10: 0 | L10: 211 | N10: 122 | O10: =COUNTIF($L$7:$L$500,N10) -> 0 | P10: =O10/$Q$4 -> 0 | Q10: =IF(P10=0,0,(P10*((LOG(P10))/LOG(2)))) -> 0 | T10: =N10 -> 122 | U10: =COUNTIF(L7:L17,T10) -> 0 | V10: =U10/(W4-U11) -> 0 | W10: =IF(V10=0,0,(V10*((LOG(V10))/LOG(2)))) -> 0 | Y10: =N10 -> 122 | Z10: =COUNTIF(L18:L28,Y10) -> 0 | AA10: =Z10/(AB4-Z11) -> 0 | AB10: =IF(AA10=0,0,(AA10*((LOG(AA10))/LOG(2)))) -> 0 | AD10: =N10 -> 122 | AE10: =COUNTIF(L29:L38,AD10) -> 0 | AF10: =AE10/(AG4-AE11) -> 0 | AG10: =IF(AF10=0,0,(AF10*((LOG(AF10))/LOG(2)))) -> 0 | AI10: =N10 -> 122 | AJ10: =COUNTIF(L39:L49,AI10) -> 0 | AK10: =AJ10/(AL4-AJ11) -> 0 | AL10: =IF(AK10=0,0,(AK10*((LOG(AK10))/LOG(2)))) -> 0 | AN10: =N10 -> 122 | AO10: =COUNTIF(L50:L60,AN10) -> 0 | AP10: =AO10/(AQ4-AO11) -> 0 | AQ10: =IF(AP10=0,0,(AP10*((LOG(AP10))/LOG(2)))) -> 0 | AS10: =N10 -> 122 | AT10: =COUNTIF(L61:L71,AS10) -> 0 | AU10: =AT10/(AV4-AT11) -> 0 | AV10: =IF(AU10=0,0,(AU10*((LOG(AU10))/LOG(2)))) -> 0
A11: 21 | B11: 655 | C11: 11 | D11: 671 | E11: 22 | F11: 732 | K11: 0 | L11: 212 | N11: 211 | O11: =COUNTIF($L$7:$L$500,N11) -> 37 | P11: =O11/$Q$4 -> 0.5692307692 | Q11: =IF(P11=0,0,(P11*((LOG(P11))/LOG(2)))) -> -0.4627359162 | T11: =N11 -> 211 | U11: =COUNTIF(L7:L17,T11) -> 7 | Y11: =N11 -> 211 | Z11: =COUNTIF(L18:L28,Y11) -> 5 | AD11: =N11 -> 211 | AE11: =COUNTIF(L29:L38,AD11) -> 8 | AI11: =N11 -> 211 | AJ11: =COUNTIF(L39:L49,AI11) -> 2 | AN11: =N11 -> 211 | AO11: =COUNTIF(L50:L60,AN11) -> 7 | AS11: =N11 -> 211 | AT11: =COUNTIF(L61:L71,AS11) -> 8
A12: 21 | B12: 833 | C12: 11 | D12: 843 | E12: 11 | F12: 849 | K12: 0 | L12: 211 | N12: 212 | O12: =COUNTIF($L$7:$L$500,N12) -> 1 | P12: =O12/$Q$4 -> 0.01538461538 | Q12: =IF(P12=0,0,(P12*((LOG(P12))/LOG(2)))) -> -0.09265181251 | T12: =N12 -> 212 | U12: =COUNTIF(L7:L17,T12) -> 1 | V12: =U12/(W4-U11) -> 0.25 | W12: =IF(V12=0,0,(V12*((LOG(V12))/LOG(2)))) -> -0.5 | Y12: =N12 -> 212 | Z12: =COUNTIF(L18:L28,Y12) -> 0 | AA12: =Z12/(AB4-Z11) -> 0 | AB12: =IF(AA12=0,0,(AA12*((LOG(AA12))/LOG(2)))) -> 0 | AD12: =N12 -> 212 | AE12: =COUNTIF(L29:L38,AD12) -> 0 | AF12: =AE12/(AG4-AE11) -> 0 | AG12: =IF(AF12=0,0,(AF12*((LOG(AF12))/LOG(2)))) -> 0 | AI12: =N12 -> 212 | AJ12: =COUNTIF(L39:L49,AI12) -> 0 | AK12: =AJ12/(AL4-AJ11) -> 0 | AL12: =IF(AK12=0,0,(AK12*((LOG(AK12))/LOG(2)))) -> 0 | AN12: =N12 -> 212 | AO12: =COUNTIF(L50:L60,AN12) -> 0 | AP12: =AO12/(AQ4-AO11) -> 0 | AQ12: =IF(AP12=0,0,(AP12*((LOG(AP12))/LOG(2)))) -> 0 | AS12: =N12 -> 212 | AT12: =COUNTIF(L61:L71,AS12) -> 0 | AU12: =AT12/(AV4-AT11) -> 0 | AV12: =IF(AU12=0,0,(AU12*((LOG(AU12))/LOG(2)))) -> 0
A13: 21 | B13: 944 | C13: 11 | D13: 954 | E13: 11 | F13: 960 | K13: 0 | L13: 211 | N13: 221 | O13: =COUNTIF($L$7:$L$500,N13) -> 17 | P13: =O13/$Q$4 -> 0.2615384615 | Q13: =IF(P13=0,0,(P13*((LOG(P13))/LOG(2)))) -> -0.5060520695 | T13: =N13 -> 221 | U13: =COUNTIF(L7:L17,T13) -> 1 | V13: =U13/(W4-U11) -> 0.25 | W13: =IF(V13=0,0,(V13*((LOG(V13))/LOG(2)))) -> -0.5 | Y13: =N13 -> 221 | Z13: =COUNTIF(L18:L28,Y13) -> 5 | AA13: =Z13/(AB4-Z11) -> 0.8333333333 | AB13: =IF(AA13=0,0,(AA13*((LOG(AA13))/LOG(2)))) -> -0.2191953382 | AD13: =N13 -> 221 | AE13: =COUNTIF(L29:L38,AD13) -> 2 | AF13: =AE13/(AG4-AE11) -> 1 | AG13: =IF(AF13=0,0,(AF13*((LOG(AF13))/LOG(2)))) -> 0 | AI13: =N13 -> 221 | AJ13: =COUNTIF(L39:L49,AI13) -> 4 | AK13: =AJ13/(AL4-AJ11) -> 0.4444444444 | AL13: =IF(AK13=0,0,(AK13*((LOG(AK13))/LOG(2)))) -> -0.5199666673 | AN13: =N13 -> 221 | AO13: =COUNTIF(L50:L60,AN13) -> 2 | AP13: =AO13/(AQ4-AO11) -> 0.5 | AQ13: =IF(AP13=0,0,(AP13*((LOG(AP13))/LOG(2)))) -> -0.5 | AS13: =N13 -> 221 | AT13: =COUNTIF(L61:L71,AS13) -> 3 | AU13: =AT13/(AV4-AT11) -> 1 | AV13: =IF(AU13=0,0,(AU13*((LOG(AU13))/LOG(2)))) -> 0
A14: 21 | B14: 1055 | C14: 11 | D14: 1065 | E14: 11 | F14: 1069 | K14: 0 | L14: 211 | N14: 222 | O14: =COUNTIF($L$7:$L$500,N14) -> 1 | P14: =O14/$Q$4 -> 0.01538461538 | Q14: =IF(P14=0,0,(P14*((LOG(P14))/LOG(2)))) -> -0.09265181251 | T14: =N14 -> 222 | U14: =COUNTIF(L7:L17,T14) -> 1 | V14: =U14/(W4-U11) -> 0.25 | W14: =IF(V14=0,0,(V14*((LOG(V14))/LOG(2)))) -> -0.5 | Y14: =N14 -> 222 | Z14: =COUNTIF(L18:L28,Y14) -> 0 | AA14: =Z14/(AB4-Z11) -> 0 | AB14: =IF(AA14=0,0,(AA14*((LOG(AA14))/LOG(2)))) -> 0 | AD14: =N14 -> 222 | AE14: =COUNTIF(L29:L38,AD14) -> 0 | AF14: =AE14/(AG4-AE11) -> 0 | AG14: =IF(AF14=0,0,(AF14*((LOG(AF14))/LOG(2)))) -> 0 | AI14: =N14 -> 222 | AJ14: =COUNTIF(L39:L49,AI14) -> 0 | AK14: =AJ14/(AL4-AJ11) -> 0 | AL14: =IF(AK14=0,0,(AK14*((LOG(AK14))/LOG(2)))) -> 0 | AN14: =N14 -> 222 | AO14: =COUNTIF(L50:L60,AN14) -> 0 | AP14: =AO14/(AQ4-AO11) -> 0 | AQ14: =IF(AP14=0,0,(AP14*((LOG(AP14))/LOG(2)))) -> 0 | AS14: =N14 -> 222 | AT14: =COUNTIF(L61:L71,AS14) -> 0 | AU14: =AT14/(AV4-AT11) -> 0 | AV14: =IF(AU14=0,0,(AU14*((LOG(AU14))/LOG(2)))) -> 0
A15: 21 | B15: 1167 | C15: 11 | D15: 1176 | E15: 11 | F15: 1186 | K15: 0 | L15: 211 | P15: =SUM(P7:P14) -> 1 | Q15: =-SUM(Q7:Q14) -> 1.618727154 | V15: =SUM(V7:V14) -> 1 | W15: =-SUM(W7:W14) -> 2 | AA15: =SUM(AA7:AA14) -> 1 | AB15: =-SUM(AB7:AB14) -> 0.6500224216 | AF15: =SUM(AF7:AF14) -> 1 | AG15: =-SUM(AG7:AG14) -> 0 | AK15: =SUM(AK7:AK14) -> 1 | AL15: =-SUM(AL7:AL14) -> 1.392147224 | AP15: =SUM(AP7:AP14) -> 1 | AQ15: =-SUM(AQ7:AQ14) -> 1 | AU15: =SUM(AU7:AU14) -> 1 | AV15: =-SUM(AV7:AV14) -> 0
A16: 21 | B16: 1289 | C16: 11 | D16: 1299 | E16: 11 | F16: 1304 | K16: 0 | L16: 211 | P16: U= | Q16: =Q15/(LOG(Q4)/LOG(2)) -> 0.2687858338 | V16: U1= | W16: =W15/(LOG(W4)/LOG(2)) -> 0.5781296526 | AA16: U2= | AB16: =AB15/(LOG(AB4)/LOG(2)) -> 0.1878986184 | AF16: U3= | AG16: =AG15/(LOG(AG4)/LOG(2)) -> 0 | AK16: U4= | AL16: =AL15/(LOG(AL4)/LOG(2)) -> 0.4024207954 | AP16: U5= | AQ16: =AQ15/(LOG(AQ4)/LOG(2)) -> 0.2890648263 | AU16: U6= | AV16: =AV15/(LOG(AV4)/LOG(2)) -> 0
A17: 21 | B17: 1395 | C17: 11 | D17: 1408 | E17: 11 | F17: 1415 | K17: 0 | L17: 211
A18: 12 | B18: 1524 | C18: 13 | D18: 1529 | E18: 13 | F18: 1551 | K18: 0 | L18: 111
A19: 21 | B19: 1653 | C19: 22 | D19: 1673 | E19: 13 | F19: 1686 | K19: 0 | L19: 221 | N19: Total Target Seq
A20: 21 | B20: 1788 | C20: 22 | D20: 1796 | E20: 13 | F20: 1807 | K20: 0 | L20: 221 | N20: =COUNTIF(L7:L71,G3) -> 37 | P20: 11 | Q20: 11 | R20: 10 | S20: 11 | T20: 11 | U20: 11
A21: 21 | B21: 1911 | C21: 22 | D21: 1920 | E21: 13 | F21: 1932 | K21: 0 | L21: 221 | P21: % of reinforcement given in 6 equal intervals based on number of trials
A22: 21 | B22: 2033 | C22: 22 | D22: 2051 | E22: 13 | F22: 2067 | K22: 0 | L22: 221 | P22: %_1 | Q22: %_2 | R22: %_3 | S22: %_4 | T22: %_5 | U22: %_6
A23: 21 | B23: 2167 | C23: 11 | D23: 2177 | E23: 11 | F23: 2183 | K23: 0 | L23: 211 | O23: target sequence | P23: =$G$3 -> 211 | Q23: =$G$3 -> 211 | R23: =$G$3 -> 211 | S23: =$G$3 -> 211 | T23: =$G$3 -> 211 | U23: =$G$3 -> 211
A24: 21 | B24: 2282 | C24: 11 | D24: 2292 | E24: 11 | F24: 2298 | K24: 0 | L24: 211 | O24: total reinforcement | P24: =U11 -> 7 | Q24: =Z11 -> 5 | R24: =AE11 -> 8 | S24: =AJ11 -> 2 | T24: =AO11 -> 7 | U24: =AT11 -> 8
A25: 21 | B25: 2489 | C25: 22 | D25: 2505 | E25: 13 | F25: 2521 | K25: 0 | L25: 221 | O25: % target
A26: 21 | B26: 2621 | C26: 11 | D26: 2631 | E26: 11 | F26: 2636 | K26: 0 | L26: 211 | O26: CCRF
A27: 21 | B27: 2732 | C27: 11 | D27: 2746 | E27: 11 | F27: 2763 | K27: 0 | L27: 211 | O27: % CCRf
A28: 21 | B28: 2870 | C28: 11 | D28: 2883 | E28: 11 | F28: 2894 | K28: 0 | L28: 211 | O28: average response rate | P28: =F17/P20 -> 128.6363636 | Q28: =(F28-F17)/Q20 -> 134.4545455 | R28: =(F38-F28)/R20 -> 118.3 | S28: =(F49-F38)/S20 -> 134.1818182 | T28: =(F60-F49)/T20 -> 117.4545455 | U28: =(F71-F60)/U20 -> 111.5454545
A29: 21 | B29: 2989 | C29: 11 | D29: 2998 | E29: 11 | F29: 3003 | K29: 0 | L29: 211
A30: 21 | B30: 3094 | C30: 11 | D30: 3104 | E30: 11 | F30: 3109 | K30: 0 | L30: 211
A31: 21 | B31: 3200 | C31: 11 | D31: 3228 | E31: 11 | F31: 3240 | K31: 0 | L31: 211
A32: 21 | B32: 3331 | C32: 11 | D32: 3347 | E32: 11 | F32: 3359 | K32: 0 | L32: 211
A33: 21 | B33: 3453 | C33: 11 | D33: 3463 | E33: 11 | F33: 3467 | K33: 0 | L33: 211
A34: 21 | B34: 3559 | C34: 22 | D34: 3570 | E34: 13 | F34: 3583 | K34: 0 | L34: 221
A35: 21 | B35: 3705 | C35: 11 | D35: 3715 | E35: 11 | F35: 3721 | K35: 0 | L35: 211
A36: 21 | B36: 3815 | C36: 11 | D36: 3825 | E36: 11 | F36: 3831 | K36: 0 | L36: 211
A37: 21 | B37: 3923 | C37: 22 | D37: 3938 | E37: 13 | F37: 3948 | K37: 0 | L37: 221
A38: 21 | B38: 4049 | C38: 11 | D38: 4062 | E38: 11 | F38: 4077 | K38: 0 | L38: 211
A39: 21 | B39: 4168 | C39: 11 | D39: 4179 | E39: 11 | F39: 4183 | K39: 0 | L39: 211
A40: 12 | B40: 4287 | C40: 13 | D40: 4293 | E40: 13 | F40: 4307 | K40: 0 | L40: 111
A41: 21 | B41: 4408 | C41: 22 | D41: 4428 | E41: 13 | F41: 4438 | K41: 0 | L41: 221
A42: 21 | B42: 4541 | C42: 22 | D42: 4559 | E42: 13 | F42: 4571 | K42: 0 | L42: 221
A43: 21 | B43: 4673 | C43: 22 | D43: 4689 | E43: 13 | F43: 4700 | K43: 0 | L43: 221
A44: 12 | B44: 4818 | C44: 13 | D44: 4822 | E44: 13 | F44: 4874 | K44: 0 | L44: 111
A45: 12 | B45: 4995 | C45: 13 | D45: 5000 | E45: 13 | F45: 5019 | K45: 0 | L45: 111
A46: 21 | B46: 5119 | C46: 22 | D46: 5133 | E46: 13 | F46: 5145 | K46: 0 | L46: 221
A47: 12 | B47: 5269 | C47: 13 | D47: 5281 | E47: 24 | F47: 5312 | K47: 0 | L47: 112
A48: 12 | B48: 5413 | C48: 13 | D48: 5419 | E48: 13 | F48: 5435 | K48: 0 | L48: 111
A49: 21 | B49: 5535 | C49: 11 | D49: 5546 | E49: 11 | F49: 5553 | K49: 0 | L49: 211
A50: 12 | B50: 5659 | C50: 13 | D50: 5665 | E50: 13 | F50: 5684 | K50: 0 | L50: 111
A51: 21 | B51: 5785 | C51: 22 | D51: 5799 | E51: 13 | F51: 5809 | K51: 0 | L51: 221
A52: 21 | B52: 5910 | C52: 11 | D52: 5919 | E52: 11 | F52: 5924 | K52: 0 | L52: 211
A53: 21 | B53: 6015 | C53: 22 | D53: 6028 | E53: 13 | F53: 6037 | K53: 0 | L53: 221
A54: 21 | B54: 6147 | C54: 11 | D54: 6158 | E54: 11 | F54: 6171 | K54: 0 | L54: 211
A55: 21 | B55: 6263 | C55: 11 | D55: 6272 | E55: 11 | F55: 6288 | K55: 0 | L55: 211
A56: 21 | B56: 6377 | C56: 11 | D56: 6386 | E56: 11 | F56: 6390 | K56: 0 | L56: 211
A57: 12 | B57: 6491 | C57: 13 | D57: 6496 | E57: 13 | F57: 6504 | K57: 0 | L57: 111
A58: 21 | B58: 6605 | C58: 11 | D58: 6614 | E58: 11 | F58: 6622 | K58: 0 | L58: 211
A59: 21 | B59: 6717 | C59: 11 | D59: 6726 | E59: 11 | F59: 6737 | K59: 0 | L59: 211
A60: 21 | B60: 6831 | C60: 11 | D60: 6840 | E60: 11 | F60: 6845 | K60: 0 | L60: 211
A61: 21 | B61: 6937 | C61: 11 | D61: 6948 | E61: 11 | F61: 6958 | K61: 0 | L61: 211
A62: 21 | B62: 7050 | C62: 22 | D62: 7062 | E62: 13 | F62: 7072 | K62: 0 | L62: 221
A63: 21 | B63: 7172 | C63: 22 | D63: 7183 | E63: 13 | F63: 7192 | K63: 0 | L63: 221
A64: 21 | B64: 7292 | C64: 11 | D64: 7301 | E64: 11 | F64: 7306 | K64: 0 | L64: 211
A65: 21 | B65: 7399 | C65: 11 | D65: 7409 | E65: 11 | F65: 7416 | K65: 0 | L65: 211
A66: 21 | B66: 7507 | C66: 11 | D66: 7516 | E66: 11 | F66: 7520 | K66: 0 | L66: 211
A67: 21 | B67: 7611 | C67: 22 | D67: 7620 | E67: 13 | F67: 7631 | K67: 0 | L67: 221
A68: 21 | B68: 7733 | C68: 11 | D68: 7742 | E68: 11 | F68: 7746 | K68: 0 | L68: 211
A69: 21 | B69: 7836 | C69: 11 | D69: 7845 | E69: 11 | F69: 7850 | K69: 0 | L69: 211
A70: 21 | B70: 7940 | C70: 11 | D70: 7949 | E70: 11 | F70: 7954 | K70: 0 | L70: 211
A71: 21 | B71: 8045 | C71: 11 | D71: 8054 | E71: 11 | F71: 8072 | K71: 1 | L71: 211

Sheet !M518940.105
A1: Report for:!M518940.105
A2: Date: | B2: <date>
A3: Hen: | B3: <hen> | F3: Correct Sequence | G3: =Start!J2 -> 211 | P3: Total Sequences in Data | Q3: =4994-COUNTBLANK(L7:L5000) -> 50 | V3: Total Sequences in Block Data | W3: =COUNTA(L7:L14) -> 8 | AA3: Total Sequences in Block Data | AB3: =COUNTA(L15:L23) -> 9 | AF3: Total Sequences in Block Data | AG3: =COUNTA(L24:L31) -> 8 | AK3: Total Sequences in Block Data | AL3: =COUNTA(L32:L39) -> 8 | AP3: Total Sequences in Block Data | AQ3: =COUNTA(L40:L48) -> 9 | AU3: Total Sequences in Block Data | AV3: =COUNTA(L49:L56) -> 8
P4: Total Sequences in Summary | Q4: =SUM(O7:O14) -> 50 | V4: Total Sequences in Block Summary | W4: =SUM(U7:U14) -> 8 | AA4: Total Sequences in Block Summary | AB4: =SUM(Z7:Z14) -> 9 | AF4: Total Sequences in Block Summary | AG4: =SUM(AE7:AE14) -> 8 | AK4: Total Sequences in Block Summary | AL4: =SUM(AJ7:AJ14) -> 8 | AP4: Total Sequences in Block Summary | AQ4: =SUM(AO7:AO14) -> 9 | AU4: Total Sequences in Block Summary | AV4: =SUM(AT7:AT14) -> 8
T5: Block 1 | Y5: Block 2 | AD5: Block 3 | AI5: Block 4 | AN5: Block 5 | AS5: Block 6
A6: Sequence Component 1 | B6: Time 1 | C6: Sequence Component 2 | D6: Time 2 | E6: Sequence Component 3 | F6: Time 3 | G6: Sequence Component 4 | H6: Time 4 | I6: Sequence Component 5 | J6: Time 5 | K6: Correct? 0=No 1=Yes | L6: Sequence | N6: Frequency | P6: Relative Frequency | Q6: Variability | T6: Frequency | V6: Relative Frequency | W6: Variability | Y6: Frequency | AA6: Relative Frequency | AB6: Variability | AD6: Frequency | AF6: Relative Frequency | AG6: Variability | AI6: Frequency | AK6: Relative Frequency | AL6: Variability | AN6: Frequency | AP6: Relative Frequency | AQ6: Variability | AS6: Frequency | AU6: Relative Frequency | AV6: Variability
A7: 21 | B7: 27 | C7: 11 | D7: 43 | E7: 11 | F7: 49 | K7: 0 | L7: 211 | N7: 111 | O7: =COUNTIF($L$7:$L$500,N7) -> 9 | P7: =O7/$Q$4 -> 0.18 | Q7: =IF(P7=0,0,(P7*((LOG(P7))/LOG(2)))) -> -0.4453076139 | T7: =N7 -> 111 | U7: =COUNTIF(L7:L14,T7) -> 2 | V7: =U7/(W4-U11) -> 1 | W7: =IF(V7=0,0,(V7*((LOG(V7))/LOG(2)))) -> 0 | Y7: =N7 -> 111 | Z7: =COUNTIF(L15:L23,Y7) -> 1 | AA7: =Z7/(AB4-Z11) -> 1 | AB7: =IF(AA7=0,0,(AA7*((LOG(AA7))/LOG(2)))) -> 0 | AD7: =N7 -> 111 | AE7: =COUNTIF(L24:L31,AD7) -> 2 | AF7: =AE7/(AG4-AE11) -> 1 | AG7: =IF(AF7=0,0,(AF7*((LOG(AF7))/LOG(2)))) -> 0 | AI7: =N7 -> 111 | AJ7: =COUNTIF(L32:L39,AI7) -> 1 | AK7: =AJ7/(AL4-AJ11) -> 1 | AL7: =IF(AK7=0,0,(AK7*((LOG(AK7))/LOG(2)))) -> 0 | AN7: =N7 -> 111 | AO7: =COUNTIF(L40:L48,AN7) -> 1 | AP7: =AO7/(AQ4-AO11) -> 0.5 | AQ7: =IF(AP7=0,0,(AP7*((LOG(AP7))/LOG(2)))) -> -0.5 | AS7: =N7 -> 111 | AT7: =COUNTIF(L49:L56,AS7) -> 2 | AU7: =AT7/(AV4-AT11) -> 0.6666666667 | AV7: =IF(AU7=0,0,(AU7*((LOG(AU7))/LOG(2)))) -> -0.3899750005
A8: 12 | B8: 161 | C8: 13 | D8: 166 | E8: 13 | F8: 174 | K8: 0 | L8: 111 | N8: 112 | O8: =COUNTIF($L$7:$L$500,N8) -> 2 | P8: =O8/$Q$4 -> 0.04 | Q8: =IF(P8=0,0,(P8*((LOG(P8))/LOG(2)))) -> -0.1857542476 | T8: =N8 -> 112 | U8: =COUNTIF(L7:L14,T8) -> 0 | V8: =U8/(W4-U11) -> 0 | W8: =IF(V8=0,0,(V8*((LOG(V8))/LOG(2)))) -> 0 | Y8: =N8 -> 112 | Z8: =COUNTIF(L15:L23,Y8) -> 0 | AA8: =Z8/(AB4-Z11) -> 0 | AB8: =IF(AA8=0,0,(AA8*((LOG(AA8))/LOG(2)))) -> 0 | AD8: =N8 -> 112 | AE8: =COUNTIF(L24:L31,AD8) -> 0 | AF8: =AE8/(AG4-AE11) -> 0 | AG8: =IF(AF8=0,0,(AF8*((LOG(AF8))/LOG(2)))) -> 0 | AI8: =N8 -> 112 | AJ8: =COUNTIF(L32:L39,AI8) -> 0 | AK8: =AJ8/(AL4-AJ11) -> 0 | AL8: =IF(AK8=0,0,(AK8*((LOG(AK8))/LOG(2)))) -> 0 | AN8: =N8 -> 112 | AO8: =COUNTIF(L40:L48,AN8) -> 1 | AP8: =AO8/(AQ4-AO11) -> 0.5 | AQ8: =IF(AP8=0,0,(AP8*((LOG(AP8))/LOG(2)))) -> -0.5 | AS8: =N8 -> 112 | AT8: =COUNTIF(L49:L56,AS8) -> 1 | AU8: =AT8/(AV4-AT11) -> 0.3333333333 | AV8: =IF(AU8=0,0,(AU8*((LOG(AU8))/LOG(2)))) -> -0.5283208336
A9: 21 | B9: 273 | C9: 11 | D9: 300 | E9: 11 | F9: 317 | K9: 0 | L9: 211 | N9: 121 | O9: =COUNTIF($L$7:$L$500,N9) -> 0 | P9: =O9/$Q$4 -> 0 | Q9: =IF(P9=0,0,(P9*((LOG(P9))/LOG(2)))) -> 0 | T9: =N9 -> 121 | U9: =COUNTIF(L7:L14,T9) -> 0 | V9: =U9/(W4-U11) -> 0 | W9: =IF(V9=0,0,(V9*((LOG(V9))/LOG(2)))) -> 0 | Y9: =N9 -> 121 | Z9: =COUNTIF(L15:L23,Y9) -> 0 | AA9: =Z9/(AB4-Z11) -> 0 | AB9: =IF(AA9=0,0,(AA9*((LOG(AA9))/LOG(2)))) -> 0 | AD9: =N9 -> 121 | AE9: =COUNTIF(L24:L31,AD9) -> 0 | AF9: =AE9/(AG4-AE11) -> 0 | AG9: =IF(AF9=0,0,(AF9*((LOG(AF9))/LOG(2)))) -> 0 | AI9: =N9 -> 121 | AJ9: =COUNTIF(L32:L39,AI9) -> 0 | AK9: =AJ9/(AL4-AJ11) -> 0 | AL9: =IF(AK9=0,0,(AK9*((LOG(AK9))/LOG(2)))) -> 0 | AN9: =N9 -> 121 | AO9: =COUNTIF(L40:L48,AN9) -> 0 | AP9: =AO9/(AQ4-AO11) -> 0 | AQ9: =IF(AP9=0,0,(AP9*((LOG(AP9))/LOG(2)))) -> 0 | AS9: =N9 -> 121 | AT9: =COUNTIF(L49:L56,AS9) -> 0 | AU9: =AT9/(AV4-AT11) -> 0 | AV9: =IF(AU9=0,0,(AU9*((LOG(AU9))/LOG(2)))) -> 0
A10: 21 | B10: 411 | C10: 11 | D10: 421 | E10: 11 | F10: 426 | K10: 0 | L10: 211 | N10: 122 | O10: =COUNTIF($L$7:$L$500,N10) -> 0 | P10: =O10/$Q$4 -> 0 | Q10: =IF(P10=0,0,(P10*((LOG(P10))/LOG(2)))) -> 0 | T10: =N10 -> 122 | U10: =COUNTIF(L7:L14,T10) -> 0 | V10: =U10/(W4-U11) -> 0 | W10: =IF(V10=0,0,(V10*((LOG(V10))/LOG(2)))) -> 0 | Y10: =N10 -> 122 | Z10: =COUNTIF(L15:L23,Y10) -> 0 | AA10: =Z10/(AB4-Z11) -> 0 | AB10: =IF(AA10=0,0,(AA10*((LOG(AA10))/LOG(2)))) -> 0 | AD10: =N10 -> 122 | AE10: =COUNTIF(L24:L31,AD10) -> 0 | AF10: =AE10/(AG4-AE11) -> 0 | AG10: =IF(AF10=0,0,(AF10*((LOG(AF10))/LOG(2)))) -> 0 | AI10: =N10 -> 122 | AJ10: =COUNTIF(L32:L39,AI10) -> 0 | AK10: =AJ10/(AL4-AJ11) -> 0 | AL10: =IF(AK10=0,0,(AK10*((LOG(AK10))/LOG(2)))) -> 0 | AN10: =N10 -> 122 | AO10: =COUNTIF(L40:L48,AN10) -> 0 | AP10: =AO10/(AQ4-AO11) -> 0 | AQ10: =IF(AP10=0,0,(AP10*((LOG(AP10))/LOG(2)))) -> 0 | AS10: =N10 -> 122 | AT10: =COUNTIF(L49:L56,AS10) -> 0 | AU10: =AT10/(AV4-AT11) -> 0 | AV10: =IF(AU10=0,0,(AU10*((LOG(AU10))/LOG(2)))) -> 0
A11: 21 | B11: 532 | C11: 11 | D11: 547 | E11: 11 | F11: 562 | K11: 0 | L11: 211 | N11: 211 | O11: =COUNTIF($L$7:$L$500,N11) -> 39 | P11: =O11/$Q$4 -> 0.78 | Q11: =IF(P11=0,0,(P11*((LOG(P11))/LOG(2)))) -> -0.2795940973 | T11: =N11 -> 211 | U11: =COUNTIF(L7:L14,T11) -> 6 | Y11: =N11 -> 211 | Z11: =COUNTIF(L15:L23,Y11) -> 8 | AD11: =N11 -> 211 | AE11: =COUNTIF(L24:L31,AD11) -> 6 | AI11: =N11 -> 211 | AJ11: =COUNTIF(L32:L39,AI11) -> 7 | AN11: =N11 -> 211 | AO11: =COUNTIF(L40:L48,AN11) -> 7 | AS11: =N11 -> 211 | AT11: =COUNTIF(L49:L56,AS11) -> 5
A12: 21 | B12: 657 | C12: 11 | D12: 671 | E12: 11 | F12: 679 | K12: 0 | L12: 211 | N12: 212 | O12: =COUNTIF($L$7:$L$500,N12) -> 0 | P12: =O12/$Q$4 -> 0 | Q12: =IF(P12=0,0,(P12*((LOG(P12))/LOG(2)))) -> 0 | T12: =N12 -> 212 | U12: =COUNTIF(L7:L14,T12) -> 0 | V12: =U12/(W4-U11) -> 0 | W12: =IF(V12=0,0,(V12*((LOG(V12))/LOG(2)))) -> 0 | Y12: =N12 -> 212 | Z12: =COUNTIF(L15:L23,Y12) -> 0 | AA12: =Z12/(AB4-Z11) -> 0 | AB12: =IF(AA12=0,0,(AA12*((LOG(AA12))/LOG(2)))) -> 0 | AD12: =N12 -> 212 | AE12: =COUNTIF(L24:L31,AD12) -> 0 | AF12: =AE12/(AG4-AE11) -> 0 | AG12: =IF(AF12=0,0,(AF12*((LOG(AF12))/LOG(2)))) -> 0 | AI12: =N12 -> 212 | AJ12: =COUNTIF(L32:L39,AI12) -> 0 | AK12: =AJ12/(AL4-AJ11) -> 0 | AL12: =IF(AK12=0,0,(AK12*((LOG(AK12))/LOG(2)))) -> 0 | AN12: =N12 -> 212 | AO12: =COUNTIF(L40:L48,AN12) -> 0 | AP12: =AO12/(AQ4-AO11) -> 0 | AQ12: =IF(AP12=0,0,(AP12*((LOG(AP12))/LOG(2)))) -> 0 | AS12: =N12 -> 212 | AT12: =COUNTIF(L49:L56,AS12) -> 0 | AU12: =AT12/(AV4-AT11) -> 0 | AV12: =IF(AU12=0,0,(AU12*((LOG(AU12))/LOG(2)))) -> 0
A13: 12 | B13: 783 | C13: 13 | D13: 788 | E13: 13 | F13: 796 | K13: 0 | L13: 111 | N13: 221 | O13: =COUNTIF($L$7:$L$500,N13) -> 0 | P13: =O13/$Q$4 -> 0 | Q13: =IF(P13=0,0,(P13*((LOG(P13))/LOG(2)))) -> 0 | T13: =N13 -> 221 | U13: =COUNTIF(L7:L14,T13) -> 0 | V13: =U13/(W4-U11) -> 0 | W13: =IF(V13=0,0,(V13*((LOG(V13))/LOG(2)))) -> 0 | Y13: =N13 -> 221 | Z13: =COUNTIF(L15:L23,Y13) -> 0 | AA13: =Z13/(AB4-Z11) -> 0 | AB13: =IF(AA13=0,0,(AA13*((LOG(AA13))/LOG(2)))) -> 0 | AD13: =N13 -> 221 | AE13: =COUNTIF(L24:L31,AD13) -> 0 | AF13: =AE13/(AG4-AE11) -> 0 | AG13: =IF(AF13=0,0,(AF13*((LOG(AF13))/LOG(2)))) -> 0 | AI13: =N13 -> 221 | AJ13: =COUNTIF(L32:L39,AI13) -> 0 | AK13: =AJ13/(AL4-AJ11) -> 0 | AL13: =IF(AK13=0,0,(AK13*((LOG(AK13))/LOG(2)))) -> 0 | AN13: =N13 -> 221 | AO13: =COUNTIF(L40:L48,AN13) -> 0 | AP13: =AO13/(AQ4-AO11) -> 0 | AQ13: =IF(AP13=0,0,(AP13*((LOG(AP13))/LOG(2)))) -> 0 | AS13: =N13 -> 221 | AT13: =COUNTIF(L49:L56,AS13) -> 0 | AU13: =AT13/(AV4-AT11) -> 0 | AV13: =IF(AU13=0,0,(AU13*((LOG(AU13))/LOG(2)))) -> 0
A14: 21 | B14: 898 | C14: 11 | D14: 912 | E14: 11 | F14: 919 | K14: 0 | L14: 211 | N14: 222 | O14: =COUNTIF($L$7:$L$500,N14) -> 0 | P14: =O14/$Q$4 -> 0 | Q14: =IF(P14=0,0,(P14*((LOG(P14))/LOG(2)))) -> 0 | T14: =N14 -> 222 | U14: =COUNTIF(L7:L14,T14) -> 0 | V14: =U14/(W4-U11) -> 0 | W14: =IF(V14=0,0,(V14*((LOG(V14))/LOG(2)))) -> 0 | Y14: =N14 -> 222 | Z14: =COUNTIF(L15:L23,Y14) -> 0 | AA14: =Z14/(AB4-Z11) -> 0 | AB14: =IF(AA14=0,0,(AA14*((LOG(AA14))/LOG(2)))) -> 0 | AD14: =N14 -> 222 | AE14: =COUNTIF(L24:L31,AD14) -> 0 | AF14: =AE14/(AG4-AE11) -> 0 | AG14: =IF(AF14=0,0,(AF14*((LOG(AF14))/LOG(2)))) -> 0 | AI14: =N14 -> 222 | AJ14: =COUNTIF(L32:L39,AI14) -> 0 | AK14: =AJ14/(AL4-AJ11) -> 0 | AL14: =IF(AK14=0,0,(AK14*((LOG(AK14))/LOG(2)))) -> 0 | AN14: =N14 -> 222 | AO14: =COUNTIF(L40:L48,AN14) -> 0 | AP14: =AO14/(AQ4-AO11) -> 0 | AQ14: =IF(AP14=0,0,(AP14*((LOG(AP14))/LOG(2)))) -> 0 | AS14: =N14 -> 222 | AT14: =COUNTIF(L49:L56,AS14) -> 0 | AU14: =AT14/(AV4-AT11) -> 0 | AV14: =IF(AU14=0,0,(AU14*((LOG(AU14))/LOG(2)))) -> 0
A15: 21 | B15: 1018 | C15: 11 | D15: 1029 | E15: 11 | F15: 1036 | K15: 0 | L15: 211 | P15: =SUM(P7:P14) -> 1 | Q15: =-SUM(Q7:Q14) -> 0.9106559588 | V15: =SUM(V7:V14) -> 1 | W15: =-SUM(W7:W14) -> 0 | AA15: =SUM(AA7:AA14) -> 1 | AB15: =-SUM(AB7:AB14) -> 0 | AF15: =SUM(AF7:AF14) -> 1 | AG15: =-SUM(AG7:AG14) -> 0 | AK15: =SUM(AK7:AK14) -> 1 | AL15: =-SUM(AL7:AL14) -> 0 | AP15: =SUM(AP7:AP14) -> 1 | AQ15: =-SUM(AQ7:AQ14) -> 1 | AU15: =SUM(AU7:AU14) -> 1 | AV15: =-SUM(AV7:AV14) -> 0.9182958341
A16: 21 | B16: 1127 | C16: 11 | D16: 1141 | E16: 11 | F16: 1149 | K16: 0 | L16: 211 | P16: U= | Q16: =Q15/(LOG(Q4)/LOG(2)) -> 0.1613535016 | V16: U1= | W16: =W15/(LOG(W4)/LOG(2)) -> 0 | AA16: U2= | AB16: =AB15/(LOG(AB4)/LOG(2)) -> 0 | AF16: U3= | AG16: =AG15/(LOG(AG4)/LOG(2)) -> 0 | AK16: U4= | AL16: =AL15/(LOG(AL4)/LOG(2)) -> 0 | AP16: U5= | AQ16: =AQ15/(LOG(AQ4)/LOG(2)) -> 0.3154648768 | AU16: U6= | AV16: =AV15/(LOG(AV4)/LOG(2)) -> 0.3060986114
A17: 21 | B17: 1258 | C17: 11 | D17: 1267 | E17: 11 | F17: 1273 | K17: 0 | L17: 211
A18: 21 | B18: 1371 | C18: 11 | D18: 1380 | E18: 11 | F18: 1385 | K18: 0 | L18: 211
A19: 21 | B19: 1485 | C19: 11 | D19: 1496 | E19: 11 | F19: 1500 | K19: 0 | L19: 211 | N19: Total Target Seq
A20: 12 | B20: 1602 | C20: 13 | D20: 1607 | E20: 13 | F20: 1695 | K20: 0 | L20: 111 | N20: =COUNTIF(L7:L56,G3) -> 39 | P20: 8 | Q20: 9 | R20: 8 | S20: 8 | T20: 9 | U20: 8
A21: 21 | B21: 1797 | C21: 11 | D21: 1807 | E21: 11 | F21: 1811 | K21: 0 | L21: 211 | P21: % of reinforcement given in 6 equal intervals based on number of trials
A22: 21 | B22: 1909 | C22: 11 | D22: 1917 | E22: 11 | F22: 1922 | K22: 0 | L22: 211 | P22: %_1 | Q22: %_2 | R22: %_3 | S22: %_4 | T22: %_5 | U22: %_6
A23: 21 | B23: 2016 | C23: 11 | D23: 2025 | E23: 11 | F23: 2040 | K23: 0 | L23: 211 | O23: target sequence | P23: =$G$3 -> 211 | Q23: =$G$3 -> 211 | R23: =$G$3 -> 211 | S23: =$G$3 -> 211 | T23: =$G$3 -> 211 | U23: =$G$3 -> 211
A24: 12 | B24: 2145 | C24: 13 | D24: 2150 | E24: 13 | F24: 2157 | K24: 0 | L24: 111 | O24: total reinforcement | P24: =U11 -> 6 | Q24: =Z11 -> 8 | R24: =AE11 -> 6 | S24: =AJ11 -> 7 | T24: =AO11 -> 7 | U24: =AT11 -> 5
A25: 21 | B25: 2261 | C25: 11 | D25: 2270 | E25: 11 | F25: 2275 | K25: 0 | L25: 211 | O25: % target
A26: 21 | B26: 2373 | C26: 11 | D26: 2382 | E26: 11 | F26: 2386 | K26: 0 | L26: 211 | O26: CCRF
A27: 21 | B27: 2482 | C27: 11 | D27: 2491 | E27: 11 | F27: 2503 | K27: 0 | L27: 211 | O27: % CCRf
A28: 21 | B28: 2601 | C28: 11 | D28: 2611 | E28: 11 | F28: 2616 | K28: 0 | L28: 211 | O28: average response rate | P28: =F14/P20 -> 114.875 | Q28: =(F23-F14)/Q20 -> 124.5555556 | R28: =(F31-F23)/R20 -> 116.375 | S28: =(F39-F31)/S20 -> 115.5 | T28: =(F48-F39)/T20 -> 126.6666667 | U28: =(F56-F48)/U20 -> 127.25
A29: 12 | B29: 2718 | C29: 13 | D29: 2723 | E29: 13 | F29: 2742 | K29: 0 | L29: 111
A30: 21 | B30: 2842 | C30: 11 | D30: 2851 | E30: 11 | F30: 2858 | K30: 0 | L30: 211
A31: 21 | B31: 2955 | C31: 11 | D31: 2963 | E31: 11 | F31: 2971 | K31: 0 | L31: 211
A32: 12 | B32: 3077 | C32: 13 | D32: 3088 | E32: 13 | F32: 3096 | K32: 0 | L32: 111
A33: 21 | B33: 3196 | C33: 11 | D33: 3224 | E33: 11 | F33: 3229 | K33: 0 | L33: 211
A34: 21 | B34: 3320 | C34: 11 | D34: 3329 | E34: 11 | F34: 3333 | K34: 0 | L34: 211
A35: 21 | B35: 3429 | C35: 11 | D35: 3438 | E35: 11 | F35: 3443 | K35: 0 | L35: 211
A36: 21 | B36: 3536 | C36: 11 | D36: 3556 | E36: 11 | F36: 3565 | K36: 0 | L36: 211
A37: 21 | B37: 3659 | C37: 11 | D37: 3668 | E37: 11 | F37: 3674 | K37: 0 | L37: 211
A38: 21 | B38: 3765 | C38: 11 | D38: 3774 | E38: 11 | F38: 3778 | K38: 0 | L38: 211
A39: 21 | B39: 3877 | C39: 11 | D39: 3886 | E39: 11 | F39: 3895 | K39: 0 | L39: 211
A40: 21 | B40: 3990 | C40: 11 | D40: 3999 | E40: 11 | F40: 4005 | K40: 0 | L40: 211
A41: 21 | B41: 4095 | C41: 11 | D41: 4103 | E41: 11 | F41: 4111 | K41: 0 | L41: 211
A42: 12 | B42: 4211 | C42: 13 | D42: 4216 | E42: 24 | F42: 4316 | K42: 0 | L42: 112
A43: 21 | B43: 4416 | C43: 11 | D43: 4424 | E43: 11 | F43: 4428 | K43: 0 | L43: 211
A44: 21 | B44: 4520 | C44: 11 | D44: 4529 | E44: 11 | F44: 4541 | K44: 0 | L44: 211
A45: 12 | B45: 4646 | C45: 13 | D45: 4654 | E45: 13 | F45: 4700 | K45: 0 | L45: 111
A46: 21 | B46: 4799 | C46: 11 | D46: 4808 | E46: 11 | F46: 4812 | K46: 0 | L46: 211
A47: 21 | B47: 4907 | C47: 11 | D47: 4916 | E47: 11 | F47: 4924 | K47: 0 | L47: 211
A48: 21 | B48: 5019 | C48: 11 | D48: 5028 | E48: 11 | F48: 5035 | K48: 0 | L48: 211
A49: 21 | B49: 5124 | C49: 11 | D49: 5133 | E49: 11 | F49: 5137 | K49: 0 | L49: 211
A50: 12 | B50: 5238 | C50: 13 | D50: 5242 | E50: 13 | F50: 5259 | K50: 0 | L50: 111
A51: 12 | B51: 5375 | C51: 13 | D51: 5379 | E51: 13 | F51: 5387 | K51: 0 | L51: 111
A52: 21 | B52: 5487 | C52: 11 | D52: 5495 | E52: 11 | F52: 5500 | K52: 0 | L52: 211
A53: 21 | B53: 5595 | C53: 11 | D53: 5604 | E53: 11 | F53: 5613 | K53: 0 | L53: 211
A54: 12 | B54: 5731 | C54: 13 | D54: 5738 | E54: 24 | F54: 5821 | K54: 0 | L54: 112
A55: 21 | B55: 5931 | C55: 11 | D55: 5940 | E55: 11 | F55: 5945 | K55: 0 | L55: 211
A56: 21 | B56: 6040 | C56: 11 | D56: 6048 | E56: 11 | F56: 6053 | K56: 1 | L56: 211

Sheet !M519900.105
A1: Report for:!M519900.105
A2: Date: | B2: <date>
